Workbook

Sheet Input
B1: STEPL Input Sheet: | D1: Values in RED are required input. Change worksheets by clicking on tabs at the bottom. | J1: You entered | K1: ='General Input Data'!$C$6 -> 5 | L1: subwatershed(s). | AA1: 0-24%
B2: This sheet is composed of eight input tables. The first four tables require users to change initial values. The next four tables (initially hidden) contain default values users may choose to change. | AA2: 25-49%
B3: Step 1: Select the state and county where your watersheds are located. Select a nearby weather station. This will automatically specify values for rainfall parameters in Table 1 and USLE parameters in Table 4. | AA3: 50-74%
B4: Step 2: (a) Enter land use areas in acres in Table 1; (b) enter total number of agricultural animals by type and number of months per year that manure is applied to croplands in Table 2; | AA4: 75-100%
B5: (c) enter values for septic system parameters in Table 3; and (d) if desired, modify USLE parameters associated with the selected county in Table 4.
B6: Step 3: You may stop here and proceed to the BMPs sheet. If you have more detailed information on your watersheds, click the Yes button in row 10 to display optional input tables.
B7: Step 4: (a) Specify the representative Soil Hydrologic Group (SHG) and soil nutrient concentrations in Table 5; (b) modify the curve number table by landuse and SHG in Table 6;
B8: (c) modify the nutrient concentrations (mg/L) in runoff in Table 7; and (d) specify the detailed land use distribution in the urban area in Table 8.
B9: Step 5: Select BMPs in BMPs sheet. Step 6: View the estimates of loads and load reductions in Total Load and Graphs sheets.
B10: Show optional input tables? | F10: FALSE | K10: FALSE | AA10: Opt Groupped
B12: State | D12: County | F12: Weather Station | AA12: Hide Executed
B13: Alabama | D13: Autauga | F13: AL ABBEVILLE 1 NNW | I13: =B13 & "-" & D13 -> Alabama-Autauga
AA14: Initialized
K15: Rain correction factors
B16: 1. Input watershed land use area (ac) and precipitation (in) | K16: =LOOKUP(F13,CountyData!K2:K493,CountyData!L2:L493) -> 0.913 | L16: =LOOKUP(F13,CountyData!K2:K493,CountyData!M2:M493) -> 0.585
B17: Watershed | C17: Urban | D17: Cropland | E17: Pastureland | F17: Forest | G17: User Defined | H17: Feedlots | I17: Feedlot Percent Paved | J17: Total | K17: Annual Rainfall | L17: Rain Days | M17: Avg. Rain/Event
B18: W1 | C18: 0 | D18: 0 | E18: 0 | F18: 0 | G18: 0 | H18: 0 | I18: 0-24% | J18: =SUM(C18:H18) -> 0 | K18: =IF(B13="Puerto Rico",LOOKUP(F13,CountyData!K2:K493,CountyData!J2:J493),LOOKUP(I13,CountyData!F2:F3217,CountyData!G2:G3217)) -> 60 | L18: =IF(B13="Puerto Rico",LOOKUP(F13,CountyData!K2:K493,CountyData!N2:N493),LOOKUP(I13,CountyData!F2:F3217,CountyData!H2:H3217)) -> 87.3 | M18: =(K18*K16)/(L18*L16) -> 1.072634887
B19: W2 | C19: 0 | D19: 0 | E19: 0 | F19: 0 | G19: 0 | H19: 0 | I19: 0-24% | J19: =SUM(C19:H19) -> 0 | K19: =IF(B13="Puerto Rico",LOOKUP(F13,CountyData!K2:K493,CountyData!J2:J493),LOOKUP(I13,CountyData!F2:F3217,CountyData!G2:G3217)) -> 60 | L19: =IF(B13="Puerto Rico",LOOKUP(F13,CountyData!K2:K493,CountyData!N2:N493),LOOKUP(I13,CountyData!F2:F3217,CountyData!H2:H3217)) -> 87.3 | M19: =(K19*K16)/(L19*L16) -> 1.072634887
B20: W3 | C20: 0 | D20: 0 | E20: 0 | F20: 0 | G20: 0 | H20: 0 | I20: 0-24% | J20: =SUM(C20:H20) -> 0 | K20: =IF(B13="Puerto Rico",LOOKUP(F13,CountyData!K2:K493,CountyData!J2:J493),LOOKUP(I13,CountyData!F2:F3217,CountyData!G2:G3217)) -> 60 | L20: =IF(B13="Puerto Rico",LOOKUP(F13,CountyData!K2:K493,CountyData!N2:N493),LOOKUP(I13,CountyData!F2:F3217,CountyData!H2:H3217)) -> 87.3 | M20: =(K20*K16)/(L20*L16) -> 1.072634887 | AA20: $B$54
B21: W4 | C21: 0 | D21: 0 | E21: 0 | F21: 0 | G21: 0 | H21: 0 | I21: 0-24% | J21: =SUM(C21:H21) -> 0 | K21: =IF(B13="Puerto Rico",LOOKUP(F13,CountyData!K2:K493,CountyData!J2:J493),LOOKUP(I13,CountyData!F2:F3217,CountyData!G2:G3217)) -> 60 | L21: =IF(B13="Puerto Rico",LOOKUP(F13,CountyData!K2:K493,CountyData!N2:N493),LOOKUP(I13,CountyData!F2:F3217,CountyData!H2:H3217)) -> 87.3 | M21: =(K21*K16)/(L21*L16) -> 1.072634887 | AA21: $O$103
B22: W5 | C22: 0 | D22: 0 | E22: 0 | F22: 0 | G22: 0 | H22: 0 | I22: 0-24% | J22: =SUM(C22:H22) -> 0 | K22: =IF(B13="Puerto Rico",LOOKUP(F13,CountyData!K2:K493,CountyData!J2:J493),LOOKUP(I13,CountyData!F2:F3217,CountyData!G2:G3217)) -> 60 | L22: =IF(B13="Puerto Rico",LOOKUP(F13,CountyData!K2:K493,CountyData!N2:N493),LOOKUP(I13,CountyData!F2:F3217,CountyData!H2:H3217)) -> 87.3 | M22: =(K22*K16)/(L22*L16) -> 1.072634887
B25: 2. Input agricultural animals
B26: Watershed | C26: Beef Cattle | D26: Dairy Cattle | E26: Swine (Hog) | F26: Sheep | G26: Horse | H26: Chicken | I26: Turkey | J26: Duck | K26: # of months manure applied
B27: W1 | C27: 0 | D27: 0 | E27: 0 | F27: 0 | G27: 0 | H27: 0 | I27: 0 | J27: 0 | K27: 0
B28: W2 | C28: 0 | D28: 0 | E28: 0 | F28: 0 | G28: 0 | H28: 0 | I28: 0 | J28: 0 | K28: 0
B29: W3 | C29: 0 | D29: 0 | E29: 0 | F29: 0 | G29: 0 | H29: 0 | I29: 0 | J29: 0 | K29: 0
B30: W4 | C30: 0 | D30: 0 | E30: 0 | F30: 0 | G30: 0 | H30: 0 | I30: 0 | J30: 0 | K30: 0
B31: W5 | C31: 0 | D31: 0 | E31: 0 | F31: 0 | G31: 0 | H31: 0 | I31: 0 | J31: 0 | K31: 0
B32: Total | C32: =SUM(C27:C31) -> 0 | D32: =SUM(D27:D31) -> 0 | E32: =SUM(E27:E31) -> 0 | F32: =SUM(F27:F31) -> 0 | G32: =SUM(G27:G31) -> 0 | H32: =SUM(H27:H31) -> 0 | I32: =SUM(I27:I31) -> 0 | J32: =SUM(J27:J31) -> 0
B35: 3. Input septic system and illegal direct wastewater discharge data
B36: Watershed | C36: No. of Septic Systems | D36: Population per Septic System | E36: Septic Failure Rate, % | F36: Wastewater Direct Discharge, # of People | G36: Direct Discharge Reduction, %
B37: W1 | C37: 0 | D37: 2.43 | E37: 2 | F37: 0 | G37: 0
B38: W2 | C38: 0 | D38: 2.43 | E38: 2 | F38: 0 | G38: 0
B39: W3 | C39: 0 | D39: 2.43 | E39: 2 | F39: 0 | G39: 0
B40: W4 | C40: 0 | D40: 2.43 | E40: 2 | F40: 0 | G40: 0
B41: W5 | C41: 0 | D41: 2.43 | E41: 2 | F41: 0 | G41: 0
B44: 4. Modify the Universal Soil Loss Equation (USLE) parameters
B45: Watershed | C45: Cropland | H45: Pastureland | M45: Forest | R45: User Defined
C46: R | D46: K | E46: LS | F46: C | G46: P | H46: R | I46: K | J46: LS | K46: C | L46: P | M46: R | N46: K | O46: LS | P46: C | Q46: P | R46: R | S46: K | T46: LS | U46: C | V46: P
B47: W1 | C47: =LOOKUP(I13,CountyData!F2:F3217,CountyData!O2:O3217) -> 374.6893606 | D47: =LOOKUP(I13,CountyData!F2:F3217,CountyData!P2:P3217) -> 0.1971198096 | E47: =LOOKUP(I13,CountyData!F2:F3217,CountyData!Q2:Q3217) -> 0.289127188 | F47: =IF(LOOKUP(I13,CountyData!F2:F3217,CountyData!R2:R3217) > 0.2, LOOKUP(I13,CountyData!F2:F3217,CountyData!R2:R3217), 0.2) -> 0.2 | G47: =LOOKUP(I13,CountyData!F2:F3217,CountyData!S2:S3217) -> 0.985701275 | H47: =LOOKUP(I13,CountyData!F2:F3217,CountyData!O2:O3217) -> 374.6893606 | I47: =LOOKUP(I13,CountyData!F2:F3217,CountyData!P2:P3217) -> 0.1971198096 | J47: =LOOKUP(I13,CountyData!F2:F3217,CountyData!Q2:Q3217) -> 0.289127188 | K47: 0.04 | L47: 1 | M47: =LOOKUP(I13,CountyData!F2:F3217,CountyData!O2:O3217) -> 374.6893606 | N47: =LOOKUP(I13,CountyData!F2:F3217,CountyData!P2:P3217) -> 0.1971198096 | O47: =LOOKUP(I13,CountyData!F2:F3217,CountyData!Q2:Q3217) -> 0.289127188 | P47: 0.003 | Q47: 1 | R47: =LOOKUP(I13,CountyData!F2:F3217,CountyData!O2:O3217) -> 374.6893606 | S47: =LOOKUP(I13,CountyData!F2:F3217,CountyData!P2:P3217) -> 0.1971198096 | T47: =LOOKUP(I13,CountyData!F2:F3217,CountyData!Q2:Q3217) -> 0.289127188 | U47: =LOOKUP(I13,CountyData!F2:F3217,CountyData!R2:R3217) -> 0.1358287796 | V47: 1
B48: W2 | C48: =LOOKUP(I13,CountyData!F2:F3217,CountyData!O2:O3217) -> 374.6893606 | D48: =LOOKUP(I13,CountyData!F2:F3217,CountyData!P2:P3217) -> 0.1971198096 | E48: =LOOKUP(I13,CountyData!F2:F3217,CountyData!Q2:Q3217) -> 0.289127188 | F48: =IF(LOOKUP(I13,CountyData!F2:F3217,CountyData!R2:R3217) > 0.2, LOOKUP(I13,CountyData!F2:F3217,CountyData!R2:R3217), 0.2) -> 0.2 | G48: =LOOKUP(I13,CountyData!F2:F3217,CountyData!S2:S3217) -> 0.985701275 | H48: =LOOKUP(I13,CountyData!F2:F3217,CountyData!O2:O3217) -> 374.6893606 | I48: =LOOKUP(I13,CountyData!F2:F3217,CountyData!P2:P3217) -> 0.1971198096 | J48: =LOOKUP(I13,CountyData!F2:F3217,CountyData!Q2:Q3217) -> 0.289127188 | K48: 0.04 | L48: 1 | M48: =LOOKUP(I13,CountyData!F2:F3217,CountyData!O2:O3217) -> 374.6893606 | N48: =LOOKUP(I13,CountyData!F2:F3217,CountyData!P2:P3217) -> 0.1971198096 | O48: =LOOKUP(I13,CountyData!F2:F3217,CountyData!Q2:Q3217) -> 0.289127188 | P48: 0.003 | Q48: 1 | R48: =LOOKUP(I13,CountyData!F2:F3217,CountyData!O2:O3217) -> 374.6893606 | S48: =LOOKUP(I13,CountyData!F2:F3217,CountyData!P2:P3217) -> 0.1971198096 | T48: =LOOKUP(I13,CountyData!F2:F3217,CountyData!Q2:Q3217) -> 0.289127188 | U48: =LOOKUP(I13,CountyData!F2:F3217,CountyData!R2:R3217) -> 0.1358287796 | V48: 1
B49: W3 | C49: =LOOKUP(I13,CountyData!F2:F3217,CountyData!O2:O3217) -> 374.6893606 | D49: =LOOKUP(I13,CountyData!F2:F3217,CountyData!P2:P3217) -> 0.1971198096 | E49: =LOOKUP(I13,CountyData!F2:F3217,CountyData!Q2:Q3217) -> 0.289127188 | F49: =IF(LOOKUP(I13,CountyData!F2:F3217,CountyData!R2:R3217) > 0.2, LOOKUP(I13,CountyData!F2:F3217,CountyData!R2:R3217), 0.2) -> 0.2 | G49: =LOOKUP(I13,CountyData!F2:F3217,CountyData!S2:S3217) -> 0.985701275 | H49: =LOOKUP(I13,CountyData!F2:F3217,CountyData!O2:O3217) -> 374.6893606 | I49: =LOOKUP(I13,CountyData!F2:F3217,CountyData!P2:P3217) -> 0.1971198096 | J49: =LOOKUP(I13,CountyData!F2:F3217,CountyData!Q2:Q3217) -> 0.289127188 | K49: 0.04 | L49: 1 | M49: =LOOKUP(I13,CountyData!F2:F3217,CountyData!O2:O3217) -> 374.6893606 | N49: =LOOKUP(I13,CountyData!F2:F3217,CountyData!P2:P3217) -> 0.1971198096 | O49: =LOOKUP(I13,CountyData!F2:F3217,CountyData!Q2:Q3217) -> 0.289127188 | P49: 0.003 | Q49: 1 | R49: =LOOKUP(I13,CountyData!F2:F3217,CountyData!O2:O3217) -> 374.6893606 | S49: =LOOKUP(I13,CountyData!F2:F3217,CountyData!P2:P3217) -> 0.1971198096 | T49: =LOOKUP(I13,CountyData!F2:F3217,CountyData!Q2:Q3217) -> 0.289127188 | U49: =LOOKUP(I13,CountyData!F2:F3217,CountyData!R2:R3217) -> 0.1358287796 | V49: 1
B50: W4 | C50: =LOOKUP(I13,CountyData!F2:F3217,CountyData!O2:O3217) -> 374.6893606 | D50: =LOOKUP(I13,CountyData!F2:F3217,CountyData!P2:P3217) -> 0.1971198096 | E50: =LOOKUP(I13,CountyData!F2:F3217,CountyData!Q2:Q3217) -> 0.289127188 | F50: =IF(LOOKUP(I13,CountyData!F2:F3217,CountyData!R2:R3217) > 0.2, LOOKUP(I13,CountyData!F2:F3217,CountyData!R2:R3217), 0.2) -> 0.2 | G50: =LOOKUP(I13,CountyData!F2:F3217,CountyData!S2:S3217) -> 0.985701275 | H50: =LOOKUP(I13,CountyData!F2:F3217,CountyData!O2:O3217) -> 374.6893606 | I50: =LOOKUP(I13,CountyData!F2:F3217,CountyData!P2:P3217) -> 0.1971198096 | J50: =LOOKUP(I13,CountyData!F2:F3217,CountyData!Q2:Q3217) -> 0.289127188 | K50: 0.04 | L50: 1 | M50: =LOOKUP(I13,CountyData!F2:F3217,CountyData!O2:O3217) -> 374.6893606 | N50: =LOOKUP(I13,CountyData!F2:F3217,CountyData!P2:P3217) -> 0.1971198096 | O50: =LOOKUP(I13,CountyData!F2:F3217,CountyData!Q2:Q3217) -> 0.289127188 | P50: 0.003 | Q50: 1 | R50: =LOOKUP(I13,CountyData!F2:F3217,CountyData!O2:O3217) -> 374.6893606 | S50: =LOOKUP(I13,CountyData!F2:F3217,CountyData!P2:P3217) -> 0.1971198096 | T50: =LOOKUP(I13,CountyData!F2:F3217,CountyData!Q2:Q3217) -> 0.289127188 | U50: =LOOKUP(I13,CountyData!F2:F3217,CountyData!R2:R3217) -> 0.1358287796 | V50: 1
B51: W5 | C51: =LOOKUP(I13,CountyData!F2:F3217,CountyData!O2:O3217) -> 374.6893606 | D51: =LOOKUP(I13,CountyData!F2:F3217,CountyData!P2:P3217) -> 0.1971198096 | E51: =LOOKUP(I13,CountyData!F2:F3217,CountyData!Q2:Q3217) -> 0.289127188 | F51: =IF(LOOKUP(I13,CountyData!F2:F3217,CountyData!R2:R3217) > 0.2, LOOKUP(I13,CountyData!F2:F3217,CountyData!R2:R3217), 0.2) -> 0.2 | G51: =LOOKUP(I13,CountyData!F2:F3217,CountyData!S2:S3217) -> 0.985701275 | H51: =LOOKUP(I13,CountyData!F2:F3217,CountyData!O2:O3217) -> 374.6893606 | I51: =LOOKUP(I13,CountyData!F2:F3217,CountyData!P2:P3217) -> 0.1971198096 | J51: =LOOKUP(I13,CountyData!F2:F3217,CountyData!Q2:Q3217) -> 0.289127188 | K51: 0.04 | L51: 1 | M51: =LOOKUP(I13,CountyData!F2:F3217,CountyData!O2:O3217) -> 374.6893606 | N51: =LOOKUP(I13,CountyData!F2:F3217,CountyData!P2:P3217) -> 0.1971198096 | O51: =LOOKUP(I13,CountyData!F2:F3217,CountyData!Q2:Q3217) -> 0.289127188 | P51: 0.003 | Q51: 1 | R51: =LOOKUP(I13,CountyData!F2:F3217,CountyData!O2:O3217) -> 374.6893606 | S51: =LOOKUP(I13,CountyData!F2:F3217,CountyData!P2:P3217) -> 0.1971198096 | T51: =LOOKUP(I13,CountyData!F2:F3217,CountyData!Q2:Q3217) -> 0.289127188 | U51: =LOOKUP(I13,CountyData!F2:F3217,CountyData!R2:R3217) -> 0.1358287796 | V51: 1
B54: Optional Data Input:
B55: 5. Select average soil hydrologic group (SHG), SHG A = highest infiltration and SHG D = lowest infiltration
B56: Watershed | C56: SHG A | D56: SHG B | E56: SHG C | F56: SHG D | G56: SHG Selected | H56: Soil N conc.% | I56: Soil P conc.% | J56: Soil BOD conc.%
B57: W1 | C57: FALSE | D57: TRUE | E57: FALSE | F57: FALSE | G57: =IF(C57=TRUE,"A",IF(D57=TRUE,"B",IF(E57=TRUE,"C",IF(F57=TRUE,"D","No Match")))) -> B | H57: 0.08 | I57: 0.0308 | J57: =IF((H57*2)>1,1,H57*2) -> 0.16
B58: W2 | C58: FALSE | D58: TRUE | E58: FALSE | F58: FALSE | G58: =IF(C58=TRUE,"A",IF(D58=TRUE,"B",IF(E58=TRUE,"C",IF(F58=TRUE,"D","No Match")))) -> B | H58: 0.08 | I58: 0.0308 | J58: =IF((H58*2)>1,1,H58*2) -> 0.16
B59: W3 | C59: FALSE | D59: TRUE | E59: FALSE | F59: FALSE | G59: =IF(C59=TRUE,"A",IF(D59=TRUE,"B",IF(E59=TRUE,"C",IF(F59=TRUE,"D","No Match")))) -> B | H59: 0.08 | I59: 0.0308 | J59: =IF((H59*2)>1,1,H59*2) -> 0.16
B60: W4 | C60: FALSE | D60: TRUE | E60: FALSE | F60: FALSE | G60: =IF(C60=TRUE,"A",IF(D60=TRUE,"B",IF(E60=TRUE,"C",IF(F60=TRUE,"D","No Match")))) -> B | H60: 0.08 | I60: 0.0308 | J60: =IF((H60*2)>1,1,H60*2) -> 0.16
B61: W5 | C61: FALSE | D61: TRUE | E61: FALSE | F61: FALSE | G61: =IF(C61=TRUE,"A",IF(D61=TRUE,"B",IF(E61=TRUE,"C",IF(F61=TRUE,"D","No Match")))) -> B | H61: 0.08 | I61: 0.0308 | J61: =IF((H61*2)>1,1,H61*2) -> 0.16
B64: 6. Reference runoff curve number (may be modified) | H64: 6a. Detailed urban reference runoff curve number (may be modified)
B65: SHG | C65: A | D65: B | E65: C | F65: D | H65: Urban\SHG | I65: A | J65: B | K65: C | L65: D
B66: Urban | C66: 83 | D66: 89 | E66: 92 | F66: 93 | H66: Commercial | I66: 89 | J66: 92 | K66: 94 | L66: 95
B67: Cropland | C67: 67 | D67: 78 | E67: 85 | F67: 89 | H67: Industrial | I67: 81 | J67: 88 | K67: 91 | L67: 93
B68: Pastureland | C68: 49 | D68: 69 | E68: 79 | F68: 84 | H68: Institutional | I68: 81 | J68: 88 | K68: 91 | L68: 93
B69: Forest | C69: 39 | D69: 60 | E69: 73 | F69: 79 | H69: Transportation | I69: 98 | J69: 98 | K69: 98 | L69: 98
B70: User Defined | C70: 50 | D70: 70 | E70: 80 | F70: 85 | H70: Multi-Family | I70: 77 | J70: 85 | K70: 90 | L70: 92
H71: Single-Family | I71: 57 | J71: 72 | K71: 81 | L71: 86
H72: Urban-Cultivated | I72: 67 | J72: 78 | K72: 85 | L72: 89
B73: 7. Nutrient concentration in runoff (mg/l) | H73: Vacant-Developed | I73: 77 | J73: 85 | K73: 90 | L73: 92
B74: Land use | C74: N | D74: P | E74: BOD | H74: Open Space | I74: 49 | J74: 69 | K74: 79 | L74: 84
B75: 1. L-Cropland | C75: 1.9 | D75: 0.3 | E75: 4
B76: 1a. w/ manure | C76: 8.1 | D76: 2 | E76: 12.3 | H76: 7a. Nutrient concentration in shallow groundwater (mg/l) (may be modified)
B77: 2. M-Cropland | C77: 2.9 | D77: 0.4 | E77: 6.1 | H77: Landuse | I77: N | J77: P | K77: BOD
B78: 2a. w/ manure | C78: 12.2 | D78: 3 | E78: 18.5 | H78: Urban | I78: 1.5 | J78: 0.063 | K78: 0
B79: 3. H-Cropland | C79: 4.4 | D79: 0.5 | E79: 9.2 | H79: Cropland | I79: 1.44 | J79: 0.063 | K79: 0
B80: 3a. w/ manure | C80: 18.3 | D80: 4 | E80: 24.6 | H80: Pastureland | I80: 1.44 | J80: 0.063 | K80: 0
B81: 4. Pastureland | C81: 4 | D81: 0.3 | E81: 13 | H81: Forest | I81: 0.11 | J81: 0.009 | K81: 0
B82: 5. Forest | C82: 0.2 | D82: 0.1 | E82: 0.5 | H82: Feedlot | I82: 6 | J82: 0.07 | K82: 0
B83: 6. User Defined | C83: 0 | D83: 0 | E83: 0 | H83: User-Defined | I83: 0 | J83: 0 | K83: 0
B86: 8. Input or modify urban land use distribution
B87: Watershed | C87: Urban Area (ac.) | D87: Commercial % | E87: Industrial % | F87: Institutional % | G87: Transportation % | H87: Multi-Family % | I87: Single-Family % | J87: Urban-Cultivated % | K87: Vacant (developed) % | L87: Open Space % | M87: Total % Area
B88: W1 | C88: =C18 -> 0 | D88: 15 | E88: 10 | F88: 10 | G88: 10 | H88: 10 | I88: 30 | J88: 5 | K88: 5 | L88: 5 | M88: =D88+E88+F88+G88+H88+I88+J88+K88+L88 -> 100
B89: W2 | C89: =C19 -> 0 | D89: 15 | E89: 10 | F89: 10 | G89: 10 | H89: 10 | I89: 30 | J89: 5 | K89: 5 | L89: 5 | M89: =D89+E89+F89+G89+H89+I89+J89+K89+L89 -> 100
B90: W3 | C90: =C20 -> 0 | D90: 15 | E90: 10 | F90: 10 | G90: 10 | H90: 10 | I90: 30 | J90: 5 | K90: 5 | L90: 5 | M90: =D90+E90+F90+G90+H90+I90+J90+K90+L90 -> 100
B91: W4 | C91: =C21 -> 0 | D91: 15 | E91: 10 | F91: 10 | G91: 10 | H91: 10 | I91: 30 | J91: 5 | K91: 5 | L91: 5 | M91: =D91+E91+F91+G91+H91+I91+J91+K91+L91 -> 100
B92: W5 | C92: =C22 -> 0 | D92: 15 | E92: 10 | F92: 10 | G92: 10 | H92: 10 | I92: 30 | J92: 5 | K92: 5 | L92: 5 | M92: =D92+E92+F92+G92+H92+I92+J92+K92+L92 -> 100
B95: 9. Input irrigation area (ac) and irrigation amount (in)
B96: Watershed | C96: Total Cropland (ac) | D96: Cropland: Acres Irrigated | E96: Water Depth (in) per Irrigation - Before BMP | F96: Water Depth (in) per Irrigation - After BMP | G96: Irrigation Frequency (#/Year)
B97: W1 | C97: =D18 -> 0 | D97: 0 | E97: 0 | F97: 0 | G97: 0
B98: W2 | C98: =D19 -> 0 | D98: 0 | E98: 0 | F98: 0 | G98: 0
B99: W3 | C99: =D20 -> 0 | D99: 0 | E99: 0 | F99: 0 | G99: 0
B100: W4 | C100: =D21 -> 0 | D100: 0 | E100: 0 | F100: 0 | G100: 0
B101: W5 | C101: =D22 -> 0 | D101: 0 | E101: 0 | F101: 0 | G101: 0
B103: Input Ends Here.

Sheet General Input Data (hidden)
B1: This Excel file was created dynamically by STEPL VB interface on/at 2/4/2015 11:43:16 PM
B2: BLUE text found throughout the spreadsheet presents relevant information and assumptions.
B3: RED text designates values that should be specified by the user.
B4: BLACK text generally presents information that is calculated by the spreadsheet or that should not be changed.
B6: There are | C6: 5 | D6: subwatersheds in this study.
B7: Land Uses | D7: Animals | F7: Pollutants
B8: Urban | C8: 0 | D8: Beef Cattle | E8: 0 | F8: Nitrogen | G8: 0
B9: Cropland | C9: 0 | D9: Dairy Cattle | E9: 0 | F9: Phosphorus | G9: 0
B10: Pastureland | C10: 0 | D10: Swine (Hog) | E10: 0 | F10: BOD | G10: 0
B11: Forest | C11: 0 | D11: Sheep | E11: 0 | F11: Sediment | G11: 0
B12: User Defined | C12: 0 | D12: Horse | E12: 0
D13: Chicken | E13: 0
D14: Turkey | E14: 0
D15: Duck | E15: 0
B16: Total | C16: =SUM(C8:C15) -> 0 | E16: =SUM(E8:E15) -> 0 | G16: =SUM(G8:G15) -> 0

Sheet Land&Rain (hidden)
B1: Land Use and Precipitation
B2: You entered | D2: ='General Input Data'!$C$6 -> 5 | F2: subwatersheds in this project.
B3: Areas listed below are in acres, and average annual precipitation is in inches.
B4: SHG: Soil Hydrologic Group
Q5: Go to "STEPL" menu for correction factors.
B6: 1. Input watershed land use area (ac) and precipitation (in) | Q6: =Input!K16 -> 0.913 | S6: =Input!L16 -> 0.585 | U6: 0 | X6: 1a. Detailed urban land use area (ac)
B7: Watershed | C7: Urban | E7: Cropland | G7: Pastureland | I7: Forest | K7: User Defined | M7: Feedlots | O7: Total | Q7: Annual Rainfall | S7: Rain Days | U7: Avg. Rain/event | X7: Watershed | Y7: Commercial (ac.) | Z7: Industrial (ac.) | AA7: Institutional (ac.) | AB7: Transportation (ac.) | AC7: Multi-Family (ac.) | AD7: Single-Family (ac.) | AE7: Urban-Cultivated (ac.) | AF7: Vacant (developed) (ac.) | AG7: Open Space (ac.) | AH7: Total Area (ac.) | AI7: Pervious Area (ac.)
B8: W1 | C8: =Input!C18 -> 0 | E8: =Input!D18 -> 0 | G8: =Input!E18 -> 0 | I8: =Input!F18 -> 0 | K8: =Input!G18 -> 0 | M8: =Input!H18 -> 0 | O8: =Input!J18 -> 0 | Q8: =Input!K18 -> 60 | S8: =Input!L18 -> 87.3 | U8: =Input!M18 -> 1.072634887 | X8: W1 | Y8: =C8*Input!D88/100 -> 0 | Z8: =C8*Input!E88/100 -> 0 | AA8: =C8*Input!F88/100 -> 0 | AB8: =C8*Input!G88/100 -> 0 | AC8: =C8*Input!H88/100 -> 0 | AD8: =C8*Input!I88/100 -> 0 | AE8: =C8*Input!J88/100 -> 0 | AF8: =C8*Input!K88/100 -> 0 | AG8: =C8*Input!L88/100 -> 0 | AH8: =C8*Input!M88/100 -> 0 | AI8: =AH8-(Y8*0.85+Z8*0.7+AA8*0.5+AB8*0.95+AC8*0.75+AD8*0.3+AE8*0.01+AF8*0.7+AG8*0.01) -> 0
B9: W2 | C9: =Input!C19 -> 0 | E9: =Input!D19 -> 0 | G9: =Input!E19 -> 0 | I9: =Input!F19 -> 0 | K9: =Input!G19 -> 0 | M9: =Input!H19 -> 0 | O9: =Input!J19 -> 0 | Q9: =Input!K19 -> 60 | S9: =Input!L19 -> 87.3 | U9: =Input!M19 -> 1.072634887 | X9: W2 | Y9: =C9*Input!D89/100 -> 0 | Z9: =C9*Input!E89/100 -> 0 | AA9: =C9*Input!F89/100 -> 0 | AB9: =C9*Input!G89/100 -> 0 | AC9: =C9*Input!H89/100 -> 0 | AD9: =C9*Input!I89/100 -> 0 | AE9: =C9*Input!J89/100 -> 0 | AF9: =C9*Input!K89/100 -> 0 | AG9: =C9*Input!L89/100 -> 0 | AH9: =C9*Input!M89/100 -> 0 | AI9: =AH9-(Y9*0.85+Z9*0.7+AA9*0.5+AB9*0.95+AC9*0.75+AD9*0.3+AE9*0.01+AF9*0.7+AG9*0.01) -> 0
B10: W3 | C10: =Input!C20 -> 0 | E10: =Input!D20 -> 0 | G10: =Input!E20 -> 0 | I10: =Input!F20 -> 0 | K10: =Input!G20 -> 0 | M10: =Input!H20 -> 0 | O10: =Input!J20 -> 0 | Q10: =Input!K20 -> 60 | S10: =Input!L20 -> 87.3 | U10: =Input!M20 -> 1.072634887 | X10: W3 | Y10: =C10*Input!D90/100 -> 0 | Z10: =C10*Input!E90/100 -> 0 | AA10: =C10*Input!F90/100 -> 0 | AB10: =C10*Input!G90/100 -> 0 | AC10: =C10*Input!H90/100 -> 0 | AD10: =C10*Input!I90/100 -> 0 | AE10: =C10*Input!J90/100 -> 0 | AF10: =C10*Input!K90/100 -> 0 | AG10: =C10*Input!L90/100 -> 0 | AH10: =C10*Input!M90/100 -> 0 | AI10: =AH10-(Y10*0.85+Z10*0.7+AA10*0.5+AB10*0.95+AC10*0.75+AD10*0.3+AE10*0.01+AF10*0.7+AG10*0.01) -> 0
B11: W4 | C11: =Input!C21 -> 0 | E11: =Input!D21 -> 0 | G11: =Input!E21 -> 0 | I11: =Input!F21 -> 0 | K11: =Input!G21 -> 0 | M11: =Input!H21 -> 0 | O11: =Input!J21 -> 0 | Q11: =Input!K21 -> 60 | S11: =Input!L21 -> 87.3 | U11: =Input!M21 -> 1.072634887 | X11: W4 | Y11: =C11*Input!D91/100 -> 0 | Z11: =C11*Input!E91/100 -> 0 | AA11: =C11*Input!F91/100 -> 0 | AB11: =C11*Input!G91/100 -> 0 | AC11: =C11*Input!H91/100 -> 0 | AD11: =C11*Input!I91/100 -> 0 | AE11: =C11*Input!J91/100 -> 0 | AF11: =C11*Input!K91/100 -> 0 | AG11: =C11*Input!L91/100 -> 0 | AH11: =C11*Input!M91/100 -> 0 | AI11: =AH11-(Y11*0.85+Z11*0.7+AA11*0.5+AB11*0.95+AC11*0.75+AD11*0.3+AE11*0.01+AF11*0.7+AG11*0.01) -> 0
B12: W5 | C12: =Input!C22 -> 0 | E12: =Input!D22 -> 0 | G12: =Input!E22 -> 0 | I12: =Input!F22 -> 0 | K12: =Input!G22 -> 0 | M12: =Input!H22 -> 0 | O12: =Input!J22 -> 0 | Q12: =Input!K22 -> 60 | S12: =Input!L22 -> 87.3 | U12: =Input!M22 -> 1.072634887 | X12: W5 | Y12: =C12*Input!D92/100 -> 0 | Z12: =C12*Input!E92/100 -> 0 | AA12: =C12*Input!F92/100 -> 0 | AB12: =C12*Input!G92/100 -> 0 | AC12: =C12*Input!H92/100 -> 0 | AD12: =C12*Input!I92/100 -> 0 | AE12: =C12*Input!J92/100 -> 0 | AF12: =C12*Input!K92/100 -> 0 | AG12: =C12*Input!L92/100 -> 0 | AH12: =C12*Input!M92/100 -> 0 | AI12: =AH12-(Y12*0.85+Z12*0.7+AA12*0.5+AB12*0.95+AC12*0.75+AD12*0.3+AE12*0.01+AF12*0.7+AG12*0.01) -> 0
O13: Sum= | P13: =SUM(O8:O12) -> 0
B15: 2. Select average soil hydrologic group | N15: 3. Reference runoff curve number (may be modified) | X15: 2.1a. Urban runoff curve number | AJ15: GW1. Reference soil infiltration fraction for precipitation
B16: Watershed | C16: SHG A | E16: SHG B | G16: SHG C | I16: SHG D | K16: Selected | N16: SHG | O16: A | Q16: B | S16: C | U16: D | X16: Watershed | Y16: Commercial | Z16: Industrial | AA16: Institutional | AB16: Transportation | AC16: Multi-Family | AD16: Single-Family | AE16: Urban-Cultivated | AF16: Vacant (developed) | AG16: Open Space | AJ16: SHG | AK16: A | AM16: B | AO16: C | AQ16: D
B17: W1 | K17: =Input!G57 -> B | N17: Urban | O17: =Input!C66 -> 83 | Q17: =Input!D66 -> 89 | S17: =Input!E66 -> 92 | U17: =Input!F66 -> 93 | X17: W1 | Y17: =LOOKUP(K17,Input!I65:L65,Input!I66:L66) -> 92 | Z17: =LOOKUP(K17,Input!I65:L65,Input!I67:L67) -> 88 | AA17: =LOOKUP(K17,Input!I65:L65,Input!I68:L68) -> 88 | AB17: =LOOKUP(K17,Input!I65:L65,Input!I69:L69) -> 98 | AC17: =LOOKUP(K17,Input!I65:L65,Input!I70:L70) -> 85 | AD17: =LOOKUP(K17,Input!I65:L65,Input!I71:L71) -> 72 | AE17: =LOOKUP(K17,Input!I65:L65,Input!I72:L72) -> 78 | AF17: =LOOKUP(K17,Input!I65:L65,Input!I73:L73) -> 85 | AG17: =LOOKUP(K17,Input!I65:L65,Input!I74:L74) -> 69 | AJ17: Urban | AK17: =IF(Input!$K$10=TRUE,0.36,0) -> 0 | AM17: =IF(Input!$K$10=TRUE,0.24,0) -> 0 | AO17: =IF(Input!$K$10=TRUE,0.12,0) -> 0 | AQ17: =IF(Input!$K$10=TRUE,0.06,0) -> 0
B18: W2 | K18: =Input!G58 -> B | N18: Cropland | O18: =Input!C67 -> 67 | Q18: =Input!D67 -> 78 | S18: =Input!E67 -> 85 | U18: =Input!F67 -> 89 | X18: W2 | Y18: =LOOKUP(K18,Input!I65:L65,Input!I66:L66) -> 92 | Z18: =LOOKUP(K18,Input!I65:L65,Input!I67:L67) -> 88 | AA18: =LOOKUP(K18,Input!I65:L65,Input!I68:L68) -> 88 | AB18: =LOOKUP(K18,Input!I65:L65,Input!I69:L69) -> 98 | AC18: =LOOKUP(K18,Input!I65:L65,Input!I70:L70) -> 85 | AD18: =LOOKUP(K18,Input!I65:L65,Input!I71:L71) -> 72 | AE18: =LOOKUP(K18,Input!I65:L65,Input!I72:L72) -> 78 | AF18: =LOOKUP(K18,Input!I65:L65,Input!I73:L73) -> 85 | AG18: =LOOKUP(K18,Input!I65:L65,Input!I74:L74) -> 69 | AJ18: Cropland | AK18: =IF(Input!$K$10=TRUE,0.45,0) -> 0 | AM18: =IF(Input!$K$10=TRUE,0.3,0) -> 0 | AO18: =IF(Input!$K$10=TRUE,0.15,0) -> 0 | AQ18: =IF(Input!$K$10=TRUE,0.075,0) -> 0
B19: W3 | K19: =Input!G59 -> B | N19: Pastureland | O19: =Input!C68 -> 49 | Q19: =Input!D68 -> 69 | S19: =Input!E68 -> 79 | U19: =Input!F68 -> 84 | X19: W3 | Y19: =LOOKUP(K19,Input!I65:L65,Input!I66:L66) -> 92 | Z19: =LOOKUP(K19,Input!I65:L65,Input!I67:L67) -> 88 | AA19: =LOOKUP(K19,Input!I65:L65,Input!I68:L68) -> 88 | AB19: =LOOKUP(K19,Input!I65:L65,Input!I69:L69) -> 98 | AC19: =LOOKUP(K19,Input!I65:L65,Input!I70:L70) -> 85 | AD19: =LOOKUP(K19,Input!I65:L65,Input!I71:L71) -> 72 | AE19: =LOOKUP(K19,Input!I65:L65,Input!I72:L72) -> 78 | AF19: =LOOKUP(K19,Input!I65:L65,Input!I73:L73) -> 85 | AG19: =LOOKUP(K19,Input!I65:L65,Input!I74:L74) -> 69 | AJ19: Pastureland | AK19: =IF(Input!$K$10=TRUE,0.45,0) -> 0 | AM19: =IF(Input!$K$10=TRUE,0.3,0) -> 0 | AO19: =IF(Input!$K$10=TRUE,0.15,0) -> 0 | AQ19: =IF(Input!$K$10=TRUE,0.075,0) -> 0
B20: W4 | K20: =Input!G60 -> B | N20: Forest | O20: =Input!C69 -> 39 | Q20: =Input!D69 -> 60 | S20: =Input!E69 -> 73 | U20: =Input!F69 -> 79 | X20: W4 | Y20: =LOOKUP(K20,Input!I65:L65,Input!I66:L66) -> 92 | Z20: =LOOKUP(K20,Input!I65:L65,Input!I67:L67) -> 88 | AA20: =LOOKUP(K20,Input!I65:L65,Input!I68:L68) -> 88 | AB20: =LOOKUP(K20,Input!I65:L65,Input!I69:L69) -> 98 | AC20: =LOOKUP(K20,Input!I65:L65,Input!I70:L70) -> 85 | AD20: =LOOKUP(K20,Input!I65:L65,Input!I71:L71) -> 72 | AE20: =LOOKUP(K20,Input!I65:L65,Input!I72:L72) -> 78 | AF20: =LOOKUP(K20,Input!I65:L65,Input!I73:L73) -> 85 | AG20: =LOOKUP(K20,Input!I65:L65,Input!I74:L74) -> 69 | AJ20: Forest | AK20: =IF(Input!$K$10=TRUE,0.45,0) -> 0 | AM20: =IF(Input!$K$10=TRUE,0.3,0) -> 0 | AO20: =IF(Input!$K$10=TRUE,0.15,0) -> 0 | AQ20: =IF(Input!$K$10=TRUE,0.075,0) -> 0
B21: W5 | K21: =Input!G61 -> B | N21: User Defined | O21: =Input!C70 -> 50 | Q21: =Input!D70 -> 70 | S21: =Input!E70 -> 80 | U21: =Input!F70 -> 85 | X21: W5 | Y21: =LOOKUP(K21,Input!I65:L65,Input!I66:L66) -> 92 | Z21: =LOOKUP(K21,Input!I65:L65,Input!I67:L67) -> 88 | AA21: =LOOKUP(K21,Input!I65:L65,Input!I68:L68) -> 88 | AB21: =LOOKUP(K21,Input!I65:L65,Input!I69:L69) -> 98 | AC21: =LOOKUP(K21,Input!I65:L65,Input!I70:L70) -> 85 | AD21: =LOOKUP(K21,Input!I65:L65,Input!I71:L71) -> 72 | AE21: =LOOKUP(K21,Input!I65:L65,Input!I72:L72) -> 78 | AF21: =LOOKUP(K21,Input!I65:L65,Input!I73:L73) -> 85 | AG21: =LOOKUP(K21,Input!I65:L65,Input!I74:L74) -> 69 | AJ21: User Defined | AK21: =IF(Input!$K$10=TRUE,0.45,0) -> 0 | AM21: =IF(Input!$K$10=TRUE,0.3,0) -> 0 | AO21: =IF(Input!$K$10=TRUE,0.15,0) -> 0 | AQ21: =IF(Input!$K$10=TRUE,0.075,0) -> 0
B27: 2.1. Curve Number (CN) | X27: 2.2a. Runoff by urban land use (in) | AJ27: GW2. Infiltration fraction based on SHG
B28: Watershed | C28: Urban | E28: Cropland | G28: Pastureland | I28: Forest | K28: User Defined | X28: Watershed | Y28: Commercial | Z28: Industrial | AA28: Institutional | AB28: Transportation | AC28: Multi-Family | AD28: Single-Family | AE28: Urban-Cultivated | AF28: Vacant (developed) | AG28: Open Space | AJ28: Watershed | AK28: Urban | AM28: Cropland | AO28: Pastureland | AQ28: Forest | AS28: User Defined
B29: W1 | C29: =LOOKUP(K17,O16:U16,O17:U17) -> 89 | E29: =LOOKUP(K17,O16:U16,O18:U18) -> 78 | G29: =LOOKUP(K17,O16:U16,O19:U19) -> 69 | I29: =LOOKUP(K17,O16:U16,O20:U20) -> 60 | K29: =LOOKUP(K17,O16:U16,O21:U21) -> 70 | X29: W1 | Y29: =IF((U8-U6*(1000/Y17-10))>0,POWER((U8-U6*(1000/Y17-10)),2)/(U8+0.8*(1000/Y17-10)),0) -> 0.650655443 | Z29: =IF((U8-U6*(1000/Z17-10))>0,POWER((U8-U6*(1000/Z17-10)),2)/(U8+0.8*(1000/Z17-10)),0) -> 0.5317874805 | AA29: =IF((U8-U6*(1000/AA17-10))>0,POWER((U8-U6*(1000/AA17-10)),2)/(U8+0.8*(1000/AA17-10)),0) -> 0.5317874805 | AB29: =IF((U8-U6*(1000/AB17-10))>0,POWER((U8-U6*(1000/AB17-10)),2)/(U8+0.8*(1000/AB17-10)),0) -> 0.9309373097 | AC29: =IF((U8-U6*(1000/AC17-10))>0,POWER((U8-U6*(1000/AC17-10)),2)/(U8+0.8*(1000/AC17-10)),0) -> 0.4631081104 | AD29: =IF((U8-U6*(1000/AD17-10))>0,POWER((U8-U6*(1000/AD17-10)),2)/(U8+0.8*(1000/AD17-10)),0) -> 0.2750036932 | AE29: =IF((U8-U6*(1000/AE17-10))>0,POWER((U8-U6*(1000/AE17-10)),2)/(U8+0.8*(1000/AE17-10)),0) -> 0.3456082905 | AF29: =IF((U8-U6*(1000/AF17-10))>0,POWER((U8-U6*(1000/AF17-10)),2)/(U8+0.8*(1000/AF17-10)),0) -> 0.4631081104 | AG29: =IF((U8-U6*(1000/AG17-10))>0,POWER((U8-U6*(1000/AG17-10)),2)/(U8+0.8*(1000/AG17-10)),0) -> 0.2465364458 | AJ29: W1 | AK29: =LOOKUP(K17,AK16:AR16,AK17:AR17) -> 0 | AM29: =LOOKUP(K17,AK16:AR16,AK18:AR18) -> 0 | AO29: =LOOKUP(K17,AK16:AR16,AK19:AR19) -> 0 | AQ29: =LOOKUP(K17,AK16:AR16,AK20:AR20) -> 0 | AS29: =LOOKUP(K17,AK16:AR16,AK21:AR21) -> 0
B30: W2 | C30: =LOOKUP(K18,O16:U16,O17:U17) -> 89 | E30: =LOOKUP(K18,O16:U16,O18:U18) -> 78 | G30: =LOOKUP(K18,O16:U16,O19:U19) -> 69 | I30: =LOOKUP(K18,O16:U16,O20:U20) -> 60 | K30: =LOOKUP(K18,O16:U16,O21:U21) -> 70 | X30: W2 | Y30: =IF((U9-U6*(1000/Y18-10))>0,POWER((U9-U6*(1000/Y18-10)),2)/(U9+0.8*(1000/Y18-10)),0) -> 0.650655443 | Z30: =IF((U9-U6*(1000/Z18-10))>0,POWER((U9-U6*(1000/Z18-10)),2)/(U9+0.8*(1000/Z18-10)),0) -> 0.5317874805 | AA30: =IF((U9-U6*(1000/AA18-10))>0,POWER((U9-U6*(1000/AA18-10)),2)/(U9+0.8*(1000/AA18-10)),0) -> 0.5317874805 | AB30: =IF((U9-U6*(1000/AB18-10))>0,POWER((U9-U6*(1000/AB18-10)),2)/(U9+0.8*(1000/AB18-10)),0) -> 0.9309373097 | AC30: =IF((U9-U6*(1000/AC18-10))>0,POWER((U9-U6*(1000/AC18-10)),2)/(U9+0.8*(1000/AC18-10)),0) -> 0.4631081104 | AD30: =IF((U9-U6*(1000/AD18-10))>0,POWER((U9-U6*(1000/AD18-10)),2)/(U9+0.8*(1000/AD18-10)),0) -> 0.2750036932 | AE30: =IF((U9-U6*(1000/AE18-10))>0,POWER((U9-U6*(1000/AE18-10)),2)/(U9+0.8*(1000/AE18-10)),0) -> 0.3456082905 | AF30: =IF((U9-U6*(1000/AF18-10))>0,POWER((U9-U6*(1000/AF18-10)),2)/(U9+0.8*(1000/AF18-10)),0) -> 0.4631081104 | AG30: =IF((U9-U6*(1000/AG18-10))>0,POWER((U9-U6*(1000/AG18-10)),2)/(U9+0.8*(1000/AG18-10)),0) -> 0.2465364458 | AJ30: W2 | AK30: =LOOKUP(K18,AK16:AR16,AK17:AR17) -> 0 | AM30: =LOOKUP(K18,AK16:AR16,AK18:AR18) -> 0 | AO30: =LOOKUP(K18,AK16:AR16,AK19:AR19) -> 0 | AQ30: =LOOKUP(K18,AK16:AR16,AK20:AR20) -> 0 | AS30: =LOOKUP(K18,AK16:AR16,AK21:AR21) -> 0
B31: W3 | C31: =LOOKUP(K19,O16:U16,O17:U17) -> 89 | E31: =LOOKUP(K19,O16:U16,O18:U18) -> 78 | G31: =LOOKUP(K19,O16:U16,O19:U19) -> 69 | I31: =LOOKUP(K19,O16:U16,O20:U20) -> 60 | K31: =LOOKUP(K19,O16:U16,O21:U21) -> 70 | X31: W3 | Y31: =IF((U10-U6*(1000/Y19-10))>0,POWER((U10-U6*(1000/Y19-10)),2)/(U10+0.8*(1000/Y19-10)),0) -> 0.650655443 | Z31: =IF((U10-U6*(1000/Z19-10))>0,POWER((U10-U6*(1000/Z19-10)),2)/(U10+0.8*(1000/Z19-10)),0) -> 0.5317874805 | AA31: =IF((U10-U6*(1000/AA19-10))>0,POWER((U10-U6*(1000/AA19-10)),2)/(U10+0.8*(1000/AA19-10)),0) -> 0.5317874805 | AB31: =IF((U10-U6*(1000/AB19-10))>0,POWER((U10-U6*(1000/AB19-10)),2)/(U10+0.8*(1000/AB19-10)),0) -> 0.9309373097 | AC31: =IF((U10-U6*(1000/AC19-10))>0,POWER((U10-U6*(1000/AC19-10)),2)/(U10+0.8*(1000/AC19-10)),0) -> 0.4631081104 | AD31: =IF((U10-U6*(1000/AD19-10))>0,POWER((U10-U6*(1000/AD19-10)),2)/(U10+0.8*(1000/AD19-10)),0) -> 0.2750036932 | AE31: =IF((U10-U6*(1000/AE19-10))>0,POWER((U10-U6*(1000/AE19-10)),2)/(U10+0.8*(1000/AE19-10)),0) -> 0.3456082905 | AF31: =IF((U10-U6*(1000/AF19-10))>0,POWER((U10-U6*(1000/AF19-10)),2)/(U10+0.8*(1000/AF19-10)),0) -> 0.4631081104 | AG31: =IF((U10-U6*(1000/AG19-10))>0,POWER((U10-U6*(1000/AG19-10)),2)/(U10+0.8*(1000/AG19-10)),0) -> 0.2465364458 | AJ31: W3 | AK31: =LOOKUP(K19,AK16:AR16,AK17:AR17) -> 0 | AM31: =LOOKUP(K19,AK16:AR16,AK18:AR18) -> 0 | AO31: =LOOKUP(K19,AK16:AR16,AK19:AR19) -> 0 | AQ31: =LOOKUP(K19,AK16:AR16,AK20:AR20) -> 0 | AS31: =LOOKUP(K19,AK16:AR16,AK21:AR21) -> 0
B32: W4 | C32: =LOOKUP(K20,O16:U16,O17:U17) -> 89 | E32: =LOOKUP(K20,O16:U16,O18:U18) -> 78 | G32: =LOOKUP(K20,O16:U16,O19:U19) -> 69 | I32: =LOOKUP(K20,O16:U16,O20:U20) -> 60 | K32: =LOOKUP(K20,O16:U16,O21:U21) -> 70 | X32: W4 | Y32: =IF((U11-U6*(1000/Y20-10))>0,POWER((U11-U6*(1000/Y20-10)),2)/(U11+0.8*(1000/Y20-10)),0) -> 0.650655443 | Z32: =IF((U11-U6*(1000/Z20-10))>0,POWER((U11-U6*(1000/Z20-10)),2)/(U11+0.8*(1000/Z20-10)),0) -> 0.5317874805 | AA32: =IF((U11-U6*(1000/AA20-10))>0,POWER((U11-U6*(1000/AA20-10)),2)/(U11+0.8*(1000/AA20-10)),0) -> 0.5317874805 | AB32: =IF((U11-U6*(1000/AB20-10))>0,POWER((U11-U6*(1000/AB20-10)),2)/(U11+0.8*(1000/AB20-10)),0) -> 0.9309373097 | AC32: =IF((U11-U6*(1000/AC20-10))>0,POWER((U11-U6*(1000/AC20-10)),2)/(U11+0.8*(1000/AC20-10)),0) -> 0.4631081104 | AD32: =IF((U11-U6*(1000/AD20-10))>0,POWER((U11-U6*(1000/AD20-10)),2)/(U11+0.8*(1000/AD20-10)),0) -> 0.2750036932 | AE32: =IF((U11-U6*(1000/AE20-10))>0,POWER((U11-U6*(1000/AE20-10)),2)/(U11+0.8*(1000/AE20-10)),0) -> 0.3456082905 | AF32: =IF((U11-U6*(1000/AF20-10))>0,POWER((U11-U6*(1000/AF20-10)),2)/(U11+0.8*(1000/AF20-10)),0) -> 0.4631081104 | AG32: =IF((U11-U6*(1000/AG20-10))>0,POWER((U11-U6*(1000/AG20-10)),2)/(U11+0.8*(1000/AG20-10)),0) -> 0.2465364458 | AJ32: W4 | AK32: =LOOKUP(K20,AK16:AR16,AK17:AR17) -> 0 | AM32: =LOOKUP(K20,AK16:AR16,AK18:AR18) -> 0 | AO32: =LOOKUP(K20,AK16:AR16,AK19:AR19) -> 0 | AQ32: =LOOKUP(K20,AK16:AR16,AK20:AR20) -> 0 | AS32: =LOOKUP(K20,AK16:AR16,AK21:AR21) -> 0
B33: W5 | C33: =LOOKUP(K21,O16:U16,O17:U17) -> 89 | E33: =LOOKUP(K21,O16:U16,O18:U18) -> 78 | G33: =LOOKUP(K21,O16:U16,O19:U19) -> 69 | I33: =LOOKUP(K21,O16:U16,O20:U20) -> 60 | K33: =LOOKUP(K21,O16:U16,O21:U21) -> 70 | X33: W5 | Y33: =IF((U12-U6*(1000/Y21-10))>0,POWER((U12-U6*(1000/Y21-10)),2)/(U12+0.8*(1000/Y21-10)),0) -> 0.650655443 | Z33: =IF((U12-U6*(1000/Z21-10))>0,POWER((U12-U6*(1000/Z21-10)),2)/(U12+0.8*(1000/Z21-10)),0) -> 0.5317874805 | AA33: =IF((U12-U6*(1000/AA21-10))>0,POWER((U12-U6*(1000/AA21-10)),2)/(U12+0.8*(1000/AA21-10)),0) -> 0.5317874805 | AB33: =IF((U12-U6*(1000/AB21-10))>0,POWER((U12-U6*(1000/AB21-10)),2)/(U12+0.8*(1000/AB21-10)),0) -> 0.9309373097 | AC33: =IF((U12-U6*(1000/AC21-10))>0,POWER((U12-U6*(1000/AC21-10)),2)/(U12+0.8*(1000/AC21-10)),0) -> 0.4631081104 | AD33: =IF((U12-U6*(1000/AD21-10))>0,POWER((U12-U6*(1000/AD21-10)),2)/(U12+0.8*(1000/AD21-10)),0) -> 0.2750036932 | AE33: =IF((U12-U6*(1000/AE21-10))>0,POWER((U12-U6*(1000/AE21-10)),2)/(U12+0.8*(1000/AE21-10)),0) -> 0.3456082905 | AF33: =IF((U12-U6*(1000/AF21-10))>0,POWER((U12-U6*(1000/AF21-10)),2)/(U12+0.8*(1000/AF21-10)),0) -> 0.4631081104 | AG33: =IF((U12-U6*(1000/AG21-10))>0,POWER((U12-U6*(1000/AG21-10)),2)/(U12+0.8*(1000/AG21-10)),0) -> 0.2465364458 | AJ33: W5 | AK33: =LOOKUP(K21,AK16:AR16,AK17:AR17) -> 0 | AM33: =LOOKUP(K21,AK16:AR16,AK18:AR18) -> 0 | AO33: =LOOKUP(K21,AK16:AR16,AK19:AR19) -> 0 | AQ33: =LOOKUP(K21,AK16:AR16,AK20:AR20) -> 0 | AS33: =LOOKUP(K21,AK16:AR16,AK21:AR21) -> 0
B36: 2.2. Calculated runoff (in) | N36: 2.3. Irrigation runoff (in) | AJ36: GW3. Calculated infiltration (in)
B37: Watershed | C37: Urban | E37: Cropland | G37: Pastureland | I37: Forest | K37: User Defined | N37: Watershed | Q37: Irr. before BMP | S37: Irr. after BMP | Y37: Irr. Reduction | AJ37: Watershed | AK37: Urban | AM37: Cropland | AO37: Pastureland | AQ37: Forest | AS37: User Defined
B38: W1 | C38: =IF((U8-U6*(1000/C29-10))>0,POWER((U8-U6*(1000/C29-10)),2)/(U8+0.8*(1000/C29-10)),0) -> 0.5581382541 | E38: =IF((U8-U6*(1000/E29-10))>0,POWER((U8-U6*(1000/E29-10)),2)/(U8+0.8*(1000/E29-10)),0) -> 0.3456082905 | G38: =IF((U8-U6*(1000/G29-10))>0,POWER((U8-U6*(1000/G29-10)),2)/(U8+0.8*(1000/G29-10)),0) -> 0.2465364458 | I38: =IF((U8-U6*(1000/I29-10))>0,POWER((U8-U6*(1000/I29-10)),2)/(U8+0.8*(1000/I29-10)),0) -> 0.1796052621 | K38: =IF((U8-U6*(1000/K29-10))>0,POWER((U8-U6*(1000/K29-10)),2)/(U8+0.8*(1000/K29-10)),0) -> 0.2556082793 | N38: W1 | Q38: =IF((Input!E97-U6*(1000/E29-10))>0,POWER((Input!E97-U6*(1000/E29-10)),2)/(Input!E97+0.8*(1000/E29-10)),0) -> 0 | S38: =IF((Input!F97-U6*(1000/E29-10))>0,POWER((Input!F97-U6*(1000/E29-10)),2)/(Input!F97+0.8*(1000/E29-10)),0) -> 0 | Y38: =Q38-S38 -> 0 | AJ38: W1 | AK38: =AK29*U8 -> 0 | AM38: =AM29*U8 -> 0 | AO38: =AO29*U8 -> 0 | AQ38: =AQ29*U8 -> 0 | AS38: =AS29*U8 -> 0
B39: W2 | C39: =IF((U9-U6*(1000/C30-10))>0,POWER((U9-U6*(1000/C30-10)),2)/(U9+0.8*(1000/C30-10)),0) -> 0.5581382541 | E39: =IF((U9-U6*(1000/E30-10))>0,POWER((U9-U6*(1000/E30-10)),2)/(U9+0.8*(1000/E30-10)),0) -> 0.3456082905 | G39: =IF((U9-U6*(1000/G30-10))>0,POWER((U9-U6*(1000/G30-10)),2)/(U9+0.8*(1000/G30-10)),0) -> 0.2465364458 | I39: =IF((U9-U6*(1000/I30-10))>0,POWER((U9-U6*(1000/I30-10)),2)/(U9+0.8*(1000/I30-10)),0) -> 0.1796052621 | K39: =IF((U9-U6*(1000/K30-10))>0,POWER((U9-U6*(1000/K30-10)),2)/(U9+0.8*(1000/K30-10)),0) -> 0.2556082793 | N39: W2 | Q39: =IF((Input!E98-U6*(1000/E30-10))>0,POWER((Input!E98-U6*(1000/E30-10)),2)/(Input!E98+0.8*(1000/E30-10)),0) -> 0 | S39: =IF((Input!F98-U6*(1000/E30-10))>0,POWER((Input!F98-U6*(1000/E30-10)),2)/(Input!F98+0.8*(1000/E30-10)),0) -> 0 | Y39: =Q39-S39 -> 0 | AJ39: W2 | AK39: =AK30*U9 -> 0 | AM39: =AM30*U9 -> 0 | AO39: =AO30*U9 -> 0 | AQ39: =AQ30*U9 -> 0 | AS39: =AS30*U9 -> 0
B40: W3 | C40: =IF((U10-U6*(1000/C31-10))>0,POWER((U10-U6*(1000/C31-10)),2)/(U10+0.8*(1000/C31-10)),0) -> 0.5581382541 | E40: =IF((U10-U6*(1000/E31-10))>0,POWER((U10-U6*(1000/E31-10)),2)/(U10+0.8*(1000/E31-10)),0) -> 0.3456082905 | G40: =IF((U10-U6*(1000/G31-10))>0,POWER((U10-U6*(1000/G31-10)),2)/(U10+0.8*(1000/G31-10)),0) -> 0.2465364458 | I40: =IF((U10-U6*(1000/I31-10))>0,POWER((U10-U6*(1000/I31-10)),2)/(U10+0.8*(1000/I31-10)),0) -> 0.1796052621 | K40: =IF((U10-U6*(1000/K31-10))>0,POWER((U10-U6*(1000/K31-10)),2)/(U10+0.8*(1000/K31-10)),0) -> 0.2556082793 | N40: W3 | Q40: =IF((Input!E99-U6*(1000/E31-10))>0,POWER((Input!E99-U6*(1000/E31-10)),2)/(Input!E99+0.8*(1000/E31-10)),0) -> 0 | S40: =IF((Input!F99-U6*(1000/E31-10))>0,POWER((Input!F99-U6*(1000/E31-10)),2)/(Input!F99+0.8*(1000/E31-10)),0) -> 0 | Y40: =Q40-S40 -> 0 | AJ40: W3 | AK40: =AK31*U10 -> 0 | AM40: =AM31*U10 -> 0 | AO40: =AO31*U10 -> 0 | AQ40: =AQ31*U10 -> 0 | AS40: =AS31*U10 -> 0
B41: W4 | C41: =IF((U11-U6*(1000/C32-10))>0,POWER((U11-U6*(1000/C32-10)),2)/(U11+0.8*(1000/C32-10)),0) -> 0.5581382541 | E41: =IF((U11-U6*(1000/E32-10))>0,POWER((U11-U6*(1000/E32-10)),2)/(U11+0.8*(1000/E32-10)),0) -> 0.3456082905 | G41: =IF((U11-U6*(1000/G32-10))>0,POWER((U11-U6*(1000/G32-10)),2)/(U11+0.8*(1000/G32-10)),0) -> 0.2465364458 | I41: =IF((U11-U6*(1000/I32-10))>0,POWER((U11-U6*(1000/I32-10)),2)/(U11+0.8*(1000/I32-10)),0) -> 0.1796052621 | K41: =IF((U11-U6*(1000/K32-10))>0,POWER((U11-U6*(1000/K32-10)),2)/(U11+0.8*(1000/K32-10)),0) -> 0.2556082793 | N41: W4 | Q41: =IF((Input!E100-U6*(1000/E32-10))>0,POWER((Input!E100-U6*(1000/E32-10)),2)/(Input!E100+0.8*(1000/E32-10)),0) -> 0 | S41: =IF((Input!F100-U6*(1000/E32-10))>0,POWER((Input!F100-U6*(1000/E32-10)),2)/(Input!F100+0.8*(1000/E32-10)),0) -> 0 | Y41: =Q41-S41 -> 0 | AJ41: W4 | AK41: =AK32*U11 -> 0 | AM41: =AM32*U11 -> 0 | AO41: =AO32*U11 -> 0 | AQ41: =AQ32*U11 -> 0 | AS41: =AS32*U11 -> 0
B42: W5 | C42: =IF((U12-U6*(1000/C33-10))>0,POWER((U12-U6*(1000/C33-10)),2)/(U12+0.8*(1000/C33-10)),0) -> 0.5581382541 | E42: =IF((U12-U6*(1000/E33-10))>0,POWER((U12-U6*(1000/E33-10)),2)/(U12+0.8*(1000/E33-10)),0) -> 0.3456082905 | G42: =IF((U12-U6*(1000/G33-10))>0,POWER((U12-U6*(1000/G33-10)),2)/(U12+0.8*(1000/G33-10)),0) -> 0.2465364458 | I42: =IF((U12-U6*(1000/I33-10))>0,POWER((U12-U6*(1000/I33-10)),2)/(U12+0.8*(1000/I33-10)),0) -> 0.1796052621 | K42: =IF((U12-U6*(1000/K33-10))>0,POWER((U12-U6*(1000/K33-10)),2)/(U12+0.8*(1000/K33-10)),0) -> 0.2556082793 | N42: W5 | Q42: =IF((Input!E101-U6*(1000/E33-10))>0,POWER((Input!E101-U6*(1000/E33-10)),2)/(Input!E101+0.8*(1000/E33-10)),0) -> 0 | S42: =IF((Input!F101-U6*(1000/E33-10))>0,POWER((Input!F101-U6*(1000/E33-10)),2)/(Input!F101+0.8*(1000/E33-10)),0) -> 0 | Y42: =Q42-S42 -> 0 | AJ42: W5 | AK42: =AK33*U12 -> 0 | AM42: =AM33*U12 -> 0 | AO42: =AO33*U12 -> 0 | AQ42: =AQ33*U12 -> 0 | AS42: =AS33*U12 -> 0
B45: 4. Annual runoff by land uses (ac-ft) | X45: 4a. Urban annual runoff (ac-ft) | AJ45: GW4. Calculated infiltration volume (ac-ft)
B46: Watershed | C46: Urban | E46: Cropland | G46: Pastureland | I46: Forest | K46: User Defined | M46: Tot Runoff Vol | X46: Watershed | Y46: Commercial | Z46: Industrial | AA46: Institutional | AB46: Transportation | AC46: Multi-Family | AD46: Single-Family | AE46: Urban-Cultivated | AF46: Vacant (developed) | AG46: Open Space | AJ46: Watershed | AK46: Urban | AM46: Cropland | AO46: Pastureland | AQ46: Forest | AS46: User Defined | AU46: Feedlots
B47: W1 | C47: =(C38/12) * C8 * S8* S6 -> 0 | E47: =(E38/12) * E8 * S8* S6+ (Q38/12) * Input!D97*Input!G97 -> 0 | G47: =(G38/12) * G8 * S8* S6 -> 0 | I47: =(I38/12) * I8 * S8* S6 -> 0 | K47: =(K38/12) * K8 * S8* S6 -> 0 | M47: =SUM(C47:K47) -> 0 | X47: W1 | Y47: =S6*S8*Y8*Y29/12 -> 0 | Z47: =S6*S8*Z8*Z29/12 -> 0 | AA47: =S6*S8*AA8*AA29/12 -> 0 | AB47: =S6*S8*AB8*AB29/12 -> 0 | AC47: =S6*S8*AC8*AC29/12 -> 0 | AD47: =S6*S8*AD8*AD29/12 -> 0 | AE47: =S6*S8*AE8*AE29/12 -> 0 | AF47: =S6*S8*AF8*AF29/12 -> 0 | AG47: =S6*S8*AG8*AG29/12 -> 0 | AJ47: W1 | AK47: =(AK38/12)*S8*RainDayCor*AI8 -> 0 | AM47: =(AM38/12)*S8*RainDayCor*E8 -> 0 | AO47: =(AO38/12)*S8*RainDayCor*G8 -> 0 | AQ47: =(AQ38/12)*S8*RainDayCor*I8 -> 0 | AS47: =(AS38/12)*S8*RainDayCor*K8 -> 0 | AU47: =(AK38/12)*S8*RainDayCor*Feedlots!I12 -> 0
B48: W2 | C48: =(C39/12) * C9 * S9* S6 -> 0 | E48: =(E39/12) * E9 * S9* S6+ (Q39/12) * Input!D98*Input!G98 -> 0 | G48: =(G39/12) * G9 * S9* S6 -> 0 | I48: =(I39/12) * I9 * S9* S6 -> 0 | K48: =(K39/12) * K9 * S9* S6 -> 0 | M48: =SUM(C48:K48) -> 0 | X48: W2 | Y48: =S6*S9*Y9*Y30/12 -> 0 | Z48: =S6*S9*Z9*Z30/12 -> 0 | AA48: =S6*S9*AA9*AA30/12 -> 0 | AB48: =S6*S9*AB9*AB30/12 -> 0 | AC48: =S6*S9*AC9*AC30/12 -> 0 | AD48: =S6*S9*AD9*AD30/12 -> 0 | AE48: =S6*S9*AE9*AE30/12 -> 0 | AF48: =S6*S9*AF9*AF30/12 -> 0 | AG48: =S6*S9*AG9*AG30/12 -> 0 | AJ48: W2 | AK48: =(AK39/12)*S9*RainDayCor*AI9 -> 0 | AM48: =(AM39/12)*S9*RainDayCor*E9 -> 0 | AO48: =(AO39/12)*S9*RainDayCor*G9 -> 0 | AQ48: =(AQ39/12)*S9*RainDayCor*I9 -> 0 | AS48: =(AS39/12)*S9*RainDayCor*K9 -> 0 | AU48: =(AK39/12)*S9*RainDayCor*Feedlots!I13 -> 0
B49: W3 | C49: =(C40/12) * C10 * S10* S6 -> 0 | E49: =(E40/12) * E10 * S10* S6+ (Q40/12) * Input!D99*Input!G99 -> 0 | G49: =(G40/12) * G10 * S10* S6 -> 0 | I49: =(I40/12) * I10 * S10* S6 -> 0 | K49: =(K40/12) * K10 * S10* S6 -> 0 | M49: 0 | X49: W3 | Y49: =S6*S10*Y10*Y31/12 -> 0 | Z49: =S6*S10*Z10*Z31/12 -> 0 | AA49: =S6*S10*AA10*AA31/12 -> 0 | AB49: =S6*S10*AB10*AB31/12 -> 0 | AC49: =S6*S10*AC10*AC31/12 -> 0 | AD49: =S6*S10*AD10*AD31/12 -> 0 | AE49: =S6*S10*AE10*AE31/12 -> 0 | AF49: =S6*S10*AF10*AF31/12 -> 0 | AG49: =S6*S10*AG10*AG31/12 -> 0 | AJ49: W3 | AK49: =(AK40/12)*S10*RainDayCor*AI10 -> 0 | AM49: =(AM40/12)*S10*RainDayCor*E10 -> 0 | AO49: =(AO40/12)*S10*RainDayCor*G10 -> 0 | AQ49: =(AQ40/12)*S10*RainDayCor*I10 -> 0 | AS49: =(AS40/12)*S10*RainDayCor*K10 -> 0 | AU49: =(AK40/12)*S10*RainDayCor*Feedlots!I14 -> 0
B50: W4 | C50: =(C41/12) * C11 * S11* S6 -> 0 | E50: =(E41/12) * E11 * S11* S6+ (Q41/12) * Input!D100*Input!G100 -> 0 | G50: =(G41/12) * G11 * S11* S6 -> 0 | I50: =(I41/12) * I11 * S11* S6 -> 0 | K50: =(K41/12) * K11 * S11* S6 -> 0 | M50: 0 | X50: W4 | Y50: =S6*S11*Y11*Y32/12 -> 0 | Z50: =S6*S11*Z11*Z32/12 -> 0 | AA50: =S6*S11*AA11*AA32/12 -> 0 | AB50: =S6*S11*AB11*AB32/12 -> 0 | AC50: =S6*S11*AC11*AC32/12 -> 0 | AD50: =S6*S11*AD11*AD32/12 -> 0 | AE50: =S6*S11*AE11*AE32/12 -> 0 | AF50: =S6*S11*AF11*AF32/12 -> 0 | AG50: =S6*S11*AG11*AG32/12 -> 0 | AJ50: W4 | AK50: =(AK41/12)*S11*RainDayCor*AI11 -> 0 | AM50: =(AM41/12)*S11*RainDayCor*E11 -> 0 | AO50: =(AO41/12)*S11*RainDayCor*G11 -> 0 | AQ50: =(AQ41/12)*S11*RainDayCor*I11 -> 0 | AS50: =(AS41/12)*S11*RainDayCor*K11 -> 0 | AU50: =(AK41/12)*S11*RainDayCor*Feedlots!I15 -> 0
B51: W5 | C51: =(C42/12) * C12 * S12* S6 -> 0 | E51: =(E42/12) * E12 * S12* S6+ (Q42/12) * Input!D101*Input!G101 -> 0 | G51: =(G42/12) * G12 * S12* S6 -> 0 | I51: =(I42/12) * I12 * S12* S6 -> 0 | K51: =(K42/12) * K12 * S12* S6 -> 0 | M51: 0 | X51: W5 | Y51: =S6*S12*Y12*Y33/12 -> 0 | Z51: =S6*S12*Z12*Z33/12 -> 0 | AA51: =S6*S12*AA12*AA33/12 -> 0 | AB51: =S6*S12*AB12*AB33/12 -> 0 | AC51: =S6*S12*AC12*AC33/12 -> 0 | AD51: =S6*S12*AD12*AD33/12 -> 0 | AE51: =S6*S12*AE12*AE33/12 -> 0 | AF51: =S6*S12*AF12*AF33/12 -> 0 | AG51: =S6*S12*AG12*AG33/12 -> 0 | AJ51: W5 | AK51: =(AK42/12)*S12*RainDayCor*AI12 -> 0 | AM51: =(AM42/12)*S12*RainDayCor*E12 -> 0 | AO51: =(AO42/12)*S12*RainDayCor*G12 -> 0 | AQ51: =(AQ42/12)*S12*RainDayCor*I12 -> 0 | AS51: =(AS42/12)*S12*RainDayCor*K12 -> 0 | AU51: =(AK42/12)*S12*RainDayCor*Feedlots!I16 -> 0
B54: 5. Nutrient concentration in runoff (mg/l)
C55: N | D55: P | E55: BOD
B56: Pastureland | C56: =Input!C81 -> 4 | D56: =Input!D81 -> 0.3 | E56: =Input!E81 -> 13
B57: Forest | C57: =Input!C82 -> 0.2 | D57: =Input!D82 -> 0.1 | E57: =Input!E82 -> 0.5
B58: User Defined | C58: =Input!C83 -> 0 | D58: =Input!D83 -> 0 | E58: =Input!E83 -> 0
B61: 6. Runoff reduction by land uses (ac-ft)(for irrigation reduction in cropland)
B62: Watershed | C62: Urban | E62: Cropland | G62: Pastureland | I62: Forest | K62: User Defined | M62: Tot Runoff Reduction
B63: W1 | E63: =(Y38/12) * Input!D97*Input!G97 -> 0 | M63: =SUM(C63:K63) -> 0
B64: W2 | E64: =(Y39/12) * Input!D98*Input!G98 -> 0 | M64: =SUM(C64:K64) -> 0
B65: W3 | E65: =(Y40/12) * Input!D99*Input!G99 -> 0 | M65: 0
B66: W4 | E66: =(Y41/12) * Input!D100*Input!G100 -> 0 | M66: 0
B67: W5 | E67: =(Y42/12) * Input!D101*Input!G101 -> 0 | M67: 0

Sheet Animal (hidden)
B1: Animal
B2: The number of animals in the | E2: ='General Input Data'!$C$6 -> 5 | F2: subwatersheds is shown below.
B3: Nutrient contributions from these animals are used to derive loading estimates for all land uses except for urban.
B4: Manure is assumed to be collected and applied to cropland.
B5: Wildlife densities are required input for cropland.
B8: 1. Agricultural animals
B9: Watershed | C9: Beef Cattle | D9: Dairy Cattle | E9: Swine (Hog) | F9: Sheep | G9: Horse | H9: Chicken | I9: Turkey | J9: Duck | K9: AEU | L9: # of months manure applied
B10: W1 | C10: =Input!C27 -> 0 | D10: =Input!D27 -> 0 | E10: =Input!E27 -> 0 | F10: =Input!F27 -> 0 | G10: =Input!G27 -> 0 | H10: =Input!H27 -> 0 | I10: =Input!I27 -> 0 | J10: =Input!J27 -> 0 | K10: =IF(('Land&Rain'!E8)=0,0,(C10*Reference!C$5+D10*Reference!C$6+E10*Reference!C$7+F10*Reference!C$8+G10*Reference!C$9+H10*Reference!C$10+I10*Reference!C$11+J10*Reference!C$12)/1000/('Land&Rain'!E8)) -> 0 | L10: =Input!K27 -> 0
B11: W2 | C11: =Input!C28 -> 0 | D11: =Input!D28 -> 0 | E11: =Input!E28 -> 0 | F11: =Input!F28 -> 0 | G11: =Input!G28 -> 0 | H11: =Input!H28 -> 0 | I11: =Input!I28 -> 0 | J11: =Input!J28 -> 0 | K11: =IF(('Land&Rain'!E9)=0,0,(C11*Reference!C$5+D11*Reference!C$6+E11*Reference!C$7+F11*Reference!C$8+G11*Reference!C$9+H11*Reference!C$10+I11*Reference!C$11+J11*Reference!C$12)/1000/('Land&Rain'!E9)) -> 0 | L11: =Input!K28 -> 0
B12: W3 | C12: =Input!C29 -> 0 | D12: =Input!D29 -> 0 | E12: =Input!E29 -> 0 | F12: =Input!F29 -> 0 | G12: =Input!G29 -> 0 | H12: =Input!H29 -> 0 | I12: =Input!I29 -> 0 | J12: =Input!J29 -> 0 | K12: =IF(('Land&Rain'!E10)=0,0,(C12*Reference!C$5+D12*Reference!C$6+E12*Reference!C$7+F12*Reference!C$8+G12*Reference!C$9+H12*Reference!C$10+I12*Reference!C$11+J12*Reference!C$12)/1000/('Land&Rain'!E10)) -> 0 | L12: =Input!K29 -> 0
B13: W4 | C13: =Input!C30 -> 0 | D13: =Input!D30 -> 0 | E13: =Input!E30 -> 0 | F13: =Input!F30 -> 0 | G13: =Input!G30 -> 0 | H13: =Input!H30 -> 0 | I13: =Input!I30 -> 0 | J13: =Input!J30 -> 0 | K13: =IF(('Land&Rain'!E11)=0,0,(C13*Reference!C$5+D13*Reference!C$6+E13*Reference!C$7+F13*Reference!C$8+G13*Reference!C$9+H13*Reference!C$10+I13*Reference!C$11+J13*Reference!C$12)/1000/('Land&Rain'!E11)) -> 0 | L13: =Input!K30 -> 0
B14: W5 | C14: =Input!C31 -> 0 | D14: =Input!D31 -> 0 | E14: =Input!E31 -> 0 | F14: =Input!F31 -> 0 | G14: =Input!G31 -> 0 | H14: =Input!H31 -> 0 | I14: =Input!I31 -> 0 | J14: =Input!J31 -> 0 | K14: =IF(('Land&Rain'!E12)=0,0,(C14*Reference!C$5+D14*Reference!C$6+E14*Reference!C$7+F14*Reference!C$8+G14*Reference!C$9+H14*Reference!C$10+I14*Reference!C$11+J14*Reference!C$12)/1000/('Land&Rain'!E12)) -> 0 | L14: =Input!K31 -> 0
B15: Total | C15: =SUM(C10:C14) -> 0 | D15: =SUM(D10:D14) -> 0 | E15: =SUM(E10:E14) -> 0 | F15: =SUM(F10:F14) -> 0 | G15: =SUM(G10:G14) -> 0 | H15: =SUM(H10:H14) -> 0 | I15: =SUM(I10:I14) -> 0 | J15: =SUM(J10:J14) -> 0
B17: 2. Wildlife density in cropland
B18: Animal | C18: Cropland, #/mi² | D18: Cropland, #/ac
B19: Goose | C19: 0 | D19: =C19 / 640 -> 0
B20: Deer | C20: 0 | D20: =C20 / 640 -> 0
B21: Beaver | C21: 0 | D21: =C21 / 640 -> 0
B22: Raccoons | C22: 0 | D22: =C22 / 640 -> 0
B23: Other | C23: 0 | D23: =C23 / 640 -> 0
B27: Estimated wildlife and AEU in watersheds | L27: Total animal equivalent units and nutrient concentrations. A: AEU<=1.5, B: 1.5<AEU<2.5, C: AEU>=2.5
B28: Watershed | C28: Geese | D28: Deer | E28: Beaver | F28: Raccoons | G28: Other | H28: AEU | L28: Total | M28: AEU | N28: Ag N | O28: Manured N | P28: Ag P | Q28: Manured P | R28: Ag BOD | S28: Manured BOD
B29: W1 | C29: ='Land&Rain'!E8*D19 -> 0 | D29: ='Land&Rain'!E8*D20 -> 0 | E29: ='Land&Rain'!E8*D21 -> 0 | F29: ='Land&Rain'!E8*D22 -> 0 | G29: ='Land&Rain'!E8*D23 -> 0 | H29: =IF(('Land&Rain'!E8)=0,0,(C29*Reference!C$13+D29*Reference!C$14+E29*Reference!C$15+F29*Reference!C$16+G29*Reference!C$17)/1000/('Land&Rain'!E8)) -> 0 | L29: =H29+K10 -> 0 | M29: =IF(L29>=2.5,"C",IF(L29>1.5,"B","A")) -> A | N29: =LOOKUP(M29,C37:E37,C38:E38) -> 1.9 | O29: =LOOKUP(M29,C37:E37,C39:E39) -> 8.1 | P29: =LOOKUP(M29,C37:E37,C40:E40) -> 0.3 | Q29: =LOOKUP(M29,C37:E37,C41:E41) -> 2 | R29: =LOOKUP(M29,C37:E37,C42:E42) -> 4 | S29: =LOOKUP(M29,C37:E37,C43:E43) -> 12.3
B30: W2 | C30: ='Land&Rain'!E9*D19 -> 0 | D30: ='Land&Rain'!E9*D20 -> 0 | E30: ='Land&Rain'!E9*D21 -> 0 | F30: ='Land&Rain'!E9*D22 -> 0 | G30: ='Land&Rain'!E9*D23 -> 0 | H30: =IF(('Land&Rain'!E9)=0,0,(C30*Reference!C$13+D30*Reference!C$14+E30*Reference!C$15+F30*Reference!C$16+G30*Reference!C$17)/1000/('Land&Rain'!E9)) -> 0 | L30: =H30+K11 -> 0 | M30: =IF(L30>=2.5,"C",IF(L30>1.5,"B","A")) -> A | N30: =LOOKUP(M30,C37:E37,C38:E38) -> 1.9 | O30: =LOOKUP(M30,C37:E37,C39:E39) -> 8.1 | P30: =LOOKUP(M30,C37:E37,C40:E40) -> 0.3 | Q30: =LOOKUP(M30,C37:E37,C41:E41) -> 2 | R30: =LOOKUP(M30,C37:E37,C42:E42) -> 4 | S30: =LOOKUP(M30,C37:E37,C43:E43) -> 12.3
B31: W3 | C31: ='Land&Rain'!E10*D19 -> 0 | D31: ='Land&Rain'!E10*D20 -> 0 | E31: ='Land&Rain'!E10*D21 -> 0 | F31: ='Land&Rain'!E10*D22 -> 0 | G31: ='Land&Rain'!E10*D23 -> 0 | H31: =IF(('Land&Rain'!E10)=0,0,(C31*Reference!C$13+D31*Reference!C$14+E31*Reference!C$15+F31*Reference!C$16+G31*Reference!C$17)/1000/('Land&Rain'!E10)) -> 0 | L31: =H31+K12 -> 0 | M31: =IF(L31>=2.5,"C",IF(L31>1.5,"B","A")) -> A | N31: =LOOKUP(M31,C37:E37,C38:E38) -> 1.9 | O31: =LOOKUP(M31,C37:E37,C39:E39) -> 8.1 | P31: =LOOKUP(M31,C37:E37,C40:E40) -> 0.3 | Q31: =LOOKUP(M31,C37:E37,C41:E41) -> 2 | R31: =LOOKUP(M31,C37:E37,C42:E42) -> 4 | S31: =LOOKUP(M31,C37:E37,C43:E43) -> 12.3
B32: W4 | C32: ='Land&Rain'!E11*D19 -> 0 | D32: ='Land&Rain'!E11*D20 -> 0 | E32: ='Land&Rain'!E11*D21 -> 0 | F32: ='Land&Rain'!E11*D22 -> 0 | G32: ='Land&Rain'!E11*D23 -> 0 | H32: =IF(('Land&Rain'!E11)=0,0,(C32*Reference!C$13+D32*Reference!C$14+E32*Reference!C$15+F32*Reference!C$16+G32*Reference!C$17)/1000/('Land&Rain'!E11)) -> 0 | L32: =H32+K13 -> 0 | M32: =IF(L32>=2.5,"C",IF(L32>1.5,"B","A")) -> A | N32: =LOOKUP(M32,C37:E37,C38:E38) -> 1.9 | O32: =LOOKUP(M32,C37:E37,C39:E39) -> 8.1 | P32: =LOOKUP(M32,C37:E37,C40:E40) -> 0.3 | Q32: =LOOKUP(M32,C37:E37,C41:E41) -> 2 | R32: =LOOKUP(M32,C37:E37,C42:E42) -> 4 | S32: =LOOKUP(M32,C37:E37,C43:E43) -> 12.3
B33: W5 | C33: ='Land&Rain'!E12*D19 -> 0 | D33: ='Land&Rain'!E12*D20 -> 0 | E33: ='Land&Rain'!E12*D21 -> 0 | F33: ='Land&Rain'!E12*D22 -> 0 | G33: ='Land&Rain'!E12*D23 -> 0 | H33: =IF(('Land&Rain'!E12)=0,0,(C33*Reference!C$13+D33*Reference!C$14+E33*Reference!C$15+F33*Reference!C$16+G33*Reference!C$17)/1000/('Land&Rain'!E12)) -> 0 | L33: =H33+K14 -> 0 | M33: =IF(L33>=2.5,"C",IF(L33>1.5,"B","A")) -> A | N33: =LOOKUP(M33,C37:E37,C38:E38) -> 1.9 | O33: =LOOKUP(M33,C37:E37,C39:E39) -> 8.1 | P33: =LOOKUP(M33,C37:E37,C40:E40) -> 0.3 | Q33: =LOOKUP(M33,C37:E37,C41:E41) -> 2 | R33: =LOOKUP(M33,C37:E37,C42:E42) -> 4 | S33: =LOOKUP(M33,C37:E37,C43:E43) -> 12.3
B34: Total | C34: =SUM(C29:C33) -> 0 | D34: =SUM(D29:D33) -> 0 | E34: =SUM(E29:E33) -> 0 | F34: =SUM(F29:F33) -> 0 | G34: =SUM(G29:G33) -> 0 | H34: =SUM(H29:H33) -> 0 | L34: =SUM(L29:L33) -> 0
B36: AEU and nutrient in runoff (mg/l), A: AEU<=1.5, B: 1.5<AEU<2.5, C: AEU>=2.5
B37: AEU | C37: A | D37: B | E37: C
B38: N in ag. area | C38: =Input!C75 -> 1.9 | D38: =Input!C77 -> 2.9 | E38: =Input!C79 -> 4.4
B39: N in manured area | C39: =Input!C76 -> 8.1 | D39: =Input!C78 -> 12.2 | E39: =Input!C80 -> 18.3
B40: P in ag. area | C40: =Input!D75 -> 0.3 | D40: =Input!D77 -> 0.4 | E40: =Input!D79 -> 0.5
B41: P in manured area | C41: =Input!D76 -> 2 | D41: =Input!D78 -> 3 | E41: =Input!D80 -> 4
B42: BOD in ag area | C42: =Input!E75 -> 4 | D42: =Input!E77 -> 6.1 | E42: =Input!E79 -> 9.2
B43: BOD in manured area | C43: =Input!E76 -> 12.3 | D43: =Input!E78 -> 18.5 | E43: =Input!E80 -> 24.6

Sheet BMPs
B1: Best Management Practice | E1: Select an appropriate BMP except "Combined BMPs-Calculated" for each subwatershed in each land use table
B2: using the pull-down list-box if interactions between BMPs are not considered. Select "Combined BMPs-Calculated" if multiple BMPs and their interactions
B3: in the subwatersheds are considered; use BMP calculator (under STEPL menu) to obtain the combined BMP efficiencies and enter them in Table 7.
B5: 1. BMPs and efficiencies for different pollutants on CROPLAND, ND=No Data
B6: Watershed | C6: Cropland
C7: N | D7: P | E7: BOD | F7: Sediment | G7: BMPs | H7: % Area BMP Applied
B8: W1 | C8: =IF(IF($G8<>"Combined BMPs-Calculated",LOOKUP(BMPs!$G8,BMPList!$B2:$B10,BMPList!$C2:$C10),$C57)="ND","ND",IF($G8<>"Combined BMPs-Calculated",LOOKUP(BMPs!$G8,BMPList!$B2:$B10,BMPList!$C2:$C10),$C57)*$H8/100) -> 0 | D8: =IF(IF($G8<>"Combined BMPs-Calculated",LOOKUP(BMPs!$G8,BMPList!$B2:$B10,BMPList!$D2:$D10),$D57)="ND","ND",IF($G8<>"Combined BMPs-Calculated",LOOKUP(BMPs!$G8,BMPList!$B2:$B10,BMPList!$D2:$D10),$D57)*$H8/100) -> 0 | E8: =IF(IF($G8<>"Combined BMPs-Calculated",LOOKUP(BMPs!$G8,BMPList!$B2:$B10,BMPList!$E2:$E10),$E57)="ND","ND",IF($G8<>"Combined BMPs-Calculated",LOOKUP(BMPs!$G8,BMPList!$B2:$B10,BMPList!$E2:$E10),$E57)*$H8/100) -> 0 | F8: =IF(IF($G8<>"Combined BMPs-Calculated",LOOKUP(BMPs!$G8,BMPList!$B2:$B10,BMPList!$F2:$F10),$F57)="ND","ND",IF($G8<>"Combined BMPs-Calculated",LOOKUP(BMPs!$G8,BMPList!$B2:$B10,BMPList!$F2:$F10),$F57)*$H8/100) -> 0 | G8: 0 No BMP | H8: 0
B9: W2 | C9: =IF(IF($G9<>"Combined BMPs-Calculated",LOOKUP(BMPs!$G9,BMPList!$B2:$B10,BMPList!$C2:$C10),$C58)="ND","ND",IF($G9<>"Combined BMPs-Calculated",LOOKUP(BMPs!$G9,BMPList!$B2:$B10,BMPList!$C2:$C10),$C58)*$H9/100) -> 0 | D9: =IF(IF($G9<>"Combined BMPs-Calculated",LOOKUP(BMPs!$G9,BMPList!$B2:$B10,BMPList!$D2:$D10),$D58)="ND","ND",IF($G9<>"Combined BMPs-Calculated",LOOKUP(BMPs!$G9,BMPList!$B2:$B10,BMPList!$D2:$D10),$D58)*$H9/100) -> 0 | E9: =IF(IF($G9<>"Combined BMPs-Calculated",LOOKUP(BMPs!$G9,BMPList!$B2:$B10,BMPList!$E2:$E10),$E58)="ND","ND",IF($G9<>"Combined BMPs-Calculated",LOOKUP(BMPs!$G9,BMPList!$B2:$B10,BMPList!$E2:$E10),$E58)*$H9/100) -> 0 | F9: =IF(IF($G9<>"Combined BMPs-Calculated",LOOKUP(BMPs!$G9,BMPList!$B2:$B10,BMPList!$F2:$F10),$F58)="ND","ND",IF($G9<>"Combined BMPs-Calculated",LOOKUP(BMPs!$G9,BMPList!$B2:$B10,BMPList!$F2:$F10),$F58)*$H9/100) -> 0 | G9: 0 No BMP | H9: 0
B10: W3 | C10: =IF(IF($G10<>"Combined BMPs-Calculated",LOOKUP(BMPs!$G10,BMPList!$B2:$B10,BMPList!$C2:$C10),$C59)="ND","ND",IF($G10<>"Combined BMPs-Calculated",LOOKUP(BMPs!$G10,BMPList!$B2:$B10,BMPList!$C2:$C10),$C59)*$H10/100) -> 0 | D10: =IF(IF($G10<>"Combined BMPs-Calculated",LOOKUP(BMPs!$G10,BMPList!$B2:$B10,BMPList!$D2:$D10),$D59)="ND","ND",IF($G10<>"Combined BMPs-Calculated",LOOKUP(BMPs!$G10,BMPList!$B2:$B10,BMPList!$D2:$D10),$D59)*$H10/100) -> 0 | E10: =IF(IF($G10<>"Combined BMPs-Calculated",LOOKUP(BMPs!$G10,BMPList!$B2:$B10,BMPList!$E2:$E10),$E59)="ND","ND",IF($G10<>"Combined BMPs-Calculated",LOOKUP(BMPs!$G10,BMPList!$B2:$B10,BMPList!$E2:$E10),$E59)*$H10/100) -> 0 | F10: =IF(IF($G10<>"Combined BMPs-Calculated",LOOKUP(BMPs!$G10,BMPList!$B2:$B10,BMPList!$F2:$F10),$F59)="ND","ND",IF($G10<>"Combined BMPs-Calculated",LOOKUP(BMPs!$G10,BMPList!$B2:$B10,BMPList!$F2:$F10),$F59)*$H10/100) -> 0 | G10: 0 No BMP | H10: 0
B11: W4 | C11: =IF(IF($G11<>"Combined BMPs-Calculated",LOOKUP(BMPs!$G11,BMPList!$B2:$B10,BMPList!$C2:$C10),$C60)="ND","ND",IF($G11<>"Combined BMPs-Calculated",LOOKUP(BMPs!$G11,BMPList!$B2:$B10,BMPList!$C2:$C10),$C60)*$H11/100) -> 0 | D11: =IF(IF($G11<>"Combined BMPs-Calculated",LOOKUP(BMPs!$G11,BMPList!$B2:$B10,BMPList!$D2:$D10),$D60)="ND","ND",IF($G11<>"Combined BMPs-Calculated",LOOKUP(BMPs!$G11,BMPList!$B2:$B10,BMPList!$D2:$D10),$D60)*$H11/100) -> 0 | E11: =IF(IF($G11<>"Combined BMPs-Calculated",LOOKUP(BMPs!$G11,BMPList!$B2:$B10,BMPList!$E2:$E10),$E60)="ND","ND",IF($G11<>"Combined BMPs-Calculated",LOOKUP(BMPs!$G11,BMPList!$B2:$B10,BMPList!$E2:$E10),$E60)*$H11/100) -> 0 | F11: =IF(IF($G11<>"Combined BMPs-Calculated",LOOKUP(BMPs!$G11,BMPList!$B2:$B10,BMPList!$F2:$F10),$F60)="ND","ND",IF($G11<>"Combined BMPs-Calculated",LOOKUP(BMPs!$G11,BMPList!$B2:$B10,BMPList!$F2:$F10),$F60)*$H11/100) -> 0 | G11: 0 No BMP | H11: 0
B12: W5 | C12: =IF(IF($G12<>"Combined BMPs-Calculated",LOOKUP(BMPs!$G12,BMPList!$B2:$B10,BMPList!$C2:$C10),$C61)="ND","ND",IF($G12<>"Combined BMPs-Calculated",LOOKUP(BMPs!$G12,BMPList!$B2:$B10,BMPList!$C2:$C10),$C61)*$H12/100) -> 0 | D12: =IF(IF($G12<>"Combined BMPs-Calculated",LOOKUP(BMPs!$G12,BMPList!$B2:$B10,BMPList!$D2:$D10),$D61)="ND","ND",IF($G12<>"Combined BMPs-Calculated",LOOKUP(BMPs!$G12,BMPList!$B2:$B10,BMPList!$D2:$D10),$D61)*$H12/100) -> 0 | E12: =IF(IF($G12<>"Combined BMPs-Calculated",LOOKUP(BMPs!$G12,BMPList!$B2:$B10,BMPList!$E2:$E10),$E61)="ND","ND",IF($G12<>"Combined BMPs-Calculated",LOOKUP(BMPs!$G12,BMPList!$B2:$B10,BMPList!$E2:$E10),$E61)*$H12/100) -> 0 | F12: =IF(IF($G12<>"Combined BMPs-Calculated",LOOKUP(BMPs!$G12,BMPList!$B2:$B10,BMPList!$F2:$F10),$F61)="ND","ND",IF($G12<>"Combined BMPs-Calculated",LOOKUP(BMPs!$G12,BMPList!$B2:$B10,BMPList!$F2:$F10),$F61)*$H12/100) -> 0 | G12: 0 No BMP | H12: 0
B14: 2. BMPs and efficiencies for different pollutants on PASTURELAND, ND=No Data
B15: Watershed | C15: Pastureland
C16: N | D16: P | E16: BOD | F16: Sediment | G16: BMPs | H16: % Area BMP Applied
B17: W1 | C17: =IF(IF($G17<>"Combined BMPs-Calculated",LOOKUP(BMPs!$G17,BMPList!$B11:$B13,BMPList!$C11:$C13),$C62)="ND","ND",IF($G17<>"Combined BMPs-Calculated",LOOKUP(BMPs!$G17,BMPList!$B11:$B13,BMPList!$C11:$C13),$C62)*$H17/100) -> 0 | D17: =IF(IF($G17<>"Combined BMPs-Calculated",LOOKUP(BMPs!$G17,BMPList!$B11:$B13,BMPList!$D11:$D13),$D62)="ND","ND",IF($G17<>"Combined BMPs-Calculated",LOOKUP(BMPs!$G17,BMPList!$B11:$B13,BMPList!$D11:$D13),$D62)*$H17/100) -> 0 | E17: =IF(IF($G17<>"Combined BMPs-Calculated",LOOKUP(BMPs!$G17,BMPList!$B11:$B13,BMPList!$E11:$E13),$E62)="ND","ND",IF($G17<>"Combined BMPs-Calculated",LOOKUP(BMPs!$G17,BMPList!$B11:$B13,BMPList!$E11:$E13),$E62)*$H17/100) -> 0 | F17: =IF(IF($G17<>"Combined BMPs-Calculated",LOOKUP(BMPs!$G17,BMPList!$B11:$B13,BMPList!$F11:$F13),$F62)="ND","ND",IF($G17<>"Combined BMPs-Calculated",LOOKUP(BMPs!$G17,BMPList!$B11:$B13,BMPList!$F11:$F13),$F62)*$H17/100) -> 0 | G17: 0 No BMP | H17: 0
B18: W2 | C18: =IF(IF($G18<>"Combined BMPs-Calculated",LOOKUP(BMPs!$G18,BMPList!$B11:$B13,BMPList!$C11:$C13),$C63)="ND","ND",IF($G18<>"Combined BMPs-Calculated",LOOKUP(BMPs!$G18,BMPList!$B11:$B13,BMPList!$C11:$C13),$C63)*$H18/100) -> 0 | D18: =IF(IF($G18<>"Combined BMPs-Calculated",LOOKUP(BMPs!$G18,BMPList!$B11:$B13,BMPList!$D11:$D13),$D63)="ND","ND",IF($G18<>"Combined BMPs-Calculated",LOOKUP(BMPs!$G18,BMPList!$B11:$B13,BMPList!$D11:$D13),$D63)*$H18/100) -> 0 | E18: =IF(IF($G18<>"Combined BMPs-Calculated",LOOKUP(BMPs!$G18,BMPList!$B11:$B13,BMPList!$E11:$E13),$E63)="ND","ND",IF($G18<>"Combined BMPs-Calculated",LOOKUP(BMPs!$G18,BMPList!$B11:$B13,BMPList!$E11:$E13),$E63)*$H18/100) -> 0 | F18: =IF(IF($G18<>"Combined BMPs-Calculated",LOOKUP(BMPs!$G18,BMPList!$B11:$B13,BMPList!$F11:$F13),$F63)="ND","ND",IF($G18<>"Combined BMPs-Calculated",LOOKUP(BMPs!$G18,BMPList!$B11:$B13,BMPList!$F11:$F13),$F63)*$H18/100) -> 0 | G18: 0 No BMP | H18: 0
B19: W3 | C19: =IF(IF($G19<>"Combined BMPs-Calculated",LOOKUP(BMPs!$G19,BMPList!$B11:$B13,BMPList!$C11:$C13),$C64)="ND","ND",IF($G19<>"Combined BMPs-Calculated",LOOKUP(BMPs!$G19,BMPList!$B11:$B13,BMPList!$C11:$C13),$C64)*$H19/100) -> 0 | D19: =IF(IF($G19<>"Combined BMPs-Calculated",LOOKUP(BMPs!$G19,BMPList!$B11:$B13,BMPList!$D11:$D13),$D64)="ND","ND",IF($G19<>"Combined BMPs-Calculated",LOOKUP(BMPs!$G19,BMPList!$B11:$B13,BMPList!$D11:$D13),$D64)*$H19/100) -> 0 | E19: =IF(IF($G19<>"Combined BMPs-Calculated",LOOKUP(BMPs!$G19,BMPList!$B11:$B13,BMPList!$E11:$E13),$E64)="ND","ND",IF($G19<>"Combined BMPs-Calculated",LOOKUP(BMPs!$G19,BMPList!$B11:$B13,BMPList!$E11:$E13),$E64)*$H19/100) -> 0 | F19: =IF(IF($G19<>"Combined BMPs-Calculated",LOOKUP(BMPs!$G19,BMPList!$B11:$B13,BMPList!$F11:$F13),$F64)="ND","ND",IF($G19<>"Combined BMPs-Calculated",LOOKUP(BMPs!$G19,BMPList!$B11:$B13,BMPList!$F11:$F13),$F64)*$H19/100) -> 0 | G19: 0 No BMP | H19: 0
B20: W4 | C20: =IF(IF($G20<>"Combined BMPs-Calculated",LOOKUP(BMPs!$G20,BMPList!$B11:$B13,BMPList!$C11:$C13),$C65)="ND","ND",IF($G20<>"Combined BMPs-Calculated",LOOKUP(BMPs!$G20,BMPList!$B11:$B13,BMPList!$C11:$C13),$C65)*$H20/100) -> 0 | D20: =IF(IF($G20<>"Combined BMPs-Calculated",LOOKUP(BMPs!$G20,BMPList!$B11:$B13,BMPList!$D11:$D13),$D65)="ND","ND",IF($G20<>"Combined BMPs-Calculated",LOOKUP(BMPs!$G20,BMPList!$B11:$B13,BMPList!$D11:$D13),$D65)*$H20/100) -> 0 | E20: =IF(IF($G20<>"Combined BMPs-Calculated",LOOKUP(BMPs!$G20,BMPList!$B11:$B13,BMPList!$E11:$E13),$E65)="ND","ND",IF($G20<>"Combined BMPs-Calculated",LOOKUP(BMPs!$G20,BMPList!$B11:$B13,BMPList!$E11:$E13),$E65)*$H20/100) -> 0 | F20: =IF(IF($G20<>"Combined BMPs-Calculated",LOOKUP(BMPs!$G20,BMPList!$B11:$B13,BMPList!$F11:$F13),$F65)="ND","ND",IF($G20<>"Combined BMPs-Calculated",LOOKUP(BMPs!$G20,BMPList!$B11:$B13,BMPList!$F11:$F13),$F65)*$H20/100) -> 0 | G20: 0 No BMP | H20: 0
B21: W5 | C21: =IF(IF($G21<>"Combined BMPs-Calculated",LOOKUP(BMPs!$G21,BMPList!$B11:$B13,BMPList!$C11:$C13),$C66)="ND","ND",IF($G21<>"Combined BMPs-Calculated",LOOKUP(BMPs!$G21,BMPList!$B11:$B13,BMPList!$C11:$C13),$C66)*$H21/100) -> 0 | D21: =IF(IF($G21<>"Combined BMPs-Calculated",LOOKUP(BMPs!$G21,BMPList!$B11:$B13,BMPList!$D11:$D13),$D66)="ND","ND",IF($G21<>"Combined BMPs-Calculated",LOOKUP(BMPs!$G21,BMPList!$B11:$B13,BMPList!$D11:$D13),$D66)*$H21/100) -> 0 | E21: =IF(IF($G21<>"Combined BMPs-Calculated",LOOKUP(BMPs!$G21,BMPList!$B11:$B13,BMPList!$E11:$E13),$E66)="ND","ND",IF($G21<>"Combined BMPs-Calculated",LOOKUP(BMPs!$G21,BMPList!$B11:$B13,BMPList!$E11:$E13),$E66)*$H21/100) -> 0 | F21: =IF(IF($G21<>"Combined BMPs-Calculated",LOOKUP(BMPs!$G21,BMPList!$B11:$B13,BMPList!$F11:$F13),$F66)="ND","ND",IF($G21<>"Combined BMPs-Calculated",LOOKUP(BMPs!$G21,BMPList!$B11:$B13,BMPList!$F11:$F13),$F66)*$H21/100) -> 0 | G21: 0 No BMP | H21: 0
B23: 3. BMPs and efficiencies for different pollutants on FOREST, ND=No Data
B24: Watershed | C24: Forest
C25: N | D25: P | E25: BOD | F25: Sediment | G25: BMPs | H25: % Area BMP Applied
B26: W1 | C26: =IF(IF($G26<>"Combined BMPs-Calculated",LOOKUP(BMPs!$G26,BMPList!$B14:$B28,BMPList!$C14:$C28),$C67)="ND","ND",IF($G26<>"Combined BMPs-Calculated",LOOKUP(BMPs!$G26,BMPList!$B14:$B28,BMPList!$C14:$C28),$C67)*$H26/100) -> 0 | D26: =IF(IF($G26<>"Combined BMPs-Calculated",LOOKUP(BMPs!$G26,BMPList!$B14:$B28,BMPList!$D14:$D28),$D67)="ND","ND",IF($G26<>"Combined BMPs-Calculated",LOOKUP(BMPs!$G26,BMPList!$B14:$B28,BMPList!$D14:$D28),$D67)*$H26/100) -> 0 | E26: =IF(IF($G26<>"Combined BMPs-Calculated",LOOKUP(BMPs!$G26,BMPList!$B14:$B28,BMPList!$E14:$E28),$E67)="ND","ND",IF($G26<>"Combined BMPs-Calculated",LOOKUP(BMPs!$G26,BMPList!$B14:$B28,BMPList!$E14:$E28),$E67)*$H26/100) -> 0 | F26: =IF(IF($G26<>"Combined BMPs-Calculated",LOOKUP(BMPs!$G26,BMPList!$B14:$B28,BMPList!$F14:$F28),$F67)="ND","ND",IF($G26<>"Combined BMPs-Calculated",LOOKUP(BMPs!$G26,BMPList!$B14:$B28,BMPList!$F14:$F28),$F67)*$H26/100) -> 0 | G26: 0 No BMP | H26: 0
B27: W2 | C27: =IF(IF($G27<>"Combined BMPs-Calculated",LOOKUP(BMPs!$G27,BMPList!$B14:$B28,BMPList!$C14:$C28),$C68)="ND","ND",IF($G27<>"Combined BMPs-Calculated",LOOKUP(BMPs!$G27,BMPList!$B14:$B28,BMPList!$C14:$C28),$C68)*$H27/100) -> 0 | D27: =IF(IF($G27<>"Combined BMPs-Calculated",LOOKUP(BMPs!$G27,BMPList!$B14:$B28,BMPList!$D14:$D28),$D68)="ND","ND",IF($G27<>"Combined BMPs-Calculated",LOOKUP(BMPs!$G27,BMPList!$B14:$B28,BMPList!$D14:$D28),$D68)*$H27/100) -> 0 | E27: =IF(IF($G27<>"Combined BMPs-Calculated",LOOKUP(BMPs!$G27,BMPList!$B14:$B28,BMPList!$E14:$E28),$E68)="ND","ND",IF($G27<>"Combined BMPs-Calculated",LOOKUP(BMPs!$G27,BMPList!$B14:$B28,BMPList!$E14:$E28),$E68)*$H27/100) -> 0 | F27: =IF(IF($G27<>"Combined BMPs-Calculated",LOOKUP(BMPs!$G27,BMPList!$B14:$B28,BMPList!$F14:$F28),$F68)="ND","ND",IF($G27<>"Combined BMPs-Calculated",LOOKUP(BMPs!$G27,BMPList!$B14:$B28,BMPList!$F14:$F28),$F68)*$H27/100) -> 0 | G27: 0 No BMP | H27: 0
B28: W3 | C28: =IF(IF($G28<>"Combined BMPs-Calculated",LOOKUP(BMPs!$G28,BMPList!$B14:$B28,BMPList!$C14:$C28),$C69)="ND","ND",IF($G28<>"Combined BMPs-Calculated",LOOKUP(BMPs!$G28,BMPList!$B14:$B28,BMPList!$C14:$C28),$C69)*$H28/100) -> 0 | D28: =IF(IF($G28<>"Combined BMPs-Calculated",LOOKUP(BMPs!$G28,BMPList!$B14:$B28,BMPList!$D14:$D28),$D69)="ND","ND",IF($G28<>"Combined BMPs-Calculated",LOOKUP(BMPs!$G28,BMPList!$B14:$B28,BMPList!$D14:$D28),$D69)*$H28/100) -> 0 | E28: =IF(IF($G28<>"Combined BMPs-Calculated",LOOKUP(BMPs!$G28,BMPList!$B14:$B28,BMPList!$E14:$E28),$E69)="ND","ND",IF($G28<>"Combined BMPs-Calculated",LOOKUP(BMPs!$G28,BMPList!$B14:$B28,BMPList!$E14:$E28),$E69)*$H28/100) -> 0 | F28: =IF(IF($G28<>"Combined BMPs-Calculated",LOOKUP(BMPs!$G28,BMPList!$B14:$B28,BMPList!$F14:$F28),$F69)="ND","ND",IF($G28<>"Combined BMPs-Calculated",LOOKUP(BMPs!$G28,BMPList!$B14:$B28,BMPList!$F14:$F28),$F69)*$H28/100) -> 0 | G28: 0 No BMP | H28: 0
B29: W4 | C29: =IF(IF($G29<>"Combined BMPs-Calculated",LOOKUP(BMPs!$G29,BMPList!$B14:$B28,BMPList!$C14:$C28),$C70)="ND","ND",IF($G29<>"Combined BMPs-Calculated",LOOKUP(BMPs!$G29,BMPList!$B14:$B28,BMPList!$C14:$C28),$C70)*$H29/100) -> 0 | D29: =IF(IF($G29<>"Combined BMPs-Calculated",LOOKUP(BMPs!$G29,BMPList!$B14:$B28,BMPList!$D14:$D28),$D70)="ND","ND",IF($G29<>"Combined BMPs-Calculated",LOOKUP(BMPs!$G29,BMPList!$B14:$B28,BMPList!$D14:$D28),$D70)*$H29/100) -> 0 | E29: =IF(IF($G29<>"Combined BMPs-Calculated",LOOKUP(BMPs!$G29,BMPList!$B14:$B28,BMPList!$E14:$E28),$E70)="ND","ND",IF($G29<>"Combined BMPs-Calculated",LOOKUP(BMPs!$G29,BMPList!$B14:$B28,BMPList!$E14:$E28),$E70)*$H29/100) -> 0 | F29: =IF(IF($G29<>"Combined BMPs-Calculated",LOOKUP(BMPs!$G29,BMPList!$B14:$B28,BMPList!$F14:$F28),$F70)="ND","ND",IF($G29<>"Combined BMPs-Calculated",LOOKUP(BMPs!$G29,BMPList!$B14:$B28,BMPList!$F14:$F28),$F70)*$H29/100) -> 0 | G29: 0 No BMP | H29: 0
B30: W5 | C30: =IF(IF($G30<>"Combined BMPs-Calculated",LOOKUP(BMPs!$G30,BMPList!$B14:$B28,BMPList!$C14:$C28),$C71)="ND","ND",IF($G30<>"Combined BMPs-Calculated",LOOKUP(BMPs!$G30,BMPList!$B14:$B28,BMPList!$C14:$C28),$C71)*$H30/100) -> 0 | D30: =IF(IF($G30<>"Combined BMPs-Calculated",LOOKUP(BMPs!$G30,BMPList!$B14:$B28,BMPList!$D14:$D28),$D71)="ND","ND",IF($G30<>"Combined BMPs-Calculated",LOOKUP(BMPs!$G30,BMPList!$B14:$B28,BMPList!$D14:$D28),$D71)*$H30/100) -> 0 | E30: =IF(IF($G30<>"Combined BMPs-Calculated",LOOKUP(BMPs!$G30,BMPList!$B14:$B28,BMPList!$E14:$E28),$E71)="ND","ND",IF($G30<>"Combined BMPs-Calculated",LOOKUP(BMPs!$G30,BMPList!$B14:$B28,BMPList!$E14:$E28),$E71)*$H30/100) -> 0 | F30: =IF(IF($G30<>"Combined BMPs-Calculated",LOOKUP(BMPs!$G30,BMPList!$B14:$B28,BMPList!$F14:$F28),$F71)="ND","ND",IF($G30<>"Combined BMPs-Calculated",LOOKUP(BMPs!$G30,BMPList!$B14:$B28,BMPList!$F14:$F28),$F71)*$H30/100) -> 0 | G30: 0 No BMP | H30: 0
B32: 4. BMPs and efficiencies for different pollutants on USER DEFINED land use, ND=No Data
B33: Watershed | C33: User Defined
C34: N | D34: P | E34: BOD | F34: Sediment | G34: BMPs | H34: % Area BMP Applied
B35: W1 | C35: =IF(IF($G35<>"Combined BMPs-Calculated",LOOKUP(BMPs!$G35,BMPList!$B29:$B31,BMPList!$C29:$C31),$C72)="ND","ND",IF($G35<>"Combined BMPs-Calculated",LOOKUP(BMPs!$G35,BMPList!$B29:$B31,BMPList!$C29:$C31),$C72)*$H35/100) -> 0 | D35: =IF(IF($G35<>"Combined BMPs-Calculated",LOOKUP(BMPs!$G35,BMPList!$B29:$B31,BMPList!$D29:$D31),$D72)="ND","ND",IF($G35<>"Combined BMPs-Calculated",LOOKUP(BMPs!$G35,BMPList!$B29:$B31,BMPList!$D29:$D31),$D72)*$H35/100) -> 0 | E35: =IF(IF($G35<>"Combined BMPs-Calculated",LOOKUP(BMPs!$G35,BMPList!$B29:$B31,BMPList!$E29:$E31),$E72)="ND","ND",IF($G35<>"Combined BMPs-Calculated",LOOKUP(BMPs!$G35,BMPList!$B29:$B31,BMPList!$E29:$E31),$E72)*$H35/100) -> 0 | F35: =IF(IF($G35<>"Combined BMPs-Calculated",LOOKUP(BMPs!$G35,BMPList!$B29:$B31,BMPList!$F29:$F31),$F72)="ND","ND",IF($G35<>"Combined BMPs-Calculated",LOOKUP(BMPs!$G35,BMPList!$B29:$B31,BMPList!$F29:$F31),$F72)*$H35/100) -> 0 | G35: 0 No BMP | H35: 0
B36: W2 | C36: =IF(IF($G36<>"Combined BMPs-Calculated",LOOKUP(BMPs!$G36,BMPList!$B29:$B31,BMPList!$C29:$C31),$C73)="ND","ND",IF($G36<>"Combined BMPs-Calculated",LOOKUP(BMPs!$G36,BMPList!$B29:$B31,BMPList!$C29:$C31),$C73)*$H36/100) -> 0 | D36: =IF(IF($G36<>"Combined BMPs-Calculated",LOOKUP(BMPs!$G36,BMPList!$B29:$B31,BMPList!$D29:$D31),$D73)="ND","ND",IF($G36<>"Combined BMPs-Calculated",LOOKUP(BMPs!$G36,BMPList!$B29:$B31,BMPList!$D29:$D31),$D73)*$H36/100) -> 0 | E36: =IF(IF($G36<>"Combined BMPs-Calculated",LOOKUP(BMPs!$G36,BMPList!$B29:$B31,BMPList!$E29:$E31),$E73)="ND","ND",IF($G36<>"Combined BMPs-Calculated",LOOKUP(BMPs!$G36,BMPList!$B29:$B31,BMPList!$E29:$E31),$E73)*$H36/100) -> 0 | F36: =IF(IF($G36<>"Combined BMPs-Calculated",LOOKUP(BMPs!$G36,BMPList!$B29:$B31,BMPList!$F29:$F31),$F73)="ND","ND",IF($G36<>"Combined BMPs-Calculated",LOOKUP(BMPs!$G36,BMPList!$B29:$B31,BMPList!$F29:$F31),$F73)*$H36/100) -> 0 | G36: 0 No BMP | H36: 0
B37: W3 | C37: =IF(IF($G37<>"Combined BMPs-Calculated",LOOKUP(BMPs!$G37,BMPList!$B29:$B31,BMPList!$C29:$C31),$C74)="ND","ND",IF($G37<>"Combined BMPs-Calculated",LOOKUP(BMPs!$G37,BMPList!$B29:$B31,BMPList!$C29:$C31),$C74)*$H37/100) -> 0 | D37: =IF(IF($G37<>"Combined BMPs-Calculated",LOOKUP(BMPs!$G37,BMPList!$B29:$B31,BMPList!$D29:$D31),$D74)="ND","ND",IF($G37<>"Combined BMPs-Calculated",LOOKUP(BMPs!$G37,BMPList!$B29:$B31,BMPList!$D29:$D31),$D74)*$H37/100) -> 0 | E37: =IF(IF($G37<>"Combined BMPs-Calculated",LOOKUP(BMPs!$G37,BMPList!$B29:$B31,BMPList!$E29:$E31),$E74)="ND","ND",IF($G37<>"Combined BMPs-Calculated",LOOKUP(BMPs!$G37,BMPList!$B29:$B31,BMPList!$E29:$E31),$E74)*$H37/100) -> 0 | F37: =IF(IF($G37<>"Combined BMPs-Calculated",LOOKUP(BMPs!$G37,BMPList!$B29:$B31,BMPList!$F29:$F31),$F74)="ND","ND",IF($G37<>"Combined BMPs-Calculated",LOOKUP(BMPs!$G37,BMPList!$B29:$B31,BMPList!$F29:$F31),$F74)*$H37/100) -> 0 | G37: 0 No BMP | H37: 0
B38: W4 | C38: =IF(IF($G38<>"Combined BMPs-Calculated",LOOKUP(BMPs!$G38,BMPList!$B29:$B31,BMPList!$C29:$C31),$C75)="ND","ND",IF($G38<>"Combined BMPs-Calculated",LOOKUP(BMPs!$G38,BMPList!$B29:$B31,BMPList!$C29:$C31),$C75)*$H38/100) -> 0 | D38: =IF(IF($G38<>"Combined BMPs-Calculated",LOOKUP(BMPs!$G38,BMPList!$B29:$B31,BMPList!$D29:$D31),$D75)="ND","ND",IF($G38<>"Combined BMPs-Calculated",LOOKUP(BMPs!$G38,BMPList!$B29:$B31,BMPList!$D29:$D31),$D75)*$H38/100) -> 0 | E38: =IF(IF($G38<>"Combined BMPs-Calculated",LOOKUP(BMPs!$G38,BMPList!$B29:$B31,BMPList!$E29:$E31),$E75)="ND","ND",IF($G38<>"Combined BMPs-Calculated",LOOKUP(BMPs!$G38,BMPList!$B29:$B31,BMPList!$E29:$E31),$E75)*$H38/100) -> 0 | F38: =IF(IF($G38<>"Combined BMPs-Calculated",LOOKUP(BMPs!$G38,BMPList!$B29:$B31,BMPList!$F29:$F31),$F75)="ND","ND",IF($G38<>"Combined BMPs-Calculated",LOOKUP(BMPs!$G38,BMPList!$B29:$B31,BMPList!$F29:$F31),$F75)*$H38/100) -> 0 | G38: 0 No BMP | H38: 0
B39: W5 | C39: =IF(IF($G39<>"Combined BMPs-Calculated",LOOKUP(BMPs!$G39,BMPList!$B29:$B31,BMPList!$C29:$C31),$C76)="ND","ND",IF($G39<>"Combined BMPs-Calculated",LOOKUP(BMPs!$G39,BMPList!$B29:$B31,BMPList!$C29:$C31),$C76)*$H39/100) -> 0 | D39: =IF(IF($G39<>"Combined BMPs-Calculated",LOOKUP(BMPs!$G39,BMPList!$B29:$B31,BMPList!$D29:$D31),$D76)="ND","ND",IF($G39<>"Combined BMPs-Calculated",LOOKUP(BMPs!$G39,BMPList!$B29:$B31,BMPList!$D29:$D31),$D76)*$H39/100) -> 0 | E39: =IF(IF($G39<>"Combined BMPs-Calculated",LOOKUP(BMPs!$G39,BMPList!$B29:$B31,BMPList!$E29:$E31),$E76)="ND","ND",IF($G39<>"Combined BMPs-Calculated",LOOKUP(BMPs!$G39,BMPList!$B29:$B31,BMPList!$E29:$E31),$E76)*$H39/100) -> 0 | F39: =IF(IF($G39<>"Combined BMPs-Calculated",LOOKUP(BMPs!$G39,BMPList!$B29:$B31,BMPList!$F29:$F31),$F76)="ND","ND",IF($G39<>"Combined BMPs-Calculated",LOOKUP(BMPs!$G39,BMPList!$B29:$B31,BMPList!$F29:$F31),$F76)*$H39/100) -> 0 | G39: 0 No BMP | H39: 0
B41: 5. BMPs and efficiencies for different pollutants on FEEDLOTS, ND=No Data
B42: Watershed | C42: Feedlots
C43: N | D43: P | E43: BOD | F43: Sediment | G43: BMPs | H43: %Area BMP Applied
B44: W1 | C44: =IF(IF($G44<>"Combined BMPs-Calculated",LOOKUP(BMPs!$G44,BMPList!$B32:$B41,BMPList!$C32:$C41),0)="ND","ND",IF($G44<>"Combined BMPs-Calculated",LOOKUP(BMPs!$G44,BMPList!$B32:$B41,BMPList!$C32:$C41),0)*$H44/100) -> 0 | D44: =IF(IF($G44<>"Combined BMPs-Calculated",LOOKUP(BMPs!$G44,BMPList!$B32:$B41,BMPList!$D32:$D41),0)="ND","ND",IF($G44<>"Combined BMPs-Calculated",LOOKUP(BMPs!$G44,BMPList!$B32:$B41,BMPList!$D32:$D41),0)*$H44/100) -> 0 | E44: =IF(IF($G44<>"Combined BMPs-Calculated",LOOKUP(BMPs!$G44,BMPList!$B32:$B41,BMPList!$E32:$E41),0)="ND","ND",IF($G44<>"Combined BMPs-Calculated",LOOKUP(BMPs!$G44,BMPList!$B32:$B41,BMPList!$E32:$E41),0)*$H44/100) -> 0 | F44: =IF(IF($G44<>"Combined BMPs-Calculated",LOOKUP(BMPs!$G44,BMPList!$B32:$B41,BMPList!$F32:$F41),0)="ND","ND",IF($G44<>"Combined BMPs-Calculated",LOOKUP(BMPs!$G44,BMPList!$B32:$B41,BMPList!$F32:$F41),0)*$H44/100) -> 0 | G44: 0 No BMP | H44: 0
B45: W2 | C45: =IF(IF($G45<>"Combined BMPs-Calculated",LOOKUP(BMPs!$G45,BMPList!$B32:$B41,BMPList!$C32:$C41),0)="ND","ND",IF($G45<>"Combined BMPs-Calculated",LOOKUP(BMPs!$G45,BMPList!$B32:$B41,BMPList!$C32:$C41),0)*$H45/100) -> 0 | D45: =IF(IF($G45<>"Combined BMPs-Calculated",LOOKUP(BMPs!$G45,BMPList!$B32:$B41,BMPList!$D32:$D41),0)="ND","ND",IF($G45<>"Combined BMPs-Calculated",LOOKUP(BMPs!$G45,BMPList!$B32:$B41,BMPList!$D32:$D41),0)*$H45/100) -> 0 | E45: =IF(IF($G45<>"Combined BMPs-Calculated",LOOKUP(BMPs!$G45,BMPList!$B32:$B41,BMPList!$E32:$E41),0)="ND","ND",IF($G45<>"Combined BMPs-Calculated",LOOKUP(BMPs!$G45,BMPList!$B32:$B41,BMPList!$E32:$E41),0)*$H45/100) -> 0 | F45: =IF(IF($G45<>"Combined BMPs-Calculated",LOOKUP(BMPs!$G45,BMPList!$B32:$B41,BMPList!$F32:$F41),0)="ND","ND",IF($G45<>"Combined BMPs-Calculated",LOOKUP(BMPs!$G45,BMPList!$B32:$B41,BMPList!$F32:$F41),0)*$H45/100) -> 0 | G45: 0 No BMP | H45: 0
B46: W3 | C46: =IF(IF($G46<>"Combined BMPs-Calculated",LOOKUP(BMPs!$G46,BMPList!$B32:$B41,BMPList!$C32:$C41),0)="ND","ND",IF($G46<>"Combined BMPs-Calculated",LOOKUP(BMPs!$G46,BMPList!$B32:$B41,BMPList!$C32:$C41),0)*$H46/100) -> 0 | D46: =IF(IF($G46<>"Combined BMPs-Calculated",LOOKUP(BMPs!$G46,BMPList!$B32:$B41,BMPList!$D32:$D41),0)="ND","ND",IF($G46<>"Combined BMPs-Calculated",LOOKUP(BMPs!$G46,BMPList!$B32:$B41,BMPList!$D32:$D41),0)*$H46/100) -> 0 | E46: =IF(IF($G46<>"Combined BMPs-Calculated",LOOKUP(BMPs!$G46,BMPList!$B32:$B41,BMPList!$E32:$E41),0)="ND","ND",IF($G46<>"Combined BMPs-Calculated",LOOKUP(BMPs!$G46,BMPList!$B32:$B41,BMPList!$E32:$E41),0)*$H46/100) -> 0 | F46: =IF(IF($G46<>"Combined BMPs-Calculated",LOOKUP(BMPs!$G46,BMPList!$B32:$B41,BMPList!$F32:$F41),0)="ND","ND",IF($G46<>"Combined BMPs-Calculated",LOOKUP(BMPs!$G46,BMPList!$B32:$B41,BMPList!$F32:$F41),0)*$H46/100) -> 0 | G46: 0 No BMP | H46: 0
B47: W4 | C47: =IF(IF($G47<>"Combined BMPs-Calculated",LOOKUP(BMPs!$G47,BMPList!$B32:$B41,BMPList!$C32:$C41),0)="ND","ND",IF($G47<>"Combined BMPs-Calculated",LOOKUP(BMPs!$G47,BMPList!$B32:$B41,BMPList!$C32:$C41),0)*$H47/100) -> 0 | D47: =IF(IF($G47<>"Combined BMPs-Calculated",LOOKUP(BMPs!$G47,BMPList!$B32:$B41,BMPList!$D32:$D41),0)="ND","ND",IF($G47<>"Combined BMPs-Calculated",LOOKUP(BMPs!$G47,BMPList!$B32:$B41,BMPList!$D32:$D41),0)*$H47/100) -> 0 | E47: =IF(IF($G47<>"Combined BMPs-Calculated",LOOKUP(BMPs!$G47,BMPList!$B32:$B41,BMPList!$E32:$E41),0)="ND","ND",IF($G47<>"Combined BMPs-Calculated",LOOKUP(BMPs!$G47,BMPList!$B32:$B41,BMPList!$E32:$E41),0)*$H47/100) -> 0 | F47: =IF(IF($G47<>"Combined BMPs-Calculated",LOOKUP(BMPs!$G47,BMPList!$B32:$B41,BMPList!$F32:$F41),0)="ND","ND",IF($G47<>"Combined BMPs-Calculated",LOOKUP(BMPs!$G47,BMPList!$B32:$B41,BMPList!$F32:$F41),0)*$H47/100) -> 0 | G47: 0 No BMP | H47: 0
B48: W5 | C48: =IF(IF($G48<>"Combined BMPs-Calculated",LOOKUP(BMPs!$G48,BMPList!$B32:$B41,BMPList!$C32:$C41),0)="ND","ND",IF($G48<>"Combined BMPs-Calculated",LOOKUP(BMPs!$G48,BMPList!$B32:$B41,BMPList!$C32:$C41),0)*$H48/100) -> 0 | D48: =IF(IF($G48<>"Combined BMPs-Calculated",LOOKUP(BMPs!$G48,BMPList!$B32:$B41,BMPList!$D32:$D41),0)="ND","ND",IF($G48<>"Combined BMPs-Calculated",LOOKUP(BMPs!$G48,BMPList!$B32:$B41,BMPList!$D32:$D41),0)*$H48/100) -> 0 | E48: =IF(IF($G48<>"Combined BMPs-Calculated",LOOKUP(BMPs!$G48,BMPList!$B32:$B41,BMPList!$E32:$E41),0)="ND","ND",IF($G48<>"Combined BMPs-Calculated",LOOKUP(BMPs!$G48,BMPList!$B32:$B41,BMPList!$E32:$E41),0)*$H48/100) -> 0 | F48: =IF(IF($G48<>"Combined BMPs-Calculated",LOOKUP(BMPs!$G48,BMPList!$B32:$B41,BMPList!$F32:$F41),0)="ND","ND",IF($G48<>"Combined BMPs-Calculated",LOOKUP(BMPs!$G48,BMPList!$B32:$B41,BMPList!$F32:$F41),0)*$H48/100) -> 0 | G48: 0 No BMP | H48: 0
B50: 6. BMPs and efficiencies for different pollutants on URBAN
B51: To change/set BMP/LID for urban land uses, click the 'Urban BMP Tool' button on the top-left of this sheet.
B54: 7. Combined watershed BMP efficiencies from the BMP calculator
B55: Watershed | C55: Watershed Combined BMP Efficiencies
C56: N | D56: P | E56: BOD | F56: Sediment | G56: BMPs
B57: W1-Crop | C57: 0 | D57: 0 | E57: 0 | F57: 0 | G57: Combined BMPs
B58: W2-Crop | C58: 0 | D58: 0 | E58: 0 | F58: 0 | G58: Combined BMPs
B59: W3-Crop | C59: 0 | D59: 0 | E59: 0 | F59: 0 | G59: Combined BMPs
B60: W4-Crop | C60: 0 | D60: 0 | E60: 0 | F60: 0 | G60: Combined BMPs
B61: W5-Crop | C61: 0 | D61: 0 | E61: 0 | F61: 0 | G61: Combined BMPs
B62: W1-Pasture | C62: 0 | D62: 0 | E62: 0 | F62: 0 | G62: Combined BMPs
B63: W2-Pasture | C63: 0 | D63: 0 | E63: 0 | F63: 0 | G63: Combined BMPs
B64: W3-Pasture | C64: 0 | D64: 0 | E64: 0 | F64: 0 | G64: Combined BMPs
B65: W4-Pasture | C65: 0 | D65: 0 | E65: 0 | F65: 0 | G65: Combined BMPs
B66: W5-Pasture | C66: 0 | D66: 0 | E66: 0 | F66: 0 | G66: Combined BMPs
B67: W1-Forest | C67: 0 | D67: 0 | E67: 0 | F67: 0 | G67: Combined BMPs
B68: W2-Forest | C68: 0 | D68: 0 | E68: 0 | F68: 0 | G68: Combined BMPs
B69: W3-Forest | C69: 0 | D69: 0 | E69: 0 | F69: 0 | G69: Combined BMPs
B70: W4-Forest | C70: 0 | D70: 0 | E70: 0 | F70: 0 | G70: Combined BMPs
B71: W5-Forest | C71: 0 | D71: 0 | E71: 0 | F71: 0 | G71: Combined BMPs
B72: W1-User | C72: 0 | D72: 0 | E72: 0 | F72: 0 | G72: Combined BMPs
B73: W2-User | C73: 0 | D73: 0 | E73: 0 | F73: 0 | G73: Combined BMPs
B74: W3-User | C74: 0 | D74: 0 | E74: 0 | F74: 0 | G74: Combined BMPs
B75: W4-User | C75: 0 | D75: 0 | E75: 0 | F75: 0 | G75: Combined BMPs
B76: W5-User | C76: 0 | D76: 0 | E76: 0 | F76: 0 | G76: Combined BMPs

Sheet Urban (hidden)
B1: Urban Runoff BMP and Pollutant Load Reduction
B6: 1. Urban pollutant concentration in runoff (mg/l)
B7: Landuse | C7: Commercial | D7: Industrial | E7: Institutional | F7: Transportation | G7: Multi-Family | H7: Single-Family | I7: Urban-Cultivated | J7: Vacant (developed) | K7: Open Space
B8: TN | C8: 2 | D8: 2.5 | E8: 1.8 | F8: 3 | G8: 2.2 | H8: 2.2 | I8: 1.9 | J8: 1.5 | K8: 1.5
B9: TP | C9: 0.2 | D9: 0.4 | E9: 0.3 | F9: 0.5 | G9: 0.4 | H9: 0.4 | I9: 0.3 | J9: 0.15 | K9: 0.15
B10: BOD | C10: 9.3 | D10: 9 | E10: 7.8 | F10: 9.3 | G10: 10 | H10: 10 | I10: 4 | J10: 4 | K10: 4
B11: TSS | C11: 75 | D11: 120 | E11: 67 | F11: 150 | G11: 100 | H11: 100 | I11: 150 | J11: 70 | K11: 70
B14: 2. Urban landuse distribution | M14: 2a. Effective BMP application area (ac)
B15: Landuse | C15: Commercial | D15: Industrial | E15: Institutional | F15: Transportation | G15: Multi-Family | H15: Single-Family | I15: Urban-Cultivated | J15: Vacant (developed) | K15: Open Space | M15: Landuse | N15: Commercial | O15: Industrial | P15: Institutional | Q15: Transportation | R15: Multi-Family | S15: Single-Family | T15: Urban-Cultivated | U15: Vacant (developed) | V15: Open Space
B16: W1 | C16: ='Land&Rain'!Y8 -> 0 | D16: ='Land&Rain'!Z8 -> 0 | E16: ='Land&Rain'!AA8 -> 0 | F16: ='Land&Rain'!AB8 -> 0 | G16: ='Land&Rain'!AC8 -> 0 | H16: ='Land&Rain'!AD8 -> 0 | I16: ='Land&Rain'!AE8 -> 0 | J16: ='Land&Rain'!AF8 -> 0 | K16: ='Land&Rain'!AG8 -> 0 | M16: W1 | N16: =C16 -> 0 | O16: =D16 -> 0 | P16: =E16 -> 0 | Q16: =F16 -> 0 | R16: =G16 -> 0 | S16: =H16 -> 0 | T16: =I16 -> 0 | U16: =J16 -> 0 | V16: =K16 -> 0
B17: W2 | C17: ='Land&Rain'!Y9 -> 0 | D17: ='Land&Rain'!Z9 -> 0 | E17: ='Land&Rain'!AA9 -> 0 | F17: ='Land&Rain'!AB9 -> 0 | G17: ='Land&Rain'!AC9 -> 0 | H17: ='Land&Rain'!AD9 -> 0 | I17: ='Land&Rain'!AE9 -> 0 | J17: ='Land&Rain'!AF9 -> 0 | K17: ='Land&Rain'!AG9 -> 0 | M17: W2 | N17: =C17 -> 0 | O17: =D17 -> 0 | P17: =E17 -> 0 | Q17: =F17 -> 0 | R17: =G17 -> 0 | S17: =H17 -> 0 | T17: =I17 -> 0 | U17: =J17 -> 0 | V17: =K17 -> 0
B18: W3 | C18: ='Land&Rain'!Y10 -> 0 | D18: ='Land&Rain'!Z10 -> 0 | E18: ='Land&Rain'!AA10 -> 0 | F18: ='Land&Rain'!AB10 -> 0 | G18: ='Land&Rain'!AC10 -> 0 | H18: ='Land&Rain'!AD10 -> 0 | I18: ='Land&Rain'!AE10 -> 0 | J18: ='Land&Rain'!AF10 -> 0 | K18: ='Land&Rain'!AG10 -> 0 | M18: W3 | N18: =C18 -> 0 | O18: =D18 -> 0 | P18: =E18 -> 0 | Q18: =F18 -> 0 | R18: =G18 -> 0 | S18: =H18 -> 0 | T18: =I18 -> 0 | U18: =J18 -> 0 | V18: =K18 -> 0
B19: W4 | C19: ='Land&Rain'!Y11 -> 0 | D19: ='Land&Rain'!Z11 -> 0 | E19: ='Land&Rain'!AA11 -> 0 | F19: ='Land&Rain'!AB11 -> 0 | G19: ='Land&Rain'!AC11 -> 0 | H19: ='Land&Rain'!AD11 -> 0 | I19: ='Land&Rain'!AE11 -> 0 | J19: ='Land&Rain'!AF11 -> 0 | K19: ='Land&Rain'!AG11 -> 0 | M19: W4 | N19: =C19 -> 0 | O19: =D19 -> 0 | P19: =E19 -> 0 | Q19: =F19 -> 0 | R19: =G19 -> 0 | S19: =H19 -> 0 | T19: =I19 -> 0 | U19: =J19 -> 0 | V19: =K19 -> 0
B20: W5 | C20: ='Land&Rain'!Y12 -> 0 | D20: ='Land&Rain'!Z12 -> 0 | E20: ='Land&Rain'!AA12 -> 0 | F20: ='Land&Rain'!AB12 -> 0 | G20: ='Land&Rain'!AC12 -> 0 | H20: ='Land&Rain'!AD12 -> 0 | I20: ='Land&Rain'!AE12 -> 0 | J20: ='Land&Rain'!AF12 -> 0 | K20: ='Land&Rain'!AG12 -> 0 | M20: W5 | N20: =C20 -> 0 | O20: =D20 -> 0 | P20: =E20 -> 0 | Q20: =F20 -> 0 | R20: =G20 -> 0 | S20: =H20 -> 0 | T20: =I20 -> 0 | U20: =J20 -> 0 | V20: =K20 -> 0
B23: 3. Selected urban BMPs | M23: 3a. Percentage of BMP effective area (%)
B24: Landuse | C24: Commercial | D24: Industrial | E24: Institutional | F24: Transportation | G24: Multi-Family | H24: Single-Family | I24: Urban-Cultivated | J24: Vacant (developed) | K24: Open Space | M24: Landuse | N24: Commercial | O24: Industrial | P24: Institutional | Q24: Transportation | R24: Multi-Family | S24: Single-Family | T24: Urban-Cultivated | U24: Vacant (developed) | V24: Open Space
B25: W1 | C25: 0 No BMP | D25: 0 No BMP | E25: 0 No BMP | F25: 0 No BMP | G25: 0 No BMP | H25: 0 No BMP | I25: 0 No BMP | J25: 0 No BMP | K25: 0 No BMP | M25: W1 | N25: =IF(C16>0, 100* N16/C16,0) -> 0 | O25: =IF(D16>0, 100* O16/D16,0) -> 0 | P25: =IF(E16>0, 100* P16/E16,0) -> 0 | Q25: =IF(F16>0, 100* Q16/F16,0) -> 0 | R25: =IF(G16>0, 100* R16/G16,0) -> 0 | S25: =IF(H16>0, 100* S16/H16,0) -> 0 | T25: =IF(I16>0, 100* T16/I16,0) -> 0 | U25: =IF(J16>0, 100* U16/J16,0) -> 0 | V25: =IF(K16>0, 100* V16/K16,0) -> 0
B26: W2 | C26: 0 No BMP | D26: 0 No BMP | E26: 0 No BMP | F26: 0 No BMP | G26: 0 No BMP | H26: 0 No BMP | I26: 0 No BMP | J26: 0 No BMP | K26: 0 No BMP | M26: W2 | N26: =IF(C17>0, 100* N17/C17,0) -> 0 | O26: =IF(D17>0, 100* O17/D17,0) -> 0 | P26: =IF(E17>0, 100* P17/E17,0) -> 0 | Q26: =IF(F17>0, 100* Q17/F17,0) -> 0 | R26: =IF(G17>0, 100* R17/G17,0) -> 0 | S26: =IF(H17>0, 100* S17/H17,0) -> 0 | T26: =IF(I17>0, 100* T17/I17,0) -> 0 | U26: =IF(J17>0, 100* U17/J17,0) -> 0 | V26: =IF(K17>0, 100* V17/K17,0) -> 0
B27: W3 | C27: 0 No BMP | D27: 0 No BMP | E27: 0 No BMP | F27: 0 No BMP | G27: 0 No BMP | H27: 0 No BMP | I27: 0 No BMP | J27: 0 No BMP | K27: 0 No BMP | M27: W3 | N27: =IF(C18>0, 100* N18/C18,0) -> 0 | O27: =IF(D18>0, 100* O18/D18,0) -> 0 | P27: =IF(E18>0, 100* P18/E18,0) -> 0 | Q27: =IF(F18>0, 100* Q18/F18,0) -> 0 | R27: =IF(G18>0, 100* R18/G18,0) -> 0 | S27: =IF(H18>0, 100* S18/H18,0) -> 0 | T27: =IF(I18>0, 100* T18/I18,0) -> 0 | U27: =IF(J18>0, 100* U18/J18,0) -> 0 | V27: =IF(K18>0, 100* V18/K18,0) -> 0
B28: W4 | C28: 0 No BMP | D28: 0 No BMP | E28: 0 No BMP | F28: 0 No BMP | G28: 0 No BMP | H28: 0 No BMP | I28: 0 No BMP | J28: 0 No BMP | K28: 0 No BMP | M28: W4 | N28: =IF(C19>0, 100* N19/C19,0) -> 0 | O28: =IF(D19>0, 100* O19/D19,0) -> 0 | P28: =IF(E19>0, 100* P19/E19,0) -> 0 | Q28: =IF(F19>0, 100* Q19/F19,0) -> 0 | R28: =IF(G19>0, 100* R19/G19,0) -> 0 | S28: =IF(H19>0, 100* S19/H19,0) -> 0 | T28: =IF(I19>0, 100* T19/I19,0) -> 0 | U28: =IF(J19>0, 100* U19/J19,0) -> 0 | V28: =IF(K19>0, 100* V19/K19,0) -> 0
B29: W5 | C29: 0 No BMP | D29: 0 No BMP | E29: 0 No BMP | F29: 0 No BMP | G29: 0 No BMP | H29: 0 No BMP | I29: 0 No BMP | J29: 0 No BMP | K29: 0 No BMP | M29: W5 | N29: =IF(C20>0, 100* N20/C20,0) -> 0 | O29: =IF(D20>0, 100* O20/D20,0) -> 0 | P29: =IF(E20>0, 100* P20/E20,0) -> 0 | Q29: =IF(F20>0, 100* Q20/F20,0) -> 0 | R29: =IF(G20>0, 100* R20/G20,0) -> 0 | S29: =IF(H20>0, 100* S20/H20,0) -> 0 | T29: =IF(I20>0, 100* T20/I20,0) -> 0 | U29: =IF(J20>0, 100* U20/J20,0) -> 0 | V29: =IF(K20>0, 100* V20/K20,0) -> 0
B32: 3.1. Urban runoff (ac-ft)
B33: Landuse | C33: Commercial | D33: Industrial | E33: Institutional | F33: Transportation | G33: Multi-Family | H33: Single-Family | I33: Urban-Cultivated | J33: Vacant (developed) | K33: Open Space
B34: W1 | C34: ='Land&Rain'!Y47 -> 0 | D34: ='Land&Rain'!Z47 -> 0 | E34: ='Land&Rain'!AA47 -> 0 | F34: ='Land&Rain'!AB47 -> 0 | G34: ='Land&Rain'!AC47 -> 0 | H34: ='Land&Rain'!AD47 -> 0 | I34: ='Land&Rain'!AE47 -> 0 | J34: ='Land&Rain'!AF47 -> 0 | K34: ='Land&Rain'!AG47 -> 0
B35: W2 | C35: ='Land&Rain'!Y48 -> 0 | D35: ='Land&Rain'!Z48 -> 0 | E35: ='Land&Rain'!AA48 -> 0 | F35: ='Land&Rain'!AB48 -> 0 | G35: ='Land&Rain'!AC48 -> 0 | H35: ='Land&Rain'!AD48 -> 0 | I35: ='Land&Rain'!AE48 -> 0 | J35: ='Land&Rain'!AF48 -> 0 | K35: ='Land&Rain'!AG48 -> 0
B36: W3 | C36: ='Land&Rain'!Y49 -> 0 | D36: ='Land&Rain'!Z49 -> 0 | E36: ='Land&Rain'!AA49 -> 0 | F36: ='Land&Rain'!AB49 -> 0 | G36: ='Land&Rain'!AC49 -> 0 | H36: ='Land&Rain'!AD49 -> 0 | I36: ='Land&Rain'!AE49 -> 0 | J36: ='Land&Rain'!AF49 -> 0 | K36: ='Land&Rain'!AG49 -> 0
B37: W4 | C37: ='Land&Rain'!Y50 -> 0 | D37: ='Land&Rain'!Z50 -> 0 | E37: ='Land&Rain'!AA50 -> 0 | F37: ='Land&Rain'!AB50 -> 0 | G37: ='Land&Rain'!AC50 -> 0 | H37: ='Land&Rain'!AD50 -> 0 | I37: ='Land&Rain'!AE50 -> 0 | J37: ='Land&Rain'!AF50 -> 0 | K37: ='Land&Rain'!AG50 -> 0
B38: W5 | C38: ='Land&Rain'!Y51 -> 0 | D38: ='Land&Rain'!Z51 -> 0 | E38: ='Land&Rain'!AA51 -> 0 | F38: ='Land&Rain'!AB51 -> 0 | G38: ='Land&Rain'!AC51 -> 0 | H38: ='Land&Rain'!AD51 -> 0 | I38: ='Land&Rain'!AE51 -> 0 | J38: ='Land&Rain'!AF51 -> 0 | K38: ='Land&Rain'!AG51 -> 0
B41: 3.2. Total urban N load (kg) | M41: 3.2a. Selected urban N reduction efficiency | X41: 3.2b. Urban N reduction (kg)
B42: Landuse | C42: Commercial | D42: Industrial | E42: Institutional | F42: Transportation | G42: Multi-Family | H42: Single-Family | I42: Urban-Cultivated | J42: Vacant (developed) | K42: Open Space | M42: Landuse | N42: Commercial | O42: Industrial | P42: Institutional | Q42: Transportation | R42: Multi-Family | S42: Single-Family | T42: Urban-Cultivated | U42: Vacant (developed) | V42: Open Space | X42: Landuse | Y42: Commercial | Z42: Industrial | AA42: Institutional | AB42: Transportation | AC42: Multi-Family | AD42: Single-Family | AE42: Urban-Cultivated | AF42: Vacant (developed) | AG42: Open Space
B43: W1 | C43: =4047*0.3048*C34*C8/1000 -> 0 | D43: =4047*0.3048*D34*D8/1000 -> 0 | E43: =4047*0.3048*E34*E8/1000 -> 0 | F43: =4047*0.3048*F34*F8/1000 -> 0 | G43: =4047*0.3048*G34*G8/1000 -> 0 | H43: =4047*0.3048*H34*H8/1000 -> 0 | I43: =4047*0.3048*I34*I8/1000 -> 0 | J43: =4047*0.3048*J34*J8/1000 -> 0 | K43: =4047*0.3048*K34*K8/1000 -> 0 | M43: W1 | N43: 0 | O43: 0 | P43: 0 | Q43: 0 | R43: 0 | S43: 0 | T43: 0 | U43: 0 | V43: 0 | X43: W1 | Y43: =IF(ISNUMBER(N43),N43*C43*N25/100,0) -> 0 | Z43: =IF(ISNUMBER(O43),O43*D43*O25/100,0) -> 0 | AA43: =IF(ISNUMBER(P43),P43*E43*P25/100,0) -> 0 | AB43: =IF(ISNUMBER(Q43),Q43*F43*Q25/100,0) -> 0 | AC43: =IF(ISNUMBER(R43),R43*G43*R25/100,0) -> 0 | AD43: =IF(ISNUMBER(S43),S43*H43*S25/100,0) -> 0 | AE43: =IF(ISNUMBER(T43),T43*I43*T25/100,0) -> 0 | AF43: =IF(ISNUMBER(U43),U43*J43*U25/100,0) -> 0 | AG43: =IF(ISNUMBER(V43),V43*K43*V25/100,0) -> 0
B44: W2 | C44: =4047*0.3048*C35*C8/1000 -> 0 | D44: =4047*0.3048*D35*D8/1000 -> 0 | E44: =4047*0.3048*E35*E8/1000 -> 0 | F44: =4047*0.3048*F35*F8/1000 -> 0 | G44: =4047*0.3048*G35*G8/1000 -> 0 | H44: =4047*0.3048*H35*H8/1000 -> 0 | I44: =4047*0.3048*I35*I8/1000 -> 0 | J44: =4047*0.3048*J35*J8/1000 -> 0 | K44: =4047*0.3048*K35*K8/1000 -> 0 | M44: W2 | N44: 0 | O44: 0 | P44: 0 | Q44: 0 | R44: 0 | S44: 0 | T44: 0 | U44: 0 | V44: 0 | X44: W2 | Y44: =IF(ISNUMBER(N44),N44*C44*N26/100,0) -> 0 | Z44: =IF(ISNUMBER(O44),O44*D44*O26/100,0) -> 0 | AA44: =IF(ISNUMBER(P44),P44*E44*P26/100,0) -> 0 | AB44: =IF(ISNUMBER(Q44),Q44*F44*Q26/100,0) -> 0 | AC44: =IF(ISNUMBER(R44),R44*G44*R26/100,0) -> 0 | AD44: =IF(ISNUMBER(S44),S44*H44*S26/100,0) -> 0 | AE44: =IF(ISNUMBER(T44),T44*I44*T26/100,0) -> 0 | AF44: =IF(ISNUMBER(U44),U44*J44*U26/100,0) -> 0 | AG44: =IF(ISNUMBER(V44),V44*K44*V26/100,0) -> 0
B45: W3 | C45: =4047*0.3048*C36*C8/1000 -> 0 | D45: =4047*0.3048*D36*D8/1000 -> 0 | E45: =4047*0.3048*E36*E8/1000 -> 0 | F45: =4047*0.3048*F36*F8/1000 -> 0 | G45: =4047*0.3048*G36*G8/1000 -> 0 | H45: =4047*0.3048*H36*H8/1000 -> 0 | I45: =4047*0.3048*I36*I8/1000 -> 0 | J45: =4047*0.3048*J36*J8/1000 -> 0 | K45: =4047*0.3048*K36*K8/1000 -> 0 | M45: W3 | N45: 0 | O45: 0 | P45: 0 | Q45: 0 | R45: 0 | S45: 0 | T45: 0 | U45: 0 | V45: 0 | X45: W3 | Y45: =IF(ISNUMBER(N45),N45*C45*N27/100,0) -> 0 | Z45: =IF(ISNUMBER(O45),O45*D45*O27/100,0) -> 0 | AA45: =IF(ISNUMBER(P45),P45*E45*P27/100,0) -> 0 | AB45: =IF(ISNUMBER(Q45),Q45*F45*Q27/100,0) -> 0 | AC45: =IF(ISNUMBER(R45),R45*G45*R27/100,0) -> 0 | AD45: =IF(ISNUMBER(S45),S45*H45*S27/100,0) -> 0 | AE45: =IF(ISNUMBER(T45),T45*I45*T27/100,0) -> 0 | AF45: =IF(ISNUMBER(U45),U45*J45*U27/100,0) -> 0 | AG45: =IF(ISNUMBER(V45),V45*K45*V27/100,0) -> 0
B46: W4 | C46: =4047*0.3048*C37*C8/1000 -> 0 | D46: =4047*0.3048*D37*D8/1000 -> 0 | E46: =4047*0.3048*E37*E8/1000 -> 0 | F46: =4047*0.3048*F37*F8/1000 -> 0 | G46: =4047*0.3048*G37*G8/1000 -> 0 | H46: =4047*0.3048*H37*H8/1000 -> 0 | I46: =4047*0.3048*I37*I8/1000 -> 0 | J46: =4047*0.3048*J37*J8/1000 -> 0 | K46: =4047*0.3048*K37*K8/1000 -> 0 | M46: W4 | N46: 0 | O46: 0 | P46: 0 | Q46: 0 | R46: 0 | S46: 0 | T46: 0 | U46: 0 | V46: 0 | X46: W4 | Y46: =IF(ISNUMBER(N46),N46*C46*N28/100,0) -> 0 | Z46: =IF(ISNUMBER(O46),O46*D46*O28/100,0) -> 0 | AA46: =IF(ISNUMBER(P46),P46*E46*P28/100,0) -> 0 | AB46: =IF(ISNUMBER(Q46),Q46*F46*Q28/100,0) -> 0 | AC46: =IF(ISNUMBER(R46),R46*G46*R28/100,0) -> 0 | AD46: =IF(ISNUMBER(S46),S46*H46*S28/100,0) -> 0 | AE46: =IF(ISNUMBER(T46),T46*I46*T28/100,0) -> 0 | AF46: =IF(ISNUMBER(U46),U46*J46*U28/100,0) -> 0 | AG46: =IF(ISNUMBER(V46),V46*K46*V28/100,0) -> 0
B47: W5 | C47: =4047*0.3048*C38*C8/1000 -> 0 | D47: =4047*0.3048*D38*D8/1000 -> 0 | E47: =4047*0.3048*E38*E8/1000 -> 0 | F47: =4047*0.3048*F38*F8/1000 -> 0 | G47: =4047*0.3048*G38*G8/1000 -> 0 | H47: =4047*0.3048*H38*H8/1000 -> 0 | I47: =4047*0.3048*I38*I8/1000 -> 0 | J47: =4047*0.3048*J38*J8/1000 -> 0 | K47: =4047*0.3048*K38*K8/1000 -> 0 | M47: W5 | N47: 0 | O47: 0 | P47: 0 | Q47: 0 | R47: 0 | S47: 0 | T47: 0 | U47: 0 | V47: 0 | X47: W5 | Y47: =IF(ISNUMBER(N47),N47*C47*N29/100,0) -> 0 | Z47: =IF(ISNUMBER(O47),O47*D47*O29/100,0) -> 0 | AA47: =IF(ISNUMBER(P47),P47*E47*P29/100,0) -> 0 | AB47: =IF(ISNUMBER(Q47),Q47*F47*Q29/100,0) -> 0 | AC47: =IF(ISNUMBER(R47),R47*G47*R29/100,0) -> 0 | AD47: =IF(ISNUMBER(S47),S47*H47*S29/100,0) -> 0 | AE47: =IF(ISNUMBER(T47),T47*I47*T29/100,0) -> 0 | AF47: =IF(ISNUMBER(U47),U47*J47*U29/100,0) -> 0 | AG47: =IF(ISNUMBER(V47),V47*K47*V29/100,0) -> 0
B50: 3.3. Total urban P load (kg) | M50: 3.3a. Selected urban P reduction efficiency | X50: 3.3b. Urban P reduction (kg)
B51: Landuse | C51: Commercial | D51: Industrial | E51: Institutional | F51: Transportation | G51: Multi-Family | H51: Single-Family | I51: Urban-Cultivated | J51: Vacant (developed) | K51: Open Space | M51: Landuse | N51: Commercial | O51: Industrial | P51: Institutional | Q51: Transportation | R51: Multi-Family | S51: Single-Family | T51: Urban-Cultivated | U51: Vacant (developed) | V51: Open Space | X51: Landuse | Y51: Commercial | Z51: Industrial | AA51: Institutional | AB51: Transportation | AC51: Multi-Family | AD51: Single-Family | AE51: Urban-Cultivated | AF51: Vacant (developed) | AG51: Open Space
B52: W1 | C52: =4047*0.3048*C34*C9/1000 -> 0 | D52: =4047*0.3048*D34*D9/1000 -> 0 | E52: =4047*0.3048*E34*E9/1000 -> 0 | F52: =4047*0.3048*F34*F9/1000 -> 0 | G52: =4047*0.3048*G34*G9/1000 -> 0 | H52: =4047*0.3048*H34*H9/1000 -> 0 | I52: =4047*0.3048*I34*I9/1000 -> 0 | J52: =4047*0.3048*J34*J9/1000 -> 0 | K52: =4047*0.3048*K34*K9/1000 -> 0 | M52: W1 | N52: 0 | O52: 0 | P52: 0 | Q52: 0 | R52: 0 | S52: 0 | T52: 0 | U52: 0 | V52: 0 | X52: W1 | Y52: =IF(ISNUMBER(N52),N52*C52*N25/100,0) -> 0 | Z52: =IF(ISNUMBER(O52),O52*D52*O25/100,0) -> 0 | AA52: =IF(ISNUMBER(P52),P52*E52*P25/100,0) -> 0 | AB52: =IF(ISNUMBER(Q52),Q52*F52*Q25/100,0) -> 0 | AC52: =IF(ISNUMBER(R52),R52*G52*R25/100,0) -> 0 | AD52: =IF(ISNUMBER(S52),S52*H52*S25/100,0) -> 0 | AE52: =IF(ISNUMBER(T52),T52*I52*T25/100,0) -> 0 | AF52: =IF(ISNUMBER(U52),U52*J52*U25/100,0) -> 0 | AG52: =IF(ISNUMBER(V52),V52*K52*V25/100,0) -> 0
B53: W2 | C53: =4047*0.3048*C35*C9/1000 -> 0 | D53: =4047*0.3048*D35*D9/1000 -> 0 | E53: =4047*0.3048*E35*E9/1000 -> 0 | F53: =4047*0.3048*F35*F9/1000 -> 0 | G53: =4047*0.3048*G35*G9/1000 -> 0 | H53: =4047*0.3048*H35*H9/1000 -> 0 | I53: =4047*0.3048*I35*I9/1000 -> 0 | J53: =4047*0.3048*J35*J9/1000 -> 0 | K53: =4047*0.3048*K35*K9/1000 -> 0 | M53: W2 | N53: 0 | O53: 0 | P53: 0 | Q53: 0 | R53: 0 | S53: 0 | T53: 0 | U53: 0 | V53: 0 | X53: W2 | Y53: =IF(ISNUMBER(N53),N53*C53*N26/100,0) -> 0 | Z53: =IF(ISNUMBER(O53),O53*D53*O26/100,0) -> 0 | AA53: =IF(ISNUMBER(P53),P53*E53*P26/100,0) -> 0 | AB53: =IF(ISNUMBER(Q53),Q53*F53*Q26/100,0) -> 0 | AC53: =IF(ISNUMBER(R53),R53*G53*R26/100,0) -> 0 | AD53: =IF(ISNUMBER(S53),S53*H53*S26/100,0) -> 0 | AE53: =IF(ISNUMBER(T53),T53*I53*T26/100,0) -> 0 | AF53: =IF(ISNUMBER(U53),U53*J53*U26/100,0) -> 0 | AG53: =IF(ISNUMBER(V53),V53*K53*V26/100,0) -> 0
B54: W3 | C54: =4047*0.3048*C36*C9/1000 -> 0 | D54: =4047*0.3048*D36*D9/1000 -> 0 | E54: =4047*0.3048*E36*E9/1000 -> 0 | F54: =4047*0.3048*F36*F9/1000 -> 0 | G54: =4047*0.3048*G36*G9/1000 -> 0 | H54: =4047*0.3048*H36*H9/1000 -> 0 | I54: =4047*0.3048*I36*I9/1000 -> 0 | J54: =4047*0.3048*J36*J9/1000 -> 0 | K54: =4047*0.3048*K36*K9/1000 -> 0 | M54: W3 | N54: 0 | O54: 0 | P54: 0 | Q54: 0 | R54: 0 | S54: 0 | T54: 0 | U54: 0 | V54: 0 | X54: W3 | Y54: =IF(ISNUMBER(N54),N54*C54*N27/100,0) -> 0 | Z54: =IF(ISNUMBER(O54),O54*D54*O27/100,0) -> 0 | AA54: =IF(ISNUMBER(P54),P54*E54*P27/100,0) -> 0 | AB54: =IF(ISNUMBER(Q54),Q54*F54*Q27/100,0) -> 0 | AC54: =IF(ISNUMBER(R54),R54*G54*R27/100,0) -> 0 | AD54: =IF(ISNUMBER(S54),S54*H54*S27/100,0) -> 0 | AE54: =IF(ISNUMBER(T54),T54*I54*T27/100,0) -> 0 | AF54: =IF(ISNUMBER(U54),U54*J54*U27/100,0) -> 0 | AG54: =IF(ISNUMBER(V54),V54*K54*V27/100,0) -> 0
B55: W4 | C55: =4047*0.3048*C37*C9/1000 -> 0 | D55: =4047*0.3048*D37*D9/1000 -> 0 | E55: =4047*0.3048*E37*E9/1000 -> 0 | F55: =4047*0.3048*F37*F9/1000 -> 0 | G55: =4047*0.3048*G37*G9/1000 -> 0 | H55: =4047*0.3048*H37*H9/1000 -> 0 | I55: =4047*0.3048*I37*I9/1000 -> 0 | J55: =4047*0.3048*J37*J9/1000 -> 0 | K55: =4047*0.3048*K37*K9/1000 -> 0 | M55: W4 | N55: 0 | O55: 0 | P55: 0 | Q55: 0 | R55: 0 | S55: 0 | T55: 0 | U55: 0 | V55: 0 | X55: W4 | Y55: =IF(ISNUMBER(N55),N55*C55*N28/100,0) -> 0 | Z55: =IF(ISNUMBER(O55),O55*D55*O28/100,0) -> 0 | AA55: =IF(ISNUMBER(P55),P55*E55*P28/100,0) -> 0 | AB55: =IF(ISNUMBER(Q55),Q55*F55*Q28/100,0) -> 0 | AC55: =IF(ISNUMBER(R55),R55*G55*R28/100,0) -> 0 | AD55: =IF(ISNUMBER(S55),S55*H55*S28/100,0) -> 0 | AE55: =IF(ISNUMBER(T55),T55*I55*T28/100,0) -> 0 | AF55: =IF(ISNUMBER(U55),U55*J55*U28/100,0) -> 0 | AG55: =IF(ISNUMBER(V55),V55*K55*V28/100,0) -> 0
B56: W5 | C56: =4047*0.3048*C38*C9/1000 -> 0 | D56: =4047*0.3048*D38*D9/1000 -> 0 | E56: =4047*0.3048*E38*E9/1000 -> 0 | F56: =4047*0.3048*F38*F9/1000 -> 0 | G56: =4047*0.3048*G38*G9/1000 -> 0 | H56: =4047*0.3048*H38*H9/1000 -> 0 | I56: =4047*0.3048*I38*I9/1000 -> 0 | J56: =4047*0.3048*J38*J9/1000 -> 0 | K56: =4047*0.3048*K38*K9/1000 -> 0 | M56: W5 | N56: 0 | O56: 0 | P56: 0 | Q56: 0 | R56: 0 | S56: 0 | T56: 0 | U56: 0 | V56: 0 | X56: W5 | Y56: =IF(ISNUMBER(N56),N56*C56*N29/100,0) -> 0 | Z56: =IF(ISNUMBER(O56),O56*D56*O29/100,0) -> 0 | AA56: =IF(ISNUMBER(P56),P56*E56*P29/100,0) -> 0 | AB56: =IF(ISNUMBER(Q56),Q56*F56*Q29/100,0) -> 0 | AC56: =IF(ISNUMBER(R56),R56*G56*R29/100,0) -> 0 | AD56: =IF(ISNUMBER(S56),S56*H56*S29/100,0) -> 0 | AE56: =IF(ISNUMBER(T56),T56*I56*T29/100,0) -> 0 | AF56: =IF(ISNUMBER(U56),U56*J56*U29/100,0) -> 0 | AG56: =IF(ISNUMBER(V56),V56*K56*V29/100,0) -> 0
B59: 3.4. Total urban BOD load (kg) | M59: 3.4a. Selected urban BOD reduction efficiency | X59: 3.4b. Urban BOD reduction (kg)
B60: Landuse | C60: Commercial | D60: Industrial | E60: Institutional | F60: Transportation | G60: Multi-Family | H60: Single-Family | I60: Urban-Cultivated | J60: Vacant (developed) | K60: Open Space | M60: Landuse | N60: Commercial | O60: Industrial | P60: Institutional | Q60: Transportation | R60: Multi-Family | S60: Single-Family | T60: Urban-Cultivated | U60: Vacant (developed) | V60: Open Space | X60: Landuse | Y60: Commercial | Z60: Industrial | AA60: Institutional | AB60: Transportation | AC60: Multi-Family | AD60: Single-Family | AE60: Urban-Cultivated | AF60: Vacant (developed) | AG60: Open Space
B61: W1 | C61: =4047*0.3048*C34*C10/1000 -> 0 | D61: =4047*0.3048*D34*D10/1000 -> 0 | E61: =4047*0.3048*E34*E10/1000 -> 0 | F61: =4047*0.3048*F34*F10/1000 -> 0 | G61: =4047*0.3048*G34*G10/1000 -> 0 | H61: =4047*0.3048*H34*H10/1000 -> 0 | I61: =4047*0.3048*I34*I10/1000 -> 0 | J61: =4047*0.3048*J34*J10/1000 -> 0 | K61: =4047*0.3048*K34*K10/1000 -> 0 | M61: W1 | N61: 0 | O61: 0 | P61: 0 | Q61: 0 | R61: 0 | S61: 0 | T61: 0 | U61: 0 | V61: 0 | X61: W1 | Y61: =IF(ISNUMBER(N61),N61*C61*N25/100,0) -> 0 | Z61: =IF(ISNUMBER(O61),O61*D61*O25/100,0) -> 0 | AA61: =IF(ISNUMBER(P61),P61*E61*P25/100,0) -> 0 | AB61: =IF(ISNUMBER(Q61),Q61*F61*Q25/100,0) -> 0 | AC61: =IF(ISNUMBER(R61),R61*G61*R25/100,0) -> 0 | AD61: =IF(ISNUMBER(S61),S61*H61*S25/100,0) -> 0 | AE61: =IF(ISNUMBER(T61),T61*I61*T25/100,0) -> 0 | AF61: =IF(ISNUMBER(U61),U61*J61*U25/100,0) -> 0 | AG61: =IF(ISNUMBER(V61),V61*K61*V25/100,0) -> 0
B62: W2 | C62: =4047*0.3048*C35*C10/1000 -> 0 | D62: =4047*0.3048*D35*D10/1000 -> 0 | E62: =4047*0.3048*E35*E10/1000 -> 0 | F62: =4047*0.3048*F35*F10/1000 -> 0 | G62: =4047*0.3048*G35*G10/1000 -> 0 | H62: =4047*0.3048*H35*H10/1000 -> 0 | I62: =4047*0.3048*I35*I10/1000 -> 0 | J62: =4047*0.3048*J35*J10/1000 -> 0 | K62: =4047*0.3048*K35*K10/1000 -> 0 | M62: W2 | N62: 0 | O62: 0 | P62: 0 | Q62: 0 | R62: 0 | S62: 0 | T62: 0 | U62: 0 | V62: 0 | X62: W2 | Y62: =IF(ISNUMBER(N62),N62*C62*N26/100,0) -> 0 | Z62: =IF(ISNUMBER(O62),O62*D62*O26/100,0) -> 0 | AA62: =IF(ISNUMBER(P62),P62*E62*P26/100,0) -> 0 | AB62: =IF(ISNUMBER(Q62),Q62*F62*Q26/100,0) -> 0 | AC62: =IF(ISNUMBER(R62),R62*G62*R26/100,0) -> 0 | AD62: =IF(ISNUMBER(S62),S62*H62*S26/100,0) -> 0 | AE62: =IF(ISNUMBER(T62),T62*I62*T26/100,0) -> 0 | AF62: =IF(ISNUMBER(U62),U62*J62*U26/100,0) -> 0 | AG62: =IF(ISNUMBER(V62),V62*K62*V26/100,0) -> 0
B63: W3 | C63: =4047*0.3048*C36*C10/1000 -> 0 | D63: =4047*0.3048*D36*D10/1000 -> 0 | E63: =4047*0.3048*E36*E10/1000 -> 0 | F63: =4047*0.3048*F36*F10/1000 -> 0 | G63: =4047*0.3048*G36*G10/1000 -> 0 | H63: =4047*0.3048*H36*H10/1000 -> 0 | I63: =4047*0.3048*I36*I10/1000 -> 0 | J63: =4047*0.3048*J36*J10/1000 -> 0 | K63: =4047*0.3048*K36*K10/1000 -> 0 | M63: W3 | N63: 0 | O63: 0 | P63: 0 | Q63: 0 | R63: 0 | S63: 0 | T63: 0 | U63: 0 | V63: 0 | X63: W3 | Y63: =IF(ISNUMBER(N63),N63*C63*N27/100,0) -> 0 | Z63: =IF(ISNUMBER(O63),O63*D63*O27/100,0) -> 0 | AA63: =IF(ISNUMBER(P63),P63*E63*P27/100,0) -> 0 | AB63: =IF(ISNUMBER(Q63),Q63*F63*Q27/100,0) -> 0 | AC63: =IF(ISNUMBER(R63),R63*G63*R27/100,0) -> 0 | AD63: =IF(ISNUMBER(S63),S63*H63*S27/100,0) -> 0 | AE63: =IF(ISNUMBER(T63),T63*I63*T27/100,0) -> 0 | AF63: =IF(ISNUMBER(U63),U63*J63*U27/100,0) -> 0 | AG63: =IF(ISNUMBER(V63),V63*K63*V27/100,0) -> 0
B64: W4 | C64: =4047*0.3048*C37*C10/1000 -> 0 | D64: =4047*0.3048*D37*D10/1000 -> 0 | E64: =4047*0.3048*E37*E10/1000 -> 0 | F64: =4047*0.3048*F37*F10/1000 -> 0 | G64: =4047*0.3048*G37*G10/1000 -> 0 | H64: =4047*0.3048*H37*H10/1000 -> 0 | I64: =4047*0.3048*I37*I10/1000 -> 0 | J64: =4047*0.3048*J37*J10/1000 -> 0 | K64: =4047*0.3048*K37*K10/1000 -> 0 | M64: W4 | N64: 0 | O64: 0 | P64: 0 | Q64: 0 | R64: 0 | S64: 0 | T64: 0 | U64: 0 | V64: 0 | X64: W4 | Y64: =IF(ISNUMBER(N64),N64*C64*N28/100,0) -> 0 | Z64: =IF(ISNUMBER(O64),O64*D64*O28/100,0) -> 0 | AA64: =IF(ISNUMBER(P64),P64*E64*P28/100,0) -> 0 | AB64: =IF(ISNUMBER(Q64),Q64*F64*Q28/100,0) -> 0 | AC64: =IF(ISNUMBER(R64),R64*G64*R28/100,0) -> 0 | AD64: =IF(ISNUMBER(S64),S64*H64*S28/100,0) -> 0 | AE64: =IF(ISNUMBER(T64),T64*I64*T28/100,0) -> 0 | AF64: =IF(ISNUMBER(U64),U64*J64*U28/100,0) -> 0 | AG64: =IF(ISNUMBER(V64),V64*K64*V28/100,0) -> 0
B65: W5 | C65: =4047*0.3048*C38*C10/1000 -> 0 | D65: =4047*0.3048*D38*D10/1000 -> 0 | E65: =4047*0.3048*E38*E10/1000 -> 0 | F65: =4047*0.3048*F38*F10/1000 -> 0 | G65: =4047*0.3048*G38*G10/1000 -> 0 | H65: =4047*0.3048*H38*H10/1000 -> 0 | I65: =4047*0.3048*I38*I10/1000 -> 0 | J65: =4047*0.3048*J38*J10/1000 -> 0 | K65: =4047*0.3048*K38*K10/1000 -> 0 | M65: W5 | N65: 0 | O65: 0 | P65: 0 | Q65: 0 | R65: 0 | S65: 0 | T65: 0 | U65: 0 | V65: 0 | X65: W5 | Y65: =IF(ISNUMBER(N65),N65*C65*N29/100,0) -> 0 | Z65: =IF(ISNUMBER(O65),O65*D65*O29/100,0) -> 0 | AA65: =IF(ISNUMBER(P65),P65*E65*P29/100,0) -> 0 | AB65: =IF(ISNUMBER(Q65),Q65*F65*Q29/100,0) -> 0 | AC65: =IF(ISNUMBER(R65),R65*G65*R29/100,0) -> 0 | AD65: =IF(ISNUMBER(S65),S65*H65*S29/100,0) -> 0 | AE65: =IF(ISNUMBER(T65),T65*I65*T29/100,0) -> 0 | AF65: =IF(ISNUMBER(U65),U65*J65*U29/100,0) -> 0 | AG65: =IF(ISNUMBER(V65),V65*K65*V29/100,0) -> 0
B68: 3.5. Total urban TSS load (kg) | M68: 3.5a. Selected urban TSS reduction efficiency | X68: 3.5b. Urban TSS reduction (kg)
B69: Landuse | C69: Commercial | D69: Industrial | E69: Institutional | F69: Transportation | G69: Multi-Family | H69: Single-Family | I69: Urban-Cultivated | J69: Vacant (developed) | K69: Open Space | M69: Landuse | N69: Commercial | O69: Industrial | P69: Institutional | Q69: Transportation | R69: Multi-Family | S69: Single-Family | T69: Urban-Cultivated | U69: Vacant (developed) | V69: Open Space | X69: Landuse | Y69: Commercial | Z69: Industrial | AA69: Institutional | AB69: Transportation | AC69: Multi-Family | AD69: Single-Family | AE69: Urban-Cultivated | AF69: Vacant (developed) | AG69: Open Space
B70: W1 | C70: =4047*0.3048*C34*C11/1000 -> 0 | D70: =4047*0.3048*D34*D11/1000 -> 0 | E70: =4047*0.3048*E34*E11/1000 -> 0 | F70: =4047*0.3048*F34*F11/1000 -> 0 | G70: =4047*0.3048*G34*G11/1000 -> 0 | H70: =4047*0.3048*H34*H11/1000 -> 0 | I70: =4047*0.3048*I34*I11/1000 -> 0 | J70: =4047*0.3048*J34*J11/1000 -> 0 | K70: =4047*0.3048*K34*K11/1000 -> 0 | M70: W1 | N70: 0 | O70: 0 | P70: 0 | Q70: 0 | R70: 0 | S70: 0 | T70: 0 | U70: 0 | V70: 0 | X70: W1 | Y70: =IF(ISNUMBER(N70),N70*C70*N25/100,0) -> 0 | Z70: =IF(ISNUMBER(O70),O70*D70*O25/100,0) -> 0 | AA70: =IF(ISNUMBER(P70),P70*E70*P25/100,0) -> 0 | AB70: =IF(ISNUMBER(Q70),Q70*F70*Q25/100,0) -> 0 | AC70: =IF(ISNUMBER(R70),R70*G70*R25/100,0) -> 0 | AD70: =IF(ISNUMBER(S70),S70*H70*S25/100,0) -> 0 | AE70: =IF(ISNUMBER(T70),T70*I70*T25/100,0) -> 0 | AF70: =IF(ISNUMBER(U70),U70*J70*U25/100,0) -> 0 | AG70: =IF(ISNUMBER(V70),V70*K70*V25/100,0) -> 0
B71: W2 | C71: =4047*0.3048*C35*C11/1000 -> 0 | D71: =4047*0.3048*D35*D11/1000 -> 0 | E71: =4047*0.3048*E35*E11/1000 -> 0 | F71: =4047*0.3048*F35*F11/1000 -> 0 | G71: =4047*0.3048*G35*G11/1000 -> 0 | H71: =4047*0.3048*H35*H11/1000 -> 0 | I71: =4047*0.3048*I35*I11/1000 -> 0 | J71: =4047*0.3048*J35*J11/1000 -> 0 | K71: =4047*0.3048*K35*K11/1000 -> 0 | M71: W2 | N71: 0 | O71: 0 | P71: 0 | Q71: 0 | R71: 0 | S71: 0 | T71: 0 | U71: 0 | V71: 0 | X71: W2 | Y71: =IF(ISNUMBER(N71),N71*C71*N26/100,0) -> 0 | Z71: =IF(ISNUMBER(O71),O71*D71*O26/100,0) -> 0 | AA71: =IF(ISNUMBER(P71),P71*E71*P26/100,0) -> 0 | AB71: =IF(ISNUMBER(Q71),Q71*F71*Q26/100,0) -> 0 | AC71: =IF(ISNUMBER(R71),R71*G71*R26/100,0) -> 0 | AD71: =IF(ISNUMBER(S71),S71*H71*S26/100,0) -> 0 | AE71: =IF(ISNUMBER(T71),T71*I71*T26/100,0) -> 0 | AF71: =IF(ISNUMBER(U71),U71*J71*U26/100,0) -> 0 | AG71: =IF(ISNUMBER(V71),V71*K71*V26/100,0) -> 0
B72: W3 | C72: =4047*0.3048*C36*C11/1000 -> 0 | D72: =4047*0.3048*D36*D11/1000 -> 0 | E72: =4047*0.3048*E36*E11/1000 -> 0 | F72: =4047*0.3048*F36*F11/1000 -> 0 | G72: =4047*0.3048*G36*G11/1000 -> 0 | H72: =4047*0.3048*H36*H11/1000 -> 0 | I72: =4047*0.3048*I36*I11/1000 -> 0 | J72: =4047*0.3048*J36*J11/1000 -> 0 | K72: =4047*0.3048*K36*K11/1000 -> 0 | M72: W3 | N72: 0 | O72: 0 | P72: 0 | Q72: 0 | R72: 0 | S72: 0 | T72: 0 | U72: 0 | V72: 0 | X72: W3 | Y72: =IF(ISNUMBER(N72),N72*C72*N27/100,0) -> 0 | Z72: =IF(ISNUMBER(O72),O72*D72*O27/100,0) -> 0 | AA72: =IF(ISNUMBER(P72),P72*E72*P27/100,0) -> 0 | AB72: =IF(ISNUMBER(Q72),Q72*F72*Q27/100,0) -> 0 | AC72: =IF(ISNUMBER(R72),R72*G72*R27/100,0) -> 0 | AD72: =IF(ISNUMBER(S72),S72*H72*S27/100,0) -> 0 | AE72: =IF(ISNUMBER(T72),T72*I72*T27/100,0) -> 0 | AF72: =IF(ISNUMBER(U72),U72*J72*U27/100,0) -> 0 | AG72: =IF(ISNUMBER(V72),V72*K72*V27/100,0) -> 0
B73: W4 | C73: =4047*0.3048*C37*C11/1000 -> 0 | D73: =4047*0.3048*D37*D11/1000 -> 0 | E73: =4047*0.3048*E37*E11/1000 -> 0 | F73: =4047*0.3048*F37*F11/1000 -> 0 | G73: =4047*0.3048*G37*G11/1000 -> 0 | H73: =4047*0.3048*H37*H11/1000 -> 0 | I73: =4047*0.3048*I37*I11/1000 -> 0 | J73: =4047*0.3048*J37*J11/1000 -> 0 | K73: =4047*0.3048*K37*K11/1000 -> 0 | M73: W4 | N73: 0 | O73: 0 | P73: 0 | Q73: 0 | R73: 0 | S73: 0 | T73: 0 | U73: 0 | V73: 0 | X73: W4 | Y73: =IF(ISNUMBER(N73),N73*C73*N28/100,0) -> 0 | Z73: =IF(ISNUMBER(O73),O73*D73*O28/100,0) -> 0 | AA73: =IF(ISNUMBER(P73),P73*E73*P28/100,0) -> 0 | AB73: =IF(ISNUMBER(Q73),Q73*F73*Q28/100,0) -> 0 | AC73: =IF(ISNUMBER(R73),R73*G73*R28/100,0) -> 0 | AD73: =IF(ISNUMBER(S73),S73*H73*S28/100,0) -> 0 | AE73: =IF(ISNUMBER(T73),T73*I73*T28/100,0) -> 0 | AF73: =IF(ISNUMBER(U73),U73*J73*U28/100,0) -> 0 | AG73: =IF(ISNUMBER(V73),V73*K73*V28/100,0) -> 0
B74: W5 | C74: =4047*0.3048*C38*C11/1000 -> 0 | D74: =4047*0.3048*D38*D11/1000 -> 0 | E74: =4047*0.3048*E38*E11/1000 -> 0 | F74: =4047*0.3048*F38*F11/1000 -> 0 | G74: =4047*0.3048*G38*G11/1000 -> 0 | H74: =4047*0.3048*H38*H11/1000 -> 0 | I74: =4047*0.3048*I38*I11/1000 -> 0 | J74: =4047*0.3048*J38*J11/1000 -> 0 | K74: =4047*0.3048*K38*K11/1000 -> 0 | M74: W5 | N74: 0 | O74: 0 | P74: 0 | Q74: 0 | R74: 0 | S74: 0 | T74: 0 | U74: 0 | V74: 0 | X74: W5 | Y74: =IF(ISNUMBER(N74),N74*C74*N29/100,0) -> 0 | Z74: =IF(ISNUMBER(O74),O74*D74*O29/100,0) -> 0 | AA74: =IF(ISNUMBER(P74),P74*E74*P29/100,0) -> 0 | AB74: =IF(ISNUMBER(Q74),Q74*F74*Q29/100,0) -> 0 | AC74: =IF(ISNUMBER(R74),R74*G74*R29/100,0) -> 0 | AD74: =IF(ISNUMBER(S74),S74*H74*S29/100,0) -> 0 | AE74: =IF(ISNUMBER(T74),T74*I74*T29/100,0) -> 0 | AF74: =IF(ISNUMBER(U74),U74*J74*U29/100,0) -> 0 | AG74: =IF(ISNUMBER(V74),V74*K74*V29/100,0) -> 0
B77: 4. Pollutant loads from urban in lb/year
B78: Watershed | C78: Pre-BMP Load | G78: Load Reduction | K78: After BMP Load
C79: N | D79: P | E79: BOD | F79: TSS | G79: N | H79: P | I79: BOD | J79: TSS | K79: N | L79: P | M79: BOD | N79: TSS
B80: W1 | C80: =2.203*SUM(C43:K43) -> 0 | D80: =2.203*SUM(C52:K52) -> 0 | E80: =2.203*SUM(C61:K61) -> 0 | F80: =2.203*SUM(C70:K70) -> 0 | G80: =2.203*SUM(Y43:AG43) -> 0 | H80: =2.203*SUM(Y52:AG52) -> 0 | I80: =2.203*SUM(Y61:AG61) -> 0 | J80: =2.203*SUM(Y70:AG70) -> 0 | K80: =C80-G80 -> 0 | L80: =D80-H80 -> 0 | M80: =E80-I80 -> 0 | N80: =F80-J80 -> 0
B81: W2 | C81: =2.203*SUM(C44:K44) -> 0 | D81: =2.203*SUM(C53:K53) -> 0 | E81: =2.203*SUM(C62:K62) -> 0 | F81: =2.203*SUM(C71:K71) -> 0 | G81: =2.203*SUM(Y44:AG44) -> 0 | H81: =2.203*SUM(Y53:AG53) -> 0 | I81: =2.203*SUM(Y62:AG62) -> 0 | J81: =2.203*SUM(Y71:AG71) -> 0 | K81: =C81-G81 -> 0 | L81: =D81-H81 -> 0 | M81: =E81-I81 -> 0 | N81: =F81-J81 -> 0
B82: W3 | C82: =2.203*SUM(C45:K45) -> 0 | D82: =2.203*SUM(C54:K54) -> 0 | E82: =2.203*SUM(C63:K63) -> 0 | F82: =2.203*SUM(C72:K72) -> 0 | G82: =2.203*SUM(Y45:AG45) -> 0 | H82: =2.203*SUM(Y54:AG54) -> 0 | I82: =2.203*SUM(Y63:AG63) -> 0 | J82: =2.203*SUM(Y72:AG72) -> 0 | K82: =C82-G82 -> 0 | L82: =D82-H82 -> 0 | M82: =E82-I82 -> 0 | N82: =F82-J82 -> 0
B83: W4 | C83: =2.203*SUM(C46:K46) -> 0 | D83: =2.203*SUM(C55:K55) -> 0 | E83: =2.203*SUM(C64:K64) -> 0 | F83: =2.203*SUM(C73:K73) -> 0 | G83: =2.203*SUM(Y46:AG46) -> 0 | H83: =2.203*SUM(Y55:AG55) -> 0 | I83: =2.203*SUM(Y64:AG64) -> 0 | J83: =2.203*SUM(Y73:AG73) -> 0 | K83: =C83-G83 -> 0 | L83: =D83-H83 -> 0 | M83: =E83-I83 -> 0 | N83: =F83-J83 -> 0
B84: W5 | C84: =2.203*SUM(C47:K47) -> 0 | D84: =2.203*SUM(C56:K56) -> 0 | E84: =2.203*SUM(C65:K65) -> 0 | F84: =2.203*SUM(C74:K74) -> 0 | G84: =2.203*SUM(Y47:AG47) -> 0 | H84: =2.203*SUM(Y56:AG56) -> 0 | I84: =2.203*SUM(Y65:AG65) -> 0 | J84: =2.203*SUM(Y74:AG74) -> 0 | K84: =C84-G84 -> 0 | L84: =D84-H84 -> 0 | M84: =E84-I84 -> 0 | N84: =F84-J84 -> 0

Sheet Feedlots (hidden)
B1: Feedlot Pollution | Z1: 0-24%
B2: Notes: An animal lot refers to an open lot or combination of open lots intended for confined feeding, breeding, raising or holding animals. | Z2: 25-49%
B3: It is specifically designed as a confinement area in which manure accumulates or where the concentration of animals is such that vegetation cannot be maintained. | Z3: 50-74%
B4: The purpose of these calculations is to represent nitrogen (N), phosphorus (P), and Biological Oxygen Demand (BOD) reductions after an animal waste BMP is installed. | Z4: 75-100%
B5: This method has two assumptions: 1) the feedlot is adjacent to a receiving hydrological system without any buffering areas; and 2) installing the
B6: animal waste BMP will reduce pollutants from the lot from reaching the hydrologic system.
B7: Feedlots that cannot show impact to the hydrologic system being protected should not be evaluated with this computation.
B10: 1. Select a range of paved percentage for feedlots
B11: Watershed | C11: Contributing area (ac.) | D11: Percent paved | E11: Average event rainfall (inch) | F11: Feedlot BMP efficiency on N | G11: Feedlot BMP efficiency on P | H11: Feedlot BMP efficiency on BOD | I11: Feedlot pervious area (ac.)
B12: W1 | C12: ='Land&Rain'!M8 -> 0 | D12: =Input!I18 -> 0-24% | E12: ='Land&Rain'!U8 -> 1.072634887 | F12: =IF(BMPs!C44="ND",0,BMPs!C44) -> 0 | G12: =IF(BMPs!D44="ND",0,BMPs!D44) -> 0 | H12: =IF(BMPs!E44="ND",0,BMPs!E44) -> 0 | I12: =C12*IF(D12="0-24%",0.125,IF(D12="25-49%",0.375,IF(D12="50-74%",0.625,IF(D12="75-100%",0.875,0.5)))) -> 0
B13: W2 | C13: ='Land&Rain'!M9 -> 0 | D13: =Input!I19 -> 0-24% | E13: ='Land&Rain'!U9 -> 1.072634887 | F13: =IF(BMPs!C45="ND",0,BMPs!C45) -> 0 | G13: =IF(BMPs!D45="ND",0,BMPs!D45) -> 0 | H13: =IF(BMPs!E45="ND",0,BMPs!E45) -> 0 | I13: =C13*IF(D13="0-24%",0.125,IF(D13="25-49%",0.375,IF(D13="50-74%",0.625,IF(D13="75-100%",0.875,0.5)))) -> 0
B14: W3 | C14: ='Land&Rain'!M10 -> 0 | D14: =Input!I20 -> 0-24% | E14: ='Land&Rain'!U10 -> 1.072634887 | F14: =IF(BMPs!C46="ND",0,BMPs!C46) -> 0 | G14: =IF(BMPs!D46="ND",0,BMPs!D46) -> 0 | H14: =IF(BMPs!E46="ND",0,BMPs!E46) -> 0 | I14: =C14*IF(D14="0-24%",0.125,IF(D14="25-49%",0.375,IF(D14="50-74%",0.625,IF(D14="75-100%",0.875,0.5)))) -> 0
B15: W4 | C15: ='Land&Rain'!M11 -> 0 | D15: =Input!I21 -> 0-24% | E15: ='Land&Rain'!U11 -> 1.072634887 | F15: =IF(BMPs!C47="ND",0,BMPs!C47) -> 0 | G15: =IF(BMPs!D47="ND",0,BMPs!D47) -> 0 | H15: =IF(BMPs!E47="ND",0,BMPs!E47) -> 0 | I15: =C15*IF(D15="0-24%",0.125,IF(D15="25-49%",0.375,IF(D15="50-74%",0.625,IF(D15="75-100%",0.875,0.5)))) -> 0
B16: W5 | C16: ='Land&Rain'!M12 -> 0 | D16: =Input!I22 -> 0-24% | E16: ='Land&Rain'!U12 -> 1.072634887 | F16: =IF(BMPs!C48="ND",0,BMPs!C48) -> 0 | G16: =IF(BMPs!D48="ND",0,BMPs!D48) -> 0 | H16: =IF(BMPs!E48="ND",0,BMPs!E48) -> 0 | I16: =C16*IF(D16="0-24%",0.125,IF(D16="25-49%",0.375,IF(D16="50-74%",0.625,IF(D16="75-100%",0.875,0.5)))) -> 0
B19: 2. Agricultural animals
B20: Animal | C20: Beef Cattle (Slaughter Steer) | D20: Young Beef | E20: Dairy Cattle | F20: Young Dairy Stock | G20: Swine | H20: Feeder Pig | I20: Sheep | J20: Horse | K20: Chicken | L20: Turkey | M20: Duck
B21: Design Weight (lbs) | C21: =Reference!$C$5 -> 1000 | D21: 500 | E21: =Reference!$C$6 -> 1400 | F21: 500 | G21: =Reference!$C$7 -> 200 | H21: 50 | I21: =Reference!$C$8 -> 100 | J21: =Reference!$C$9 -> 1000 | K21: =Reference!$C$10 -> 4 | L21: =Reference!$C$11 -> 10 | M21: =Reference!$C$12 -> 4
B22: W1 | C22: =Animal!C10 -> 0 | D22: 0 | E22: =Animal!D10 -> 0 | F22: 0 | G22: =Animal!E10 -> 0 | H22: 0 | I22: =Animal!F10 -> 0 | J22: =Animal!G10 -> 0 | K22: =Animal!H10 -> 0 | L22: =Animal!I10 -> 0 | M22: =Animal!J10 -> 0
B23: W2 | C23: =Animal!C11 -> 0 | D23: 0 | E23: =Animal!D11 -> 0 | F23: 0 | G23: =Animal!E11 -> 0 | H23: 0 | I23: =Animal!F11 -> 0 | J23: =Animal!G11 -> 0 | K23: =Animal!H11 -> 0 | L23: =Animal!I11 -> 0 | M23: =Animal!J11 -> 0
B24: W3 | C24: =Animal!C12 -> 0 | D24: 0 | E24: =Animal!D12 -> 0 | F24: 0 | G24: =Animal!E12 -> 0 | H24: 0 | I24: =Animal!F12 -> 0 | J24: =Animal!G12 -> 0 | K24: =Animal!H12 -> 0 | L24: =Animal!I12 -> 0 | M24: =Animal!J12 -> 0
B25: W4 | C25: =Animal!C13 -> 0 | D25: 0 | E25: =Animal!D13 -> 0 | F25: 0 | G25: =Animal!E13 -> 0 | H25: 0 | I25: =Animal!F13 -> 0 | J25: =Animal!G13 -> 0 | K25: =Animal!H13 -> 0 | L25: =Animal!I13 -> 0 | M25: =Animal!J13 -> 0
B26: W5 | C26: =Animal!C14 -> 0 | D26: 0 | E26: =Animal!D14 -> 0 | F26: 0 | G26: =Animal!E14 -> 0 | H26: 0 | I26: =Animal!F14 -> 0 | J26: =Animal!G14 -> 0 | K26: =Animal!H14 -> 0 | L26: =Animal!I14 -> 0 | M26: =Animal!J14 -> 0
B28: 3. Load from feedlot (lb/yr) (1 ac x in x mg/l = 0.227 lb)
B29: Watershed | C29: N load | D29: P Load | E29: BOD load | F29: N Reduction | G29: P Reduction | H29: BOD Reduction
B30: W1 | C30: =IF(C12<>0,'Land&Rain'!S8*'Land&Rain'!S6*C55*C42*0.227,0) -> 0 | D30: =IF(C12<>0,'Land&Rain'!S8*'Land&Rain'!S6*C56*C42*0.227,0) -> 0 | E30: =IF(C12<>0,'Land&Rain'!S8*'Land&Rain'!S6*C57*C42*0.227,0) -> 0 | F30: =IF(F12<>0,C30*F12,0) -> 0 | G30: =IF(G12<>0,D30*G12,0) -> 0 | H30: =IF(H12<>0,E30*H12,0) -> 0
B31: W2 | C31: =IF(C13<>0,'Land&Rain'!S9*'Land&Rain'!S6*D55*D42*0.227,0) -> 0 | D31: =IF(C13<>0,'Land&Rain'!S9*'Land&Rain'!S6*D56*D42*0.227,0) -> 0 | E31: =IF(C13<>0,'Land&Rain'!S9*'Land&Rain'!S6*D57*D42*0.227,0) -> 0 | F31: =IF(F13<>0,C31*F13,0) -> 0 | G31: =IF(G13<>0,D31*G13,0) -> 0 | H31: =IF(H13<>0,E31*H13,0) -> 0
B32: W3 | C32: =IF(C14<>0,'Land&Rain'!S10*'Land&Rain'!S6*E55*E42*0.227,0) -> 0 | D32: =IF(C14<>0,'Land&Rain'!S10*'Land&Rain'!S6*E56*E42*0.227,0) -> 0 | E32: =IF(C14<>0,'Land&Rain'!S10*'Land&Rain'!S6*E57*E42*0.227,0) -> 0 | F32: =IF(F14<>0,C32*F14,0) -> 0 | G32: =IF(G14<>0,D32*G14,0) -> 0 | H32: =IF(H14<>0,E32*H14,0) -> 0
B33: W4 | C33: =IF(C15<>0,'Land&Rain'!S11*'Land&Rain'!S6*F55*F42*0.227,0) -> 0 | D33: =IF(C15<>0,'Land&Rain'!S11*'Land&Rain'!S6*F56*F42*0.227,0) -> 0 | E33: =IF(C15<>0,'Land&Rain'!S11*'Land&Rain'!S6*F57*F42*0.227,0) -> 0 | F33: =IF(F15<>0,C33*F15,0) -> 0 | G33: =IF(G15<>0,D33*G15,0) -> 0 | H33: =IF(H15<>0,E33*H15,0) -> 0
B34: W5 | C34: =IF(C16<>0,'Land&Rain'!S12*'Land&Rain'!S6*G55*G42*0.227,0) -> 0 | D34: =IF(C16<>0,'Land&Rain'!S12*'Land&Rain'!S6*G56*G42*0.227,0) -> 0 | E34: =IF(C16<>0,'Land&Rain'!S12*'Land&Rain'!S6*G57*G42*0.227,0) -> 0 | F34: =IF(F16<>0,C34*F16,0) -> 0 | G34: =IF(G16<>0,D34*G16,0) -> 0 | H34: =IF(H16<>0,E34*H16,0) -> 0
B37: Feedlot load calculation
C38: W1 | D38: W2 | E38: W3 | F38: W4 | G38: W5
B39: CN | C39: =IF(D12="0-24%",91,IF(D12="25-49%",92,IF(D12="50-74%",93,IF(D12="75-100%",94,91)))) -> 91 | D39: =IF(D13="0-24%",91,IF(D13="25-49%",92,IF(D13="50-74%",93,IF(D13="75-100%",94,91)))) -> 91 | E39: =IF(D14="0-24%",91,IF(D14="25-49%",92,IF(D14="50-74%",93,IF(D14="75-100%",94,91)))) -> 91 | F39: =IF(D15="0-24%",91,IF(D15="25-49%",92,IF(D15="50-74%",93,IF(D15="75-100%",94,91)))) -> 91 | G39: =IF(D16="0-24%",91,IF(D16="25-49%",92,IF(D16="50-74%",93,IF(D16="75-100%",94,91)))) -> 91
B40: S | C40: =(1000/C39)-10 -> 0.989010989 | D40: =(1000/D39)-10 -> 0.989010989 | E40: =(1000/E39)-10 -> 0.989010989 | F40: =(1000/F39)-10 -> 0.989010989 | G40: =(1000/G39)-10 -> 0.989010989
B41: Q | C41: =(($E12-0.2*(C40))^2)/($E12+(0.8*C40)) -> 0.4106203987 | D41: =(($E13-0.2*(D40))^2)/($E13+(0.8*D40)) -> 0.4106203987 | E41: =(($E14-0.2*(E40))^2)/($E14+(0.8*E40)) -> 0.4106203987 | F41: =(($E15-0.2*(F40))^2)/($E15+(0.8*F40)) -> 0.4106203987 | G41: =(($E16-0.2*(G40))^2)/($E16+(0.8*G40)) -> 0.4106203987
B42: V | C42: =((C41*C12)) -> 0 | D42: =((D41*C13)) -> 0 | E42: =((E41*C14)) -> 0 | F42: =((F41*C15)) -> 0 | G42: =((G41*C16)) -> 0
B43: EAU-N | C43: =C22*C63+D22*C64+E22*C65+F22*C66+G22*C67+H22*C68+I22*C69+J22*C70+K22*C71+L22*C72+M22*C73 -> 0 | D43: =C23*C63+D23*C64+E23*C65+F23*C66+G23*C67+H23*C68+I23*C69+J23*C70+K23*C71+L23*C72+M23*C73 -> 0 | E43: =C24*C63+D24*C64+E24*C65+F24*C66+G24*C67+H24*C68+I24*C69+J24*C70+K24*C71+L24*C72+M24*C73 -> 0 | F43: =C25*C63+D25*C64+E25*C65+F25*C66+G25*C67+H25*C68+I25*C69+J25*C70+K25*C71+L25*C72+M25*C73 -> 0 | G43: =C26*C63+D26*C64+E26*C65+F26*C66+G26*C67+H26*C68+I26*C69+J26*C70+K26*C71+L26*C72+M26*C73 -> 0
B44: EAU-P | C44: =C22*D63+D22*D64+E22*D65+F22*D66+G22*D67+H22*D68+I22*D69+J22*D70+K22*D71+L22*D72+M22*D73 -> 0 | D44: =C23*D63+D23*D64+E23*D65+F23*D66+G23*D67+H23*D68+I23*D69+J23*D70+K23*D71+L23*D72+M23*D73 -> 0 | E44: =C24*D63+D24*D64+E24*D65+F24*D66+G24*D67+H24*D68+I24*D69+J24*D70+K24*D71+L24*D72+M24*D73 -> 0 | F44: =C25*D63+D25*D64+E25*D65+F25*D66+G25*D67+H25*D68+I25*D69+J25*D70+K25*D71+L25*D72+M25*D73 -> 0 | G44: =C26*D63+D26*D64+E26*D65+F26*D66+G26*D67+H26*D68+I26*D69+J26*D70+K26*D71+L26*D72+M26*D73 -> 0
B45: EAU-BOD | C45: =C22*E63+D22*E64+E22*E65+F22*E66+G22*E67+H22*E68+I22*E69+J22*E70+K22*E71+L22*E72+M22*E73 -> 0 | D45: =C23*E63+D23*E64+E23*E65+F23*E66+G23*E67+H23*E68+I23*E69+J23*E70+K23*E71+L23*E72+M23*E73 -> 0 | E45: =C24*E63+D24*E64+E24*E65+F24*E66+G24*E67+H24*E68+I24*E69+J24*E70+K24*E71+L24*E72+M24*E73 -> 0 | F45: =C25*E63+D25*E64+E25*E65+F25*E66+G25*E67+H25*E68+I25*E69+J25*E70+K25*E71+L25*E72+M25*E73 -> 0 | G45: =C26*E63+D26*E64+E26*E65+F26*E66+G26*E67+H26*E68+I26*E69+J26*E70+K26*E71+L26*E72+M26*E73 -> 0
B46: EAU-COD | C46: =C22*F63+D22*F64+E22*F65+F22*F66+G22*F67+H22*F68+I22*F69+J22*F70+K22*F71+L22*F72+M22*F73 -> 0 | D46: =C23*F63+D23*F64+E23*F65+F23*F66+G23*F67+H23*F68+I23*F69+J23*F70+K23*F71+L23*F72+M23*F73 -> 0 | E46: =C24*F63+D24*F64+E24*F65+F24*F66+G24*F67+H24*F68+I24*F69+J24*F70+K24*F71+L24*F72+M24*F73 -> 0 | F46: =C25*F63+D25*F64+E25*F65+F25*F66+G25*F67+H25*F68+I25*F69+J25*F70+K25*F71+L25*F72+M25*F73 -> 0 | G46: =C26*F63+D26*F64+E26*F65+F26*F66+G26*F67+H26*F68+I26*F69+J26*F70+K26*F71+L26*F72+M26*F73 -> 0
B47: AUD-N | C47: =IF(C12>0,C43/C12,0) -> 0 | D47: =IF(C13>0,D43/C13,0) -> 0 | E47: =IF(C14>0,E43/C14,0) -> 0 | F47: =IF(C15>0,F43/C15,0) -> 0 | G47: =IF(C16>0,G43/C16,0) -> 0
B48: AUD-P | C48: =IF(C12>0,C44/C12,0) -> 0 | D48: =IF(C13>0,D44/C13,0) -> 0 | E48: =IF(C14>0,E44/C14,0) -> 0 | F48: =IF(C15>0,F44/C15,0) -> 0 | G48: =IF(C16>0,G44/C16,0) -> 0
B49: AUD-BOD | C49: =IF(C12>0,C45/C12,0) -> 0 | D49: =IF(C13>0,D45/C13,0) -> 0 | E49: =IF(C14>0,E45/C14,0) -> 0 | F49: =IF(C15>0,F45/C15,0) -> 0 | G49: =IF(C16>0,G45/C16,0) -> 0
B50: AUD-COD | C50: =IF(C12>0,C46/C12,0) -> 0 | D50: =IF(C13>0,D46/C13,0) -> 0 | E50: =IF(C14>0,E46/C14,0) -> 0 | F50: =IF(C15>0,F46/C15,0) -> 0 | G50: =IF(C16>0,G46/C16,0) -> 0
B51: PACK-N | C51: =(IF(C47<100,C47,100))/100 -> 0 | D51: =(IF(D47<100,D47,100))/100 -> 0 | E51: =(IF(E47<100,E47,100))/100 -> 0 | F51: =(IF(F47<100,F47,100))/100 -> 0 | G51: =(IF(G47<100,G47,100))/100 -> 0
B52: PACK-P | C52: =(IF(C48<100,C48,100))/100 -> 0 | D52: =(IF(D48<100,D48,100))/100 -> 0 | E52: =(IF(E48<100,E48,100))/100 -> 0 | F52: =(IF(F48<100,F48,100))/100 -> 0 | G52: =(IF(G48<100,G48,100))/100 -> 0
B53: PACK-BOD | C53: =(IF(C49<100,C49,100))/100 -> 0 | D53: =(IF(D49<100,D49,100))/100 -> 0 | E53: =(IF(E49<100,E49,100))/100 -> 0 | F53: =(IF(F49<100,F49,100))/100 -> 0 | G53: =(IF(G49<100,G49,100))/100 -> 0
B54: PACK-COD | C54: =(IF(C50<100,C50,100))/100 -> 0 | D54: =(IF(D50<100,D50,100))/100 -> 0 | E54: =(IF(E50<100,E50,100))/100 -> 0 | F54: =(IF(F50<100,F50,100))/100 -> 0 | G54: =(IF(G50<100,G50,100))/100 -> 0
B55: N-CONC mg/l | C55: =C51*1500 -> 0 | D55: =D51*1500 -> 0 | E55: =E51*1500 -> 0 | F55: =F51*1500 -> 0 | G55: =G51*1500 -> 0
B56: P-CONC mg/l | C56: =C52*300 -> 0 | D56: =D52*300 -> 0 | E56: =E52*300 -> 0 | F56: =F52*300 -> 0 | G56: =G52*300 -> 0
B57: BOD-CONC mg/l | C57: =C53*2000 -> 0 | D57: =D53*2000 -> 0 | E57: =E53*2000 -> 0 | F57: =F53*2000 -> 0 | G57: =G53*2000 -> 0
B58: COD-CONC mg/l | C58: =C54*4500 -> 0 | D58: =D54*4500 -> 0 | E58: =E54*4500 -> 0 | F58: =F54*4500 -> 0 | G58: =G54*4500 -> 0
B61: Ratio of nutrients produced by animals relative to 1000 lb of slaughter steer
B62: Animal | C62: N | D62: P | E62: BOD | F62: COD
B63: Slaughter Steer | C63: 1 | D63: 1 | E63: 1 | F63: 1
B64: Young Beef | C64: 0.5 | D64: 0.51 | E64: 0.5 | F64: 0.5
B65: Dairy Cow | C65: 1.853 | D65: 0.92 | E65: 1.4 | F65: 1.96
B66: Young Dairy Stock | C66: 0.662 | D66: 0.33 | E66: 0.5 | F66: 0.7
B67: Swine | C67: 0.306 | D67: 0.27 | E67: 0.388 | F67: 0.17
B68: Feeder Pig | C68: 0.076 | D68: 0.07 | E68: 0.097 | F68: 0.04
B69: Sheep | C69: 0.124 | D69: 0.06 | E69: 0.075 | F69: 0.18
B70: Horse | C70: 0.882 | D70: 0.42 | E70: 1.063 | F70: 0.42
B71: Chicken | C71: 0.01 | D71: 0.01 | E71: 0.008 | F71: 0.01
B72: Turkey | C72: 0.018 | D72: 0.03 | E72: 0.013 | F72: 0.02
B73: Duck | C73: 0.018 | D73: 0.01 | E73: 0.011 | F73: 0.01

Sheet Septic (hidden)
B1: Septic Nutrient Loads
B2: The direct contribution of nutrients to a stream is mainly from failing septic systems.
B3: Required input for calculating septic nutrient load are number of systems, failure rate, loading rate (lb/hr) and flow (cfs).
B4: Assumption: failing septic systems are distributed evenly across the watershed based on land area.
B7: 1. Nutrient load from septic systems
B8: Watershed | C8: No. of Septic Systems | D8: Population per Septic System | E8: Septic Failure Rate, % | F8: Failing Septic Systems | G8: Population on Failing Septic | H8: Direct Discharge Population | I8: Failing Septic Flow, gal/day | J8: Direct Wastewater Flow | K8: Failing Septic Flow, l/hr | L8: Direct Wastewater Flow, l/hr, | M8: N Load, lb/hr | N8: P Load, lb/hr | O8: BOD, lb/hr | P8: Reduction: Direct Wastewater Flow, l/hr | Q8: Reduction: N Load, lb/hr | R8: Reduction: P Load, lb/hr | S8: Reduction: BOD Load, lb/hr
B9: W1 | C9: =Input!C37 -> 0 | D9: =Input!D37 -> 2.43 | E9: =Input!E37 -> 2 | F9: =C9*E9/100 -> 0 | G9: =C9*D9*E9/100 -> 0 | H9: =Input!F37 -> 0 | I9: =G9*E20 -> 0 | J9: =H9*I20 -> 0 | K9: =I9*3.785412/24 -> 0 | L9: =J9*3.785412/24 -> 0 | M9: =(K9*E17+L9*I17)/453592.4 -> 0 | N9: =(K9*E18+L9*I18)/453592.4 -> 0 | O9: =(K9*E19+L9*I19)/453592.4 -> 0 | P9: =Input!G37*L9/100 -> 0 | Q9: =I17*P9/453592.4 -> 0 | R9: =I18*P9/453592.4 -> 0 | S9: =I19*P9/453592.4 -> 0
B10: W2 | C10: =Input!C38 -> 0 | D10: =Input!D38 -> 2.43 | E10: =Input!E38 -> 2 | F10: =C10*E10/100 -> 0 | G10: =C10*D10*E10/100 -> 0 | H10: =Input!F38 -> 0 | I10: =G10*E20 -> 0 | J10: =H10*I20 -> 0 | K10: =I10*3.785412/24 -> 0 | L10: =J10*3.785412/24 -> 0 | M10: =(K10*E17+L10*I17)/453592.4 -> 0 | N10: =(K10*E18+L10*I18)/453592.4 -> 0 | O10: =(K10*E19+L10*I19)/453592.4 -> 0 | P10: =Input!G38*L10/100 -> 0 | Q10: =I17*P10/453592.4 -> 0 | R10: =I18*P10/453592.4 -> 0 | S10: =I19*P10/453592.4 -> 0
B11: W3 | C11: =Input!C39 -> 0 | D11: =Input!D39 -> 2.43 | E11: =Input!E39 -> 2 | F11: =C11*E11/100 -> 0 | G11: =C11*D11*E11/100 -> 0 | H11: =Input!F39 -> 0 | I11: =G11*E20 -> 0 | J11: =H11*I20 -> 0 | K11: =I11*3.785412/24 -> 0 | L11: =J11*3.785412/24 -> 0 | M11: =(K11*E17+L11*I17)/453592.4 -> 0 | N11: =(K11*E18+L11*I18)/453592.4 -> 0 | O11: =(K11*E19+L11*I19)/453592.4 -> 0 | P11: =Input!G39*L11/100 -> 0 | Q11: =I17*P11/453592.4 -> 0 | R11: =I18*P11/453592.4 -> 0 | S11: =I19*P11/453592.4 -> 0
B12: W4 | C12: =Input!C40 -> 0 | D12: =Input!D40 -> 2.43 | E12: =Input!E40 -> 2 | F12: =C12*E12/100 -> 0 | G12: =C12*D12*E12/100 -> 0 | H12: =Input!F40 -> 0 | I12: =G12*E20 -> 0 | J12: =H12*I20 -> 0 | K12: =I12*3.785412/24 -> 0 | L12: =J12*3.785412/24 -> 0 | M12: =(K12*E17+L12*I17)/453592.4 -> 0 | N12: =(K12*E18+L12*I18)/453592.4 -> 0 | O12: =(K12*E19+L12*I19)/453592.4 -> 0 | P12: =Input!G40*L12/100 -> 0 | Q12: =I17*P12/453592.4 -> 0 | R12: =I18*P12/453592.4 -> 0 | S12: =I19*P12/453592.4 -> 0
B13: W5 | C13: =Input!C41 -> 0 | D13: =Input!D41 -> 2.43 | E13: =Input!E41 -> 2 | F13: =C13*E13/100 -> 0 | G13: =C13*D13*E13/100 -> 0 | H13: =Input!F41 -> 0 | I13: =G13*E20 -> 0 | J13: =H13*I20 -> 0 | K13: =I13*3.785412/24 -> 0 | L13: =J13*3.785412/24 -> 0 | M13: =(K13*E17+L13*I17)/453592.4 -> 0 | N13: =(K13*E18+L13*I18)/453592.4 -> 0 | O13: =(K13*E19+L13*I19)/453592.4 -> 0 | P13: =Input!G41*L13/100 -> 0 | Q13: =I17*P13/453592.4 -> 0 | R13: =I18*P13/453592.4 -> 0 | S13: =I19*P13/453592.4 -> 0
B16: Assume the average concentrations reaching the stream (from septic overcharge) are: | I16: Wastewater per capita:
C17: Total Nitrogen: | E17: 60 | F17: mg/L (range of 20 to 100) | I17: 40 | J17: mg/L (range of 20 to 85)
C18: Total Phosphorus: | E18: 23.5 | F18: mg/L (range of 18 to 29) | I18: 8 | J18: mg/L (range of 4 to 15)
C19: Organics (BOD): | E19: 245 | F19: mg/L (range of 200 to 290) | I19: 220 | J19: mg/L (range of 110 to 400)
B20: Typical septic overcharge flow rate of: | E20: 70 | F20: gal/day/person(range of 45 to 100) | I20: 75 | J20: gal/day/person (range of 75 to 125)
I21: Metcalf and Eddy, Inc. 1979. Wastewater Engineering: Treatment, Disposal, Reuse. 2nd ed. McGraw-Hill, New York.
B23: 2. Septic nutrient load in lb/yr | F23: Wastewater Reduction | I23: Load after Reduction
B24: Watershed | C24: N Load, lb/yr | D24: P Load, lb/yr | E24: BOD, lb/yr | F24: N Load, lb/yr | G24: P Load, lb/yr | H24: BOD, lb/yr | I24: N Load, lb/yr | J24: P Load, lb/yr | K24: BOD, lb/yr
B25: W1 | C25: =M9*24*365 -> 0 | D25: =N9*24*365 -> 0 | E25: =O9*24*365 -> 0 | F25: =Q9*24*365 -> 0 | G25: =R9*24*365 -> 0 | H25: =S9*24*365 -> 0 | I25: =C25-F25 -> 0 | J25: =D25-G25 -> 0 | K25: =E25-H25 -> 0
B26: W2 | C26: =M10*24*365 -> 0 | D26: =N10*24*365 -> 0 | E26: =O10*24*365 -> 0 | F26: =Q10*24*365 -> 0 | G26: =R10*24*365 -> 0 | H26: =S10*24*365 -> 0 | I26: =C26-F26 -> 0 | J26: =D26-G26 -> 0 | K26: =E26-H26 -> 0
B27: W3 | C27: =M11*24*365 -> 0 | D27: =N11*24*365 -> 0 | E27: =O11*24*365 -> 0 | F27: =Q11*24*365 -> 0 | G27: =R11*24*365 -> 0 | H27: =S11*24*365 -> 0 | I27: =C27-F27 -> 0 | J27: =D27-G27 -> 0 | K27: =E27-H27 -> 0
B28: W4 | C28: =M12*24*365 -> 0 | D28: =N12*24*365 -> 0 | E28: =O12*24*365 -> 0 | F28: =Q12*24*365 -> 0 | G28: =R12*24*365 -> 0 | H28: =S12*24*365 -> 0 | I28: =C28-F28 -> 0 | J28: =D28-G28 -> 0 | K28: =E28-H28 -> 0
B29: W5 | C29: =M13*24*365 -> 0 | D29: =N13*24*365 -> 0 | E29: =O13*24*365 -> 0 | F29: =Q13*24*365 -> 0 | G29: =R13*24*365 -> 0 | H29: =S13*24*365 -> 0 | I29: =C29-F29 -> 0 | J29: =D29-G29 -> 0 | K29: =E29-H29 -> 0

Sheet Sediment (hidden)
B1: Sediment Load
B2: Sediment load is calculated based on USLE equation and delivery ratio. Users need to modify the default USLE parameters.
B3: Sediment delivery ratio (DR) is calculated using: DR=0.42^A-0.125 if A<200 acres, and DR=0.417662A^-0.134958 - 0.127097 if A>=200 acres.
B4: Where A is the watershed area (mi²). STEPL calcultes sheet and rill erosion only (using USLE) and does not account for gully erosion and stream bank erosion.
B6: 1. Input USLE parameters
B7: Watershed | C7: Cropland | H7: Pastureland | M7: Forest | R7: User Defined | X7: =IF(Input!$F$10=TRUE,"Total WS ","Individual Sub ") -> Individual Sub
C8: R | D8: K | E8: LS | F8: C | G8: P | H8: R | I8: K | J8: LS | K8: C | L8: P | M8: R | N8: K | O8: LS | P8: C | Q8: P | R8: R | S8: K | T8: LS | U8: C | V8: P | W8: DR | X8: Area (ac)
B9: W1 | C9: =Input!C47 -> 374.6893606 | D9: =Input!D47 -> 0.1971198096 | E9: =Input!E47 -> 0.289127188 | F9: =Input!F47 -> 0.2 | G9: =Input!G47 -> 0.985701275 | H9: =Input!H47 -> 374.6893606 | I9: =Input!I47 -> 0.1971198096 | J9: =Input!J47 -> 0.289127188 | K9: =Input!K47 -> 0.04 | L9: =Input!L47 -> 1 | M9: =Input!M47 -> 374.6893606 | N9: =Input!N47 -> 0.1971198096 | O9: =Input!O47 -> 0.289127188 | P9: =Input!P47 -> 0.003 | Q9: =Input!Q47 -> 1 | R9: =Input!R47 -> 374.6893606 | S9: =Input!S47 -> 0.1971198096 | T9: =Input!T47 -> 0.289127188 | U9: =Input!U47 -> 0.1358287796 | V9: =Input!V47 -> 1 | W9: =IF(X9=0,0,IF(X9>200,(0.417662*POWER(X9/640,-0.134958)-0.127097),0.42*POWER(X9/640,-0.125))) -> 0 | X9: =IF(Input!$F$10=TRUE, WSAreaSum, 'Land&Rain'!O8) -> 0
B10: W2 | C10: =Input!C48 -> 374.6893606 | D10: =Input!D48 -> 0.1971198096 | E10: =Input!E48 -> 0.289127188 | F10: =Input!F48 -> 0.2 | G10: =Input!G48 -> 0.985701275 | H10: =Input!H48 -> 374.6893606 | I10: =Input!I48 -> 0.1971198096 | J10: =Input!J48 -> 0.289127188 | K10: =Input!K48 -> 0.04 | L10: =Input!L48 -> 1 | M10: =Input!M48 -> 374.6893606 | N10: =Input!N48 -> 0.1971198096 | O10: =Input!O48 -> 0.289127188 | P10: =Input!P48 -> 0.003 | Q10: =Input!Q48 -> 1 | R10: =Input!R48 -> 374.6893606 | S10: =Input!S48 -> 0.1971198096 | T10: =Input!T48 -> 0.289127188 | U10: =Input!U48 -> 0.1358287796 | V10: =Input!V48 -> 1 | W10: =IF(X10=0,0,IF(X10>200,(0.417662*POWER(X10/640,-0.134958)-0.127097),0.42*POWER(X10/640,-0.125))) -> 0 | X10: =IF(Input!$F$10=TRUE, WSAreaSum, 'Land&Rain'!O9) -> 0
B11: W3 | C11: =Input!C49 -> 374.6893606 | D11: =Input!D49 -> 0.1971198096 | E11: =Input!E49 -> 0.289127188 | F11: =Input!F49 -> 0.2 | G11: =Input!G49 -> 0.985701275 | H11: =Input!H49 -> 374.6893606 | I11: =Input!I49 -> 0.1971198096 | J11: =Input!J49 -> 0.289127188 | K11: =Input!K49 -> 0.04 | L11: =Input!L49 -> 1 | M11: =Input!M49 -> 374.6893606 | N11: =Input!N49 -> 0.1971198096 | O11: =Input!O49 -> 0.289127188 | P11: =Input!P49 -> 0.003 | Q11: =Input!Q49 -> 1 | R11: =Input!R49 -> 374.6893606 | S11: =Input!S49 -> 0.1971198096 | T11: =Input!T49 -> 0.289127188 | U11: =Input!U49 -> 0.1358287796 | V11: =Input!V49 -> 1 | W11: =IF(X11=0,0,IF(X11>200,(0.417662*POWER(X11/640,-0.134958)-0.127097),0.42*POWER(X11/640,-0.125))) -> 0 | X11: =IF(Input!$F$10=TRUE, WSAreaSum, 'Land&Rain'!O10) -> 0
B12: W4 | C12: =Input!C50 -> 374.6893606 | D12: =Input!D50 -> 0.1971198096 | E12: =Input!E50 -> 0.289127188 | F12: =Input!F50 -> 0.2 | G12: =Input!G50 -> 0.985701275 | H12: =Input!H50 -> 374.6893606 | I12: =Input!I50 -> 0.1971198096 | J12: =Input!J50 -> 0.289127188 | K12: =Input!K50 -> 0.04 | L12: =Input!L50 -> 1 | M12: =Input!M50 -> 374.6893606 | N12: =Input!N50 -> 0.1971198096 | O12: =Input!O50 -> 0.289127188 | P12: =Input!P50 -> 0.003 | Q12: =Input!Q50 -> 1 | R12: =Input!R50 -> 374.6893606 | S12: =Input!S50 -> 0.1971198096 | T12: =Input!T50 -> 0.289127188 | U12: =Input!U50 -> 0.1358287796 | V12: =Input!V50 -> 1 | W12: =IF(X12=0,0,IF(X12>200,(0.417662*POWER(X12/640,-0.134958)-0.127097),0.42*POWER(X12/640,-0.125))) -> 0 | X12: =IF(Input!$F$10=TRUE, WSAreaSum, 'Land&Rain'!O11) -> 0
B13: W5 | C13: =Input!C51 -> 374.6893606 | D13: =Input!D51 -> 0.1971198096 | E13: =Input!E51 -> 0.289127188 | F13: =Input!F51 -> 0.2 | G13: =Input!G51 -> 0.985701275 | H13: =Input!H51 -> 374.6893606 | I13: =Input!I51 -> 0.1971198096 | J13: =Input!J51 -> 0.289127188 | K13: =Input!K51 -> 0.04 | L13: =Input!L51 -> 1 | M13: =Input!M51 -> 374.6893606 | N13: =Input!N51 -> 0.1971198096 | O13: =Input!O51 -> 0.289127188 | P13: =Input!P51 -> 0.003 | Q13: =Input!Q51 -> 1 | R13: =Input!R51 -> 374.6893606 | S13: =Input!S51 -> 0.1971198096 | T13: =Input!T51 -> 0.289127188 | U13: =Input!U51 -> 0.1358287796 | V13: =Input!V51 -> 1 | W13: =IF(X13=0,0,IF(X13>200,(0.417662*POWER(X13/640,-0.134958)-0.127097),0.42*POWER(X13/640,-0.125))) -> 0 | X13: =IF(Input!$F$10=TRUE, WSAreaSum, 'Land&Rain'!O12) -> 0
B15: BMP and efficiency, C=Cropland, P=Pastureland,F=Forest,U=Urban
B16: BMP on | C16: Sediment | G16: N | K16: P | O16: BOD
C17: C | D17: P | E17: F | F17: U | G17: C | H17: P | I17: F | J17: U | K17: C | L17: P | M17: F | N17: U | O17: C | P17: P | Q17: F | R17: U
B18: W1 | C18: =IF(BMPs!F8="ND",0,BMPs!F8) -> 0 | D18: =IF(BMPs!F17="ND",0,BMPs!F17) -> 0 | E18: =IF(BMPs!F26="ND",0,BMPs!F26) -> 0 | F18: =IF(BMPs!F35="ND",0,BMPs!F35) -> 0 | G18: =IF(BMPs!C8="ND",0,BMPs!C8) -> 0 | H18: =IF(BMPs!C17="ND",0,BMPs!C17) -> 0 | I18: =IF(BMPs!C26="ND",0,BMPs!C26) -> 0 | J18: =IF(BMPs!C35="ND",0,BMPs!C35) -> 0 | K18: =IF(BMPs!D8="ND",0,BMPs!D8) -> 0 | L18: =IF(BMPs!D17="ND",0,BMPs!D17) -> 0 | M18: =IF(BMPs!D26="ND",0,BMPs!D26) -> 0 | N18: =IF(BMPs!D35="ND",0,BMPs!D35) -> 0 | O18: =IF(BMPs!E8="ND",0,BMPs!E8) -> 0 | P18: =IF(BMPs!E17="ND",0,BMPs!E17) -> 0 | Q18: =IF(BMPs!E26="ND",0,BMPs!E26) -> 0 | R18: =IF(BMPs!E35="ND",0,BMPs!E35) -> 0
B19: W2 | C19: =IF(BMPs!F9="ND",0,BMPs!F9) -> 0 | D19: =IF(BMPs!F18="ND",0,BMPs!F18) -> 0 | E19: =IF(BMPs!F27="ND",0,BMPs!F27) -> 0 | F19: =IF(BMPs!F36="ND",0,BMPs!F36) -> 0 | G19: =IF(BMPs!C9="ND",0,BMPs!C9) -> 0 | H19: =IF(BMPs!C18="ND",0,BMPs!C18) -> 0 | I19: =IF(BMPs!C27="ND",0,BMPs!C27) -> 0 | J19: =IF(BMPs!C36="ND",0,BMPs!C36) -> 0 | K19: =IF(BMPs!D9="ND",0,BMPs!D9) -> 0 | L19: =IF(BMPs!D18="ND",0,BMPs!D18) -> 0 | M19: =IF(BMPs!D27="ND",0,BMPs!D27) -> 0 | N19: =IF(BMPs!D36="ND",0,BMPs!D36) -> 0 | O19: =IF(BMPs!E9="ND",0,BMPs!E9) -> 0 | P19: =IF(BMPs!E18="ND",0,BMPs!E18) -> 0 | Q19: =IF(BMPs!E27="ND",0,BMPs!E27) -> 0 | R19: =IF(BMPs!E36="ND",0,BMPs!E36) -> 0
B20: W3 | C20: =IF(BMPs!F10="ND",0,BMPs!F10) -> 0 | D20: =IF(BMPs!F19="ND",0,BMPs!F19) -> 0 | E20: =IF(BMPs!F28="ND",0,BMPs!F28) -> 0 | F20: =IF(BMPs!F37="ND",0,BMPs!F37) -> 0 | G20: =IF(BMPs!C10="ND",0,BMPs!C10) -> 0 | H20: =IF(BMPs!C19="ND",0,BMPs!C19) -> 0 | I20: =IF(BMPs!C28="ND",0,BMPs!C28) -> 0 | J20: =IF(BMPs!C37="ND",0,BMPs!C37) -> 0 | K20: =IF(BMPs!D10="ND",0,BMPs!D10) -> 0 | L20: =IF(BMPs!D19="ND",0,BMPs!D19) -> 0 | M20: =IF(BMPs!D28="ND",0,BMPs!D28) -> 0 | N20: =IF(BMPs!D37="ND",0,BMPs!D37) -> 0 | O20: =IF(BMPs!E10="ND",0,BMPs!E10) -> 0 | P20: =IF(BMPs!E19="ND",0,BMPs!E19) -> 0 | Q20: =IF(BMPs!E28="ND",0,BMPs!E28) -> 0 | R20: =IF(BMPs!E37="ND",0,BMPs!E37) -> 0
B21: W4 | C21: =IF(BMPs!F11="ND",0,BMPs!F11) -> 0 | D21: =IF(BMPs!F20="ND",0,BMPs!F20) -> 0 | E21: =IF(BMPs!F29="ND",0,BMPs!F29) -> 0 | F21: =IF(BMPs!F38="ND",0,BMPs!F38) -> 0 | G21: =IF(BMPs!C11="ND",0,BMPs!C11) -> 0 | H21: =IF(BMPs!C20="ND",0,BMPs!C20) -> 0 | I21: =IF(BMPs!C29="ND",0,BMPs!C29) -> 0 | J21: =IF(BMPs!C38="ND",0,BMPs!C38) -> 0 | K21: =IF(BMPs!D11="ND",0,BMPs!D11) -> 0 | L21: =IF(BMPs!D20="ND",0,BMPs!D20) -> 0 | M21: =IF(BMPs!D29="ND",0,BMPs!D29) -> 0 | N21: =IF(BMPs!D38="ND",0,BMPs!D38) -> 0 | O21: =IF(BMPs!E11="ND",0,BMPs!E11) -> 0 | P21: =IF(BMPs!E20="ND",0,BMPs!E20) -> 0 | Q21: =IF(BMPs!E29="ND",0,BMPs!E29) -> 0 | R21: =IF(BMPs!E38="ND",0,BMPs!E38) -> 0
B22: W5 | C22: =IF(BMPs!F12="ND",0,BMPs!F12) -> 0 | D22: =IF(BMPs!F21="ND",0,BMPs!F21) -> 0 | E22: =IF(BMPs!F30="ND",0,BMPs!F30) -> 0 | F22: =IF(BMPs!F39="ND",0,BMPs!F39) -> 0 | G22: =IF(BMPs!C12="ND",0,BMPs!C12) -> 0 | H22: =IF(BMPs!C21="ND",0,BMPs!C21) -> 0 | I22: =IF(BMPs!C30="ND",0,BMPs!C30) -> 0 | J22: =IF(BMPs!C39="ND",0,BMPs!C39) -> 0 | K22: =IF(BMPs!D12="ND",0,BMPs!D12) -> 0 | L22: =IF(BMPs!D21="ND",0,BMPs!D21) -> 0 | M22: =IF(BMPs!D30="ND",0,BMPs!D30) -> 0 | N22: =IF(BMPs!D39="ND",0,BMPs!D39) -> 0 | O22: =IF(BMPs!E12="ND",0,BMPs!E12) -> 0 | P22: =IF(BMPs!E21="ND",0,BMPs!E21) -> 0 | Q22: =IF(BMPs!E30="ND",0,BMPs!E30) -> 0 | R22: =IF(BMPs!E39="ND",0,BMPs!E39) -> 0
B24: 2. Erosion and sediment delivery (ton/year)
B25: Watershed | C25: Cropland | E25: Pastureland | G25: Forest | I25: User Defined | K25: Erosion | M25: Sediment | O25: Sed. Reduction | Q25: %Reduction
B26: W1 | C26: =C9*D9*E9*F9*G9*'Land&Rain'!E8 -> 0 | E26: =H9*I9*J9*K9*L9*'Land&Rain'!G8 -> 0 | G26: =M9*N9*O9*P9*Q9*'Land&Rain'!I8 -> 0 | I26: =R9*S9*T9*U9*V9*'Land&Rain'!K8 -> 0 | K26: =SUM(C26:I26) -> 0 | M26: =(K26*W9) -> 0 | O26: =(M26-M34) -> 0 | Q26: =IF(M26=0,0,(100*O26/M26)) -> 0
B27: W2 | C27: =C10*D10*E10*F10*G10*'Land&Rain'!E9 -> 0 | E27: =H10*I10*J10*K10*L10*'Land&Rain'!G9 -> 0 | G27: =M10*N10*O10*P10*Q10*'Land&Rain'!I9 -> 0 | I27: =R10*S10*T10*U10*V10*'Land&Rain'!K9 -> 0 | K27: =SUM(C27:I27) -> 0 | M27: =(K27*W10) -> 0 | O27: =(M27-M35) -> 0 | Q27: =IF(M27=0,0,(100*O27/M27)) -> 0
B28: W3 | C28: =C11*D11*E11*F11*G11*'Land&Rain'!E10 -> 0 | E28: =H11*I11*J11*K11*L11*'Land&Rain'!G10 -> 0 | G28: =M11*N11*O11*P11*Q11*'Land&Rain'!I10 -> 0 | I28: =R11*S11*T11*U11*V11*'Land&Rain'!K10 -> 0 | K28: =SUM(C28:I28) -> 0 | M28: =(K28*W11) -> 0 | O28: =(M28-M36) -> 0 | Q28: =IF(M28=0,0,(100*O28/M28)) -> 0
B29: W4 | C29: =C12*D12*E12*F12*G12*'Land&Rain'!E11 -> 0 | E29: =H12*I12*J12*K12*L12*'Land&Rain'!G11 -> 0 | G29: =M12*N12*O12*P12*Q12*'Land&Rain'!I11 -> 0 | I29: =R12*S12*T12*U12*V12*'Land&Rain'!K11 -> 0 | K29: =SUM(C29:I29) -> 0 | M29: =(K29*W12) -> 0 | O29: =(M29-M37) -> 0 | Q29: =IF(M29=0,0,(100*O29/M29)) -> 0
B30: W5 | C30: =C13*D13*E13*F13*G13*'Land&Rain'!E12 -> 0 | E30: =H13*I13*J13*K13*L13*'Land&Rain'!G12 -> 0 | G30: =M13*N13*O13*P13*Q13*'Land&Rain'!I12 -> 0 | I30: =R13*S13*T13*U13*V13*'Land&Rain'!K12 -> 0 | K30: =SUM(C30:I30) -> 0 | M30: =(K30*W13) -> 0 | O30: =(M30-M38) -> 0 | Q30: =IF(M30=0,0,(100*O30/M30)) -> 0
B32: Erosion and sediment delivery after BMP (ton/year)
B33: Watershed | C33: Cropland | E33: Pastureland | G33: Forest | I33: User Defined | K33: Erosion | M33: Sediment
B34: W1 | C34: =C26*(1-C18) -> 0 | E34: =E26*(1-D18) -> 0 | G34: =G26*(1-E18) -> 0 | I34: =I26*(1-F18) -> 0 | K34: =SUM(C34:I34) -> 0 | M34: =(K34*W9) -> 0
B35: W2 | C35: =C27*(1-C19) -> 0 | E35: =E27*(1-D19) -> 0 | G35: =G27*(1-E19) -> 0 | I35: =I27*(1-F19) -> 0 | K35: =SUM(C35:I35) -> 0 | M35: =(K35*W10) -> 0
B36: W3 | C36: =C28*(1-C20) -> 0 | E36: =E28*(1-D20) -> 0 | G36: =G28*(1-E20) -> 0 | I36: =I28*(1-F20) -> 0 | K36: =SUM(C36:I36) -> 0 | M36: =(K36*W11) -> 0
B37: W4 | C37: =C29*(1-C21) -> 0 | E37: =E29*(1-D21) -> 0 | G37: =G29*(1-E21) -> 0 | I37: =I29*(1-F21) -> 0 | K37: =SUM(C37:I37) -> 0 | M37: =(K37*W12) -> 0
B38: W5 | C38: =C30*(1-C22) -> 0 | E38: =E30*(1-D22) -> 0 | G38: =G30*(1-E22) -> 0 | I38: =I30*(1-F22) -> 0 | K38: =SUM(C38:I38) -> 0 | M38: =(K38*W13) -> 0
B40: 3. Nutrient load from sediment (ton/year) | O40: 4. Nutrient load reduction (ton/year)
B41: Watershed | C41: N conc.% | E41: P conc.% | G41: BOD conc.% | I41: N Load | K41: P Load | M41: BOD Load | O41: N Reduction | Q41: P Reduction | S41: BOD Reduction
B42: W1 | C42: =Input!H57 -> 0.08 | E42: =Input!I57 -> 0.0308 | G42: =Input!J57 -> 0.16 | I42: =(2*C42*M26/100) -> 0 | K42: =(2*E42*M26/100) -> 0 | M42: =(2*G42*M26/100) -> 0 | O42: =(I42*Q26/100) -> 0 | Q42: =(K42*Q26)/100 -> 0 | S42: =(M42*Q26/100) -> 0
B43: W2 | C43: =Input!H58 -> 0.08 | E43: =Input!I58 -> 0.0308 | G43: =Input!J58 -> 0.16 | I43: =(2*C43*M27/100) -> 0 | K43: =(2*E43*M27/100) -> 0 | M43: =(2*G43*M27/100) -> 0 | O43: =(I43*Q27/100) -> 0 | Q43: =(K43*Q27)/100 -> 0 | S43: =(M43*Q27/100) -> 0
B44: W3 | C44: =Input!H59 -> 0.08 | E44: =Input!I59 -> 0.0308 | G44: =Input!J59 -> 0.16 | I44: =(2*C44*M28/100) -> 0 | K44: =(2*E44*M28/100) -> 0 | M44: =(2*G44*M28/100) -> 0 | O44: =(I44*Q28/100) -> 0 | Q44: =(K44*Q28)/100 -> 0 | S44: =(M44*Q28/100) -> 0
B45: W4 | C45: =Input!H60 -> 0.08 | E45: =Input!I60 -> 0.0308 | G45: =Input!J60 -> 0.16 | I45: =(2*C45*M29/100) -> 0 | K45: =(2*E45*M29/100) -> 0 | M45: =(2*G45*M29/100) -> 0 | O45: =(I45*Q29/100) -> 0 | Q45: =(K45*Q29)/100 -> 0 | S45: =(M45*Q29/100) -> 0
B46: W5 | C46: =Input!H61 -> 0.08 | E46: =Input!I61 -> 0.0308 | G46: =Input!J61 -> 0.16 | I46: =(2*C46*M30/100) -> 0 | K46: =(2*E46*M30/100) -> 0 | M46: =(2*G46*M30/100) -> 0 | O46: =(I46*Q30/100) -> 0 | Q46: =(K46*Q30)/100 -> 0 | S46: =(M46*Q30/100) -> 0
B47: Go to the "STEPL" menu for soil nutrient concentration map.
B48: Sediment and sediment nutrients by land uses with BMP (ton/year)
B49: Watershed | C49: Cropland | G49: Pastureland | K49: Forest | O49: User Defined
C50: N | D50: P | E50: BOD | F50: Sed. | G50: N | H50: P | I50: BOD | J50: Sed. | K50: N | L50: P | M50: BOD | N50: Sed. | O50: N | P50: P | Q50: BOD | R50: Sed.
B51: W1 | C51: =F51*C42*2/100 -> 0 | D51: =F51*E42*2/100 -> 0 | E51: =F51*G42*2/100 -> 0 | F51: =C26*W9*(1-C18) -> 0 | G51: =J51*C42*2/100 -> 0 | H51: =J51*E42*2/100 -> 0 | I51: =J51*G42*2/100 -> 0 | J51: =E26*W9*(1-D18) -> 0 | K51: =N51*C42*2/100 -> 0 | L51: =N51*E42*2/100 -> 0 | M51: =N51*G42*2/100 -> 0 | N51: =G26*W9*(1-E18) -> 0 | O51: =R51*C42*2/100 -> 0 | P51: =R51*E42*2/100 -> 0 | Q51: =R51*G42*2/100 -> 0 | R51: =I26*W9*(1-F18) -> 0
B52: W2 | C52: =F52*C43*2/100 -> 0 | D52: =F52*E43*2/100 -> 0 | E52: =F52*G43*2/100 -> 0 | F52: =C27*W10*(1-C19) -> 0 | G52: =J52*C43*2/100 -> 0 | H52: =J52*E43*2/100 -> 0 | I52: =J52*G43*2/100 -> 0 | J52: =E27*W10*(1-D19) -> 0 | K52: =N52*C43*2/100 -> 0 | L52: =N52*E43*2/100 -> 0 | M52: =N52*G43*2/100 -> 0 | N52: =G27*W10*(1-E19) -> 0 | O52: =R52*C43*2/100 -> 0 | P52: =R52*E43*2/100 -> 0 | Q52: =R52*G43*2/100 -> 0 | R52: =I27*W10*(1-F19) -> 0
B53: W3 | C53: =F53*C44*2/100 -> 0 | D53: =F53*E44*2/100 -> 0 | E53: =F53*G44*2/100 -> 0 | F53: =C28*W11*(1-C20) -> 0 | G53: =J53*C44*2/100 -> 0 | H53: =J53*E44*2/100 -> 0 | I53: =J53*G44*2/100 -> 0 | J53: =E28*W11*(1-D20) -> 0 | K53: =N53*C44*2/100 -> 0 | L53: =N53*E44*2/100 -> 0 | M53: =N53*G44*2/100 -> 0 | N53: =G28*W11*(1-E20) -> 0 | O53: =R53*C44*2/100 -> 0 | P53: =R53*E44*2/100 -> 0 | Q53: =R53*G44*2/100 -> 0 | R53: =I28*W11*(1-F20) -> 0
B54: W4 | C54: =F54*C45*2/100 -> 0 | D54: =F54*E45*2/100 -> 0 | E54: =F54*G45*2/100 -> 0 | F54: =C29*W12*(1-C21) -> 0 | G54: =J54*C45*2/100 -> 0 | H54: =J54*E45*2/100 -> 0 | I54: =J54*G45*2/100 -> 0 | J54: =E29*W12*(1-D21) -> 0 | K54: =N54*C45*2/100 -> 0 | L54: =N54*E45*2/100 -> 0 | M54: =N54*G45*2/100 -> 0 | N54: =G29*W12*(1-E21) -> 0 | O54: =R54*C45*2/100 -> 0 | P54: =R54*E45*2/100 -> 0 | Q54: =R54*G45*2/100 -> 0 | R54: =I29*W12*(1-F21) -> 0
B55: W5 | C55: =F55*C46*2/100 -> 0 | D55: =F55*E46*2/100 -> 0 | E55: =F55*G46*2/100 -> 0 | F55: =C30*W13*(1-C22) -> 0 | G55: =J55*C46*2/100 -> 0 | H55: =J55*E46*2/100 -> 0 | I55: =J55*G46*2/100 -> 0 | J55: =E30*W13*(1-D22) -> 0 | K55: =N55*C46*2/100 -> 0 | L55: =N55*E46*2/100 -> 0 | M55: =N55*G46*2/100 -> 0 | N55: =G30*W13*(1-E22) -> 0 | O55: =R55*C46*2/100 -> 0 | P55: =R55*E46*2/100 -> 0 | Q55: =R55*G46*2/100 -> 0 | R55: =I30*W13*(1-F22) -> 0

Sheet Gully&Streambank (hidden)
B1: Gully and Streambank Pollutant Load Reduction | AA1: W1 | AB1: Soil Textural Class | AC1: Dry Density (tons/ft3) | AD1: Correction Factor | AF1: Category | AG1: LRR (ft/yr) | AH1: Medium Value | AJ1: Category | AK1: Description | AS1: Lateral Recession Rate (ft/yr)
B2: This sheet contains two input tables: the first table is for inputing the gully dimensions, and the second is for inputing the eroding streambank dimensions. | AA2: W2 | AB2: Clay | AC2: 0.035 | AD2: 1.15 | AF2: 1. Slight | AG2: 0.01 - 0.05 | AH2: 0.03 | AJ2: Slight | AK2: Some bare bank but active erosion not readily apparent. Some rills but no vegetative overhang. No exposed tree roots. | AS2: 0.01 - 0.05
B3: Gully: | C3: Step 1. Specify the gully dimensions and assign each gully to a watershed. | AA3: W3 | AB3: Clay loam | AC3: 0.0375 | AD3: 1.15 | AF3: 2. Moderate | AG3: 0.06 - 0.2 | AH3: 0.13 | AJ3: Moderate | AK3: Bank is predominantly bare with some rills and vegetative overhang. | AS3: 0.06 - 0.2
C4: Step 2. Specify the time (number of years) that the gully has taken to form the current size. | AA4: W4 | AB4: Fine Sandy loam | AC4: 0.05 | AD4: 0.85 | AF4: 3. Severe | AG4: 0.3 - 0.5 | AH4: 0.4 | AJ4: Severe | AK4: Bank is bare with rills and severe vegetative overhang. Many exposed tree roots and | AS4: 0.3 - 0.5
C5: Step 3. Specify the gully stabilization (BMP) efficiency (0-1) and the gully soil textural class. | AA5: W5 | AB5: Loams, sandy clay loams | AC5: 0.045 | AD5: 0.85 | AF5: 4. Very Severe | AG5: 0.5+ | AH5: 0.5 | AK5: some fallen trees and slumps or slips. Some changes in cultural features such as
B6: Streambank: | C6: Step 1. Specify the stream bank dimensions and assign each bank to a watershed. | AB6: Organic | AC6: 0.011 | AD6: 1.5 | AK6: fence corners missing and realignment of roads or trails. Channel cross-section
C7: Step 2. Specify the lateral recession rate (ft/yr) of the eroding streambank. | J7: Click to see "Streambank Lateral Recession Rate" table | AB7: Sands, Loamy sands | AC7: 0.055 | AD7: 0.85 | AK7: becomes more U-shaped as opposed to V-shaped.
C8: Step 3. Specify the streambank stabilization (BMP) efficiency (0-1) and the streambank soil textural class. | AB8: Sandy clay | AC8: 0.045 | AD8: 0.85 | AJ8: Very Severe | AK8: Bank is bare with gullies and severe vegetative overhang. Many fallen trees, drains | AS8: 0.5+
AB9: Sandy loam | AC9: 0.0525 | AD9: 0.85 | AK9: and culverts eroding out and changes in cultural features as above. Massive slips or
B10: 1. Gully dimensions in the different watersheds | AB10: Silt Loam | AC10: 0.0425 | AD10: 1 | AK10: washouts common. Channel cross-section is U-shaped and streamcourse or gully
B11: Watershed | C11: Gully | D11: Top Width (ft) | E11: Bottom Width (ft) | F11: Depth (ft) | G11: Length (ft) | H11: Years to Form | I11: BMP Efficiency (0-1) | J11: Soil Textural Class | K11: Soil Dry Weight (ton/ft3) | L11: Nutrient Correction Factor | M11: Annual Load (ton) | N11: Load Reduction (ton) | O11: Annual Load (ton)-ncf | P11: Load Reduction (ton)-ncf | AB11: Silty clay loam, silty clay | AC11: 0.04 | AD11: 1 | AK11: may be meandering.
B12: W1 | C12: Gully1 | D12: 0 | E12: 0 | F12: 0 | G12: 0 | H12: 1 | I12: 0.95 | J12: Clay | K12: =LOOKUP(J12,AB2:AB11,AC2:AC11) -> 0.035 | L12: =LOOKUP(J12,AB2:AB11,AD2:AD11) -> 1.15 | M12: =IF(H12=0,0,(D12+E12)*F12*G12*K12/H12/2) -> 0 | N12: =I12*M12 -> 0 | O12: =IF(H12=0,0,(D12+E12)*F12*G12*K12*L12/H12/2) -> 0 | P12: =I12*O12 -> 0 | AJ12: Source: | AK12: Steffen, L.J. 1982. Channel Erosion (personal communication), as printed in "Pollutants Controlled Calculation
B13: W1 | C13: Gully2 | D13: 0 | E13: 0 | F13: 0 | G13: 0 | H13: 1 | I13: 0.95 | J13: Clay | K13: =LOOKUP(J13,AB2:AB11,AC2:AC11) -> 0.035 | L13: =LOOKUP(J13,AB2:AB11,AD2:AD11) -> 1.15 | M13: =IF(H13=0,0,(D13+E13)*F13*G13*K13/H13/2) -> 0 | N13: =I13*M13 -> 0 | O13: =IF(H13=0,0,(D13+E13)*F13*G13*K13*L13/H13/2) -> 0 | P13: =I13*O13 -> 0 | AK13: and Documentation for Section 319 Watersheds Training Manual," June 1999 Revision; Michigan Department
B14: W1 | C14: Gully3 | D14: 0 | E14: 0 | F14: 0 | G14: 0 | H14: 1 | I14: 0.95 | J14: Clay | K14: =LOOKUP(J14,AB2:AB11,AC2:AC11) -> 0.035 | L14: =LOOKUP(J14,AB2:AB11,AD2:AD11) -> 1.15 | M14: =IF(H14=0,0,(D14+E14)*F14*G14*K14/H14/2) -> 0 | N14: =I14*M14 -> 0 | O14: =IF(H14=0,0,(D14+E14)*F14*G14*K14*L14/H14/2) -> 0 | P14: =I14*O14 -> 0 | AK14: of Environmental Quality - Surface Water Quality Division - Nonpoint Source Unit. EQP 5841 (6/99).
B15: W1 | C15: Gully4 | D15: 0 | E15: 0 | F15: 0 | G15: 0 | H15: 1 | I15: 0.95 | J15: Clay | K15: =LOOKUP(J15,AB2:AB11,AC2:AC11) -> 0.035 | L15: =LOOKUP(J15,AB2:AB11,AD2:AD11) -> 1.15 | M15: =IF(H15=0,0,(D15+E15)*F15*G15*K15/H15/2) -> 0 | N15: =I15*M15 -> 0 | O15: =IF(H15=0,0,(D15+E15)*F15*G15*K15*L15/H15/2) -> 0 | P15: =I15*O15 -> 0 | AJ15: Back to the origin
B16: W1 | C16: Gully5 | D16: 0 | E16: 0 | F16: 0 | G16: 0 | H16: 1 | I16: 0.95 | J16: Clay | K16: =LOOKUP(J16,AB2:AB11,AC2:AC11) -> 0.035 | L16: =LOOKUP(J16,AB2:AB11,AD2:AD11) -> 1.15 | M16: =IF(H16=0,0,(D16+E16)*F16*G16*K16/H16/2) -> 0 | N16: =I16*M16 -> 0 | O16: =IF(H16=0,0,(D16+E16)*F16*G16*K16*L16/H16/2) -> 0 | P16: =I16*O16 -> 0
B19: 2. Impaired streambank dimensions in the different watersheds
B20: Watershed | C20: Strm Bank | D20: Length (ft) | E20: Height (ft) | F20: Lateral Recession | G20: Rate Range (ft/yr) | H20: Rate (ft/yr) | I20: BMP Efficiency (0-1) | J20: Soil Textural Class | K20: Soil Dry Weight (ton/ft3) | L20: Nutrient Correction Factor | M20: Annual Load (ton) | N20: Load Reduction (ton) | O20: Annual Load (ton)-ncf | P20: Load Reduction (ton)-ncf
B21: W1 | C21: Bank1 | D21: 0 | E21: 0 | F21: 1. Slight | G21: =LOOKUP(F21,AF2:AF5,AG2:AG5) -> 0.01 - 0.05 | H21: =LOOKUP(F21,AF2:AF5,AH2:AH5) -> 0.03 | I21: 0.95 | J21: Clay | K21: =LOOKUP(J21,AB2:AB11,AC2:AC11) -> 0.035 | L21: =LOOKUP(J21,AB2:AB11,AD2:AD11) -> 1.15 | M21: =D21*E21*H21*K21 -> 0 | N21: =I21*M21 -> 0 | O21: =D21*E21*H21*K21*L21 -> 0 | P21: =I21*O21 -> 0
B22: W1 | C22: Bank2 | D22: 0 | E22: 0 | F22: 1. Slight | G22: =LOOKUP(F22,AF2:AF5,AG2:AG5) -> 0.01 - 0.05 | H22: =LOOKUP(F22,AF2:AF5,AH2:AH5) -> 0.03 | I22: 0.95 | J22: Clay | K22: =LOOKUP(J22,AB2:AB11,AC2:AC11) -> 0.035 | L22: =LOOKUP(J22,AB2:AB11,AD2:AD11) -> 1.15 | M22: =D22*E22*H22*K22 -> 0 | N22: =I22*M22 -> 0 | O22: =D22*E22*H22*K22*L22 -> 0 | P22: =I22*O22 -> 0
B23: W1 | C23: Bank3 | D23: 0 | E23: 0 | F23: 1. Slight | G23: =LOOKUP(F23,AF2:AF5,AG2:AG5) -> 0.01 - 0.05 | H23: =LOOKUP(F23,AF2:AF5,AH2:AH5) -> 0.03 | I23: 0.95 | J23: Clay | K23: =LOOKUP(J23,AB2:AB11,AC2:AC11) -> 0.035 | L23: =LOOKUP(J23,AB2:AB11,AD2:AD11) -> 1.15 | M23: =D23*E23*H23*K23 -> 0 | N23: =I23*M23 -> 0 | O23: =D23*E23*H23*K23*L23 -> 0 | P23: =I23*O23 -> 0
B24: W1 | C24: Bank4 | D24: 0 | E24: 0 | F24: 1. Slight | G24: =LOOKUP(F24,AF2:AF5,AG2:AG5) -> 0.01 - 0.05 | H24: =LOOKUP(F24,AF2:AF5,AH2:AH5) -> 0.03 | I24: 0.95 | J24: Clay | K24: =LOOKUP(J24,AB2:AB11,AC2:AC11) -> 0.035 | L24: =LOOKUP(J24,AB2:AB11,AD2:AD11) -> 1.15 | M24: =D24*E24*H24*K24 -> 0 | N24: =I24*M24 -> 0 | O24: =D24*E24*H24*K24*L24 -> 0 | P24: =I24*O24 -> 0
B25: W1 | C25: Bank5 | D25: 0 | E25: 0 | F25: 1. Slight | G25: =LOOKUP(F25,AF2:AF5,AG2:AG5) -> 0.01 - 0.05 | H25: =LOOKUP(F25,AF2:AF5,AH2:AH5) -> 0.03 | I25: 0.95 | J25: Clay | K25: =LOOKUP(J25,AB2:AB11,AC2:AC11) -> 0.035 | L25: =LOOKUP(J25,AB2:AB11,AD2:AD11) -> 1.15 | M25: =D25*E25*H25*K25 -> 0 | N25: =I25*M25 -> 0 | O25: =D25*E25*H25*K25*L25 -> 0 | P25: =I25*O25 -> 0
B28: 3. Load and load reduction (lb/year, GU=Gully; SB=Streambank) in the different watersheds
B29: Watershed | C29: GU-N Load | D29: GU-P Load | E29: GU-BOD Load | F29: GU-Sediment Load | G29: GU-N Reduc- tion | H29: GU-P Reduc- tion | I29: GU-BOD Reduc- tion | J29: GU-Sediment Reduction | K29: SB-N Load | L29: SB-P Load | M29: SB-BOD Load | N29: SB-Sediment Load | O29: SB-N Reduction | P29: SB-P Reduction | Q29: SB-BOD Reduction | R29: SB-Sediment Reduction | S29: GU-Sed Load-ncf | T29: GU-Sed Reduc-ncf | U29: SB-Sed Load-ncf | V29: SB-Sed Reduc-ncf
B30: W1 | C30: =S30*Input!H57/100 -> 0 | D30: =S30*Input!I57/100 -> 0 | E30: =S30*Input!J57/100 -> 0 | F30: =2000*SUMIF(B12:B16, "=W1", M12:M16) -> 0 | G30: =T30*Input!H57/100 -> 0 | H30: =T30*Input!I57/100 -> 0 | I30: =T30*Input!J57/100 -> 0 | J30: =2000*SUMIF(B12:B16, "=W1", N12:N16) -> 0 | K30: =U30*Input!H57/100 -> 0 | L30: =U30*Input!I57/100 -> 0 | M30: =U30*Input!J57/100 -> 0 | N30: =2000*SUMIF(B21:B25, "=W1", M21:M25) -> 0 | O30: =V30*Input!H57/100 -> 0 | P30: =V30*Input!I57/100 -> 0 | Q30: =V30*Input!J57/100 -> 0 | R30: =2000*SUMIF(B21:B25, "=W1", N21:N25) -> 0 | S30: =2000*SUMIF(B12:B16, "=W1", O12:O16) -> 0 | T30: =2000*SUMIF(B12:B16, "=W1", P12:P16) -> 0 | U30: =2000*SUMIF(B21:B25, "=W1", O21:O25) -> 0 | V30: =2000*SUMIF(B21:B25, "=W1", P21:P25) -> 0
B31: W2 | C31: =S31*Input!H58/100 -> 0 | D31: =S31*Input!I58/100 -> 0 | E31: =S31*Input!J58/100 -> 0 | F31: =2000*SUMIF(B12:B16, "=W2", M12:M16) -> 0 | G31: =T31*Input!H58/100 -> 0 | H31: =T31*Input!I58/100 -> 0 | I31: =T31*Input!J58/100 -> 0 | J31: =2000*SUMIF(B12:B16, "=W2", N12:N16) -> 0 | K31: =U31*Input!H58/100 -> 0 | L31: =U31*Input!I58/100 -> 0 | M31: =U31*Input!J58/100 -> 0 | N31: =2000*SUMIF(B21:B25, "=W2", M21:M25) -> 0 | O31: =V31*Input!H58/100 -> 0 | P31: =V31*Input!I58/100 -> 0 | Q31: =V31*Input!J58/100 -> 0 | R31: =2000*SUMIF(B21:B25, "=W2", N21:N25) -> 0 | S31: =2000*SUMIF(B12:B16, "=W2", O12:O16) -> 0 | T31: =2000*SUMIF(B12:B16, "=W2", P12:P16) -> 0 | U31: =2000*SUMIF(B21:B25, "=W2", O21:O25) -> 0 | V31: =2000*SUMIF(B21:B25, "=W2", P21:P25) -> 0
B32: W3 | C32: =S32*Input!H59/100 -> 0 | D32: =S32*Input!I59/100 -> 0 | E32: =S32*Input!J59/100 -> 0 | F32: =2000*SUMIF(B12:B16, "=W3", M12:M16) -> 0 | G32: =T32*Input!H59/100 -> 0 | H32: =T32*Input!I59/100 -> 0 | I32: =T32*Input!J59/100 -> 0 | J32: =2000*SUMIF(B12:B16, "=W3", N12:N16) -> 0 | K32: =U32*Input!H59/100 -> 0 | L32: =U32*Input!I59/100 -> 0 | M32: =U32*Input!J59/100 -> 0 | N32: =2000*SUMIF(B21:B25, "=W3", M21:M25) -> 0 | O32: =V32*Input!H59/100 -> 0 | P32: =V32*Input!I59/100 -> 0 | Q32: =V32*Input!J59/100 -> 0 | R32: =2000*SUMIF(B21:B25, "=W3", N21:N25) -> 0 | S32: =2000*SUMIF(B12:B16, "=W3", O12:O16) -> 0 | T32: =2000*SUMIF(B12:B16, "=W3", P12:P16) -> 0 | U32: =2000*SUMIF(B21:B25, "=W3", O21:O25) -> 0 | V32: =2000*SUMIF(B21:B25, "=W3", P21:P25) -> 0
B33: W4 | C33: =S33*Input!H60/100 -> 0 | D33: =S33*Input!I60/100 -> 0 | E33: =S33*Input!J60/100 -> 0 | F33: =2000*SUMIF(B12:B16, "=W4", M12:M16) -> 0 | G33: =T33*Input!H60/100 -> 0 | H33: =T33*Input!I60/100 -> 0 | I33: =T33*Input!J60/100 -> 0 | J33: =2000*SUMIF(B12:B16, "=W4", N12:N16) -> 0 | K33: =U33*Input!H60/100 -> 0 | L33: =U33*Input!I60/100 -> 0 | M33: =U33*Input!J60/100 -> 0 | N33: =2000*SUMIF(B21:B25, "=W4", M21:M25) -> 0 | O33: =V33*Input!H60/100 -> 0 | P33: =V33*Input!I60/100 -> 0 | Q33: =V33*Input!J60/100 -> 0 | R33: =2000*SUMIF(B21:B25, "=W4", N21:N25) -> 0 | S33: =2000*SUMIF(B12:B16, "=W4", O12:O16) -> 0 | T33: =2000*SUMIF(B12:B16, "=W4", P12:P16) -> 0 | U33: =2000*SUMIF(B21:B25, "=W4", O21:O25) -> 0 | V33: =2000*SUMIF(B21:B25, "=W4", P21:P25) -> 0
B34: W5 | C34: =S34*Input!H61/100 -> 0 | D34: =S34*Input!I61/100 -> 0 | E34: =S34*Input!J61/100 -> 0 | F34: =2000*SUMIF(B12:B16, "=W5", M12:M16) -> 0 | G34: =T34*Input!H61/100 -> 0 | H34: =T34*Input!I61/100 -> 0 | I34: =T34*Input!J61/100 -> 0 | J34: =2000*SUMIF(B12:B16, "=W5", N12:N16) -> 0 | K34: =U34*Input!H61/100 -> 0 | L34: =U34*Input!I61/100 -> 0 | M34: =U34*Input!J61/100 -> 0 | N34: =2000*SUMIF(B21:B25, "=W5", M21:M25) -> 0 | O34: =V34*Input!H61/100 -> 0 | P34: =V34*Input!I61/100 -> 0 | Q34: =V34*Input!J61/100 -> 0 | R34: =2000*SUMIF(B21:B25, "=W5", N21:N25) -> 0 | S34: =2000*SUMIF(B12:B16, "=W5", O12:O16) -> 0 | T34: =2000*SUMIF(B12:B16, "=W5", P12:P16) -> 0 | U34: =2000*SUMIF(B21:B25, "=W5", O21:O25) -> 0 | V34: =2000*SUMIF(B21:B25, "=W5", P21:P25) -> 0

Sheet Total Load
B1: Total Load | D1: This is the summary of annual nutrient and sediment load for each subwatershed. This sheet is initially protected.
B3: a. Nutrient load from runoff (lb/year) without BMPs
B4: Watershed | C4: Cropland | F4: Pastureland | I4: Forest | L4: User Defined | O4: Total
C5: N | D5: P | E5: BOD | F5: N | G5: P | H5: BOD | I5: N | J5: P | K5: BOD | L5: N | M5: P | N5: BOD | O5: N | P5: P | Q5: BOD
B6: W1 | C6: ='Land&Rain'!E47*((1-Animal!L10/12)*Animal!N29+(Animal!L10/12)*Animal!O29 )*4047*0.3048/454 -> 0 | D6: ='Land&Rain'!E47*((1-Animal!L10/12)*Animal!P29+(Animal!L10/12)*Animal!Q29 )*4047*0.3048/454 -> 0 | E6: ='Land&Rain'!E47*((1-Animal!L10/12)*Animal!R29+(Animal!L10/12)*Animal!S29 )*4047*0.3048/454 -> 0 | F6: ='Land&Rain'!G47*'Land&Rain'!C56*4047*0.3048/454 -> 0 | G6: ='Land&Rain'!G47*'Land&Rain'!D56*4047*0.3048/454 -> 0 | H6: ='Land&Rain'!G47*'Land&Rain'!E56*4047*0.3048/454 -> 0 | I6: ='Land&Rain'!I47*'Land&Rain'!C57*4047*0.3048/454 -> 0 | J6: ='Land&Rain'!I47*'Land&Rain'!D57*4047*0.3048/454 -> 0 | K6: ='Land&Rain'!I47*'Land&Rain'!E57*4047*0.3048/454 -> 0 | L6: ='Land&Rain'!K47*'Land&Rain'!C58*4047*0.3048/454 -> 0 | M6: ='Land&Rain'!K47*'Land&Rain'!D58*4047*0.3048/454 -> 0 | N6: ='Land&Rain'!K47*'Land&Rain'!E58*4047*0.3048/454 -> 0 | O6: =L6+I6+F6+C6 -> 0 | P6: =M6+J6+G6+D6 -> 0 | Q6: =N6+K6+H6+E6 -> 0
B7: W2 | C7: ='Land&Rain'!E48*((1-Animal!L11/12)*Animal!N30+(Animal!L11/12)*Animal!O30 )*4047*0.3048/454 -> 0 | D7: ='Land&Rain'!E48*((1-Animal!L11/12)*Animal!P30+(Animal!L11/12)*Animal!Q30 )*4047*0.3048/454 -> 0 | E7: ='Land&Rain'!E48*((1-Animal!L11/12)*Animal!R30+(Animal!L11/12)*Animal!S30 )*4047*0.3048/454 -> 0 | F7: ='Land&Rain'!G48*'Land&Rain'!C56*4047*0.3048/454 -> 0 | G7: ='Land&Rain'!G48*'Land&Rain'!D56*4047*0.3048/454 -> 0 | H7: ='Land&Rain'!G48*'Land&Rain'!E56*4047*0.3048/454 -> 0 | I7: ='Land&Rain'!I48*'Land&Rain'!C57*4047*0.3048/454 -> 0 | J7: ='Land&Rain'!I48*'Land&Rain'!D57*4047*0.3048/454 -> 0 | K7: ='Land&Rain'!I48*'Land&Rain'!E57*4047*0.3048/454 -> 0 | L7: ='Land&Rain'!K48*'Land&Rain'!C58*4047*0.3048/454 -> 0 | M7: ='Land&Rain'!K48*'Land&Rain'!D58*4047*0.3048/454 -> 0 | N7: ='Land&Rain'!K48*'Land&Rain'!E58*4047*0.3048/454 -> 0 | O7: =L7+I7+F7+C7 -> 0 | P7: =M7+J7+G7+D7 -> 0 | Q7: =N7+K7+H7+E7 -> 0
B8: W3 | C8: ='Land&Rain'!E49*((1-Animal!L12/12)*Animal!N31+(Animal!L12/12)*Animal!O31 )*4047*0.3048/454 -> 0 | D8: ='Land&Rain'!E49*((1-Animal!L12/12)*Animal!P31+(Animal!L12/12)*Animal!Q31 )*4047*0.3048/454 -> 0 | E8: ='Land&Rain'!E49*((1-Animal!L12/12)*Animal!R31+(Animal!L12/12)*Animal!S31 )*4047*0.3048/454 -> 0 | F8: ='Land&Rain'!G49*'Land&Rain'!C56*4047*0.3048/454 -> 0 | G8: ='Land&Rain'!G49*'Land&Rain'!D56*4047*0.3048/454 -> 0 | H8: ='Land&Rain'!G49*'Land&Rain'!E56*4047*0.3048/454 -> 0 | I8: ='Land&Rain'!I49*'Land&Rain'!C57*4047*0.3048/454 -> 0 | J8: ='Land&Rain'!I49*'Land&Rain'!D57*4047*0.3048/454 -> 0 | K8: ='Land&Rain'!I49*'Land&Rain'!E57*4047*0.3048/454 -> 0 | L8: ='Land&Rain'!K49*'Land&Rain'!C58*4047*0.3048/454 -> 0 | M8: ='Land&Rain'!K49*'Land&Rain'!D58*4047*0.3048/454 -> 0 | N8: ='Land&Rain'!K49*'Land&Rain'!E58*4047*0.3048/454 -> 0 | O8: =L8+I8+F8+C8 -> 0 | P8: =M8+J8+G8+D8 -> 0 | Q8: =N8+K8+H8+E8 -> 0
B9: W4 | C9: ='Land&Rain'!E50*((1-Animal!L13/12)*Animal!N32+(Animal!L13/12)*Animal!O32 )*4047*0.3048/454 -> 0 | D9: ='Land&Rain'!E50*((1-Animal!L13/12)*Animal!P32+(Animal!L13/12)*Animal!Q32 )*4047*0.3048/454 -> 0 | E9: ='Land&Rain'!E50*((1-Animal!L13/12)*Animal!R32+(Animal!L13/12)*Animal!S32 )*4047*0.3048/454 -> 0 | F9: ='Land&Rain'!G50*'Land&Rain'!C56*4047*0.3048/454 -> 0 | G9: ='Land&Rain'!G50*'Land&Rain'!D56*4047*0.3048/454 -> 0 | H9: ='Land&Rain'!G50*'Land&Rain'!E56*4047*0.3048/454 -> 0 | I9: ='Land&Rain'!I50*'Land&Rain'!C57*4047*0.3048/454 -> 0 | J9: ='Land&Rain'!I50*'Land&Rain'!D57*4047*0.3048/454 -> 0 | K9: ='Land&Rain'!I50*'Land&Rain'!E57*4047*0.3048/454 -> 0 | L9: ='Land&Rain'!K50*'Land&Rain'!C58*4047*0.3048/454 -> 0 | M9: ='Land&Rain'!K50*'Land&Rain'!D58*4047*0.3048/454 -> 0 | N9: ='Land&Rain'!K50*'Land&Rain'!E58*4047*0.3048/454 -> 0 | O9: =L9+I9+F9+C9 -> 0 | P9: =M9+J9+G9+D9 -> 0 | Q9: =N9+K9+H9+E9 -> 0
B10: W5 | C10: ='Land&Rain'!E51*((1-Animal!L14/12)*Animal!N33+(Animal!L14/12)*Animal!O33 )*4047*0.3048/454 -> 0 | D10: ='Land&Rain'!E51*((1-Animal!L14/12)*Animal!P33+(Animal!L14/12)*Animal!Q33 )*4047*0.3048/454 -> 0 | E10: ='Land&Rain'!E51*((1-Animal!L14/12)*Animal!R33+(Animal!L14/12)*Animal!S33 )*4047*0.3048/454 -> 0 | F10: ='Land&Rain'!G51*'Land&Rain'!C56*4047*0.3048/454 -> 0 | G10: ='Land&Rain'!G51*'Land&Rain'!D56*4047*0.3048/454 -> 0 | H10: ='Land&Rain'!G51*'Land&Rain'!E56*4047*0.3048/454 -> 0 | I10: ='Land&Rain'!I51*'Land&Rain'!C57*4047*0.3048/454 -> 0 | J10: ='Land&Rain'!I51*'Land&Rain'!D57*4047*0.3048/454 -> 0 | K10: ='Land&Rain'!I51*'Land&Rain'!E57*4047*0.3048/454 -> 0 | L10: ='Land&Rain'!K51*'Land&Rain'!C58*4047*0.3048/454 -> 0 | M10: ='Land&Rain'!K51*'Land&Rain'!D58*4047*0.3048/454 -> 0 | N10: ='Land&Rain'!K51*'Land&Rain'!E58*4047*0.3048/454 -> 0 | O10: =L10+I10+F10+C10 -> 0 | P10: =M10+J10+G10+D10 -> 0 | Q10: =N10+K10+H10+E10 -> 0
B11: Total | C11: =SUM(C6:C10) -> 0 | D11: =SUM(D6:D10) -> 0 | E11: =SUM(E6:E10) -> 0 | F11: =SUM(F6:F10) -> 0 | G11: =SUM(G6:G10) -> 0 | H11: =SUM(H6:H10) -> 0 | I11: =SUM(I6:I10) -> 0 | J11: =SUM(J6:J10) -> 0 | K11: =SUM(K6:K10) -> 0 | L11: =SUM(L6:L10) -> 0 | M11: =SUM(M6:M10) -> 0 | N11: =SUM(N6:N10) -> 0 | O11: =SUM(O6:O10) -> 0 | P11: =SUM(P6:P10) -> 0 | Q11: =SUM(Q6:Q10) -> 0
B14: b. Nutrient load reduction in runoff with BMPs (lb/year)
B15: Watershed | C15: Cropland | F15: Pastureland | I15: Forest | L15: User Defined | O15: Total
C16: N | D16: P | E16: BOD | F16: N | G16: P | H16: BOD | I16: N | J16: P | K16: BOD | L16: N | M16: P | N16: BOD | O16: N | P16: P | Q16: BOD
B17: W1 | C17: =(C6-'Land&Rain'!E63*Animal!N29*4047*0.3048/454)*Sediment!G18+'Land&Rain'!E63*Animal!N29*4047*0.3048/454 -> 0 | D17: =(D6-'Land&Rain'!E63*Animal!P29*4047*0.3048/454)*Sediment!K18+'Land&Rain'!E63*Animal!P29*4047*0.3048/454 -> 0 | E17: =(E6-'Land&Rain'!E63*Animal!R29*4047*0.3048/454)*Sediment!O18+'Land&Rain'!E63*Animal!R29*4047*0.3048/454 -> 0 | F17: =F6*Sediment!H18 -> 0 | G17: =G6*Sediment!L18 -> 0 | H17: =H6*Sediment!P18 -> 0 | I17: =I6*Sediment!I18 -> 0 | J17: =J6*Sediment!M18 -> 0 | K17: =K6*Sediment!Q18 -> 0 | L17: =L6*Sediment!J18 -> 0 | M17: =M6*Sediment!N18 -> 0 | N17: =N6*Sediment!R18 -> 0 | O17: =L17+I17+F17+C17 -> 0 | P17: =M17+J17+G17+D17 -> 0 | Q17: =N17+K17+H17+E17 -> 0
B18: W2 | C18: =(C7-'Land&Rain'!E64*Animal!N30*4047*0.3048/454)*Sediment!G19+'Land&Rain'!E64*Animal!N30*4047*0.3048/454 -> 0 | D18: =(D7-'Land&Rain'!E64*Animal!P30*4047*0.3048/454)*Sediment!K19+'Land&Rain'!E64*Animal!P30*4047*0.3048/454 -> 0 | E18: =(E7-'Land&Rain'!E64*Animal!R30*4047*0.3048/454)*Sediment!O19+'Land&Rain'!E64*Animal!R30*4047*0.3048/454 -> 0 | F18: =F7*Sediment!H19 -> 0 | G18: =G7*Sediment!L19 -> 0 | H18: =H7*Sediment!P19 -> 0 | I18: =I7*Sediment!I19 -> 0 | J18: =J7*Sediment!M19 -> 0 | K18: =K7*Sediment!Q19 -> 0 | L18: =L7*Sediment!J19 -> 0 | M18: =M7*Sediment!N19 -> 0 | N18: =N7*Sediment!R19 -> 0 | O18: =L18+I18+F18+C18 -> 0 | P18: =M18+J18+G18+D18 -> 0 | Q18: =N18+K18+H18+E18 -> 0
B19: W3 | C19: =(C8-'Land&Rain'!E65*Animal!N31*4047*0.3048/454)*Sediment!G20+'Land&Rain'!E65*Animal!N31*4047*0.3048/454 -> 0 | D19: =(D8-'Land&Rain'!E65*Animal!P31*4047*0.3048/454)*Sediment!K20+'Land&Rain'!E65*Animal!P31*4047*0.3048/454 -> 0 | E19: =(E8-'Land&Rain'!E65*Animal!R31*4047*0.3048/454)*Sediment!O20+'Land&Rain'!E65*Animal!R31*4047*0.3048/454 -> 0 | F19: =F8*Sediment!H20 -> 0 | G19: =G8*Sediment!L20 -> 0 | H19: =H8*Sediment!P20 -> 0 | I19: =I8*Sediment!I20 -> 0 | J19: =J8*Sediment!M20 -> 0 | K19: =K8*Sediment!Q20 -> 0 | L19: =L8*Sediment!J20 -> 0 | M19: =M8*Sediment!N20 -> 0 | N19: =N8*Sediment!R20 -> 0 | O19: =L19+I19+F19+C19 -> 0 | P19: =M19+J19+G19+D19 -> 0 | Q19: =N19+K19+H19+E19 -> 0
B20: W4 | C20: =(C9-'Land&Rain'!E66*Animal!N32*4047*0.3048/454)*Sediment!G21+'Land&Rain'!E66*Animal!N32*4047*0.3048/454 -> 0 | D20: =(D9-'Land&Rain'!E66*Animal!P32*4047*0.3048/454)*Sediment!K21+'Land&Rain'!E66*Animal!P32*4047*0.3048/454 -> 0 | E20: =(E9-'Land&Rain'!E66*Animal!R32*4047*0.3048/454)*Sediment!O21+'Land&Rain'!E66*Animal!R32*4047*0.3048/454 -> 0 | F20: =F9*Sediment!H21 -> 0 | G20: =G9*Sediment!L21 -> 0 | H20: =H9*Sediment!P21 -> 0 | I20: =I9*Sediment!I21 -> 0 | J20: =J9*Sediment!M21 -> 0 | K20: =K9*Sediment!Q21 -> 0 | L20: =L9*Sediment!J21 -> 0 | M20: =M9*Sediment!N21 -> 0 | N20: =N9*Sediment!R21 -> 0 | O20: =L20+I20+F20+C20 -> 0 | P20: =M20+J20+G20+D20 -> 0 | Q20: =N20+K20+H20+E20 -> 0
B21: W5 | C21: =(C10-'Land&Rain'!E67*Animal!N33*4047*0.3048/454)*Sediment!G22+'Land&Rain'!E67*Animal!N33*4047*0.3048/454 -> 0 | D21: =(D10-'Land&Rain'!E67*Animal!P33*4047*0.3048/454)*Sediment!K22+'Land&Rain'!E67*Animal!P33*4047*0.3048/454 -> 0 | E21: =(E10-'Land&Rain'!E67*Animal!R33*4047*0.3048/454)*Sediment!O22+'Land&Rain'!E67*Animal!R33*4047*0.3048/454 -> 0 | F21: =F10*Sediment!H22 -> 0 | G21: =G10*Sediment!L22 -> 0 | H21: =H10*Sediment!P22 -> 0 | I21: =I10*Sediment!I22 -> 0 | J21: =J10*Sediment!M22 -> 0 | K21: =K10*Sediment!Q22 -> 0 | L21: =L10*Sediment!J22 -> 0 | M21: =M10*Sediment!N22 -> 0 | N21: =N10*Sediment!R22 -> 0 | O21: =L21+I21+F21+C21 -> 0 | P21: =M21+J21+G21+D21 -> 0 | Q21: =N21+K21+H21+E21 -> 0
B22: Total | C22: =SUM(C17:C21) -> 0 | D22: =SUM(D17:D21) -> 0 | E22: =SUM(E17:E21) -> 0 | F22: =SUM(F17:F21) -> 0 | G22: =SUM(G17:G21) -> 0 | H22: =SUM(H17:H21) -> 0 | I22: =SUM(I17:I21) -> 0 | J22: =SUM(J17:J21) -> 0 | K22: =SUM(K17:K21) -> 0 | L22: =SUM(L17:L21) -> 0 | M22: =SUM(M17:M21) -> 0 | N22: =SUM(N17:N21) -> 0 | O22: =SUM(O17:O21) -> 0 | P22: =SUM(P17:P21) -> 0 | Q22: =SUM(Q17:Q21) -> 0
B24: 1. Total load by subwatershed(s)
B25: Watershed | C25: N Load (no BMP) | D25: P Load (no BMP) | E25: BOD Load (no BMP) | F25: Sediment Load (no BMP) | G25: N Reduction | H25: P Reduction | I25: BOD Reduction | J25: Sediment Reduction | K25: N Load (with BMP) | L25: P Load (with BMP) | M25: BOD (with BMP) | N25: Sediment Load (with BMP) | O25: %N Reduction | P25: %P Reduction | Q25: %BOD Reduction | R25: %Sed Reduction
C26: lb/year | D26: lb/year | E26: lb/year | F26: t/year | G26: lb/year | H26: lb/year | I26: lb/year | J26: t/year | K26: lb/year | L26: lb/year | M26: lb/year | N26: t/year | O26: % | P26: % | Q26: % | R26: %
B27: W1 | C27: =O6+Feedlots!C30+(Sediment!I42)*2000+Urban!C80+Septic!C25+AA47+'Gully&Streambank'!C30+'Gully&Streambank'!K30 -> 0 | D27: =P6+Feedlots!D30+(Sediment!K42)*2000+Urban!D80+Septic!D25+AB47+'Gully&Streambank'!D30+'Gully&Streambank'!L30 -> 0 | E27: =Q6+Feedlots!E30+(Sediment!M42)*2000+Urban!E80+Septic!E25+AC47+'Gully&Streambank'!E30+'Gully&Streambank'!M30 -> 0 | F27: =Sediment!M26+Urban!F80/2000+AD47/2000+'Gully&Streambank'!N30/2000+'Gully&Streambank'!F30/2000 -> 0 | G27: =O17+(Sediment!O42)*2000+Urban!G80+Feedlots!F30+Septic!F25+'Gully&Streambank'!G30+'Gully&Streambank'!O30 -> 0 | H27: =P17+(Sediment!Q42)*2000+Urban!H80+Feedlots!G30+Septic!G25+'Gully&Streambank'!H30+'Gully&Streambank'!P30 -> 0 | I27: =Q17+(Sediment!S42)*2000+Urban!I80+Feedlots!H30+Septic!H25+'Gully&Streambank'!I30+'Gully&Streambank'!Q30 -> 0 | J27: =Sediment!O26+Urban!J80/2000+'Gully&Streambank'!R30/2000+'Gully&Streambank'!J30/2000 -> 0 | K27: =C27-G27 -> 0 | L27: =D27-H27 -> 0 | M27: =E27-I27 -> 0 | N27: =F27-J27 -> 0 | O27: =IF(C27=0,0,100*G27/C27) -> 0 | P27: =IF(D27=0,0,100*H27/D27) -> 0 | Q27: =IF(E27=0,0,100*I27/E27) -> 0 | R27: =IF(F27=0,0,100*J27/F27) -> 0
B28: W2 | C28: =O7+Feedlots!C31+(Sediment!I43)*2000+Urban!C81+Septic!C26+AA48+'Gully&Streambank'!C31+'Gully&Streambank'!K31 -> 0 | D28: =P7+Feedlots!D31+(Sediment!K43)*2000+Urban!D81+Septic!D26+AB48+'Gully&Streambank'!D31+'Gully&Streambank'!L31 -> 0 | E28: =Q7+Feedlots!E31+(Sediment!M43)*2000+Urban!E81+Septic!E26+AC48+'Gully&Streambank'!E31+'Gully&Streambank'!M31 -> 0 | F28: =Sediment!M27+Urban!F81/2000+AD48/2000+'Gully&Streambank'!N31/2000+'Gully&Streambank'!F31/2000 -> 0 | G28: =O18+(Sediment!O43)*2000+Urban!G81+Feedlots!F31+Septic!F26+'Gully&Streambank'!G31+'Gully&Streambank'!O31 -> 0 | H28: =P18+(Sediment!Q43)*2000+Urban!H81+Feedlots!G31+Septic!G26+'Gully&Streambank'!H31+'Gully&Streambank'!P31 -> 0 | I28: =Q18+(Sediment!S43)*2000+Urban!I81+Feedlots!H31+Septic!H26+'Gully&Streambank'!I31+'Gully&Streambank'!Q31 -> 0 | J28: =Sediment!O27+Urban!J81/2000+'Gully&Streambank'!R31/2000+'Gully&Streambank'!J31/2000 -> 0 | K28: =C28-G28 -> 0 | L28: =D28-H28 -> 0 | M28: =E28-I28 -> 0 | N28: =F28-J28 -> 0 | O28: =IF(C28=0,0,100*G28/C28) -> 0 | P28: =IF(D28=0,0,100*H28/D28) -> 0 | Q28: =IF(E28=0,0,100*I28/E28) -> 0 | R28: =IF(F28=0,0,100*J28/F28) -> 0
B29: W3 | C29: =O8+Feedlots!C32+(Sediment!I44)*2000+Urban!C82+Septic!C27+AA49+'Gully&Streambank'!C32+'Gully&Streambank'!K32 -> 0 | D29: =P8+Feedlots!D32+(Sediment!K44)*2000+Urban!D82+Septic!D27+AB49+'Gully&Streambank'!D32+'Gully&Streambank'!L32 -> 0 | E29: =Q8+Feedlots!E32+(Sediment!M44)*2000+Urban!E82+Septic!E27+AC49+'Gully&Streambank'!E32+'Gully&Streambank'!M32 -> 0 | F29: =Sediment!M28+Urban!F82/2000+AD49/2000+'Gully&Streambank'!N32/2000+'Gully&Streambank'!F32/2000 -> 0 | G29: =O19+(Sediment!O44)*2000+Urban!G82+Feedlots!F32+Septic!F27+'Gully&Streambank'!G32+'Gully&Streambank'!O32 -> 0 | H29: =P19+(Sediment!Q44)*2000+Urban!H82+Feedlots!G32+Septic!G27+'Gully&Streambank'!H32+'Gully&Streambank'!P32 -> 0 | I29: =Q19+(Sediment!S44)*2000+Urban!I82+Feedlots!H32+Septic!H27+'Gully&Streambank'!I32+'Gully&Streambank'!Q32 -> 0 | J29: =Sediment!O28+Urban!J82/2000+'Gully&Streambank'!R32/2000+'Gully&Streambank'!J32/2000 -> 0 | K29: =C29-G29 -> 0 | L29: =D29-H29 -> 0 | M29: =E29-I29 -> 0 | N29: =F29-J29 -> 0 | O29: =IF(C29=0,0,100*G29/C29) -> 0 | P29: =IF(D29=0,0,100*H29/D29) -> 0 | Q29: =IF(E29=0,0,100*I29/E29) -> 0 | R29: =IF(F29=0,0,100*J29/F29) -> 0
B30: W4 | C30: =O9+Feedlots!C33+(Sediment!I45)*2000+Urban!C83+Septic!C28+AA50+'Gully&Streambank'!C33+'Gully&Streambank'!K33 -> 0 | D30: =P9+Feedlots!D33+(Sediment!K45)*2000+Urban!D83+Septic!D28+AB50+'Gully&Streambank'!D33+'Gully&Streambank'!L33 -> 0 | E30: =Q9+Feedlots!E33+(Sediment!M45)*2000+Urban!E83+Septic!E28+AC50+'Gully&Streambank'!E33+'Gully&Streambank'!M33 -> 0 | F30: =Sediment!M29+Urban!F83/2000+AD50/2000+'Gully&Streambank'!N33/2000+'Gully&Streambank'!F33/2000 -> 0 | G30: =O20+(Sediment!O45)*2000+Urban!G83+Feedlots!F33+Septic!F28+'Gully&Streambank'!G33+'Gully&Streambank'!O33 -> 0 | H30: =P20+(Sediment!Q45)*2000+Urban!H83+Feedlots!G33+Septic!G28+'Gully&Streambank'!H33+'Gully&Streambank'!P33 -> 0 | I30: =Q20+(Sediment!S45)*2000+Urban!I83+Feedlots!H33+Septic!H28+'Gully&Streambank'!I33+'Gully&Streambank'!Q33 -> 0 | J30: =Sediment!O29+Urban!J83/2000+'Gully&Streambank'!R33/2000+'Gully&Streambank'!J33/2000 -> 0 | K30: =C30-G30 -> 0 | L30: =D30-H30 -> 0 | M30: =E30-I30 -> 0 | N30: =F30-J30 -> 0 | O30: =IF(C30=0,0,100*G30/C30) -> 0 | P30: =IF(D30=0,0,100*H30/D30) -> 0 | Q30: =IF(E30=0,0,100*I30/E30) -> 0 | R30: =IF(F30=0,0,100*J30/F30) -> 0
B31: W5 | C31: =O10+Feedlots!C34+(Sediment!I46)*2000+Urban!C84+Septic!C29+AA51+'Gully&Streambank'!C34+'Gully&Streambank'!K34 -> 0 | D31: =P10+Feedlots!D34+(Sediment!K46)*2000+Urban!D84+Septic!D29+AB51+'Gully&Streambank'!D34+'Gully&Streambank'!L34 -> 0 | E31: =Q10+Feedlots!E34+(Sediment!M46)*2000+Urban!E84+Septic!E29+AC51+'Gully&Streambank'!E34+'Gully&Streambank'!M34 -> 0 | F31: =Sediment!M30+Urban!F84/2000+AD51/2000+'Gully&Streambank'!N34/2000+'Gully&Streambank'!F34/2000 -> 0 | G31: =O21+(Sediment!O46)*2000+Urban!G84+Feedlots!F34+Septic!F29+'Gully&Streambank'!G34+'Gully&Streambank'!O34 -> 0 | H31: =P21+(Sediment!Q46)*2000+Urban!H84+Feedlots!G34+Septic!G29+'Gully&Streambank'!H34+'Gully&Streambank'!P34 -> 0 | I31: =Q21+(Sediment!S46)*2000+Urban!I84+Feedlots!H34+Septic!H29+'Gully&Streambank'!I34+'Gully&Streambank'!Q34 -> 0 | J31: =Sediment!O30+Urban!J84/2000+'Gully&Streambank'!R34/2000+'Gully&Streambank'!J34/2000 -> 0 | K31: =C31-G31 -> 0 | L31: =D31-H31 -> 0 | M31: =E31-I31 -> 0 | N31: =F31-J31 -> 0 | O31: =IF(C31=0,0,100*G31/C31) -> 0 | P31: =IF(D31=0,0,100*H31/D31) -> 0 | Q31: =IF(E31=0,0,100*I31/E31) -> 0 | R31: =IF(F31=0,0,100*J31/F31) -> 0
B32: Total | C32: =SUM(C27:C31) -> 0 | D32: =SUM(D27:D31) -> 0 | E32: =SUM(E27:E31) -> 0 | F32: =SUM(F27:F31) -> 0 | G32: =SUM(G27:G31) -> 0 | H32: =SUM(H27:H31) -> 0 | I32: =SUM(I27:I31) -> 0 | J32: =SUM(J27:J31) -> 0 | K32: =SUM(K27:K31) -> 0 | L32: =SUM(L27:L31) -> 0 | M32: =SUM(M27:M31) -> 0 | N32: =SUM(N27:N31) -> 0 | O32: =IF(C32=0,0,100*G32/C32) -> 0 | P32: =IF(D32=0,0,100*H32/D32) -> 0 | Q32: =IF(E32=0,0,100*I32/E32) -> 0 | R32: =IF(F32=0,0,100*J32/F32) -> 0
B34: c. Nutrient and sediment load by land uses with BMP (lb/year)
B35: Watershed | C35: Urban | G35: Cropland | K35: Pastureland | O35: Forest | S35: Feedlot | W35: User Defined | AA35: Septic | AE35: Gully | AI35: Streambank
C36: N | D36: P | E36: BOD | F36: Sediment | G36: N | H36: P | I36: BOD | J36: Sediment | K36: N | L36: P | M36: BOD | N36: Sediment | O36: N | P36: P | Q36: BOD | R36: Sediment | S36: N | T36: P | U36: BOD | V36: Sediment | W36: N | X36: P | Y36: BOD | Z36: Sediment | AA36: N | AB36: P | AC36: BOD | AD36: Sediment | AE36: N | AF36: P | AG36: BOD | AH36: Sediment | AI36: N | AJ36: P | AK36: BOD | AL36: Sediment
B37: W1 | C37: =Urban!K80 -> 0 | D37: =Urban!L80 -> 0 | E37: =Urban!M80 -> 0 | F37: =Urban!N80 -> 0 | G37: =C6-C17+(Sediment!C51)*2000 -> 0 | H37: =D6-D17+(Sediment!D51)*2000 -> 0 | I37: =E6-E17+(Sediment!E51)*2000 -> 0 | J37: =2000*Sediment!F51 -> 0 | K37: =F6-F17+(Sediment!G51)*2000 -> 0 | L37: =G6-G17+(Sediment!H51)*2000 -> 0 | M37: =H6-H17+(Sediment!I51)*2000 -> 0 | N37: =(Sediment!J51)*2000 -> 0 | O37: =I6-I17+(Sediment!K51)*2000 -> 0 | P37: =J6-J17+(Sediment!L51)*2000 -> 0 | Q37: =K6-K17+(Sediment!M51)*2000 -> 0 | R37: =(Sediment!N51)*2000 -> 0 | S37: =Feedlots!C30- Feedlots!F30 -> 0 | T37: =Feedlots!D30- Feedlots!G30 -> 0 | U37: =Feedlots!E30- Feedlots!H30 -> 0 | V37: 0 | W37: =L6-L17+(Sediment!O51)*2000 -> 0 | X37: =M6-M17+(Sediment!P51)*2000 -> 0 | Y37: =N6-N17+(Sediment!Q51)*2000 -> 0 | Z37: =(Sediment!R51)*2000 -> 0 | AA37: =Septic!I25 -> 0 | AB37: =Septic!J25 -> 0 | AC37: =Septic!K25 -> 0 | AD37: 0 | AE37: ='Gully&Streambank'!C30-'Gully&Streambank'!G30 -> 0 | AF37: ='Gully&Streambank'!D30-'Gully&Streambank'!H30 -> 0 | AG37: ='Gully&Streambank'!E30-'Gully&Streambank'!I30 -> 0 | AH37: ='Gully&Streambank'!F30-'Gully&Streambank'!J30 -> 0 | AI37: ='Gully&Streambank'!K30-'Gully&Streambank'!O30 -> 0 | AJ37: ='Gully&Streambank'!L30-'Gully&Streambank'!P30 -> 0 | AK37: ='Gully&Streambank'!M30-'Gully&Streambank'!Q30 -> 0 | AL37: ='Gully&Streambank'!N30-'Gully&Streambank'!R30 -> 0
B38: W2 | C38: =Urban!K81 -> 0 | D38: =Urban!L81 -> 0 | E38: =Urban!M81 -> 0 | F38: =Urban!N81 -> 0 | G38: =C7-C18+(Sediment!C52)*2000 -> 0 | H38: =D7-D18+(Sediment!D52)*2000 -> 0 | I38: =E7-E18+(Sediment!E52)*2000 -> 0 | J38: =2000*Sediment!F52 -> 0 | K38: =F7-F18+(Sediment!G52)*2000 -> 0 | L38: =G7-G18+(Sediment!H52)*2000 -> 0 | M38: =H7-H18+(Sediment!I52)*2000 -> 0 | N38: =(Sediment!J52)*2000 -> 0 | O38: =I7-I18+(Sediment!K52)*2000 -> 0 | P38: =J7-J18+(Sediment!L52)*2000 -> 0 | Q38: =K7-K18+(Sediment!M52)*2000 -> 0 | R38: =(Sediment!N52)*2000 -> 0 | S38: =Feedlots!C31- Feedlots!F31 -> 0 | T38: =Feedlots!D31- Feedlots!G31 -> 0 | U38: =Feedlots!E31- Feedlots!H31 -> 0 | V38: 0 | W38: =L7-L18+(Sediment!O52)*2000 -> 0 | X38: =M7-M18+(Sediment!P52)*2000 -> 0 | Y38: =N7-N18+(Sediment!Q52)*2000 -> 0 | Z38: =(Sediment!R52)*2000 -> 0 | AA38: =Septic!I26 -> 0 | AB38: =Septic!J26 -> 0 | AC38: =Septic!K26 -> 0 | AD38: 0 | AE38: ='Gully&Streambank'!C31-'Gully&Streambank'!G31 -> 0 | AF38: ='Gully&Streambank'!D31-'Gully&Streambank'!H31 -> 0 | AG38: ='Gully&Streambank'!E31-'Gully&Streambank'!I31 -> 0 | AH38: ='Gully&Streambank'!F31-'Gully&Streambank'!J31 -> 0 | AI38: ='Gully&Streambank'!K31-'Gully&Streambank'!O31 -> 0 | AJ38: ='Gully&Streambank'!L31-'Gully&Streambank'!P31 -> 0 | AK38: ='Gully&Streambank'!M31-'Gully&Streambank'!Q31 -> 0 | AL38: ='Gully&Streambank'!N31-'Gully&Streambank'!R31 -> 0
B39: W3 | C39: =Urban!K82 -> 0 | D39: =Urban!L82 -> 0 | E39: =Urban!M82 -> 0 | F39: =Urban!N82 -> 0 | G39: =C8-C19+(Sediment!C53)*2000 -> 0 | H39: =D8-D19+(Sediment!D53)*2000 -> 0 | I39: =E8-E19+(Sediment!E53)*2000 -> 0 | J39: =2000*Sediment!F53 -> 0 | K39: =F8-F19+(Sediment!G53)*2000 -> 0 | L39: =G8-G19+(Sediment!H53)*2000 -> 0 | M39: =H8-H19+(Sediment!I53)*2000 -> 0 | N39: =(Sediment!J53)*2000 -> 0 | O39: =I8-I19+(Sediment!K53)*2000 -> 0 | P39: =J8-J19+(Sediment!L53)*2000 -> 0 | Q39: =K8-K19+(Sediment!M53)*2000 -> 0 | R39: =(Sediment!N53)*2000 -> 0 | S39: =Feedlots!C32- Feedlots!F32 -> 0 | T39: =Feedlots!D32- Feedlots!G32 -> 0 | U39: =Feedlots!E32- Feedlots!H32 -> 0 | V39: 0 | W39: =L8-L19+(Sediment!O53)*2000 -> 0 | X39: =M8-M19+(Sediment!P53)*2000 -> 0 | Y39: =N8-N19+(Sediment!Q53)*2000 -> 0 | Z39: =(Sediment!R53)*2000 -> 0 | AA39: =Septic!I27 -> 0 | AB39: =Septic!J27 -> 0 | AC39: =Septic!K27 -> 0 | AD39: 0 | AE39: ='Gully&Streambank'!C32-'Gully&Streambank'!G32 -> 0 | AF39: ='Gully&Streambank'!D32-'Gully&Streambank'!H32 -> 0 | AG39: ='Gully&Streambank'!E32-'Gully&Streambank'!I32 -> 0 | AH39: ='Gully&Streambank'!F32-'Gully&Streambank'!J32 -> 0 | AI39: ='Gully&Streambank'!K32-'Gully&Streambank'!O32 -> 0 | AJ39: ='Gully&Streambank'!L32-'Gully&Streambank'!P32 -> 0 | AK39: ='Gully&Streambank'!M32-'Gully&Streambank'!Q32 -> 0 | AL39: ='Gully&Streambank'!N32-'Gully&Streambank'!R32 -> 0
B40: W4 | C40: =Urban!K83 -> 0 | D40: =Urban!L83 -> 0 | E40: =Urban!M83 -> 0 | F40: =Urban!N83 -> 0 | G40: =C9-C20+(Sediment!C54)*2000 -> 0 | H40: =D9-D20+(Sediment!D54)*2000 -> 0 | I40: =E9-E20+(Sediment!E54)*2000 -> 0 | J40: =2000*Sediment!F54 -> 0 | K40: =F9-F20+(Sediment!G54)*2000 -> 0 | L40: =G9-G20+(Sediment!H54)*2000 -> 0 | M40: =H9-H20+(Sediment!I54)*2000 -> 0 | N40: =(Sediment!J54)*2000 -> 0 | O40: =I9-I20+(Sediment!K54)*2000 -> 0 | P40: =J9-J20+(Sediment!L54)*2000 -> 0 | Q40: =K9-K20+(Sediment!M54)*2000 -> 0 | R40: =(Sediment!N54)*2000 -> 0 | S40: =Feedlots!C33- Feedlots!F33 -> 0 | T40: =Feedlots!D33- Feedlots!G33 -> 0 | U40: =Feedlots!E33- Feedlots!H33 -> 0 | V40: 0 | W40: =L9-L20+(Sediment!O54)*2000 -> 0 | X40: =M9-M20+(Sediment!P54)*2000 -> 0 | Y40: =N9-N20+(Sediment!Q54)*2000 -> 0 | Z40: =(Sediment!R54)*2000 -> 0 | AA40: =Septic!I28 -> 0 | AB40: =Septic!J28 -> 0 | AC40: =Septic!K28 -> 0 | AD40: 0 | AE40: ='Gully&Streambank'!C33-'Gully&Streambank'!G33 -> 0 | AF40: ='Gully&Streambank'!D33-'Gully&Streambank'!H33 -> 0 | AG40: ='Gully&Streambank'!E33-'Gully&Streambank'!I33 -> 0 | AH40: ='Gully&Streambank'!F33-'Gully&Streambank'!J33 -> 0 | AI40: ='Gully&Streambank'!K33-'Gully&Streambank'!O33 -> 0 | AJ40: ='Gully&Streambank'!L33-'Gully&Streambank'!P33 -> 0 | AK40: ='Gully&Streambank'!M33-'Gully&Streambank'!Q33 -> 0 | AL40: ='Gully&Streambank'!N33-'Gully&Streambank'!R33 -> 0
B41: W5 | C41: =Urban!K84 -> 0 | D41: =Urban!L84 -> 0 | E41: =Urban!M84 -> 0 | F41: =Urban!N84 -> 0 | G41: =C10-C21+(Sediment!C55)*2000 -> 0 | H41: =D10-D21+(Sediment!D55)*2000 -> 0 | I41: =E10-E21+(Sediment!E55)*2000 -> 0 | J41: =2000*Sediment!F55 -> 0 | K41: =F10-F21+(Sediment!G55)*2000 -> 0 | L41: =G10-G21+(Sediment!H55)*2000 -> 0 | M41: =H10-H21+(Sediment!I55)*2000 -> 0 | N41: =(Sediment!J55)*2000 -> 0 | O41: =I10-I21+(Sediment!K55)*2000 -> 0 | P41: =J10-J21+(Sediment!L55)*2000 -> 0 | Q41: =K10-K21+(Sediment!M55)*2000 -> 0 | R41: =(Sediment!N55)*2000 -> 0 | S41: =Feedlots!C34- Feedlots!F34 -> 0 | T41: =Feedlots!D34- Feedlots!G34 -> 0 | U41: =Feedlots!E34- Feedlots!H34 -> 0 | V41: 0 | W41: =L10-L21+(Sediment!O55)*2000 -> 0 | X41: =M10-M21+(Sediment!P55)*2000 -> 0 | Y41: =N10-N21+(Sediment!Q55)*2000 -> 0 | Z41: =(Sediment!R55)*2000 -> 0 | AA41: =Septic!I29 -> 0 | AB41: =Septic!J29 -> 0 | AC41: =Septic!K29 -> 0 | AD41: 0 | AE41: ='Gully&Streambank'!C34-'Gully&Streambank'!G34 -> 0 | AF41: ='Gully&Streambank'!D34-'Gully&Streambank'!H34 -> 0 | AG41: ='Gully&Streambank'!E34-'Gully&Streambank'!I34 -> 0 | AH41: ='Gully&Streambank'!F34-'Gully&Streambank'!J34 -> 0 | AI41: ='Gully&Streambank'!K34-'Gully&Streambank'!O34 -> 0 | AJ41: ='Gully&Streambank'!L34-'Gully&Streambank'!P34 -> 0 | AK41: ='Gully&Streambank'!M34-'Gully&Streambank'!Q34 -> 0 | AL41: ='Gully&Streambank'!N34-'Gully&Streambank'!R34 -> 0
B42: Total | C42: =SUM(C37:C41) -> 0 | D42: =SUM(D37:D41) -> 0 | E42: =SUM(E37:E41) -> 0 | F42: =SUM(F37:F41) -> 0 | G42: =SUM(G37:G41) -> 0 | H42: =SUM(H37:H41) -> 0 | I42: =SUM(I37:I41) -> 0 | J42: =SUM(J37:J41) -> 0 | K42: =SUM(K37:K41) -> 0 | L42: =SUM(L37:L41) -> 0 | M42: =SUM(M37:M41) -> 0 | N42: =SUM(N37:N41) -> 0 | O42: =SUM(O37:O41) -> 0 | P42: =SUM(P37:P41) -> 0 | Q42: =SUM(Q37:Q41) -> 0 | R42: =SUM(R37:R41) -> 0 | S42: =SUM(S37:S41) -> 0 | T42: =SUM(T37:T41) -> 0 | U42: =SUM(U37:U41) -> 0 | V42: =SUM(V37:V41) -> 0 | W42: =SUM(W37:W41) -> 0 | X42: =SUM(X37:X41) -> 0 | Y42: =SUM(Y37:Y41) -> 0 | Z42: =SUM(Z37:Z41) -> 0 | AA42: =SUM(AA37:AA41) -> 0 | AB42: =SUM(AB37:AB41) -> 0 | AC42: =SUM(AC37:AC41) -> 0 | AD42: =SUM(AD37:AD41) -> 0 | AE42: =SUM(AE37:AE41) -> 0 | AF42: =SUM(AF37:AF41) -> 0 | AG42: =SUM(AG37:AG41) -> 0 | AH42: =SUM(AH37:AH41) -> 0 | AI42: =SUM(AI37:AI41) -> 0 | AJ42: =SUM(AJ37:AJ41) -> 0 | AK42: =SUM(AK37:AK41) -> 0 | AL42: =SUM(AL37:AL41) -> 0
B44: d. Load from groundwater by land uses with BMP (lb/year)
B45: Watershed | C45: Urban | G45: Cropland | K45: Pastureland | O45: Forest | S45: Feedlot | W45: User Defined | AA45: Total
C46: N | D46: P | E46: BOD | F46: Sediment | G46: N | H46: P | I46: BOD | J46: Sediment | K46: N | L46: P | M46: BOD | N46: Sediment | O46: N | P46: P | Q46: BOD | R46: Sediment | S46: N | T46: P | U46: BOD | V46: Sediment | W46: N | X46: P | Y46: BOD | Z46: Sediment | AA46: N | AB46: P | AC46: BOD | AD46: Sediment
B47: W1 | C47: ='Land&Rain'!AK47*Input!I78*4047*0.3048/454 -> 0 | D47: ='Land&Rain'!AK47*Input!J78*4047*0.3048/454 -> 0 | E47: ='Land&Rain'!AK47*Input!K78*4047*0.3048/454 -> 0 | G47: ='Land&Rain'!AM47*Input!I79*4047*0.3048/454 -> 0 | H47: ='Land&Rain'!AM47*Input!J79*4047*0.3048/454 -> 0 | I47: ='Land&Rain'!AM47*Input!K79*4047*0.3048/454 -> 0 | K47: ='Land&Rain'!AO47*Input!I80*4047*0.3048/454 -> 0 | L47: ='Land&Rain'!AO47*Input!J80*4047*0.3048/454 -> 0 | M47: ='Land&Rain'!AO47*Input!K80*4047*0.3048/454 -> 0 | O47: ='Land&Rain'!AQ47*Input!I81*4047*0.3048/454 -> 0 | P47: ='Land&Rain'!AQ47*Input!J81*4047*0.3048/454 -> 0 | Q47: ='Land&Rain'!AQ47*Input!K81*4047*0.3048/454 -> 0 | S47: ='Land&Rain'!AU47*Input!I82*4047*0.3048/454 -> 0 | T47: ='Land&Rain'!AU47*Input!J82*4047*0.3048/454 -> 0 | U47: ='Land&Rain'!AU47*Input!K82*4047*0.3048/454 -> 0 | W47: ='Land&Rain'!AS47*Input!I83*4047*0.3048/454 -> 0 | X47: ='Land&Rain'!AS47*Input!J83*4047*0.3048/454 -> 0 | Y47: ='Land&Rain'!AS47*Input!K83*4047*0.3048/454 -> 0 | AA47: =W47+S47+O47+K47+G47+C47 -> 0 | AB47: =X47+T47+P47+L47+H47+D47 -> 0 | AC47: =Y47+U47+Q47+M47+I47+E47 -> 0 | AD47: =Z47+V47+R47+N47+J47+F47 -> 0
B48: W2 | C48: ='Land&Rain'!AK48*Input!I78*4047*0.3048/454 -> 0 | D48: ='Land&Rain'!AK48*Input!J78*4047*0.3048/454 -> 0 | E48: ='Land&Rain'!AK48*Input!K78*4047*0.3048/454 -> 0 | G48: ='Land&Rain'!AM48*Input!I79*4047*0.3048/454 -> 0 | H48: ='Land&Rain'!AM48*Input!J79*4047*0.3048/454 -> 0 | I48: ='Land&Rain'!AM48*Input!K79*4047*0.3048/454 -> 0 | K48: ='Land&Rain'!AO48*Input!I80*4047*0.3048/454 -> 0 | L48: ='Land&Rain'!AO48*Input!J80*4047*0.3048/454 -> 0 | M48: ='Land&Rain'!AO48*Input!K80*4047*0.3048/454 -> 0 | O48: ='Land&Rain'!AQ48*Input!I81*4047*0.3048/454 -> 0 | P48: ='Land&Rain'!AQ48*Input!J81*4047*0.3048/454 -> 0 | Q48: ='Land&Rain'!AQ48*Input!K81*4047*0.3048/454 -> 0 | S48: ='Land&Rain'!AU48*Input!I82*4047*0.3048/454 -> 0 | T48: ='Land&Rain'!AU48*Input!J82*4047*0.3048/454 -> 0 | U48: ='Land&Rain'!AU48*Input!K82*4047*0.3048/454 -> 0 | W48: ='Land&Rain'!AS48*Input!I83*4047*0.3048/454 -> 0 | X48: ='Land&Rain'!AS48*Input!J83*4047*0.3048/454 -> 0 | Y48: ='Land&Rain'!AS48*Input!K83*4047*0.3048/454 -> 0 | AA48: =W48+S48+O48+K48+G48+C48 -> 0 | AB48: =X48+T48+P48+L48+H48+D48 -> 0 | AC48: =Y48+U48+Q48+M48+I48+E48 -> 0 | AD48: =Z48+V48+R48+N48+J48+F48 -> 0
B49: W3 | C49: ='Land&Rain'!AK49*Input!I78*4047*0.3048/454 -> 0 | D49: ='Land&Rain'!AK49*Input!J78*4047*0.3048/454 -> 0 | E49: ='Land&Rain'!AK49*Input!K78*4047*0.3048/454 -> 0 | G49: ='Land&Rain'!AM49*Input!I79*4047*0.3048/454 -> 0 | H49: ='Land&Rain'!AM49*Input!J79*4047*0.3048/454 -> 0 | I49: ='Land&Rain'!AM49*Input!K79*4047*0.3048/454 -> 0 | K49: ='Land&Rain'!AO49*Input!I80*4047*0.3048/454 -> 0 | L49: ='Land&Rain'!AO49*Input!J80*4047*0.3048/454 -> 0 | M49: ='Land&Rain'!AO49*Input!K80*4047*0.3048/454 -> 0 | O49: ='Land&Rain'!AQ49*Input!I81*4047*0.3048/454 -> 0 | P49: ='Land&Rain'!AQ49*Input!J81*4047*0.3048/454 -> 0 | Q49: ='Land&Rain'!AQ49*Input!K81*4047*0.3048/454 -> 0 | S49: ='Land&Rain'!AU49*Input!I82*4047*0.3048/454 -> 0 | T49: ='Land&Rain'!AU49*Input!J82*4047*0.3048/454 -> 0 | U49: ='Land&Rain'!AU49*Input!K82*4047*0.3048/454 -> 0 | W49: ='Land&Rain'!AS49*Input!I83*4047*0.3048/454 -> 0 | X49: ='Land&Rain'!AS49*Input!J83*4047*0.3048/454 -> 0 | Y49: ='Land&Rain'!AS49*Input!K83*4047*0.3048/454 -> 0 | AA49: =W49+S49+O49+K49+G49+C49 -> 0 | AB49: =X49+T49+P49+L49+H49+D49 -> 0 | AC49: =Y49+U49+Q49+M49+I49+E49 -> 0 | AD49: =Z49+V49+R49+N49+J49+F49 -> 0
B50: W4 | C50: ='Land&Rain'!AK50*Input!I78*4047*0.3048/454 -> 0 | D50: ='Land&Rain'!AK50*Input!J78*4047*0.3048/454 -> 0 | E50: ='Land&Rain'!AK50*Input!K78*4047*0.3048/454 -> 0 | G50: ='Land&Rain'!AM50*Input!I79*4047*0.3048/454 -> 0 | H50: ='Land&Rain'!AM50*Input!J79*4047*0.3048/454 -> 0 | I50: ='Land&Rain'!AM50*Input!K79*4047*0.3048/454 -> 0 | K50: ='Land&Rain'!AO50*Input!I80*4047*0.3048/454 -> 0 | L50: ='Land&Rain'!AO50*Input!J80*4047*0.3048/454 -> 0 | M50: ='Land&Rain'!AO50*Input!K80*4047*0.3048/454 -> 0 | O50: ='Land&Rain'!AQ50*Input!I81*4047*0.3048/454 -> 0 | P50: ='Land&Rain'!AQ50*Input!J81*4047*0.3048/454 -> 0 | Q50: ='Land&Rain'!AQ50*Input!K81*4047*0.3048/454 -> 0 | S50: ='Land&Rain'!AU50*Input!I82*4047*0.3048/454 -> 0 | T50: ='Land&Rain'!AU50*Input!J82*4047*0.3048/454 -> 0 | U50: ='Land&Rain'!AU50*Input!K82*4047*0.3048/454 -> 0 | W50: ='Land&Rain'!AS50*Input!I83*4047*0.3048/454 -> 0 | X50: ='Land&Rain'!AS50*Input!J83*4047*0.3048/454 -> 0 | Y50: ='Land&Rain'!AS50*Input!K83*4047*0.3048/454 -> 0 | AA50: =W50+S50+O50+K50+G50+C50 -> 0 | AB50: =X50+T50+P50+L50+H50+D50 -> 0 | AC50: =Y50+U50+Q50+M50+I50+E50 -> 0 | AD50: =Z50+V50+R50+N50+J50+F50 -> 0
B51: W5 | C51: ='Land&Rain'!AK51*Input!I78*4047*0.3048/454 -> 0 | D51: ='Land&Rain'!AK51*Input!J78*4047*0.3048/454 -> 0 | E51: ='Land&Rain'!AK51*Input!K78*4047*0.3048/454 -> 0 | G51: ='Land&Rain'!AM51*Input!I79*4047*0.3048/454 -> 0 | H51: ='Land&Rain'!AM51*Input!J79*4047*0.3048/454 -> 0 | I51: ='Land&Rain'!AM51*Input!K79*4047*0.3048/454 -> 0 | K51: ='Land&Rain'!AO51*Input!I80*4047*0.3048/454 -> 0 | L51: ='Land&Rain'!AO51*Input!J80*4047*0.3048/454 -> 0 | M51: ='Land&Rain'!AO51*Input!K80*4047*0.3048/454 -> 0 | O51: ='Land&Rain'!AQ51*Input!I81*4047*0.3048/454 -> 0 | P51: ='Land&Rain'!AQ51*Input!J81*4047*0.3048/454 -> 0 | Q51: ='Land&Rain'!AQ51*Input!K81*4047*0.3048/454 -> 0 | S51: ='Land&Rain'!AU51*Input!I82*4047*0.3048/454 -> 0 | T51: ='Land&Rain'!AU51*Input!J82*4047*0.3048/454 -> 0 | U51: ='Land&Rain'!AU51*Input!K82*4047*0.3048/454 -> 0 | W51: ='Land&Rain'!AS51*Input!I83*4047*0.3048/454 -> 0 | X51: ='Land&Rain'!AS51*Input!J83*4047*0.3048/454 -> 0 | Y51: ='Land&Rain'!AS51*Input!K83*4047*0.3048/454 -> 0 | AA51: =W51+S51+O51+K51+G51+C51 -> 0 | AB51: =X51+T51+P51+L51+H51+D51 -> 0 | AC51: =Y51+U51+Q51+M51+I51+E51 -> 0 | AD51: =Z51+V51+R51+N51+J51+F51 -> 0
B52: Total | C52: =SUM(C47:C51) -> 0 | D52: =SUM(D47:D51) -> 0 | E52: =SUM(E47:E51) -> 0 | F52: =SUM(F47:F51) -> 0 | G52: =SUM(G47:G51) -> 0 | H52: =SUM(H47:H51) -> 0 | I52: =SUM(I47:I51) -> 0 | J52: =SUM(J47:J51) -> 0 | K52: =SUM(K47:K51) -> 0 | L52: =SUM(L47:L51) -> 0 | M52: =SUM(M47:M51) -> 0 | N52: =SUM(N47:N51) -> 0 | O52: =SUM(O47:O51) -> 0 | P52: =SUM(P47:P51) -> 0 | Q52: =SUM(Q47:Q51) -> 0 | R52: =SUM(R47:R51) -> 0 | S52: =SUM(S47:S51) -> 0 | T52: =SUM(T47:T51) -> 0 | U52: =SUM(U47:U51) -> 0 | V52: =SUM(V47:V51) -> 0 | W52: =SUM(W47:W51) -> 0 | X52: =SUM(X47:X51) -> 0 | Y52: =SUM(Y47:Y51) -> 0 | Z52: =SUM(Z47:Z51) -> 0 | AA52: =SUM(AA47:AA51) -> 0 | AB52: =SUM(AB47:AB51) -> 0 | AC52: =SUM(AC47:AC51) -> 0 | AD52: =SUM(AD47:AD51) -> 0
B54: 2. Total load by land uses (with BMP)
B55: Sources | C55: N Load (lb/yr) | D55: P Load (lb/yr) | E55: BOD Load (lb/yr) | F55: Sediment Load (t/yr)
B56: Urban | C56: =C42 -> 0 | D56: =D42 -> 0 | E56: =E42 -> 0 | F56: =F42/2000 -> 0
B57: Cropland | C57: =G42 -> 0 | D57: =H42 -> 0 | E57: =I42 -> 0 | F57: =J42/2000 -> 0
B58: Pastureland | C58: =K42 -> 0 | D58: =L42 -> 0 | E58: =M42 -> 0 | F58: =N42/2000 -> 0
B59: Forest | C59: =O42 -> 0 | D59: =P42 -> 0 | E59: =Q42 -> 0 | F59: =R42/2000 -> 0
B60: Feedlots | C60: =S42 -> 0 | D60: =T42 -> 0 | E60: =U42 -> 0 | F60: =V42/2000 -> 0
B61: User Defined | C61: =W42 -> 0 | D61: =X42 -> 0 | E61: =Y42 -> 0 | F61: =Z42/2000 -> 0
B62: Septic | C62: =AA42 -> 0 | D62: =AB42 -> 0 | E62: =AC42 -> 0 | F62: =AD42/2000 -> 0
B63: Gully | C63: =AE42 -> 0 | D63: =AF42 -> 0 | E63: =AG42 -> 0 | F63: =AH42/2000 -> 0
B64: Streambank | C64: =AI42 -> 0 | D64: =AJ42 -> 0 | E64: =AK42 -> 0 | F64: =AL42/2000 -> 0
B65: Groundwater | C65: =AA52 -> 0 | D65: =AB52 -> 0 | E65: =AC52 -> 0 | F65: =AD52 -> 0
B66: Total | C66: =SUM(C56:C65) -> 0 | D66: =SUM(D56:D65) -> 0 | E66: =SUM(E56:E65) -> 0 | F66: =SUM(F56:F65) -> 0

Sheet Graphs
B1: Graphs | D1: This sheet is protected. To copy specific objects, remove the protection by clicking Tools -> Protection -> Unprotect sheet.
B2: 1. Copy of total load by land uses (with BMP)
B3: Sources | C3: Total N Load by Land Uses (with BMP) (lb/yr) | D3: Total P Load by Land Uses (with BMP) (lb/yr) | E3: Total BOD Load by Land Uses (with BMP) (lb/yr) | F3: Total Sediment Load by Land Uses (with BMP) (t/yr)
B4: Urban | C4: ='Total Load'!C56 -> 0 | D4: ='Total Load'!D56 -> 0 | E4: ='Total Load'!E56 -> 0 | F4: ='Total Load'!F56 -> 0
B5: Cropland | C5: ='Total Load'!C57 -> 0 | D5: ='Total Load'!D57 -> 0 | E5: ='Total Load'!E57 -> 0 | F5: ='Total Load'!F57 -> 0
B6: Pastureland | C6: ='Total Load'!C58 -> 0 | D6: ='Total Load'!D58 -> 0 | E6: ='Total Load'!E58 -> 0 | F6: ='Total Load'!F58 -> 0
B7: Forest | C7: ='Total Load'!C59 -> 0 | D7: ='Total Load'!D59 -> 0 | E7: ='Total Load'!E59 -> 0 | F7: ='Total Load'!F59 -> 0
B8: Feedlots | C8: ='Total Load'!C60 -> 0 | D8: ='Total Load'!D60 -> 0 | E8: ='Total Load'!E60 -> 0 | F8: ='Total Load'!F60 -> 0
B9: User Defined | C9: ='Total Load'!C61 -> 0 | D9: ='Total Load'!D61 -> 0 | E9: ='Total Load'!E61 -> 0 | F9: ='Total Load'!F61 -> 0
B10: Septic | C10: ='Total Load'!C62 -> 0 | D10: ='Total Load'!D62 -> 0 | E10: ='Total Load'!E62 -> 0 | F10: ='Total Load'!F62 -> 0
B11: Gully | C11: ='Total Load'!C63 -> 0 | D11: ='Total Load'!D63 -> 0 | E11: ='Total Load'!E63 -> 0 | F11: ='Total Load'!F63 -> 0
B12: Streambank | C12: ='Total Load'!C64 -> 0 | D12: ='Total Load'!D64 -> 0 | E12: ='Total Load'!E64 -> 0 | F12: ='Total Load'!F64 -> 0
B13: Groundwater | C13: ='Total Load'!C65 -> 0 | D13: ='Total Load'!D65 -> 0 | E13: ='Total Load'!E65 -> 0 | F13: ='Total Load'!F65 -> 0
B15: 2. Copy of total load by subwatersheds
B16: Watershed | C16: N Load with BMP (lb/yr) | D16: P Load with BMP (lb/yr) | E16: BOD Load with BMP (lb/yr) | F16: Sediment Load by Watersheds with BMP (t/yr) | G16: N Load Reduction (lb/yr) | H16: P Load Reduction (lb/yr) | I16: BOD Load Reduction (lb/yr) | J16: Sediment Load Reduction by Watersheds (t/yr)
B17: W1 | C17: ='Total Load'!K27 -> 0 | D17: ='Total Load'!L27 -> 0 | E17: ='Total Load'!M27 -> 0 | F17: ='Total Load'!N27 -> 0 | G17: ='Total Load'!G27 -> 0 | H17: ='Total Load'!H27 -> 0 | I17: ='Total Load'!I27 -> 0 | J17: ='Total Load'!J27 -> 0
B18: W2 | C18: ='Total Load'!K28 -> 0 | D18: ='Total Load'!L28 -> 0 | E18: ='Total Load'!M28 -> 0 | F18: ='Total Load'!N28 -> 0 | G18: ='Total Load'!G28 -> 0 | H18: ='Total Load'!H28 -> 0 | I18: ='Total Load'!I28 -> 0 | J18: ='Total Load'!J28 -> 0
B19: W3 | C19: ='Total Load'!K29 -> 0 | D19: ='Total Load'!L29 -> 0 | E19: ='Total Load'!M29 -> 0 | F19: ='Total Load'!N29 -> 0 | G19: ='Total Load'!G29 -> 0 | H19: ='Total Load'!H29 -> 0 | I19: ='Total Load'!I29 -> 0 | J19: ='Total Load'!J29 -> 0
B20: W4 | C20: ='Total Load'!K30 -> 0 | D20: ='Total Load'!L30 -> 0 | E20: ='Total Load'!M30 -> 0 | F20: ='Total Load'!N30 -> 0 | G20: ='Total Load'!G30 -> 0 | H20: ='Total Load'!H30 -> 0 | I20: ='Total Load'!I30 -> 0 | J20: ='Total Load'!J30 -> 0
B21: W5 | C21: ='Total Load'!K31 -> 0 | D21: ='Total Load'!L31 -> 0 | E21: ='Total Load'!M31 -> 0 | F21: ='Total Load'!N31 -> 0 | G21: ='Total Load'!G31 -> 0 | H21: ='Total Load'!H31 -> 0 | I21: ='Total Load'!I31 -> 0 | J21: ='Total Load'!J31 -> 0

Sheet Reference (hidden)
B3: Modified from ASAE, 1998
B4: Animal | C4: Typical Animal Mass,lb | D4: BOD,lb/day/1000lb animal | E4: BOD per Animal,lb/day | F4: BOD per Animal,lb/yr
B5: Beef cattle | C5: 1000 | D5: 1.6 | E5: 1.28 | F5: 467.1
B6: Dairy cow | C6: 1400 | D6: 1.6 | E6: 2.24 | F6: 818
B7: Hog | C7: 200 | D7: 3.1 | E7: 0.42 | F7: 153
B8: Sheep | C8: 100 | D8: 1.2 | E8: 0.07 | F8: 26
B9: Horse | C9: 1000 | D9: 1.7 | E9: 1.7 | F9: 621
B10: Chicken (Layer) | C10: 4 | D10: 3.3 | E10: 0.01 | F10: 5
B11: Turkey | C11: 10 | D11: 2.1 | E11: 0.03 | F11: 11
B12: Duck | C12: 4 | D12: 0 | E12: 0 | F12: 0
B13: Goose | C13: 6 | D13: 0 | E13: 0 | F13: 0
B14: Deer | C14: 40 | D14: 0 | E14: 0 | F14: 0
B15: Beaver | C15: 15 | D15: 0 | E15: 0 | F15: 0
B16: Raccoon | C16: 7 | D16: 0 | E16: 0 | F16: 0
B17: Other | C17: 0 | D17: 0 | E17: 0 | F17: 0
B25: Sources of Data:
B27: I. Typical Animal weight: 1
B29: II. General nutrient concentrations in runoff: 3, 9, 10, 11, 14, 17, and 18; Detailed urban nutrient concentrations: 27, 28 and 17
B30: Nutrient concentrations in groundwater: 10 (page 46: forest mean and 75% agriculture mean), 27 (urban N mean 2.0 mg/l below lawn)
B33: III. Nutrient adjustment factor by animal density: 8
B35: IV. BMP efficiencies
B37: Feedlots: 5, 6, 7, and 23
B38: Forest: 21 and 23
B39: Cropland: 23
B40: Urban: BMP: 2, 12, 15, 16, 20 and 25; LID: 26
B42: V. Constituent concentrations from feedlots
B43: N and P: 4, 13, and 19
B44: BOD5: 22
B45: COD: 15
B47: VI. Sediment delivery ratio: 15 and 24
B49: VII. Infiltration Rate by Soil Hydrological Group (for groundwater output calculation): 27 (page 7-13)
B51: 1. ASAE (American Society of Agricultural Engineers). 1998. ASAE standards: Standards, engineering practice, and data. 45th ed. American Society of Agricultural Engineers. St. Joseph, Michigan.
B53: 2. Athayde, D.N., P.E. Shelly, E.D. Driscoll, D. Gaboury, and G. Boyd. 1983. Results of the nationwide urban runoff program - volume I - final report. U.S. Environmental Protection Agency, Washington, DC.
B55: 3. Beaulac, M.N. and K.H. Reckhow. 1982. An examination of landuse- nutrient export relationships. Water Resources Bulletin 18:1013-1024.
B57: 4. Clark, R.N., A.D. Schneider, and B.A. Stewart. 1975. Analysis of runoff from Southern Great Planes feedlots. Transactions ASAE 15(2):319-322.
B59: 5. DPRA Inc.1986. An evaluation of the cost effectiveness of agricultural best management practices and publicly owned treatment works in controlling phosphorus pollution in the Great Lakes basin. Prepared for U.S. Environmental Protection Agency, Washington, DC.
B61: 6. Edwards, W.M., L.B. Owens, and R.K. White. 1983. Managing runoff from a small, paved beef feedlot. Journal of Environmental Quality 12(2).
B63: 7. Edwards, W.M., L.B. Owens, R.K. White, and N.R. Fausey. 1986. Managing feedlot runoff with a settling basin plus tiled infiltration bed. Transactions of the ASAE 29(1):243-247.
B65: 8. Evans, B.M., S. A. Sheeder, K. J. Corradini, and W. S. Brown. 2001. AVGWLF version 3.2, users guide. Software. Environmental Resources Research Institute, Pennsylvania State University, University Park, Pennsylvania.
B67: 9. Haith, D.A. and L.L. Shoemaker. 1987. Generalized watershed loading functions for stream flow nutrients. Water Resources Bulletin 23:471-478.
B69: 10. Haith, D.A., R. Mandal, and R.S. Wu. 1992. GWLF: General watershed loading functions, user’s manual, version 2.0. Cornell University, Ithaca, NY, USA.
B71: 11. Horner, R. R. 1992. Water quality criteria/pollutant loading estimation/treatment effectiveness estimation. In R.W. Beck and Associates. Covington Master Drainage Plan. King County Surface Water Manage. Div., Seattle, WA.
B73: 12. Leeds, R., L.C. Brown, M.R. Sulc, and L.VanLieshout. 1994. Vegetative filter strips: Application, installation and maintenance. AEX-467-94. Ohio State University Extension, Columbus, Ohio. http://ohioline.osu.edu/aex-fact/0467.html
B75: 13. Loehr, R. C. 1974. Characteristics and comparative magnitude of nonpoint sources. J. WPCF (Water Pollution Control Federation) 46:1849-1872.
B77: 14. Maidment, D. R. 1993. Handbook of hydrology. McGraw-Hill, New York.
B79: 15. MDEQ (Michigan Department of Environmental Quality). 1999. Pollutants controlled: Calculation and documentation for section 319 watersheds training manual. Michigan Department of Environmental Quality, Lansing, Michigan, USA.
B81: 16. Northeastern Illinois Planning Commission (NIPC). 1994. Model best management practice selection methodology & Lake County decision-making framework. NIPC, Chicago, Illinois.
B83: 17. Novotny, V., and H. Olem. 1994. Water quality: prevention, identification, and management of diffuse pollution. Van Nostrand Reinhold, New York. p 682.
B85: 18. Reckhow, K.H., M.N. Beaulac, and J.T. Simpson. 1980. Modeling phosphorous loading and lake response under uncertainty: A manual and compilation of export coefficients. EPA 440/5-80-011. U.S. Environmental Protection Agency, Washington, DC.
B87: 19. Ritter, W.F. 1988. Reducing impact of nonpoint pollution from agriculture: A review. J. Environ. Sci. Health 25:821
B89: 20. Schueler, T.R. 1987. Controlling urban runoff: A practical manual for planning and designing urban BMPs. Document No. 87703. Metropolitan Washington Council of Governments, Washington, DC.
B91: 21. Seyedbagheri, K. A. 1996. Idaho forestry best management practices: Compilation of research on their effectiveness. General Technical Report INT-GTR-339. USDA Forest Service, Intermountain Research Station, Ogden, Utah.
B93: 22. U.S. Environmental Protection Agency (EPA). 1973. Development document for proposed effluent limitation guidelines and new source performance standards for the feedlots point source category. EPA-440-1-73-004. Washington, DC.
B95: 23. U.S. Environmental Protection Agency (EPA). 1993. Guidance specifying management measures for sources of nonpoint pollution in coastal waters. EPA-840-B-92-002. Office of Water, Washington, DC.
B97: 24. USDA-NRCS (U.S. Department of Agriculture Natural Resources Conservation Service). 1983. Sediment sources, yields, and delivery ratios. In National Engineering Handbook, Chapter 6, Section 3, Sedimentation.
B99: 25. Davis, A.P., Shokouhian, M., Sharma, H. and C. Minami. 2001. Laboratory study of biological retention for urban stormwater management. Water Environment Research 73:5-14
B101: 26. Maryland Prince George's County and the U.S. Environmental Protection Agency. 1999. Low-Impact Development Design Strategies: An Integrated Design Approach. http://www.epa.gov/owow/nps/lid/lidnatl.pdf
B103: 27. Caraco, D. 2001. The Watershed Treatment Model. Version 3.0. Center for Watershed Protection. Ellicott City, Maryland.
B105: 28. USDA Natural Resources Conservation Service, and Illinois Environmental Protection Agency. 2002. Illinois Urban Manual. http://www.il.nrcs.usda.gov/technical/engineer/urban/.

Sheet BMPList (hidden)
A1: Landuse | B1: BMP & Efficiency | C1: N | D1: P | E1: BOD | F1: Sediment
A2: Cropland
A3: Cropland | B3: 0 No BMP | C3: 0 | D3: 0 | E3: 0 | F3: 0
A4: Cropland | B4: Combined BMPs-Calculated | C4: 0 | D4: 0 | E4: 0 | F4: 0
A5: Cropland | B5: Contour Farming | C5: 0.485 | D5: 0.55 | E5: ND | F5: 0.405
A6: Cropland | B6: Diversion | C6: 0.1 | D6: 0.3 | E6: ND | F6: 0.35
A7: Cropland | B7: Filter strip | C7: 0.7 | D7: 0.75 | E7: ND | F7: 0.65
A8: Cropland | B8: Reduced Tillage Systems | C8: 0.55 | D8: 0.45 | E8: ND | F8: 0.75
A9: Cropland | B9: Streambank stabilization and fencing | C9: 0.75 | D9: 0.75 | E9: ND | F9: 0.75
A10: Cropland | B10: Terrace | C10: 0.2 | D10: 0.7 | E10: ND | F10: 0.85
A11: Pastureland
A12: Pastureland | B12: 0 No BMP | C12: 0 | D12: 0 | E12: 0 | F12: 0
A13: Pastureland | B13: Combined BMPs-Calculated | C13: 0 | D13: 0 | E13: 0 | F13: 0
A14: Forest
A15: Forest | B15: 0 No BMP | C15: 0 | D15: 0 | E15: 0 | F15: 0
A16: Forest | B16: Combined BMPs-Calculated | C16: 0 | D16: 0 | E16: 0 | F16: 0
A17: Forest | B17: Road dry seeding | C17: ND | D17: ND | E17: ND | F17: 0.41
A18: Forest | B18: Road grass and legume seeding | C18: ND | D18: ND | E18: ND | F18: 0.71
A19: Forest | B19: Road hydro mulch | C19: ND | D19: ND | E19: ND | F19: 0.41
A20: Forest | B20: Road straw mulch | C20: ND | D20: ND | E20: ND | F20: 0.41
A21: Forest | B21: Road tree planting | C21: ND | D21: ND | E21: ND | F21: 0.5
A22: Forest | B22: Site preparation/hydro mulch/seed/fertilizer | C22: ND | D22: ND | E22: ND | F22: 0.71
A23: Forest | B23: Site preparation/hydro mulch/seed/fertilizer/transplants | C23: ND | D23: ND | E23: ND | F23: 0.69
A24: Forest | B24: Site preparation/steep slope seeder/transplant | C24: ND | D24: ND | E24: ND | F24: 0.81
A25: Forest | B25: Site preparation/straw/crimp seed/fertilizer/transplant | C25: ND | D25: ND | E25: ND | F25: 0.95
A26: Forest | B26: Site preparation/straw/crimp/net | C26: ND | D26: ND | E26: ND | F26: 0.93
A27: Forest | B27: Site preparation/straw/net/seed/fertilizer/transplant | C27: ND | D27: ND | E27: ND | F27: 0.83
A28: Forest | B28: Site preparation/straw/polymer/seed/fertilizer/transplant | C28: ND | D28: ND | E28: ND | F28: 0.86
A29: User_Defined
A30: User_Defined | B30: 0 No BMP | C30: 0 | D30: 0 | E30: 0 | F30: 0
A31: User_Defined | B31: Combined BMPs-Calculated | C31: 0 | D31: 0 | E31: 0 | F31: 0
A32: Feedlots
A33: Feedlots | B33: 0 No BMP | C33: 0 | D33: 0 | E33: 0 | F33: 0
A34: Feedlots | B34: Diversion | C34: 0.45 | D34: 0.7 | E34: ND | F34: ND
A35: Feedlots | B35: Filter strip | C35: ND | D35: 0.85 | E35: ND | F35: ND
A36: Feedlots | B36: Runoff Mgmt System | C36: ND | D36: 0.825 | E36: ND | F36: ND
A37: Feedlots | B37: Solids Separation Basin | C37: 0.35 | D37: 0.31 | E37: ND | F37: ND
A38: Feedlots | B38: Solids Separation Basin w/Infilt Bed | C38: ND | D38: 0.8 | E38: 0.85 | F38: ND
A39: Feedlots | B39: Terrace | C39: 0.55 | D39: 0.85 | E39: ND | F39: ND
A40: Feedlots | B40: Waste Mgmt System | C40: 0.8 | D40: 0.9 | E40: ND | F40: ND
A41: Feedlots | B41: Waste Storage Facility | C41: 0.65 | D41: 0.6 | E41: ND | F41: ND
A42: Urban
A43: Urban | B43: 0 No BMP | C43: 0 | D43: 0 | E43: 0 | F43: 0
A44: Urban | B44: Alum Treatment | C44: 0.6 | D44: 0.9 | E44: 0.6 | F44: 0.95
A45: Urban | B45: Bioretention facility | C45: 0.63 | D45: 0.8 | E45: ND | F45: ND
A46: Urban | B46: Combined BMPs-Calculated | C46: 0 | D46: 0 | E46: 0 | F46: 0
A47: Urban | B47: Concrete Grid Pavement | C47: 0.9 | D47: 0.9 | E47: ND | F47: 0.9
A48: Urban | B48: Dry Detention | C48: 0.3 | D48: 0.26 | E48: 0.27 | F48: 0.575
A49: Urban | B49: Extended Wet Detention | C49: 0.55 | D49: 0.685 | E49: 0.72 | F49: 0.86
A50: Urban | B50: Filter Strip-Agricultural | C50: 0.5325 | D50: 0.6125 | E50: ND | F50: 0.65
A51: Urban | B51: Grass Swales | C51: 0.1 | D51: 0.25 | E51: 0.3 | F51: 0.65
A52: Urban | B52: Infiltration Basin | C52: 0.6 | D52: 0.65 | E52: ND | F52: 0.75
A53: Urban | B53: Infiltration Devises | C53: ND | D53: 0.83 | E53: 0.83 | F53: 0.94
A54: Urban | B54: Infiltration Trench | C54: 0.55 | D54: 0.6 | E54: ND | F54: 0.75
A55: Urban | B55: LID*/Cistern | C55: 0 | D55: 0 | E55: 0 | F55: 0
A56: Urban | B56: LID*/Cistern+Rain Barrel | C56: 0 | D56: 0 | E56: 0 | F56: 0
A57: Urban | B57: LID*/Rain Barrel | C57: 0 | D57: 0 | E57: 0 | F57: 0
A58: Urban | B58: LID/Bioretention | C58: 0.43 | D58: 0.81 | E58: ND | F58: ND
A59: Urban | B59: LID/Dry Well | C59: 0.5 | D59: 0.5 | E59: 0.7 | F59: 0.9
A60: Urban | B60: LID/Filter/Buffer Strip | C60: 0.3 | D60: 0.3 | E60: 0.4 | F60: 0.6
A61: Urban | B61: LID/Infiltration Swale | C61: 0.5 | D61: 0.65 | E61: ND | F61: 0.9
A62: Urban | B62: LID/Infiltration Trench | C62: 0.5 | D62: 0.5 | E62: 0.7 | F62: 0.9
A63: Urban | B63: LID/Vegetated Swale | C63: 0.075 | D63: 0.175 | E63: ND | F63: 0.475
A64: Urban | B64: LID/Wet Swale | C64: 0.4 | D64: 0.2 | E64: ND | F64: 0.8
A65: Urban | B65: Oil/Grit Separator | C65: 0.05 | D65: 0.05 | E65: ND | F65: 0.15
A66: Urban | B66: Porous Pavement | C66: 0.85 | D66: 0.65 | E66: ND | F66: 0.9
A67: Urban | B67: Sand Filter/Infiltration Basin | C67: 0.35 | D67: 0.5 | E67: ND | F67: 0.8
A68: Urban | B68: Sand Filters | C68: ND | D68: 0.375 | E68: 0.4 | F68: 0.825
A69: Urban | B69: Settling Basin | C69: ND | D69: 0.515 | E69: 0.56 | F69: 0.815
A70: Urban | B70: Vegetated Filter Strips | C70: 0.4 | D70: 0.4525 | E70: 0.505 | F70: 0.73
A71: Urban | B71: Weekly Street Sweeping | C71: ND | D71: 0.06 | E71: 0.06 | F71: 0.16
A72: Urban | B72: Wet Pond | C72: 0.35 | D72: 0.45 | E72: ND | F72: 0.6
A73: Urban | B73: Wetland Detention | C73: 0.2 | D73: 0.44 | E73: 0.63 | F73: 0.775
A74: Urban | B74: WQ Inlet w/Sand Filter | C74: 0.35 | D74: ND | E74: ND | F74: 0.8
A75: Urban | B75: WQ Inlets | C75: 0.2 | D75: 0.09 | E75: 0.13 | F75: 0.37

Sheet CountyData (hidden)
A1: List of States | B1: List of Weather Stations | C1: State_name | D1: Name | F1: State_name-Name | G1: Rainfall (inches) | H1: RainDays | I1: Runoff | J1: Rainfall (>5mm/day) (in/yr) | K1: Station Name | L1: Ptrecipitation Correction Factor | M1: No. of Rain Days Correction Factor | N1: Rain Days (>5mm) | O1: Rmean | P1: Kmean | Q1: LSavg | R1: Cavg | S1: Pavg
A2: Alabama | B2: AL ABBEVILLE 1 NNW | C2: Alabama | D2: Autauga | F2: Alabama-Autauga | G2: 60 | H2: 87.3 | I2: 19 | K2: AK ANCHORAGE WSCMO AP | L2: 0.620 | M2: 0.209 | O2: 374.6893606 | P2: 0.1971198096 | Q2: 0.289127188 | R2: 0.1358287796 | S2: 0.985701275
A3: Alaska | B3: AL BIRMINGHAM FAA ARPT | C3: Alabama | D3: Baldwin | F3: Alabama-Baldwin | G3: 60 | H3: 104.4 | I3: 25.875 | K3: AK ANNETTE WSO AIRPORT | L3: 0.919 | M3: 0.570 | O3: 550 | P3: 0.2135030942 | Q3: 0.1831039157 | R3: 0.1963722826 | S3: 0.9858695652
A4: Arizona | B4: AL DADEVILLE 2 | C4: Alabama | D4: Barbour | F4: Alabama-Barbour | G4: 60 | H4: 89.2 | I4: 18 | K4: AK COLD BAY WSO AIRPORT | L4: 0.685 | M4: 0.217 | O4: 376.7326305 | P4: 0.1907913669 | Q4: 0.562657514 | R4: 0.1470490258 | S4: 0.9428661219
A5: Arkansas | B5: AL HALEYVILLE | C5: Alabama | D5: Bibb | F5: Alabama-Bibb | G5: 60 | H5: 97.8 | I5: 21 | K5: AK FAIRBANKS WSO AIRPOR | L5: 0.493 | M5: 0.124 | O5: 375 | P5: 0.254366617 | Q5: 1.087102544 | R5: 0.048275 | S5: 0.99140625
A6: California | B6: AL HUNTSVILLE WSO AP | C6: Alabama | D6: Blount | F6: Alabama-Blount | G6: 60 | H6: 95.5 | I6: 24 | K6: AK KING SALMON WSO AP | L6: 0.592 | M6: 0.190 | O6: 325 | P6: 0.258936803 | Q6: 0.7727984962 | R6: 0.1002949438 | S6: 0.9575491573
A7: Colorado | B7: AL JACKSONVILLE | C7: Alabama | D7: Bullock | F7: Alabama-Bullock | G7: 60 | H7: 97.2 | I7: 18 | K7: AK MCGRATH WSO AIRPORT | L7: 0.600 | M7: 0.185 | O7: 375 | P7: 0.2492555332 | Q7: 0.3565875586 | R7: 0.05346320869 | S7: 0.9634499397
A8: Connecticut | B8: AL MOBILE WSO ARPT | C8: Alabama | D8: Butler | F8: Alabama-Butler | G8: 60 | H8: 97.8 | I8: 18 | K8: AK ST PAUL ISLAND WSO A | L8: 0.570 | M8: 0.253 | O8: 425 | P8: 0.2361696555 | Q8: 0.4299822346 | R8: 0.1001255556 | S8: 0.9497777778
A9: Delaware | B9: AL MONTGOMERY WSO ARPT | C9: Alabama | D9: Calhoun | F9: Alabama-Calhoun | G9: 60 | H9: 97.8 | I9: 23 | K9: AK YAKUTAT WSO AIRPORT | L9: 0.947 | M9: 0.708 | O9: 325 | P9: 0.2687739215 | Q9: 0.3573605558 | R9: 0.1472608696 | S9: 0.9955772114
A10: District of Columbia | B10: AL THOMASVILLE | C10: Alabama | D10: Chambers | F10: Alabama-Chambers | G10: 60 | H10: 97.8 | I10: 20 | K10: AL ABBEVILLE 1 NNW | L10: 0.913 | M10: 0.585 | O10: 346.8329016 | P10: 0.2108081349 | Q10: 0.8483591437 | R10: 0.01847377327 | S10: 1
A11: Florida | B11: AL TUSCALOOSA OLIVER DA | C11: Alabama | D11: Cherokee | F11: Alabama-Cherokee | G11: 60 | H11: 100.8 | I11: 22.75 | K11: AL BIRMINGHAM FAA ARPT | L11: 0.916 | M11: 0.550 | O11: 300 | P11: 0.2917899829 | Q11: 0.5579427426 | R11: 0.1969872306 | S11: 0.853471668
A12: Georgia | B12: AK ANCHORAGE WSCMO AP | C12: Alabama | D12: Chilton | F12: Alabama-Chilton | G12: 60 | H12: 90.4 | I12: 20 | K12: AL DADEVILLE 2 | L12: 0.896 | M12: 0.558 | O12: 374.8631863 | P12: 0.2439308701 | Q12: 0.439188843 | R12: 0.1009206161 | S12: 0.9432464455
A13: Hawaii | B13: AK ANNETTE WSO AIRPORT | C13: Alabama | D13: Choctaw | F13: Alabama-Choctaw | G13: 60 | H13: 96.3 | I13: 22 | K13: AL HALEYVILLE | L13: 0.923 | M13: 0.591 | O13: 425 | P13: 0.266624978 | Q13: 0.5241259246 | R13: 0.03229190751 | S13: 0.9680924855
A14: Idaho | B14: AK COLD BAY WSO AIRPORT | C14: Alabama | D14: Clarke | F14: Alabama-Clarke | G14: 60 | H14: 98.4 | I14: 19 | K14: AL HUNTSVILLE WSO AP | L14: 0.935 | M14: 0.541 | O14: 450 | P14: 0.268069563 | Q14: 0.297911763 | R14: 0.08318648019 | S14: 1
A15: Illinois | B15: AK FAIRBANKS WSO AIRPOR | C15: Alabama | D15: Clay | F15: Alabama-Clay | G15: 60 | H15: 98.3 | I15: 26.333 | K15: AL JACKSONVILLE | L15: 0.911 | M15: 0.600 | O15: 350 | P15: 0.1983042394 | Q15: 0.6172862 | R15: 0.02327567568 | S15: 1
A16: Indiana | B16: AK KING SALMON WSO AP | C16: Alabama | D16: Cleburne | F16: Alabama-Cleburne | G16: 60 | H16: 97.3 | I16: 21.333 | K16: AL MOBILE WSO ARPT | L16: 0.941 | M16: 0.547 | O16: 325 | P16: 0.2968044976 | Q16: 0.5531167992 | R16: 0.05620783133 | S16: 0.963253012
A17: Iowa | B17: AK MCGRATH WSO AIRPORT | C17: Alabama | D17: Coffee | F17: Alabama-Coffee | G17: 60 | H17: 99.7 | I17: 20 | K17: AL MONTGOMERY WSO ARPT | L17: 0.937 | M17: 0.564 | O17: 450 | P17: 0.1791253644 | Q17: 0.384616213 | R17: 0.1423205666 | S17: 0.8409811123
A18: Kansas | B18: AK ST PAUL ISLAND WSO A | C18: Alabama | D18: Colbert | F18: Alabama-Colbert | G18: 60 | H18: 97.8 | I18: 24.5 | K18: AL THOMASVILLE | L18: 0.910 | M18: 0.586 | O18: 300 | P18: 0.2933035215 | Q18: 0.3264344175 | R18: 0.2266527237 | S18: 0.9850194553
A19: Kentucky | B19: AK YAKUTAT WSO AIRPORT | C19: Alabama | D19: Conecuh | F19: Alabama-Conecuh | G19: 60 | H19: 93.3 | I19: 20 | K19: AL TUSCALOOSA OLIVER DA | L19: 0.930 | M19: 0.611 | O19: 449.7596488 | P19: 0.2083822173 | Q19: 0.2985802743 | R19: 0.1413272727 | S19: 0.9092121212
A20: Louisiana | B20: AZ AJO | C20: Alabama | D20: Coosa | F20: Alabama-Coosa | G20: 60 | H20: 97.8 | I20: 24 | K20: AR ALUM FORK | L20: 0.911 | M20: 0.596 | O20: 350.3341149 | P20: 0.2000913462 | Q20: 0.5371196371 | R20: 0.03041262136 | S20: 0.9873786408
A21: Maine | B21: AZ COCHISE 4 SSE | C21: Alabama | D21: Covington | F21: Alabama-Covington | G21: 60 | H21: 100 | I21: 21 | K21: AR BATESVILLE LIVESTOCK | L21: 0.929 | M21: 0.632 | O21: 474.7378031 | P21: 0.1966995486 | Q21: 0.355500295 | R21: 0.08980376028 | S21: 0.9327849589
A22: Maryland | B22: AZ FLAGSTAFF AP | C22: Alabama | D22: Crenshaw | F22: Alabama-Crenshaw | G22: 60 | H22: 97.8 | I22: 18 | K22: AR BULL SHOALS DAM | L22: 0.879 | M22: 0.537 | O22: 425 | P22: 0.191743763 | Q22: 0.3584331415 | R22: 0.1467984085 | S22: 0.901061008
A23: Massachusetts | B23: AZ KEAMS CANYON | C23: Alabama | D23: Cullman | F23: Alabama-Cullman | G23: 60 | H23: 101.7 | I23: 24 | K23: AR CLARKSVILLE 6 NE | L23: 0.904 | M23: 0.556 | O23: 325 | P23: 0.2515581345 | Q23: 0.648301983 | R23: 0.0578584323 | S23: 0.9642755344
A24: Michigan | B24: AZ PAYSON | C24: Alabama | D24: Dale | F24: Alabama-Dale | G24: 60 | H24: 97.8 | I24: 20 | K24: AR EUREKA SPRINGS 3 WNW | L24: 0.917 | M24: 0.555 | O24: 424.9490624 | P24: 0.1671095497 | Q24: 0.4246951961 | R24: 0.1864174147 | S24: 0.8643087971
A25: Minnesota | B25: AZ PHOENIX AIRPORT | C25: Alabama | D25: Dallas | F25: Alabama-Dallas | G25: 60 | H25: 96.4 | I25: 18 | K25: AR FORT SMITH WSO AIRPO | L25: 0.920 | M25: 0.515 | O25: 399.8692235 | P25: 0.2532991202 | Q25: 0.2074954761 | R25: 0.1201266679 | S25: 1
A26: Mississippi | B26: AZ TUCSON WSO AP | C26: Alabama | D26: De Kalb | F26: Alabama-De Kalb | G26: 60 | H26: 115 | I26: 26.333 | K26: AR MENA | L26: 0.922 | M26: 0.570 | O26: 300 | P26: 0.2369301097 | Q26: 0.6181529223 | R26: 0.1459749248 | S26: 0.9122367101
A27: Missouri | B27: AZ TUWEEP | C27: Alabama | D27: Elmore | F27: Alabama-Elmore | G27: 60 | H27: 97.8 | I27: 19 | K27: AR MILLWOOD DAM | L27: 0.931 | M27: 0.599 | O27: 375 | P27: 0.2258805513 | Q27: 0.286244173 | R27: 0.1770179924 | S27: 0.9267518939
A28: Montana | B28: AZ WHITERIVER 1 SW | C28: Alabama | D28: Escambia | F28: Alabama-Escambia | G28: 60 | H28: 93.3 | I28: 23 | K28: AR MONTICELLO 3 SW | L28: 0.905 | M28: 0.571 | O28: 525 | P28: 0.1968494605 | Q28: 0.2193703248 | R28: 0.1858 | S28: 0.8963358779
A29: Nebraska | B29: AZ YUMA WSO AP | C29: Alabama | D29: Etowah | F29: Alabama-Etowah | G29: 60 | H29: 96.9 | I29: 24 | K29: AR STUTTGART 9 ESE | L29: 0.897 | M29: 0.553 | O29: 325 | P29: 0.2683748846 | Q29: 0.3747469848 | R29: 0.08998346388 | S29: 0.9649260226
A30: Nevada | B30: AR ALUM FORK | C30: Alabama | D30: Fayette | F30: Alabama-Fayette | G30: 60 | H30: 98.5 | I30: 22 | K30: AZ AJO | L30: 0.754 | M30: 0.406 | O30: 350 | P30: 0.2893686049 | Q30: 0.6048075122 | R30: 0.1145899471 | S30: 0.9523809524
A31: New Hampshire | B31: AR BATESVILLE LIVESTOCK | C31: Alabama | D31: Franklin | F31: Alabama-Franklin | G31: 60 | H31: 97.8 | I31: 24 | K31: AZ COCHISE 4 SSE | L31: 0.709 | M31: 0.342 | O31: 323.4050266 | P31: 0.221065059 | Q31: 0.430460678 | R31: 0.06957436709 | S31: 0.9842405063
A32: New Jersey | B32: AR BULL SHOALS DAM | C32: Alabama | D32: Geneva | F32: Alabama-Geneva | G32: 60 | H32: 98.2 | I32: 21.333 | K32: AZ FLAGSTAFF AP | L32: 0.836 | M32: 0.388 | O32: 450 | P32: 0.1879754434 | Q32: 0.3662499002 | R32: 0.188272899 | S32: 0.8808120869
A33: New Mexico | B33: AR CLARKSVILLE 6 NE | C33: Alabama | D33: Greene | F33: Alabama-Greene | G33: 60 | H33: 97.5 | I33: 20 | K33: AZ KEAMS CANYON | L33: 0.587 | M33: 0.276 | O33: 373.8288031 | P33: 0.294991137 | Q33: 0.2291389385 | R33: 0.03656594949 | S33: 0.9962581852
A34: New York | B34: AR EUREKA SPRINGS 3 WNW | C34: Alabama | D34: Hale | F34: Alabama-Hale | G34: 60 | H34: 97.2 | I34: 20 | K34: AZ PAYSON | L34: 0.785 | M34: 0.411 | O34: 372.3372231 | P34: 0.2667733609 | Q34: 0.2597568192 | R34: 0.04061403509 | S34: 0.9823859649
A35: North Carolina | B35: AR FORT SMITH WSO AIRPO | C35: Alabama | D35: Henry | F35: Alabama-Henry | G35: 60 | H35: 89 | I35: 18 | K35: AZ PHOENIX AIRPORT | L35: 0.808 | M35: 0.346 | O35: 400 | P35: 0.1718854551 | Q35: 0.4229265293 | R35: 0.2177012195 | S35: 0.900007622
A36: North Dakota | B36: AR MENA | C36: Alabama | D36: Houston | F36: Alabama-Houston | G36: 60 | H36: 97.8 | I36: 20 | K36: AZ TUCSON WSO AP | L36: 0.787 | M36: 0.324 | O36: 424.8497312 | P36: 0.1828978362 | Q36: 0.2742620297 | R36: 0.2092568475 | S36: 0.902377261
A37: Ohio | B37: AR MILLWOOD DAM | C37: Alabama | D37: Jackson | F37: Alabama-Jackson | G37: 60 | H37: 108.8 | I37: 28 | K37: AZ TUWEEP | L37: 0.682 | M37: 0.344 | O37: 275 | P37: 0.2368254668 | Q37: 0.2390334526 | R37: 0.1539886208 | S37: 0.9829312699
A38: Oklahoma | B38: AR MONTICELLO 3 SW | C38: Alabama | D38: Jefferson | F38: Alabama-Jefferson | G38: 60 | H38: 98.3 | I38: 27 | K38: AZ WHITERIVER 1 SW | L38: 0.755 | M38: 0.385 | O38: 350 | P38: 0.2804862579 | Q38: 0.6703902741 | R38: 0.01558978873 | S38: 1
A39: Oregon | B39: AR STUTTGART 9 ESE | C39: Alabama | D39: Lamar | F39: Alabama-Lamar | G39: 60 | H39: 97.8 | I39: 22 | K39: AZ YUMA WSO AP | L39: 0.738 | M39: 0.253 | O39: 350 | P39: 0.206582113 | Q39: 0.5644307496 | R39: 0.0543751763 | S39: 0.9858956276
A40: Pennsylvania | B40: CA BAKERSFIELD AP | C40: Alabama | D40: Lauderdale | F40: Alabama-Lauderdale | G40: 60 | H40: 103.3 | I40: 24.5 | K40: CA BAKERSFIELD AP | L40: 0.698 | M40: 0.277 | O40: 300 | P40: 0.3291088873 | Q40: 0.3793463129 | R40: 0.1622201796 | S40: 0.9782385635
A41: Puerto Rico | B41: CA BLUE CANYON | C41: Alabama | D41: Lawrence | F41: Alabama-Lawrence | G41: 60 | H41: 110.2 | I41: 24.5 | K41: CA BLUE CANYON | L41: 0.959 | M41: 0.640 | O41: 300 | P41: 0.3162510675 | Q41: 0.2508052412 | R41: 0.2596448326 | S41: 0.9587578845
A42: Rhode Island | B42: CA EUREKA WFO WOODLEY I | C42: Alabama | D42: Lee | F42: Alabama-Lee | G42: 60 | H42: 98.7 | I42: 18 | K42: CA EUREKA WFO WOODLEY I | L42: 0.869 | M42: 0.443 | O42: 350 | P42: 0.2119714964 | Q42: 0.4878301132 | R42: 0.07510843373 | S42: 0.9502008032
A43: South Carolina | B43: CA FRESNO AIR TERMINAL | C43: Alabama | D43: Limestone | F43: Alabama-Limestone | G43: 60 | H43: 106.1 | I43: 23.667 | K43: CA FRESNO AIR TERMINAL | L43: 0.816 | M43: 0.392 | O43: 275 | P43: 0.3614799649 | Q43: 0.2607247468 | R43: 0.2289156317 | S43: 0.9884154176
A44: South Dakota | B44: CA LOS ANGELES WSO ARPT | C44: Alabama | D44: Lowndes | F44: Alabama-Lowndes | G44: 60 | H44: 96.1 | I44: 18 | K44: CA LOS ANGELES WSO ARPT | L44: 0.899 | M44: 0.478 | O44: 400 | P44: 0.2888348441 | Q44: 0.3450229707 | R44: 0.06576179974 | S44: 0.986501985
A45: Tennessee | B45: CA SACRAMENTO FAA ARPT | C45: Alabama | D45: Macon | F45: Alabama-Macon | G45: 60 | H45: 97.8 | I45: 18 | K45: CA SACRAMENTO FAA ARPT | L45: 0.874 | M45: 0.458 | O45: 350 | P45: 0.2336122881 | Q45: 0.4810035106 | R45: 0.09407846715 | S45: 0.9870437956
A46: Texas | B46: CA SAN DIEGO WSO AIRPOR | C46: Alabama | D46: Madison | F46: Alabama-Madison | G46: 60 | H46: 108.2 | I46: 28 | K46: CA SAN DIEGO WSO AIRPOR | L46: 0.849 | M46: 0.379 | O46: 275 | P46: 0.3136700551 | Q46: 0.2933593359 | R46: 0.2376058109 | S46: 0.9749783174
A47: Utah | B47: CA SAN FRANCISCO WSO AP | C47: Alabama | D47: Marengo | F47: Alabama-Marengo | G47: 60 | H47: 96.4 | I47: 18 | K47: CA SAN FRANCISCO WSO AP | L47: 0.869 | M47: 0.421 | O47: 400 | P47: 0.2969828977 | Q47: 0.3232895882 | R47: 0.02272515454 | S47: 0.9958155017
A48: Vermont | B48: CA SANTA MARIA WSO ARPT | C48: Alabama | D48: Marion | F48: Alabama-Marion | G48: 60 | H48: 98.3 | I48: 23.667 | K48: CA SANTA MARIA WSO ARPT | L48: 0.865 | M48: 0.418 | O48: 325 | P48: 0.271768722 | Q48: 0.7927896625 | R48: 0.1152982917 | S48: 0.946478318
A49: Virginia | B49: CA YOSEMITE PARK HDQTRS | C49: Alabama | D49: Marshall | F49: Alabama-Marshall | G49: 60 | H49: 97.4 | I49: 26.6 | K49: CA YOSEMITE PARK HDQTRS | L49: 0.902 | M49: 0.554 | O49: 300 | P49: 0.2405295259 | Q49: 0.4089138513 | R49: 0.109326087 | S49: 0.9203359684
A50: Washington | B50: CO AKRON 4 E | C50: Alabama | D50: Mobile | F50: Alabama-Mobile | G50: 60 | H50: 100.2 | I50: 25.778 | K50: CO AKRON 4 E | L50: 0.733 | M50: 0.300 | O50: 549.582466 | P50: 0.1691871814 | Q50: 0.2887586361 | R50: 0.1631542817 | S50: 0.9818825195
A51: West Virginia | B51: CO ALAMOSA WSO AP | C51: Alabama | D51: Monroe | F51: Alabama-Monroe | G51: 60 | H51: 92.2 | I51: 19 | K51: CO ALAMOSA WSO AP | L51: 0.536 | M51: 0.147 | O51: 450 | P51: 0.2384053259 | Q51: 0.2770313902 | R51: 0.1564699519 | S51: 0.9388221154
A52: Wisconsin | B52: CO BOULDER 2 | C52: Alabama | D52: Montgomery | F52: Alabama-Montgomery | G52: 60 | H52: 97.8 | I52: 18 | K52: CO BOULDER 2 | L52: 0.708 | M52: 0.343 | O52: 398.1515625 | P52: 0.3047578173 | Q52: 0.2385766656 | R52: 0.07062811388 | S52: 1
A53: Wyoming | B53: CO COLORADO SPRINGS WSO | C53: Alabama | D53: Morgan | F53: Alabama-Morgan | G53: 60 | H53: 108.2 | I53: 25.5 | K53: CO COLORADO SPRINGS WSO | L53: 0.759 | M53: 0.255 | O53: 300 | P53: 0.2913411241 | Q53: 0.3101233656 | R53: 0.09890088945 | S53: 0.9388818297
B54: CO GRAND JUNCTION WSO A | C54: Alabama | D54: Perry | F54: Alabama-Perry | G54: 60 | H54: 96.5 | I54: 20 | K54: CO GRAND JUNCTION WSO A | L54: 0.552 | M54: 0.173 | O54: 375 | P54: 0.2842890939 | Q54: 0.2799598714 | R54: 0.07022031746 | S54: 1
B55: CO KIM 15 NNE | C55: Alabama | D55: Pickens | F55: Alabama-Pickens | G55: 60 | H55: 93.4 | I55: 20 | K55: CO KIM 15 NNE | L55: 0.748 | M55: 0.360 | O55: 350 | P55: 0.2606947711 | Q55: 0.2431474693 | R55: 0.1325137931 | S55: 0.9827586207
B56: CO NUNN | C56: Alabama | D56: Pike | F56: Alabama-Pike | G56: 60 | H56: 97.7 | I56: 18 | K56: CO NUNN | L56: 0.650 | M56: 0.276 | O56: 399.8977458 | P56: 0.1792937588 | Q56: 0.3948124936 | R56: 0.2029244851 | S56: 0.8876582761
B57: CO PUEBLO WSO AP | C57: Alabama | D57: Randolph | F57: Alabama-Randolph | G57: 60 | H57: 97.8 | I57: 22 | K57: CO PUEBLO WSO AP | L57: 0.732 | M57: 0.252 | O57: 325 | P57: 0.1797088186 | Q57: 1.03392204 | R57: 0.02717056856 | S57: 0.9779264214
B58: CO SUGARLOAF RESERVOIR | C58: Alabama | D58: Russell | F58: Alabama-Russell | G58: 58.59 | H58: 95.9 | I58: 18 | K58: CO SUGARLOAF RESERVOIR | L58: 0.439 | M58: 0.185 | O58: 350 | P58: 0.2244329897 | Q58: 0.3957140105 | R58: 0.0655940499 | S58: 0.9715451056
B59: CO TELLURIDE 4 WNW | C59: Alabama | D59: Shelby | F59: Alabama-Shelby | G59: 60 | H59: 94.5 | I59: 24 | K59: CO TELLURIDE 4 WNW | L59: 0.629 | M59: 0.309 | O59: 350 | P59: 0.3118583851 | Q59: 0.754049767 | R59: 0.04629129663 | S59: 0.9570159858
B60: CT BRIDGEPORT SIKORSKY | C60: Alabama | D60: St. Clair | F60: Alabama-St. Clair | G60: 60 | H60: 97.5 | I60: 25 | K60: CT BRIDGEPORT SIKORSKY | L60: 0.890 | M60: 0.458 | O60: 350 | P60: 0.2979345349 | Q60: 0.6946466233 | R60: 0.1379448373 | S60: 0.9809052334
B61: CT HARTFORD BRADLEY AP | C61: Alabama | D61: Sumter | F61: Alabama-Sumter | G61: 60 | H61: 96.2 | I61: 18 | K61: CT HARTFORD BRADLEY AP | L61: 0.888 | M61: 0.447 | O61: 375 | P61: 0.2924497556 | Q61: 0.3226355256 | R61: 0.03490921471 | S61: 1
B62: CT JEWETT CITY | C62: Alabama | D62: Talladega | F62: Alabama-Talladega | G62: 60 | H62: 97.8 | I62: 24 | K62: CT JEWETT CITY | L62: 0.880 | M62: 0.545 | O62: 350 | P62: 0.271919591 | Q62: 0.5988390565 | R62: 0.08397109244 | S62: 0.9902521008
B63: CT THOMASTON DAM | C63: Alabama | D63: Tallapoosa | F63: Alabama-Tallapoosa | G63: 60 | H63: 98 | I63: 20 | K63: CT THOMASTON DAM | L63: 0.874 | M63: 0.534 | O63: 350 | P63: 0.2065402844 | Q63: 0.9599623334 | R63: 0.04948160535 | S63: 0.9946488294
B64: DE GEORGETOWN 5 SW | C64: Alabama | D64: Tuscaloosa | F64: Alabama-Tuscaloosa | G64: 60 | H64: 98.4 | I64: 23 | K64: DC WASHINGTN DC NATL AP | L64: 0.896 | M64: 0.471 | O64: 350 | P64: 0.2911950665 | Q64: 0.9079802668 | R64: 0.02313141026 | S64: 0.9775641026
B65: DE WILMINGTN NEW CASTLE | C65: Alabama | D65: Walker | F65: Alabama-Walker | G65: 60 | H65: 100.9 | I65: 26 | K65: DE GEORGETOWN 5 SW | L65: 0.872 | M65: 0.541 | O65: 350 | P65: 0.2709455984 | Q65: 0.6759965427 | R65: 0.03340178571 | S65: 0.9871651786
B66: DC WASHINGTN DC NATL AP | C66: Alabama | D66: Washington | F66: Alabama-Washington | G66: 60 | H66: 98.1 | I66: 20 | K66: DE WILMINGTN NEW CASTLE | L66: 0.897 | M66: 0.461 | O66: 474.652124 | P66: 0.2271852714 | Q66: 0.4684089344 | R66: 0.06019931271 | S66: 1
B67: FL DAYTONA BEACH REG AP | C67: Alabama | D67: Wilcox | F67: Alabama-Wilcox | G67: 60 | H67: 97.6 | I67: 18 | K67: FL DAYTONA BEACH REG AP | L67: 0.914 | M67: 0.483 | O67: 425 | P67: 0.2767084527 | Q67: 0.2448014378 | R67: 0.04518975332 | S67: 1
B68: FL JACKSONVILLE INTL AP | C68: Alabama | D68: Winston | F68: Alabama-Winston | G68: 60 | H68: 100.9 | I68: 24 | K68: FL JACKSONVILLE INTL AP | L68: 0.917 | M68: 0.492 | O68: 325 | P68: 0.2311778368 | Q68: 0.8720139549 | R68: 0.09675183824 | S68: 0.9880514706
B69: FL KEY WEST INTL ARPT | C69: Alaska | D69: Aleutians East | F69: Alaska-Aleutians East | K69: FL KEY WEST INTL ARPT | L69: 0.879 | M69: 0.527
B70: FL MIAMI INTL ARPT | C70: Alaska | D70: Aleutians West | F70: Alaska-Aleutians West | K70: FL MIAMI INTL ARPT | L70: 0.894 | M70: 0.553
B71: FL NICEVILLE | C71: Alaska | D71: Anchorage | F71: Alaska-Anchorage | K71: FL NICEVILLE | L71: 0.927 | M71: 0.613
B72: FL ORTONA LOCK 2 | C72: Alaska | D72: Bethel | F72: Alaska-Bethel | K72: FL ORTONA LOCK 2 | L72: 0.918 | M72: 0.533
B73: FL RAIFORD STATE PRISON | C73: Alaska | D73: Bristol Bay | F73: Alaska-Bristol Bay | K73: FL RAIFORD STATE PRISON | L73: 0.888 | M73: 0.548
B74: FL TALLAHASSEE MUNI AP | C74: Alaska | D74: Dillingham | F74: Alaska-Dillingham | K74: FL TALLAHASSEE MUNI AP | L74: 0.944 | M74: 0.560
B75: FL TAMPA INTL ARPT | C75: Alaska | D75: Fairbanks North Star | F75: Alaska-Fairbanks North Star | K75: FL TAMPA INTL ARPT | L75: 0.899 | M75: 0.590
B76: FL W PALM BEACH INTL AP | C76: Alaska | D76: Haines | F76: Alaska-Haines | K76: FL W PALM BEACH INTL AP | L76: 0.914 | M76: 0.468
B77: GA ATHENS MUNI AP | C77: Alaska | D77: Juneau | F77: Alaska-Juneau | K77: GA ATHENS MUNI AP | L77: 0.917 | M77: 0.515
B78: GA ATLANTA HARTSFIELD | C78: Alaska | D78: Kenai Peninsula | F78: Alaska-Kenai Peninsula | K78: GA ATLANTA HARTSFIELD | L78: 0.921 | M78: 0.515
B79: GA AUGUSTA BUSH FIELD | C79: Alaska | D79: Ketchikan Gateway | F79: Alaska-Ketchikan Gateway | K79: GA AUGUSTA BUSH FIELD | L79: 0.912 | M79: 0.485
B80: GA CALHOUN EXP STATION | C80: Alaska | D80: Kodiak Island | F80: Alaska-Kodiak Island | K80: GA CALHOUN EXP STATION | L80: 0.901 | M80: 0.595
B81: GA COLUMBUS METRO AP | C81: Alaska | D81: Lake and Peninsula | F81: Alaska-Lake and Peninsula | K81: GA COLUMBUS METRO AP | L81: 0.922 | M81: 0.515
B82: GA DAHLONEGA 3 NNW | C82: Alaska | D82: Matanuska-Susitna | F82: Alaska-Matanuska-Susitna | K82: GA DAHLONEGA 3 NNW | L82: 0.936 | M82: 0.624
B83: GA EDISON | C83: Alaska | D83: Nome | F83: Alaska-Nome | K83: GA EDISON | L83: 0.904 | M83: 0.579
B84: GA JESUP | C84: Alaska | D84: North Slope | F84: Alaska-North Slope | I84: 2.5 | K84: GA JESUP | L84: 0.887 | M84: 0.560
B85: GA MACON LEWIS B WILSON | C85: Alaska | D85: Northwest Arctic | F85: Alaska-Northwest Arctic | K85: GA MACON LEWIS B WILSON | L85: 0.903 | M85: 0.606
B86: GA SAVANNAH INTL AP | C86: Alaska | D86: Prince of Wales-Outer Ketchikan | F86: Alaska-Prince of Wales-Outer Ketchikan | I86: 2.5 | K86: GA SAVANNAH INTL AP | L86: 0.922 | M86: 0.500
B87: HI HILO WSO AP 87 | C87: Alaska | D87: Sitka | F87: Alaska-Sitka | K87: HI HILO WSO AP 87 | L87: 0.894 | M87: 0.559
B88: HI HONOLULU WSFO AP 703 | C88: Alaska | D88: Skagway-Yakutat-Angoon | F88: Alaska-Skagway-Yakutat-Angoon | I88: 2.5 | K88: HI HONOLULU WSFO AP 703 | L88: 0.803 | M88: 0.194
B89: HI KAHULUI WSO AP 398 | C89: Alaska | D89: Southeast Fairbanks | F89: Alaska-Southeast Fairbanks | K89: HI KAHULUI WSO AP 398 | L89: 0.774 | M89: 0.197
B90: HI KANALOHULUHULU 1075 | C90: Alaska | D90: Valdez-Cordova | F90: Alaska-Valdez-Cordova | I90: 57.273 | K90: HI KANALOHULUHULU 1075 | L90: 0.877 | M90: 0.408
B91: HI KEAIWA CAMP 22.1 | C91: Alaska | D91: Wade Hampton | F91: Alaska-Wade Hampton | K91: HI KEAIWA CAMP 22.1 | L91: 0.892 | M91: 0.509
B92: HI KUALAPUU 534 | C92: Alaska | D92: Wrangell-Petersburg | F92: Alaska-Wrangell-Petersburg | I92: 2.5 | K92: HI KUALAPUU 534 | L92: 0.839 | M92: 0.372
B93: HI LALAMILO FLD OF 191. | C93: Alaska | D93: Yukon-Koyukuk | F93: Alaska-Yukon-Koyukuk | I93: 2.5 | K93: HI LALAMILO FLD OF 191. | L93: 0.779 | M93: 0.306
B94: HI LIHUE WSO AP 1020.1 | C94: Arizona | D94: Apache | F94: Arizona-Apache | G94: 13.22 | H94: 53.7 | I94: 1.391 | K94: HI LIHUE WSO AP 1020.1 | L94: 0.764 | M94: 0.201 | O94: 38.41192558 | P94: 0.2432232009 | Q94: 0.2612221313 | R94: 0.2387332835 | S94: 0.9999824836
B95: HI PAAKEA 350 | C95: Arizona | D95: Cochise | F95: Arizona-Cochise | G95: 16.09 | H95: 48.1 | I95: 1.14 | K95: HI PAAKEA 350 | L95: 0.946 | M95: 0.687 | O95: 85.53808878 | P95: 0.2183877263 | Q95: 0.8389312245 | R95: 0.1672934825 | S95: 1
B96: HI PUNALUU PUMP 905.2 | C96: Arizona | D96: Coconino | F96: Arizona-Coconino | G96: 14.41 | H96: 52.2 | I96: 0.822 | K96: HI PUNALUU PUMP 905.2 | L96: 0.842 | M96: 0.410 | O96: 34.6937081 | P96: 0.1997432335 | Q96: 1.257109172 | R96: 0.2856918868 | S96: 1
B97: ID BOISE WSFO AIRPORT | C97: Arizona | D97: Gila | F97: Arizona-Gila | G97: 21.36 | H97: 59.1 | I97: 2.583 | K97: IA CENTERVILLE | L97: 0.873 | M97: 0.523 | O97: 71.61170739 | P97: 0.1775076213 | Q97: 1.854353609 | R97: 0.09273742574 | S97: 1
B98: ID CALDER | C98: Arizona | D98: Graham | F98: Arizona-Graham | G98: 16.1 | H98: 53.6 | I98: 0.867 | K98: IA DES MOINES AP | L98: 0.871 | M98: 0.403 | O98: 61.85915493 | P98: 0.1643069881 | Q98: 2.827145493 | R98: 0.1539704994 | S98: 1
B99: ID CASCADE 1 NW | C99: Arizona | D99: Greenlee | F99: Arizona-Greenlee | G99: 19.32 | H99: 58.6 | I99: 1.133 | K99: IA IRWIN 3 ESE | L99: 0.844 | M99: 0.422 | O99: 58.86592018 | P99: 0.1493639765 | Q99: 2.674506642 | R99: 0.1460925297 | S99: 1
B100: ID FENN RANGER STATION | C100: Arizona | D100: La Paz | F100: Arizona-La Paz | G100: 7.83 | H100: 31.7 | I100: 0.15 | K100: IA LARRABEE | L100: 0.858 | M100: 0.453 | O100: 46.88470837 | P100: 0.2246073776 | Q100: 0.5300019767 | R100: 0.3600881683 | S100: 1
B101: ID GOODING 1 S | C101: Arizona | D101: Maricopa | F101: Arizona-Maricopa | G101: 10.15 | H101: 38.6 | I101: 0.76 | K101: IA LENOX | L101: 0.845 | M101: 0.460 | O101: 42.10911204 | P101: 0.23539055 | Q101: 0.6447428709 | R101: 0.2681602708 | S101: 1
B102: ID GRASMERE 3 S | C102: Arizona | D102: Mohave | F102: Arizona-Mohave | G102: 10.25 | H102: 42.1 | I102: 0.364 | K102: IA MCGREGOR | L102: 0.843 | M102: 0.476 | O102: 45.58753147 | P102: 0.1474952244 | Q102: 1.266775635 | R102: 0.2015823529 | S102: 1
B103: ID LEADORE | C103: Arizona | D103: Navajo | F103: Arizona-Navajo | G103: 12.02 | H103: 49.8 | I103: 1.887 | K103: IA MOUNT PLEASANT 1 SSW | L103: 0.856 | M103: 0.501 | O103: 37.08312343 | P103: 0.2237998082 | Q103: 0.5720265357 | R103: 0.2744935279 | S103: 1
B104: ID POCATELLO WSO AP | C104: Arizona | D104: Pima | F104: Arizona-Pima | G104: 12.5 | H104: 45 | I104: 0.717 | K104: IA SIOUX CITY AP | L104: 0.840 | M104: 0.349 | O104: 96.3782906 | P104: 0.1859775649 | Q104: 0.6275945935 | R104: 0.2753738542 | S104: 1
B105: ID SANDPOINT EXP STATIO | C105: Arizona | D105: Pinal | F105: Arizona-Pinal | G105: 12.34 | H105: 45.3 | I105: 0.6 | K105: IA ST ANSGAR | L105: 0.830 | M105: 0.465 | O105: 65.65311878 | P105: 0.20511349 | Q105: 2.261309671 | R105: 0.2733855974 | S105: 1
B106: ID TETONIA EXPERIMENT S | C106: Arizona | D106: Santa Cruz | F106: Arizona-Santa Cruz | G106: 19.39 | H106: 60.2 | I106: 0.5 | K106: IA WATERLOO WSO AP | L106: 0.865 | M106: 0.402 | O106: 97.05102041 | P106: 0.1674755887 | Q106: 1.955968027 | R106: 0.1467600368 | S106: 1
B107: IL AUGUSTA | C107: Arizona | D107: Yavapai | F107: Arizona-Yavapai | G107: 16.86 | H107: 46.6 | I107: 1.222 | K107: ID BOISE WSFO AIRPORT | L107: 0.600 | M107: 0.218 | O107: 59.3507528 | P107: 0.1954562462 | Q107: 0.9726536645 | R107: 0.2187239478 | S107: 1
B108: IL BELLEVILLE SIU RESEA | C108: Arizona | D108: Yuma | F108: Arizona-Yuma | G108: 6.42 | H108: 29.5 | I108: 0.822 | K108: ID CALDER | L108: 0.728 | M108: 0.416 | O108: 39.32967399 | P108: 0.3022060116 | Q108: 0.1535313001 | R108: 0.3159944424 | S108: 1
B109: IL CHICAGO MIDWAY AP 3 | C109: Arkansas | D109: Arkansas | F109: Arkansas-Arkansas | G109: 57.75 | H109: 96.3 | I109: 18 | K109: ID CASCADE 1 NW | L109: 0.635 | M109: 0.326 | O109: 300 | P109: 0.4519135377 | Q109: 0.1113813564 | R109: 0.2420732996 | S109: 1
B110: IL MOLINE WSO AP | C110: Arkansas | D110: Ashley | F110: Arkansas-Ashley | G110: 60 | H110: 85.1 | I110: 15.667 | K110: ID FENN RANGER STATION | L110: 0.746 | M110: 0.432 | O110: 325 | P110: 0.4293483578 | Q110: 0.1066334904 | R110: 0.2667011027 | S110: 1
B111: IL MURPHYSBORO 2 SW | C111: Arkansas | D111: Baxter | F111: Arkansas-Baxter | G111: 45 | H111: 84.7 | I111: 14.5 | K111: ID GOODING 1 S | L111: 0.544 | M111: 0.246 | O111: 275 | P111: 0.2696423017 | Q111: 1.552698199 | R111: 0.0155602518 | S111: 1
B112: IL NEWTON 6 SSE | C112: Arkansas | D112: Benton | F112: Arkansas-Benton | G112: 45 | H112: 89.2 | I112: 12 | K112: ID GRASMERE 3 S | L112: 0.541 | M112: 0.228 | O112: 275 | P112: 0.3215967524 | Q112: 0.7067895674 | R112: 0.01969949239 | S112: 1
B113: IL PEORIA WSO AIRPORT | C113: Arkansas | D113: Boone | F113: Arkansas-Boone | G113: 45 | H113: 88.4 | I113: 14.5 | K113: ID LEADORE | L113: 0.442 | M113: 0.168 | O113: 275 | P113: 0.2872021858 | Q113: 2.036624397 | R113: 0.01618598915 | S113: 1
B114: IL PIPER CITY | C114: Arkansas | D114: Bradley | F114: Arkansas-Bradley | G114: 60 | H114: 96.1 | I114: 15 | K114: ID POCATELLO WSO AP | L114: 0.592 | M114: 0.189 | O114: 325 | P114: 0.356358396 | Q114: 0.2756316955 | R114: 0.05657142857 | S114: 1
B115: IL ROCKFORD WSO AP | C115: Arkansas | D115: Calhoun | F115: Arkansas-Calhoun | G115: 60 | H115: 97.8 | I115: 15 | K115: ID SANDPOINT EXP STATIO | L115: 0.766 | M115: 0.430 | O115: 325 | P115: 0.354536134 | Q115: 0.1204837721 | R115: 0.03343262411 | S115: 1
B116: IL SPRINGFIELD WSO AP | C116: Arkansas | D116: Carroll | F116: Arkansas-Carroll | G116: 45 | H116: 83 | I116: 14.5 | K116: ID TETONIA EXPERIMENT S | L116: 0.554 | M116: 0.252 | O116: 275 | P116: 0.2561896422 | Q116: 1.303020592 | R116: 0.009958207669 | S116: 1
B117: IN EVANSVILLE WSO AP | C117: Arkansas | D117: Chicot | F117: Arkansas-Chicot | G117: 60 | H117: 90.5 | I117: 18 | K117: IL AUGUSTA | L117: 0.855 | M117: 0.489 | O117: 325 | P117: 0.3615658187 | Q117: 0.1132068208 | R117: 0.2889285315 | S117: 1
B118: IN FORT WAYNE WSO AP | C118: Arkansas | D118: Clark | F118: Arkansas-Clark | G118: 60 | H118: 90.5 | I118: 19 | K118: IL BELLEVILLE SIU RESEA | L118: 0.862 | M118: 0.514 | O118: 300.2831357 | P118: 0.3032795699 | Q118: 0.3596088007 | R118: 0.1103144599 | S118: 1
B119: IN INDIANAPOLIS WSFO AP | C119: Arkansas | D119: Clay | F119: Arkansas-Clay | G119: 45.19 | H119: 92.9 | I119: 17 | K119: IL CHICAGO MIDWAY AP 3 | L119: 0.847 | M119: 0.431 | O119: 275 | P119: 0.4124696557 | Q119: 0.1397985447 | R119: 0.2030713669 | S119: 1
B120: IN PERU WASTE WATER PLA | C120: Arkansas | D120: Cleburne | F120: Arkansas-Cleburne | G120: 59.63 | H120: 96.5 | I120: 18 | K120: IL MOLINE WSO AP | L120: 0.879 | M120: 0.424 | O120: 275 | P120: 0.2329261198 | Q120: 0.527702579 | R120: 0.04962749616 | S120: 1
B121: IN RICHMOND WTR WKS | C121: Arkansas | D121: Cleveland | F121: Arkansas-Cleveland | G121: 60 | H121: 97.8 | I121: 16 | K121: IL MURPHYSBORO 2 SW | L121: 0.873 | M121: 0.534 | O121: 325 | P121: 0.3398714248 | Q121: 0.2524841106 | R121: 0.03432142857 | S121: 1
B122: IN SHOALS HIWAY 50 BRID | C122: Arkansas | D122: Columbia | F122: Arkansas-Columbia | G122: 57.54 | H122: 93.5 | I122: 12 | K122: IL NEWTON 6 SSE | L122: 0.862 | M122: 0.511 | O122: 325 | P122: 0.3122688216 | Q122: 0.4043113665 | R122: 0.01995268139 | S122: 1
B123: IN SOUTH BEND WSO AP | C123: Arkansas | D123: Conway | F123: Arkansas-Conway | G123: 47.93 | H123: 83.1 | I123: 20 | K123: IL PEORIA WSO AIRPORT | L123: 0.872 | M123: 0.411 | O123: 275 | P123: 0.3019317856 | Q123: 0.3550220955 | R123: 0.08274109264 | S123: 1
B124: IN VALPARAISO WATERWORK | C124: Arkansas | D124: Craighead | F124: Arkansas-Craighead | G124: 45 | H124: 89.5 | I124: 17 | K124: IL PIPER CITY | L124: 0.838 | M124: 0.477 | O124: 276.0726795 | P124: 0.4388509594 | Q124: 0.1520830458 | R124: 0.2125648018 | S124: 1
B125: IN VERSAILLES WATERWORK | C125: Arkansas | D125: Crawford | F125: Arkansas-Crawford | G125: 48.01 | H125: 85.2 | I125: 15.333 | K125: IL ROCKFORD WSO AP | L125: 0.862 | M125: 0.381 | O125: 275 | P125: 0.3139160358 | Q125: 0.59548253 | R125: 0.134959322 | S125: 1
B126: IN WEST LAFAYETTE 6 NW | C126: Arkansas | D126: Crittenden | F126: Arkansas-Crittenden | G126: 58.98 | H126: 95.4 | I126: 16 | K126: IL SPRINGFIELD WSO AP | L126: 0.872 | M126: 0.414 | O126: 275 | P126: 0.3394717182 | Q126: 0.1151634197 | R126: 0.344970473 | S126: 1
B127: IA CENTERVILLE | C127: Arkansas | D127: Cross | F127: Arkansas-Cross | G127: 47.45 | H127: 83 | I127: 18 | K127: IN EVANSVILLE WSO AP | L127: 0.902 | M127: 0.477 | O127: 275 | P127: 0.4270571502 | Q127: 0.123257263 | R127: 0.2181508633 | S127: 1
B128: IA DES MOINES AP | C128: Arkansas | D128: Dallas | F128: Arkansas-Dallas | G128: 60 | H128: 90.5 | I128: 17 | K128: IN FORT WAYNE WSO AP | L128: 0.842 | M128: 0.382 | O128: 325 | P128: 0.3403180212 | Q128: 0.2090015966 | R128: 0.01268047337 | S128: 1
B129: IA IRWIN 3 ESE | C129: Arkansas | D129: Desha | F129: Arkansas-Desha | G129: 60 | H129: 97.8 | I129: 18 | K129: IN INDIANAPOLIS WSFO AP | L129: 0.870 | M129: 0.417 | O129: 325 | P129: 0.3472684032 | Q129: 0.1169980358 | R129: 0.3186698212 | S129: 1
B130: IA LARRABEE | C130: Arkansas | D130: Drew | F130: Arkansas-Drew | G130: 60 | H130: 95.9 | I130: 15.5 | K130: IN PERU WASTE WATER PLA | L130: 0.817 | M130: 0.461 | O130: 325 | P130: 0.4191560781 | Q130: 0.1281911823 | R130: 0.1992705249 | S130: 1
B131: IA LENOX | C131: Arkansas | D131: Faulkner | F131: Arkansas-Faulkner | G131: 50.62 | H131: 88.9 | I131: 21 | K131: IN RICHMOND WTR WKS | L131: 0.828 | M131: 0.488 | O131: 275 | P131: 0.3165868263 | Q131: 0.4607100338 | R131: 0.02661896698 | S131: 1
B132: IA MCGREGOR | C132: Arkansas | D132: Franklin | F132: Arkansas-Franklin | G132: 45.77 | H132: 83.2 | I132: 15.75 | K132: IN SHOALS HIWAY 50 BRID | L132: 0.866 | M132: 0.504 | O132: 275 | P132: 0.314847561 | Q132: 0.528150591 | R132: 0.07244922547 | S132: 1
B133: IA MOUNT PLEASANT 1 SSW | C133: Arkansas | D133: Fulton | F133: Arkansas-Fulton | G133: 45 | H133: 83 | I133: 15 | K133: IN SOUTH BEND WSO AP | L133: 0.837 | M133: 0.366 | O133: 275 | P133: 0.2869039054 | Q133: 0.7348807315 | R133: 0.02792060399 | S133: 1
B134: IA SIOUX CITY AP | C134: Arkansas | D134: Garland | F134: Arkansas-Garland | G134: 60 | H134: 97 | I134: 18 | K134: IN VALPARAISO WATERWORK | L134: 0.809 | M134: 0.447 | O134: 300 | P134: 0.2859192058 | Q134: 0.8471232121 | R134: 0.01183636364 | S134: 1
B135: IA ST ANSGAR | C135: Arkansas | D135: Grant | F135: Arkansas-Grant | G135: 60 | H135: 97.8 | I135: 18 | K135: IN VERSAILLES WATERWORK | L135: 0.859 | M135: 0.502 | O135: 300 | P135: 0.3258042131 | Q135: 0.2185311743 | R135: 0.03414230769 | S135: 1
B136: IA WATERLOO WSO AP | C136: Arkansas | D136: Greene | F136: Arkansas-Greene | G136: 46.4 | H136: 97.4 | I136: 17.333 | K136: IN WEST LAFAYETTE 6 NW | L136: 0.833 | M136: 0.481 | O136: 275 | P136: 0.419384148 | Q136: 0.1704669191 | R136: 0.2336614276 | S136: 1
B137: KS BIG BOW 4 WSW | C137: Arkansas | D137: Hempstead | F137: Arkansas-Hempstead | G137: 59.76 | H137: 94.1 | I137: 16.6 | K137: KS BIG BOW 4 WSW | L137: 0.804 | M137: 0.421 | O137: 325 | P137: 0.3104712042 | Q137: 0.3231446549 | R137: 0.02908612717 | S137: 1
B138: KS COLLYER 10 S | C138: Arkansas | D138: Hot Spring | F138: Arkansas-Hot Spring | G138: 60 | H138: 97.7 | I138: 20 | K138: KS COLLYER 10 S | L138: 0.810 | M138: 0.395 | O138: 300.4207486 | P138: 0.2707069914 | Q138: 0.4111132887 | R138: 0.02308884298 | S138: 1
B139: KS COLUMBUS 1 SW | C139: Arkansas | D139: Howard | F139: Arkansas-Howard | G139: 60 | H139: 95.7 | I139: 20 | K139: KS COLUMBUS 1 SW | L139: 0.900 | M139: 0.537 | O139: 300 | P139: 0.2872255319 | Q139: 0.4734438876 | R139: 0.02636555143 | S139: 1
B140: KS CONCORDIA WSO ARPT | C140: Arkansas | D140: Independence | F140: Arkansas-Independence | G140: 45.31 | H140: 90.8 | I140: 16.333 | K140: KS CONCORDIA WSO ARPT | L140: 0.867 | M140: 0.397 | O140: 275.5467801 | P140: 0.3307048367 | Q140: 0.4989571622 | R140: 0.0930510594 | S140: 1
B141: KS DODGE CITY WFO AP | C141: Arkansas | D141: Izard | F141: Arkansas-Izard | G141: 45 | H141: 84 | I141: 15 | K141: KS DODGE CITY WFO AP | L141: 0.856 | M141: 0.375 | O141: 275 | P141: 0.2620899973 | Q141: 1.662527222 | R141: 0.01925945317 | S141: 1
B142: KS FALL RIVER LAKE | C142: Arkansas | D142: Jackson | F142: Arkansas-Jackson | G142: 45.38 | H142: 84.6 | I142: 16 | K142: KS FALL RIVER LAKE | L142: 0.886 | M142: 0.498 | O142: 275 | P142: 0.386887998 | Q142: 0.09322408549 | R142: 0.2461763533 | S142: 1
B143: KS GOODLAND WFO | C143: Arkansas | D143: Jefferson | F143: Arkansas-Jefferson | G143: 58.97 | H143: 97.8 | I143: 18 | K143: KS GOODLAND WFO | L143: 0.825 | M143: 0.327 | O143: 300 | P143: 0.358696319 | Q143: 0.08363616015 | R143: 0.2830943338 | S143: 1
B144: KS PHILLIPSBURG 1 SSE | C144: Arkansas | D144: Johnson | F144: Arkansas-Johnson | G144: 45 | H144: 80.7 | I144: 18 | K144: KS PHILLIPSBURG 1 SSE | L144: 0.798 | M144: 0.403 | O144: 275 | P144: 0.2522047244 | Q144: 0.5075310066 | R144: 0.02619401445 | S144: 0.995872033
B145: KS TOPEKA WSFO AIRPORT | C145: Arkansas | D145: Lafayette | F145: Arkansas-Lafayette | G145: 52.27 | H145: 83 | I145: 13.2 | K145: KS TOPEKA WSFO AIRPORT | L145: 0.887 | M145: 0.423 | O145: 325 | P145: 0.3609325638 | Q145: 0.1379809029 | R145: 0.1324236707 | S145: 0.9813464837
B146: KS WICHITA WSO ARPT | C146: Arkansas | D146: Lawrence | F146: Arkansas-Lawrence | G146: 45 | H146: 83.5 | I146: 15.5 | K146: KS WICHITA WSO ARPT | L146: 0.883 | M146: 0.418 | O146: 274.9233413 | P146: 0.3719887127 | Q146: 0.1402377487 | R146: 0.1969151318 | S146: 1
B147: KY BUCKHORN LAKE | C147: Arkansas | D147: Lee | F147: Arkansas-Lee | G147: 60 | H147: 89.7 | I147: 18 | K147: KY BUCKHORN LAKE | L147: 0.885 | M147: 0.531 | O147: 300 | P147: 0.4254669208 | Q147: 0.1064120301 | R147: 0.2671556637 | S147: 1
B148: KY CLINTON 4 S | C148: Arkansas | D148: Lincoln | F148: Arkansas-Lincoln | G148: 60 | H148: 97.8 | I148: 17 | K148: KY CLINTON 4 S | L148: 0.884 | M148: 0.555 | O148: 300 | P148: 0.3685209276 | Q148: 0.1147141279 | R148: 0.2782494929 | S148: 1
B149: KY COVINGTON WSO AIRPOR | C149: Arkansas | D149: Little River | F149: Arkansas-Little River | G149: 49.9 | H149: 83 | I149: 16.25 | K149: KY COVINGTON WSO AIRPOR | L149: 0.871 | M149: 0.437 | O149: 300.2849597 | P149: 0.374203163 | Q149: 0.1541439075 | R149: 0.1711378282 | S149: 1
B150: KY HODGENVILLE-LINCOLN | C150: Arkansas | D150: Logan | F150: Arkansas-Logan | G150: 45.86 | H150: 84.8 | I150: 15 | K150: KY HODGENVILLE-LINCOLN | L150: 0.876 | M150: 0.537 | O150: 300 | P150: 0.3447402968 | Q150: 0.5849531426 | R150: 0.07282960862 | S150: 1
B151: KY LEXINGTON WSO AIRPOR | C151: Arkansas | D151: Lonoke | F151: Arkansas-Lonoke | G151: 46.7 | H151: 90.4 | I151: 18 | K151: KY LEXINGTON WSO AIRPOR | L151: 0.889 | M151: 0.465 | O151: 300 | P151: 0.4258135765 | Q151: 0.1352525394 | R151: 0.2003177249 | S151: 1
B152: KY LOUISA 2 S | C152: Arkansas | D152: Madison | F152: Arkansas-Madison | G152: 45.45 | H152: 83.4 | I152: 15.75 | K152: KY LOUISA 2 S | L152: 0.840 | M152: 0.499 | O152: 275 | P152: 0.2468125771 | Q152: 1.300294873 | R152: 0.009189473684 | S152: 1
B153: KY LOUISVILLE WSFO AP | C153: Arkansas | D153: Marion | F153: Arkansas-Marion | G153: 45 | H153: 86.8 | I153: 14.5 | K153: KY LOUISVILLE WSFO AP | L153: 0.895 | M153: 0.472 | O153: 275 | P153: 0.2680512981 | Q153: 1.713517907 | R153: 0.02635805243 | S153: 1
B154: KY PADUCAH WALKER BOAT | C154: Arkansas | D154: Miller | F154: Arkansas-Miller | G154: 45.51 | H154: 83 | I154: 12.8 | K154: KY PADUCAH WALKER BOAT | L154: 0.888 | M154: 0.552 | O154: 325 | P154: 0.3366160576 | Q154: 0.1877243275 | R154: 0.1725888158 | S154: 1
B155: KY SOMERSET 2 NE | C155: Arkansas | D155: Mississippi | F155: Arkansas-Mississippi | G155: 50.31 | H155: 97.8 | I155: 18 | K155: KY SOMERSET 2 NE | L155: 0.863 | M155: 0.526 | O155: 275 | P155: 0.3332012141 | Q155: 0.09252117587 | R155: 0.3770456349 | S155: 1
B156: KY WOODBURY | C156: Arkansas | D156: Monroe | F156: Arkansas-Monroe | G156: 56.35 | H156: 84.5 | I156: 15 | K156: KY WOODBURY | L156: 0.886 | M156: 0.528 | O156: 300 | P156: 0.4257630358 | Q156: 0.09022654269 | R156: 0.2569263231 | S156: 1
B157: LA ALEXANDRIA | C157: Arkansas | D157: Montgomery | F157: Arkansas-Montgomery | G157: 60 | H157: 93.9 | I157: 20 | K157: LA ALEXANDRIA | L157: 0.912 | M157: 0.572 | O157: 298.4021632 | P157: 0.2687565369 | Q157: 0.5522149436 | R157: 0.01823946785 | S157: 1
B158: LA BATON ROUGE WSO AP | C158: Arkansas | D158: Nevada | F158: Arkansas-Nevada | G158: 60 | H158: 90.9 | I158: 15.75 | K158: LA BATON ROUGE WSO AP | L158: 0.942 | M158: 0.548 | O158: 325 | P158: 0.3026832361 | Q158: 0.3884850844 | R158: 0.03882746479 | S158: 1
B159: LA CALHOUN RESEARCH STN | C159: Arkansas | D159: Newton | F159: Arkansas-Newton | G159: 45 | H159: 83 | I159: 17 | K159: LA CALHOUN RESEARCH STN | L159: 0.919 | M159: 0.580 | O159: 275 | P159: 0.2373340321 | Q159: 1.489294594 | R159: 0.02811864407 | S159: 1
B160: LA LAFAYETTE | C160: Arkansas | D160: Ouachita | F160: Arkansas-Ouachita | G160: 60 | H160: 92.5 | I160: 15 | K160: LA LAFAYETTE | L160: 0.918 | M160: 0.577 | O160: 325 | P160: 0.3121125828 | Q160: 0.1632914742 | R160: 0.05513436693 | S160: 1
B161: LA LAKE CHARLES AP | C161: Arkansas | D161: Perry | F161: Arkansas-Perry | G161: 50.06 | H161: 88.9 | I161: 19 | K161: LA LAKE CHARLES AP | L161: 0.927 | M161: 0.626 | O161: 300 | P161: 0.317520436 | Q161: 0.2811761467 | R161: 0.02816755319 | S161: 0.9900265957
B162: LA MORGAN CITY | C162: Arkansas | D162: Phillips | F162: Arkansas-Phillips | G162: 60 | H162: 96.1 | I162: 15.5 | K162: LA MORGAN CITY | L162: 0.921 | M162: 0.599 | O162: 300 | P162: 0.4139841117 | Q162: 0.09704192879 | R162: 0.2836050548 | S162: 1
B163: LA NATCHITOCHES | C163: Arkansas | D163: Pike | F163: Arkansas-Pike | G163: 60 | H163: 91.9 | I163: 21 | K163: LA NATCHITOCHES | L163: 0.910 | M163: 0.576 | O163: 297.2199593 | P163: 0.2437273954 | Q163: 0.7462395035 | R163: 0.02564825581 | S163: 1
B164: LA NEW ORLEANS WSCMO AR | C164: Arkansas | D164: Poinsett | F164: Arkansas-Poinsett | G164: 45 | H164: 85.5 | I164: 18 | K164: LA NEW ORLEANS WSCMO AR | L164: 0.933 | M164: 0.647 | O164: 275 | P164: 0.4082335705 | Q164: 0.1025374593 | R164: 0.2486189781 | S164: 1
B165: LA SHREVEPORT AP | C165: Arkansas | D165: Polk | F165: Arkansas-Polk | G165: 60 | H165: 97.2 | I165: 21 | K165: LA SHREVEPORT AP | L165: 0.918 | M165: 0.612 | O165: 300 | P165: 0.2467161622 | Q165: 0.8438085393 | R165: 0.02836749482 | S165: 1
B166: LA WINNSBORO 5 SSE | C166: Arkansas | D166: Pope | F166: Arkansas-Pope | G166: 46.6 | H166: 82.1 | I166: 19 | K166: LA WINNSBORO 5 SSE | L166: 0.912 | M166: 0.586 | O166: 275 | P166: 0.3078603945 | Q166: 0.3919655292 | R166: 0.06286413902 | S166: 1
B167: ME AUGUSTA | C167: Arkansas | D167: Prairie | F167: Arkansas-Prairie | G167: 54.47 | H167: 86.7 | I167: 18 | K167: MA BIRCH HILL DAM | L167: 0.880 | M167: 0.491 | O167: 300 | P167: 0.4669407497 | Q167: 0.1311667517 | R167: 0.228804146 | S167: 1
B168: ME CARIBOU MUNI ARPT | C168: Arkansas | D168: Pulaski | F168: Arkansas-Pulaski | G168: 52.14 | H168: 92.5 | I168: 19 | K168: MA BOSTON LOGAN INTL AP | L168: 0.884 | M168: 0.439 | O168: 300 | P168: 0.3151022395 | Q168: 0.2503799197 | R168: 0.1284368794 | S168: 1
B169: ME CLAYTON LAKE | C169: Arkansas | D169: Randolph | F169: Arkansas-Randolph | G169: 45 | H169: 90.2 | I169: 12 | K169: MA BRIDGEWATER | L169: 0.863 | M169: 0.517 | O169: 275 | P169: 0.3372303207 | Q169: 0.5062526234 | R169: 0.07572566007 | S169: 1
B170: ME EASTPORT | C170: Arkansas | D170: Saline | F170: Arkansas-Saline | G170: 60 | H170: 96.6 | I170: 18 | K170: MA HYANNIS | L170: 0.901 | M170: 0.530 | O170: 275 | P170: 0.4159105752 | Q170: 0.1432433842 | R170: 0.2827675575 | S170: 1
B171: ME GRAND LAKE STREAM | C171: Arkansas | D171: Scott | F171: Arkansas-Scott | G171: 52.7 | H171: 83.9 | I171: 15.75 | K171: MA KNIGHTVILLE DAM | L171: 0.893 | M171: 0.502 | O171: 300 | P171: 0.308084042 | Q171: 0.4444671614 | R171: 0.05208461538 | S171: 1
B172: ME MILLINOCKET | C172: Arkansas | D172: Searcy | F172: Arkansas-Searcy | G172: 46 | H172: 83.1 | I172: 17 | K172: MA NEW BEDFORD | L172: 0.904 | M172: 0.477 | O172: 300 | P172: 0.3526860084 | Q172: 0.3851516306 | R172: 0.02422394881 | S172: 1
B173: ME ORONO 2 | C173: Arkansas | D173: Sebastian | F173: Arkansas-Sebastian | G173: 45.04 | H173: 79.9 | I173: 14.8 | K173: MA PROVINCETOWN | L173: 0.873 | M173: 0.515 | O173: 275 | P173: 0.2871424709 | Q173: 1.34883711 | R173: 0.02307064364 | S173: 1
B174: ME PORTLAND INTL JETPRT | C174: Arkansas | D174: Sevier | F174: Arkansas-Sevier | G174: 60 | H174: 84.5 | I174: 20 | K174: MA WORCESTER MUNI AP | L174: 0.895 | M174: 0.445 | O174: 275 | P174: 0.3351455939 | Q174: 0.4821102747 | R174: 0.06330631333 | S174: 1
B175: ME ROCKLAND 1 W | C175: Arkansas | D175: Sharp | F175: Arkansas-Sharp | G175: 45 | H175: 83 | I175: 15 | K175: MD BALT-WASHGTN INTL AP | L175: 0.891 | M175: 0.458 | O175: 300 | P175: 0.3010546416 | Q175: 0.401982943 | R175: 0.03300873786 | S175: 1
B176: ME SKOWHEGAN | C176: Arkansas | D176: St. Francis | F176: Arkansas-St. Francis | G176: 59.87 | H176: 84.3 | I176: 18 | K176: MD BELTSVILLE | L176: 0.878 | M176: 0.559 | O176: 275 | P176: 0.2712678618 | Q176: 0.6350312998 | R176: 0.03969397218 | S176: 1
B177: MD BALT-WASHGTN INTL AP | C177: Arkansas | D177: Stone | F177: Arkansas-Stone | G177: 50.63 | H177: 88.9 | I177: 16.333 | K177: MD HANCOCK | L177: 0.828 | M177: 0.459 | O177: 275 | P177: 0.2652351292 | Q177: 0.6342029346 | R177: 0.01791293214 | S177: 1
B178: MD BELTSVILLE | C178: Arkansas | D178: Union | F178: Arkansas-Union | G178: 60 | H178: 93.9 | I178: 14.5 | K178: MD SAVAGE RIVER DAM | L178: 0.802 | M178: 0.425 | O178: 325 | P178: 0.3177134146 | Q178: 0.3038419216 | R178: 0.3187306338 | S178: 1
B179: MD HANCOCK | C179: Arkansas | D179: Van Buren | F179: Arkansas-Van Buren | G179: 59.42 | H179: 84.2 | I179: 21 | K179: MD UNIONVILLE | L179: 0.850 | M179: 0.512 | O179: 275 | P179: 0.2381950753 | Q179: 0.8173115719 | R179: 0.02210613208 | S179: 1
B180: MD SAVAGE RIVER DAM | C180: Arkansas | D180: Washington | F180: Arkansas-Washington | G180: 47 | H180: 86.5 | I180: 14.75 | K180: ME AUGUSTA | L180: 0.853 | M180: 0.504 | O180: 275 | P180: 0.3077595723 | Q180: 0.4164821651 | R180: 0.02485379503 | S180: 1
B181: MD UNIONVILLE | C181: Arkansas | D181: White | F181: Arkansas-White | G181: 59.26 | H181: 90.8 | I181: 19 | K181: ME CARIBOU MUNI ARPT | L181: 0.800 | M181: 0.344 | O181: 275 | P181: 0.367325723 | Q181: 0.2236650519 | R181: 0.108717815 | S181: 1
B182: MA BIRCH HILL DAM | C182: Arkansas | D182: Woodruff | F182: Arkansas-Woodruff | G182: 54.35 | H182: 83 | I182: 18 | K182: ME CLAYTON LAKE | L182: 0.776 | M182: 0.394 | O182: 275 | P182: 0.3768234658 | Q182: 0.1148456866 | R182: 0.2779483261 | S182: 1
B183: MA BOSTON LOGAN INTL AP | C183: Arkansas | D183: Yell | F183: Arkansas-Yell | G183: 49.95 | H183: 85.4 | I183: 16.2 | K183: ME EASTPORT | L183: 0.856 | M183: 0.483 | O183: 300 | P183: 0.3340976585 | Q183: 0.2292445655 | R183: 0.04536724248 | S183: 1
B184: MA BRIDGEWATER | C184: California | D184: Alameda | F184: California-Alameda | G184: 19.05 | H184: 47.2 | I184: 3.5 | K184: ME GRAND LAKE STREAM | L184: 0.856 | M184: 0.493 | O184: 30.63890507 | P184: 0.2951500349 | Q184: 5.251452177 | R184: 0.08883870968 | S184: 1
B185: MA HYANNIS | C185: California | D185: Alpine | F185: California-Alpine | G185: 47.83 | H185: 85.5 | I185: 15.2 | K185: ME MILLINOCKET | L185: 0.823 | M185: 0.464 | O185: 89.06460674 | P185: 0.1656020942 | Q185: 4.815927149 | R185: 0.1540717822 | S185: 1
B186: MA KNIGHTVILLE DAM | C186: California | D186: Amador | F186: California-Amador | G186: 35.39 | H186: 62.8 | I186: 17.5 | K186: ME ORONO 2 | L186: 0.847 | M186: 0.518 | O186: 46.56674907 | P186: 0.2497123646 | Q186: 6.201751543 | R186: 0.06452781641 | S186: 1
B187: MA NEW BEDFORD | C187: California | D187: Butte | F187: California-Butte | G187: 45.98 | H187: 64.6 | I187: 16.444 | K187: ME PORTLAND INTL JETPRT | L187: 0.890 | M187: 0.437 | O187: 74.82576809 | P187: 0.2562300843 | Q187: 0.8365276939 | R187: 0.1927481447 | S187: 1
B188: MA PROVINCETOWN | C188: California | D188: Calaveras | F188: California-Calaveras | G188: 35.83 | H188: 59.1 | I188: 15 | K188: ME ROCKLAND 1 W | L188: 0.870 | M188: 0.530 | O188: 50.15228758 | P188: 0.2697684004 | Q188: 2.398958176 | R188: 0.02371 | S188: 1
B189: MA WORCESTER MUNI AP | C189: California | D189: Colusa | F189: California-Colusa | G189: 20.28 | H189: 46.4 | I189: 8.833 | K189: ME SKOWHEGAN | L189: 0.835 | M189: 0.486 | O189: 32.85037406 | P189: 0.2990928373 | Q189: 3.15403556 | R189: 0.1436054695 | S189: 1
B190: MI ALPENA WSO AIRPORT | C190: California | D190: Contra Costa | F190: California-Contra Costa | G190: 18.51 | H190: 45.9 | I190: 2.667 | K190: MI ALPENA WSO AIRPORT | L190: 0.773 | M190: 0.294 | O190: 33.7697446 | P190: 0.2727128028 | Q190: 7.897260428 | R190: 0.06362647555 | S190: 1
B191: MI BERRIEN SPRINGS 5 W | C191: California | D191: Del Norte | F191: California-Del Norte | G191: 89.25 | H191: 132.5 | I191: 78.75 | K191: MI BERRIEN SPRINGS 5 W | L191: 0.793 | M191: 0.401 | O191: 210.7414449 | P191: 0.2326865672 | Q191: 0.1593696998 | R191: 0.07097619048 | S191: 1
B192: MI DETROIT CITY AIRPORT | C192: California | D192: El Dorado | F192: California-El Dorado | G192: 44.28 | H192: 69.3 | I192: 25 | K192: MI DETROIT CITY AIRPORT | L192: 0.813 | M192: 0.410 | O192: 72.14464605 | P192: 0.222423457 | Q192: 5.633628195 | R192: 0.03007425343 | S192: 1
B193: MI FLINT WSCMO | C193: California | D193: Fresno | F193: California-Fresno | G193: 20.72 | H193: 53.1 | I193: 9.583 | K193: MI FLINT WSCMO | L193: 0.812 | M193: 0.342 | O193: 17.03466728 | P193: 0.3402000087 | Q193: 2.242337158 | R193: 0.3527278063 | S193: 1
B194: MI GRAND RAPIDS WSFO | C194: California | D194: Glenn | F194: California-Glenn | G194: 24.39 | H194: 52 | I194: 11.143 | K194: MI GRAND RAPIDS WSFO | L194: 0.833 | M194: 0.349 | O194: 58.06869821 | P194: 0.2926930759 | Q194: 2.300165357 | R194: 0.2733558983 | S194: 1
B195: MI HANCOCK MCLAIN ST PK | C195: California | D195: Humboldt | F195: California-Humboldt | G195: 67.87 | H195: 108.9 | I195: 49.286 | K195: MI HANCOCK MCLAIN ST PK | L195: 0.708 | M195: 0.331 | O195: 157.6390823 | P195: 0.267891308 | Q195: 3.670417282 | R195: 0.02731991525 | S195: 1
B196: MI LANSING WSO AIRPORT | C196: California | D196: Imperial | F196: California-Imperial | G196: 5.1 | H196: 29.5 | I196: 3.41 | K196: MI LANSING WSO AIRPORT | L196: 0.803 | M196: 0.318 | O196: 11.26171682 | P196: 0.3416407378 | Q196: 1.943930988 | R196: 0.3533579196 | S196: 1
B197: MI MUSKEGON WSO AIRPORT | C197: California | D197: Inyo | F197: California-Inyo | G197: 8.31 | H197: 33.5 | I197: 3.41 | K197: MI MUSKEGON WSO AIRPORT | L197: 0.800 | M197: 0.326 | O197: 18.42404879 | P197: 0.2961115754 | Q197: 1.005947312 | R197: 0.2290880776 | S197: 1
B198: MI SAULT STE MARIE WSO | C198: California | D198: Kern | F198: California-Kern | G198: 10.53 | H198: 38.3 | I198: 2.23 | K198: MI SAULT STE MARIE WSO | L198: 0.769 | M198: 0.317 | O198: 19.11792751 | P198: 0.3136434897 | Q198: 3.478458173 | R198: 0.1742900394 | S198: 1
B199: MI TRAVERSE CITY | C199: California | D199: Kings | F199: California-Kings | G199: 8.63 | H199: 44.7 | I199: 1.167 | K199: MI TRAVERSE CITY | L199: 0.716 | M199: 0.346 | O199: 10.67025935 | P199: 0.3506455077 | Q199: 1.179484668 | R199: 0.2648653373 | S199: 1
B200: MN DULUTH WSO AP | C200: California | D200: Lake | F200: California-Lake | G200: 41.91 | H200: 72.1 | I200: 23.571 | K200: MN DULUTH WSO AP | L200: 0.808 | M200: 0.299 | O200: 85.54275428 | P200: 0.2696397485 | Q200: 3.556052427 | R200: 0.07572086149 | S200: 0.9988175676
... 3017 more rows
